Workbook

Sheet PF Funding
B1: Timeline | F1: Units | G1: Constant 1 | H1: Constant 2 | I1: Sum
D2: Period | J2: 1 | K2: 2 | L2: 3 | M2: 4 | N2: 5 | O2: 6 | P2: 7 | Q2: 8 | R2: 9 | S2: 10 | T2: 11 | U2: 12 | V2: 13 | W2: 14 | X2: 15 | Y2: 16 | Z2: 17 | AA2: 18 | AB2: 19 | AC2: 20 | AD2: 21 | AE2: 22 | AF2: 23 | AG2: 24 | AH2: 25 | AI2: 26 | AJ2: 27 | AK2: 28 | AL2: 29 | AM2: 30 | AN2: 31 | AO2: 32 | AP2: 33 | AQ2: 34 | AR2: 35 | AS2: 36 | AT2: 37 | AU2: 38 | AV2: 39 | AW2: 40 | AX2: 41 | AY2: 42 | AZ2: 43 | BA2: 44 | BB2: 45 | BC2: 46 | BD2: 47 | BE2: 48 | BF2: 49 | BG2: 50 | BH2: 51 | BI2: 52 | BJ2: 53 | BK2: 54 | BL2: 55 | BM2: 56 | BN2: 57 | BO2: 58 | BP2: 59 | BQ2: 60 | BR2: 61 | BS2: 62 | BT2: 63 | BU2: 64 | BV2: 65 | BW2: 66 | BX2: 67 | BY2: 68 | BZ2: 69 | CA2: 70 | CB2: 71 | CC2: 72 | CD2: 73 | CE2: 74 | CF2: 75 | CG2: 76 | CH2: 77 | CI2: 78 | CJ2: 79 | CK2: 80 | CL2: 81 | CM2: 82 | CN2: 83 | CO2: 84 | CP2: 85 | CQ2: 86 | CR2: 87 | CS2: 88 | CT2: 89 | CU2: 90 | CV2: 91 | CW2: 92 | CX2: 93 | CY2: 94 | CZ2: 95 | DA2: 96 | DB2: 97 | DC2: 98 | DD2: 99 | DE2: 100 | DF2: 101 | DG2: 102 | DH2: 103 | DI2: 104 | DJ2: 105 | DK2: 106 | DL2: 107 | DM2: 108 | DN2: 109 | DO2: 110 | DP2: 111 | DQ2: 112 | DR2: 113 | DS2: 114 | DT2: 115 | DU2: 116 | DV2: 117 | DW2: 118 | DX2: 119 | DY2: 120 | DZ2: 121 | EA2: 122 | EB2: 123 | EC2: 124 | ED2: 125 | EE2: 126 | EF2: 127 | EG2: 128 | EH2: 129 | EI2: 130 | EJ2: 131 | EK2: 132 | EL2: 133 | EM2: 134 | EN2: 135 | EO2: 136 | EP2: 137 | EQ2: 138 | ER2: 139 | ES2: 140 | ET2: 141 | EU2: 142 | EV2: 143 | EW2: 144 | EX2: 145 | EY2: 146 | EZ2: 147 | FA2: 148 | FB2: 149 | FC2: 150 | FD2: 151 | FE2: 152 | FF2: 153 | FG2: 154 | FH2: 155 | FI2: 156 | FJ2: 157 | FK2: 158 | FL2: 159 | FM2: 160 | FN2: 161 | FO2: 162 | FP2: 163 | FQ2: 164 | FR2: 165 | FS2: 166 | FT2: 167 | FU2: 168 | FV2: 169 | FW2: 170 | FX2: 171 | FY2: 172 | FZ2: 173 | GA2: 174 | GB2: 175 | GC2: 176 | GD2: 177 | GE2: 178 | GF2: 179 | GG2: 180 | GH2: 181 | GI2: 182 | GJ2: 183 | GK2: 184 | GL2: 185 | GM2: 186 | GN2: 187 | GO2: 188 | GP2: 189 | GQ2: 190 | GR2: 191 | GS2: 192 | GT2: 193 | GU2: 194 | GV2: 195 | GW2: 196 | GX2: 197 | GY2: 198 | GZ2: 199 | HA2: 200
D3: Construction | G3: =G11 -> 24 | J3: =J2<=$G$3 -> TRUE | K3: =K2<=$G$3 -> TRUE | L3: TRUE | M3: TRUE | N3: TRUE | O3: TRUE | P3: TRUE | Q3: TRUE | R3: TRUE | S3: TRUE | T3: TRUE | U3: TRUE | V3: TRUE | W3: TRUE | X3: TRUE | Y3: TRUE | Z3: TRUE | AA3: TRUE | AB3: TRUE | AC3: TRUE | AD3: TRUE | AE3: TRUE | AF3: TRUE | AG3: TRUE | AH3: FALSE | AI3: FALSE | AJ3: FALSE | AK3: FALSE | AL3: FALSE | AM3: FALSE | AN3: FALSE | AO3: FALSE | AP3: FALSE | AQ3: FALSE | AR3: FALSE | AS3: FALSE | AT3: FALSE | AU3: FALSE | AV3: FALSE | AW3: FALSE | AX3: FALSE | AY3: FALSE | AZ3: FALSE | BA3: FALSE | BB3: FALSE | BC3: FALSE | BD3: FALSE | BE3: FALSE | BF3: FALSE | BG3: FALSE | BH3: FALSE | BI3: FALSE | BJ3: FALSE | BK3: FALSE | BL3: FALSE | BM3: FALSE | BN3: FALSE | BO3: FALSE | BP3: FALSE | BQ3: FALSE | BR3: FALSE | BS3: FALSE | BT3: FALSE | BU3: FALSE | BV3: FALSE | BW3: =BW2<=$G$3 -> FALSE | BX3: FALSE | BY3: FALSE | BZ3: FALSE | CA3: FALSE | CB3: FALSE | CC3: FALSE | CD3: FALSE | CE3: FALSE | CF3: FALSE | CG3: FALSE | CH3: FALSE | CI3: FALSE | CJ3: FALSE | CK3: FALSE | CL3: FALSE | CM3: FALSE | CN3: FALSE | CO3: FALSE | CP3: FALSE | CQ3: FALSE | CR3: FALSE | CS3: FALSE | CT3: FALSE | CU3: FALSE | CV3: FALSE | CW3: FALSE | CX3: FALSE | CY3: FALSE | CZ3: FALSE | DA3: FALSE | DB3: FALSE | DC3: FALSE | DD3: FALSE | DE3: FALSE | DF3: FALSE | DG3: FALSE | DH3: FALSE | DI3: FALSE | DJ3: FALSE | DK3: FALSE | DL3: FALSE | DM3: FALSE | DN3: FALSE | DO3: FALSE | DP3: FALSE | DQ3: FALSE | DR3: FALSE | DS3: FALSE | DT3: FALSE | DU3: FALSE | DV3: FALSE | DW3: FALSE | DX3: FALSE | DY3: FALSE | DZ3: FALSE | EA3: FALSE | EB3: FALSE | EC3: FALSE | ED3: FALSE | EE3: FALSE | EF3: FALSE | EG3: FALSE | EH3: FALSE | EI3: =EI2<=$G$3 -> FALSE | EJ3: FALSE | EK3: FALSE | EL3: FALSE | EM3: FALSE | EN3: FALSE | EO3: FALSE | EP3: FALSE | EQ3: FALSE | ER3: FALSE | ES3: FALSE | ET3: FALSE | EU3: FALSE | EV3: FALSE | EW3: FALSE | EX3: FALSE | EY3: FALSE | EZ3: FALSE | FA3: FALSE | FB3: FALSE | FC3: FALSE | FD3: FALSE | FE3: FALSE | FF3: FALSE | FG3: FALSE | FH3: FALSE | FI3: FALSE | FJ3: FALSE | FK3: FALSE | FL3: FALSE | FM3: FALSE | FN3: FALSE | FO3: FALSE | FP3: FALSE | FQ3: FALSE | FR3: FALSE | FS3: FALSE | FT3: FALSE | FU3: FALSE | FV3: FALSE | FW3: FALSE | FX3: FALSE | FY3: FALSE | FZ3: FALSE | GA3: FALSE | GB3: FALSE | GC3: FALSE | GD3: FALSE | GE3: FALSE | GF3: FALSE | GG3: FALSE | GH3: FALSE | GI3: FALSE | GJ3: FALSE | GK3: FALSE | GL3: FALSE | GM3: FALSE | GN3: FALSE | GO3: FALSE | GP3: FALSE | GQ3: FALSE | GR3: FALSE | GS3: FALSE | GT3: FALSE | GU3: =GU2<=$G$3 -> FALSE | GV3: FALSE | GW3: FALSE | GX3: FALSE | GY3: FALSE | GZ3: FALSE | HA3: FALSE
D4: Post Construction | J4: =NOT(J3) -> FALSE | K4: =NOT(K3) -> FALSE | L4: FALSE | M4: FALSE | N4: FALSE | O4: FALSE | P4: FALSE | Q4: FALSE | R4: FALSE | S4: FALSE | T4: FALSE | U4: FALSE | V4: FALSE | W4: FALSE | X4: FALSE | Y4: FALSE | Z4: FALSE | AA4: FALSE | AB4: FALSE | AC4: FALSE | AD4: FALSE | AE4: FALSE | AF4: FALSE | AG4: FALSE | AH4: TRUE | AI4: TRUE | AJ4: TRUE | AK4: TRUE | AL4: TRUE | AM4: TRUE | AN4: TRUE | AO4: TRUE | AP4: TRUE | AQ4: TRUE | AR4: TRUE | AS4: TRUE | AT4: TRUE | AU4: TRUE | AV4: TRUE | AW4: TRUE | AX4: TRUE | AY4: TRUE | AZ4: TRUE | BA4: TRUE | BB4: TRUE | BC4: TRUE | BD4: TRUE | BE4: TRUE | BF4: TRUE | BG4: TRUE | BH4: TRUE | BI4: TRUE | BJ4: TRUE | BK4: TRUE | BL4: TRUE | BM4: TRUE | BN4: TRUE | BO4: TRUE | BP4: TRUE | BQ4: TRUE | BR4: TRUE | BS4: TRUE | BT4: TRUE | BU4: TRUE | BV4: TRUE | BW4: =NOT(BW3) -> TRUE | BX4: TRUE | BY4: TRUE | BZ4: TRUE | CA4: TRUE | CB4: TRUE | CC4: TRUE | CD4: TRUE | CE4: TRUE | CF4: TRUE | CG4: TRUE | CH4: TRUE | CI4: TRUE | CJ4: TRUE | CK4: TRUE | CL4: TRUE | CM4: TRUE | CN4: TRUE | CO4: TRUE | CP4: TRUE | CQ4: TRUE | CR4: TRUE | CS4: TRUE | CT4: TRUE | CU4: TRUE | CV4: TRUE | CW4: TRUE | CX4: TRUE | CY4: TRUE | CZ4: TRUE | DA4: TRUE | DB4: TRUE | DC4: TRUE | DD4: TRUE | DE4: TRUE | DF4: TRUE | DG4: TRUE | DH4: TRUE | DI4: TRUE | DJ4: TRUE | DK4: TRUE | DL4: TRUE | DM4: TRUE | DN4: TRUE | DO4: TRUE | DP4: TRUE | DQ4: TRUE | DR4: TRUE | DS4: TRUE | DT4: TRUE | DU4: TRUE | DV4: TRUE | DW4: TRUE | DX4: TRUE | DY4: TRUE | DZ4: TRUE | EA4: TRUE | EB4: TRUE | EC4: TRUE | ED4: TRUE | EE4: TRUE | EF4: TRUE | EG4: TRUE | EH4: TRUE | EI4: =NOT(EI3) -> TRUE | EJ4: TRUE | EK4: TRUE | EL4: TRUE | EM4: TRUE | EN4: TRUE | EO4: TRUE | EP4: TRUE | EQ4: TRUE | ER4: TRUE | ES4: TRUE | ET4: TRUE | EU4: TRUE | EV4: TRUE | EW4: TRUE | EX4: TRUE | EY4: TRUE | EZ4: TRUE | FA4: TRUE | FB4: TRUE | FC4: TRUE | FD4: TRUE | FE4: TRUE | FF4: TRUE | FG4: TRUE | FH4: TRUE | FI4: TRUE | FJ4: TRUE | FK4: TRUE | FL4: TRUE | FM4: TRUE | FN4: TRUE | FO4: TRUE | FP4: TRUE | FQ4: TRUE | FR4: TRUE | FS4: TRUE | FT4: TRUE | FU4: TRUE | FV4: TRUE | FW4: TRUE | FX4: TRUE | FY4: TRUE | FZ4: TRUE | GA4: TRUE | GB4: TRUE | GC4: TRUE | GD4: TRUE | GE4: TRUE | GF4: TRUE | GG4: TRUE | GH4: TRUE | GI4: TRUE | GJ4: TRUE | GK4: TRUE | GL4: TRUE | GM4: TRUE | GN4: TRUE | GO4: TRUE | GP4: TRUE | GQ4: TRUE | GR4: TRUE | GS4: TRUE | GT4: TRUE | GU4: =NOT(GU3) -> TRUE | GV4: TRUE | GW4: TRUE | GX4: TRUE | GY4: TRUE | GZ4: TRUE | HA4: TRUE
D5: Post Construction Period | J5: =H5+J4 -> 0 | K5: =J5+K4 -> 0 | L5: 0 | M5: 0 | N5: 0 | O5: 0 | P5: 0 | Q5: 0 | R5: 0 | S5: 0 | T5: 0 | U5: 0 | V5: 0 | W5: 0 | X5: 0 | Y5: 0 | Z5: 0 | AA5: 0 | AB5: 0 | AC5: 0 | AD5: 0 | AE5: 0 | AF5: 0 | AG5: 0 | AH5: 1 | AI5: 2 | AJ5: 3 | AK5: 4 | AL5: 5 | AM5: 6 | AN5: 7 | AO5: 8 | AP5: 9 | AQ5: 10 | AR5: 11 | AS5: 12 | AT5: 13 | AU5: 14 | AV5: 15 | AW5: 16 | AX5: 17 | AY5: 18 | AZ5: 19 | BA5: 20 | BB5: 21 | BC5: 22 | BD5: 23 | BE5: 24 | BF5: 25 | BG5: 26 | BH5: 27 | BI5: 28 | BJ5: 29 | BK5: 30 | BL5: 31 | BM5: 32 | BN5: 33 | BO5: 34 | BP5: 35 | BQ5: 36 | BR5: 37 | BS5: 38 | BT5: 39 | BU5: 40 | BV5: 41 | BW5: =BV5+BW4 -> 42 | BX5: 43 | BY5: 44 | BZ5: 45 | CA5: 46 | CB5: 47 | CC5: 48 | CD5: 49 | CE5: 50 | CF5: 51 | CG5: 52 | CH5: 53 | CI5: 54 | CJ5: 55 | CK5: 56 | CL5: 57 | CM5: 58 | CN5: 59 | CO5: 60 | CP5: 61 | CQ5: 62 | CR5: 63 | CS5: 64 | CT5: 65 | CU5: 66 | CV5: 67 | CW5: 68 | CX5: 69 | CY5: 70 | CZ5: 71 | DA5: 72 | DB5: 73 | DC5: 74 | DD5: 75 | DE5: 76 | DF5: 77 | DG5: 78 | DH5: 79 | DI5: 80 | DJ5: 81 | DK5: 82 | DL5: 83 | DM5: 84 | DN5: 85 | DO5: 86 | DP5: 87 | DQ5: 88 | DR5: 89 | DS5: 90 | DT5: 91 | DU5: 92 | DV5: 93 | DW5: 94 | DX5: 95 | DY5: 96 | DZ5: 97 | EA5: 98 | EB5: 99 | EC5: 100 | ED5: 101 | EE5: 102 | EF5: 103 | EG5: 104 | EH5: 105 | EI5: =EH5+EI4 -> 106 | EJ5: 107 | EK5: 108 | EL5: 109 | EM5: 110 | EN5: 111 | EO5: 112 | EP5: 113 | EQ5: 114 | ER5: 115 | ES5: 116 | ET5: 117 | EU5: 118 | EV5: 119 | EW5: 120 | EX5: 121 | EY5: 122 | EZ5: 123 | FA5: 124 | FB5: 125 | FC5: 126 | FD5: 127 | FE5: 128 | FF5: 129 | FG5: 130 | FH5: 131 | FI5: 132 | FJ5: 133 | FK5: 134 | FL5: 135 | FM5: 136 | FN5: 137 | FO5: 138 | FP5: 139 | FQ5: 140 | FR5: 141 | FS5: 142 | FT5: 143 | FU5: 144 | FV5: 145 | FW5: 146 | FX5: 147 | FY5: 148 | FZ5: 149 | GA5: 150 | GB5: 151 | GC5: 152 | GD5: 153 | GE5: 154 | GF5: 155 | GG5: 156 | GH5: 157 | GI5: 158 | GJ5: 159 | GK5: 160 | GL5: 161 | GM5: 162 | GN5: 163 | GO5: 164 | GP5: 165 | GQ5: 166 | GR5: 167 | GS5: 168 | GT5: 169 | GU5: =GT5+GU4 -> 170 | GV5: 171 | GW5: 172 | GX5: 173 | GY5: 174 | GZ5: 175 | HA5: 176
D6: Months in Period | G6: 1 | H6: 12 | J6: =IF(J3,$G$6,$H$6) -> 1 | K6: =IF(K3,$G$6,$H$6) -> 1 | L6: 1 | M6: 1 | N6: 1 | O6: 1 | P6: 1 | Q6: 1 | R6: 1 | S6: 1 | T6: 1 | U6: 1 | V6: 1 | W6: 1 | X6: 1 | Y6: 1 | Z6: 1 | AA6: 1 | AB6: 1 | AC6: 1 | AD6: 1 | AE6: 1 | AF6: 1 | AG6: 1 | AH6: 12 | AI6: 12 | AJ6: 12 | AK6: 12 | AL6: 12 | AM6: 12 | AN6: 12 | AO6: 12 | AP6: 12 | AQ6: 12 | AR6: 12 | AS6: 12 | AT6: 12 | AU6: 12 | AV6: 12 | AW6: 12 | AX6: 12 | AY6: 12 | AZ6: 12 | BA6: 12 | BB6: 12 | BC6: 12 | BD6: 12 | BE6: 12 | BF6: 12 | BG6: 12 | BH6: 12 | BI6: 12 | BJ6: 12 | BK6: 12 | BL6: 12 | BM6: 12 | BN6: 12 | BO6: 12 | BP6: 12 | BQ6: 12 | BR6: 12 | BS6: 12 | BT6: 12 | BU6: 12 | BV6: 12 | BW6: =IF(BW3,$G$6,$H$6) -> 12 | BX6: 12 | BY6: 12 | BZ6: 12 | CA6: 12 | CB6: 12 | CC6: 12 | CD6: 12 | CE6: 12 | CF6: 12 | CG6: 12 | CH6: 12 | CI6: 12 | CJ6: 12 | CK6: 12 | CL6: 12 | CM6: 12 | CN6: 12 | CO6: 12 | CP6: 12 | CQ6: 12 | CR6: 12 | CS6: 12 | CT6: 12 | CU6: 12 | CV6: 12 | CW6: 12 | CX6: 12 | CY6: 12 | CZ6: 12 | DA6: 12 | DB6: 12 | DC6: 12 | DD6: 12 | DE6: 12 | DF6: 12 | DG6: 12 | DH6: 12 | DI6: 12 | DJ6: 12 | DK6: 12 | DL6: 12 | DM6: 12 | DN6: 12 | DO6: 12 | DP6: 12 | DQ6: 12 | DR6: 12 | DS6: 12 | DT6: 12 | DU6: 12 | DV6: 12 | DW6: 12 | DX6: 12 | DY6: 12 | DZ6: 12 | EA6: 12 | EB6: 12 | EC6: 12 | ED6: 12 | EE6: 12 | EF6: 12 | EG6: 12 | EH6: 12 | EI6: =IF(EI3,$G$6,$H$6) -> 12 | EJ6: 12 | EK6: 12 | EL6: 12 | EM6: 12 | EN6: 12 | EO6: 12 | EP6: 12 | EQ6: 12 | ER6: 12 | ES6: 12 | ET6: 12 | EU6: 12 | EV6: 12 | EW6: 12 | EX6: 12 | EY6: 12 | EZ6: 12 | FA6: 12 | FB6: 12 | FC6: 12 | FD6: 12 | FE6: 12 | FF6: 12 | FG6: 12 | FH6: 12 | FI6: 12 | FJ6: 12 | FK6: 12 | FL6: 12 | FM6: 12 | FN6: 12 | FO6: 12 | FP6: 12 | FQ6: 12 | FR6: 12 | FS6: 12 | FT6: 12 | FU6: 12 | FV6: 12 | FW6: 12 | FX6: 12 | FY6: 12 | FZ6: 12 | GA6: 12 | GB6: 12 | GC6: 12 | GD6: 12 | GE6: 12 | GF6: 12 | GG6: 12 | GH6: 12 | GI6: 12 | GJ6: 12 | GK6: 12 | GL6: 12 | GM6: 12 | GN6: 12 | GO6: 12 | GP6: 12 | GQ6: 12 | GR6: 12 | GS6: 12 | GT6: 12 | GU6: =IF(GU3,$G$6,$H$6) -> 12 | GV6: 12 | GW6: 12 | GX6: 12 | GY6: 12 | GZ6: 12 | HA6: 12
D7: Operating Period | G7: =G15 -> 20 | J7: =AND(J5>0,J5<=$G$7)*1 -> 0 | K7: =AND(K5>0,K5<=$G$7)*1 -> 0 | L7: 0 | M7: 0 | N7: 0 | O7: 0 | P7: 0 | Q7: 0 | R7: 0 | S7: 0 | T7: 0 | U7: 0 | V7: 0 | W7: 0 | X7: 0 | Y7: 0 | Z7: 0 | AA7: 0 | AB7: 0 | AC7: 0 | AD7: 0 | AE7: 0 | AF7: 0 | AG7: 0 | AH7: 1 | AI7: 1 | AJ7: 1 | AK7: 1 | AL7: 1 | AM7: 1 | AN7: 1 | AO7: 1 | AP7: 1 | AQ7: 1 | AR7: 1 | AS7: 1 | AT7: 1 | AU7: 1 | AV7: 1 | AW7: 1 | AX7: 1 | AY7: 1 | AZ7: 1 | BA7: 1 | BB7: 0 | BC7: 0 | BD7: 0 | BE7: 0 | BF7: 0 | BG7: 0 | BH7: 0 | BI7: 0 | BJ7: 0 | BK7: 0 | BL7: 0 | BM7: 0 | BN7: 0 | BO7: 0 | BP7: 0 | BQ7: 0 | BR7: 0 | BS7: 0 | BT7: 0 | BU7: 0 | BV7: 0 | BW7: =AND(BW5>0,BW5<=$G$7)*1 -> 0 | BX7: 0 | BY7: 0 | BZ7: 0 | CA7: 0 | CB7: 0 | CC7: 0 | CD7: 0 | CE7: 0 | CF7: 0 | CG7: 0 | CH7: 0 | CI7: 0 | CJ7: 0 | CK7: 0 | CL7: 0 | CM7: 0 | CN7: 0 | CO7: 0 | CP7: 0 | CQ7: 0 | CR7: 0 | CS7: 0 | CT7: 0 | CU7: 0 | CV7: 0 | CW7: 0 | CX7: 0 | CY7: 0 | CZ7: 0 | DA7: 0 | DB7: 0 | DC7: 0 | DD7: 0 | DE7: 0 | DF7: 0 | DG7: 0 | DH7: 0 | DI7: 0 | DJ7: 0 | DK7: 0 | DL7: 0 | DM7: 0 | DN7: 0 | DO7: 0 | DP7: 0 | DQ7: 0 | DR7: 0 | DS7: 0 | DT7: 0 | DU7: 0 | DV7: 0 | DW7: 0 | DX7: 0 | DY7: 0 | DZ7: 0 | EA7: 0 | EB7: 0 | EC7: 0 | ED7: 0 | EE7: 0 | EF7: 0 | EG7: 0 | EH7: 0 | EI7: =AND(EI5>0,EI5<=$G$7)*1 -> 0 | EJ7: 0 | EK7: 0 | EL7: 0 | EM7: 0 | EN7: 0 | EO7: 0 | EP7: 0 | EQ7: 0 | ER7: 0 | ES7: 0 | ET7: 0 | EU7: 0 | EV7: 0 | EW7: 0 | EX7: 0 | EY7: 0 | EZ7: 0 | FA7: 0 | FB7: 0 | FC7: 0 | FD7: 0 | FE7: 0 | FF7: 0 | FG7: 0 | FH7: 0 | FI7: 0 | FJ7: 0 | FK7: 0 | FL7: 0 | FM7: 0 | FN7: 0 | FO7: 0 | FP7: 0 | FQ7: 0 | FR7: 0 | FS7: 0 | FT7: 0 | FU7: 0 | FV7: 0 | FW7: 0 | FX7: 0 | FY7: 0 | FZ7: 0 | GA7: 0 | GB7: 0 | GC7: 0 | GD7: 0 | GE7: 0 | GF7: 0 | GG7: 0 | GH7: 0 | GI7: 0 | GJ7: 0 | GK7: 0 | GL7: 0 | GM7: 0 | GN7: 0 | GO7: 0 | GP7: 0 | GQ7: 0 | GR7: 0 | GS7: 0 | GT7: 0 | GU7: =AND(GU5>0,GU5<=$G$7)*1 -> 0 | GV7: 0 | GW7: 0 | GX7: 0 | GY7: 0 | GZ7: 0 | HA7: 0
B9: Inputs
C10: Operating Inputs
D11: Construction Period | F11: Month | G11: 24
D12: EPC Cost | F12: MED | G12: 25000
D13: S-curve | F13: % | G13: =1/G11 -> 0.04166666667
D15: Operating Years | F15: Years | G15: 20
D16: EBITDA | F16: MED | G16: 800
D17: EBITDA Growth | F17: % p.a. | G17: -0.1
C19: Financing Inputs
D20: Debt to Capital | F20: % | G20: 0.7
D21: DSCR | F21: x | G21: 1.45
D22: Repayment Tenor | F22: Years | G22: 20
D23: Interest Rate | F23: % | G23: 0.07
D24: Up Front Fee | F24: % | G24: 0.02
D25: Commitment Fee | F25: % | G25: 0.015
D26: DSRA | F26: Years | G26: 1
C28: Tax
D29: Tax Rate | F29: % | G29: 0.21
B32: Operating Model
C33: Construction
D34: Total Cost | F34: MED | G34: =G12 -> 25000 | J34: =$G$34 -> 25000 | K34: =$G$34 -> 25000 | L34: 25000 | M34: 25000 | N34: 25000 | O34: 25000 | P34: 25000 | Q34: 25000 | R34: 25000 | S34: 25000 | T34: 25000 | U34: 25000 | V34: 25000 | W34: 25000 | X34: 25000 | Y34: 25000 | Z34: 25000 | AA34: 25000 | AB34: 25000 | AC34: 25000 | AD34: 25000 | AE34: 25000 | AF34: 25000 | AG34: 25000 | AH34: 25000 | AI34: 25000 | AJ34: 25000 | AK34: 25000 | AL34: 25000 | AM34: 25000 | AN34: 25000 | AO34: 25000 | AP34: 25000 | AQ34: 25000 | AR34: 25000 | AS34: 25000 | AT34: 25000 | AU34: 25000 | AV34: 25000 | AW34: 25000 | AX34: 25000 | AY34: 25000 | AZ34: 25000 | BA34: 25000 | BB34: 25000 | BC34: 25000 | BD34: 25000 | BE34: 25000 | BF34: 25000 | BG34: 25000 | BH34: 25000 | BI34: 25000 | BJ34: 25000 | BK34: 25000 | BL34: 25000 | BM34: 25000 | BN34: 25000 | BO34: 25000 | BP34: 25000 | BQ34: 25000 | BR34: 25000 | BS34: 25000 | BT34: 25000 | BU34: 25000 | BV34: 25000 | BW34: =$G$34 -> 25000 | BX34: 25000 | BY34: 25000 | BZ34: 25000 | CA34: 25000 | CB34: 25000 | CC34: 25000 | CD34: 25000 | CE34: 25000 | CF34: 25000 | CG34: 25000 | CH34: 25000 | CI34: 25000 | CJ34: 25000 | CK34: 25000 | CL34: 25000 | CM34: 25000 | CN34: 25000 | CO34: 25000 | CP34: 25000 | CQ34: 25000 | CR34: 25000 | CS34: 25000 | CT34: 25000 | CU34: 25000 | CV34: 25000 | CW34: 25000 | CX34: 25000 | CY34: 25000 | CZ34: 25000 | DA34: 25000 | DB34: 25000 | DC34: 25000 | DD34: 25000 | DE34: 25000 | DF34: 25000 | DG34: 25000 | DH34: 25000 | DI34: 25000 | DJ34: 25000 | DK34: 25000 | DL34: 25000 | DM34: 25000 | DN34: 25000 | DO34: 25000 | DP34: 25000 | DQ34: 25000 | DR34: 25000 | DS34: 25000 | DT34: 25000 | DU34: 25000 | DV34: 25000 | DW34: 25000 | DX34: 25000 | DY34: 25000 | DZ34: 25000 | EA34: 25000 | EB34: 25000 | EC34: 25000 | ED34: 25000 | EE34: 25000 | EF34: 25000 | EG34: 25000 | EH34: 25000 | EI34: =$G$34 -> 25000 | EJ34: 25000 | EK34: 25000 | EL34: 25000 | EM34: 25000 | EN34: 25000 | EO34: 25000 | EP34: 25000 | EQ34: 25000 | ER34: 25000 | ES34: 25000 | ET34: 25000 | EU34: 25000 | EV34: 25000 | EW34: 25000 | EX34: 25000 | EY34: 25000 | EZ34: 25000 | FA34: 25000 | FB34: 25000 | FC34: 25000 | FD34: 25000 | FE34: 25000 | FF34: 25000 | FG34: 25000 | FH34: 25000 | FI34: 25000 | FJ34: 25000 | FK34: 25000 | FL34: 25000 | FM34: 25000 | FN34: 25000 | FO34: 25000 | FP34: 25000 | FQ34: 25000 | FR34: 25000 | FS34: 25000 | FT34: 25000 | FU34: 25000 | FV34: 25000 | FW34: 25000 | FX34: 25000 | FY34: 25000 | FZ34: 25000 | GA34: 25000 | GB34: 25000 | GC34: 25000 | GD34: 25000 | GE34: 25000 | GF34: 25000 | GG34: 25000 | GH34: 25000 | GI34: 25000 | GJ34: 25000 | GK34: 25000 | GL34: 25000 | GM34: 25000 | GN34: 25000 | GO34: 25000 | GP34: 25000 | GQ34: 25000 | GR34: 25000 | GS34: 25000 | GT34: 25000 | GU34: =$G$34 -> 25000 | GV34: 25000 | GW34: 25000 | GX34: 25000 | GY34: 25000 | GZ34: 25000 | HA34: 25000
D35: S-curve | F35: % | G35: =G13 -> 0.04166666667 | I35: =SUM(J35:HA35) -> 1 | J35: =$G$35*J3 -> 0.04166666667 | K35: 0.04166666667 | L35: 0.04166666667 | M35: 0.04166666667 | N35: 0.04166666667 | O35: 0.04166666667 | P35: 0.04166666667 | Q35: 0.04166666667 | R35: 0.04166666667 | S35: 0.04166666667 | T35: 0.04166666667 | U35: 0.04166666667 | V35: 0.04166666667 | W35: 0.04166666667 | X35: 0.04166666667 | Y35: 0.04166666667 | Z35: 0.04166666667 | AA35: 0.04166666667 | AB35: 0.04166666667 | AC35: 0.04166666667 | AD35: 0.04166666667 | AE35: 0.04166666667 | AF35: 0.04166666667 | AG35: 0.04166666667 | AH35: 0 | AI35: 0 | AJ35: 0 | AK35: 0 | AL35: 0 | AM35: 0 | AN35: 0 | AO35: 0 | AP35: =$G$35*AP3 -> 0 | AQ35: 0 | AR35: 0 | AS35: 0 | AT35: 0 | AU35: 0 | AV35: 0 | AW35: 0 | AX35: 0 | AY35: 0 | AZ35: 0 | BA35: 0 | BB35: 0 | BC35: 0 | BD35: 0 | BE35: 0 | BF35: 0 | BG35: 0 | BH35: 0 | BI35: 0 | BJ35: 0 | BK35: 0 | BL35: 0 | BM35: 0 | BN35: 0 | BO35: 0 | BP35: 0 | BQ35: 0 | BR35: 0 | BS35: 0 | BT35: 0 | BU35: 0 | BV35: =$G$35*BV3 -> 0 | BW35: 0 | BX35: 0 | BY35: 0 | BZ35: 0 | CA35: 0 | CB35: 0 | CC35: 0 | CD35: 0 | CE35: 0 | CF35: 0 | CG35: 0 | CH35: 0 | CI35: 0 | CJ35: 0 | CK35: 0 | CL35: 0 | CM35: 0 | CN35: 0 | CO35: 0 | CP35: 0 | CQ35: 0 | CR35: 0 | CS35: 0 | CT35: 0 | CU35: 0 | CV35: 0 | CW35: 0 | CX35: 0 | CY35: 0 | CZ35: 0 | DA35: 0 | DB35: =$G$35*DB3 -> 0 | DC35: 0 | DD35: 0 | DE35: 0 | DF35: 0 | DG35: 0 | DH35: 0 | DI35: 0 | DJ35: 0 | DK35: 0 | DL35: 0 | DM35: 0 | DN35: 0 | DO35: 0 | DP35: 0 | DQ35: 0 | DR35: 0 | DS35: 0 | DT35: 0 | DU35: 0 | DV35: 0 | DW35: 0 | DX35: 0 | DY35: 0 | DZ35: 0 | EA35: 0 | EB35: 0 | EC35: 0 | ED35: 0 | EE35: 0 | EF35: 0 | EG35: 0 | EH35: =$G$35*EH3 -> 0 | EI35: 0 | EJ35: 0 | EK35: 0 | EL35: 0 | EM35: 0 | EN35: 0 | EO35: 0 | EP35: 0 | EQ35: 0 | ER35: 0 | ES35: 0 | ET35: 0 | EU35: 0 | EV35: 0 | EW35: 0 | EX35: 0 | EY35: 0 | EZ35: 0 | FA35: 0 | FB35: 0 | FC35: 0 | FD35: 0 | FE35: 0 | FF35: 0 | FG35: 0 | FH35: 0 | FI35: 0 | FJ35: 0 | FK35: 0 | FL35: 0 | FM35: 0 | FN35: =$G$35*FN3 -> 0 | FO35: 0 | FP35: 0 | FQ35: 0 | FR35: 0 | FS35: 0 | FT35: 0 | FU35: 0 | FV35: 0 | FW35: 0 | FX35: 0 | FY35: 0 | FZ35: 0 | GA35: 0 | GB35: 0 | GC35: 0 | GD35: 0 | GE35: 0 | GF35: 0 | GG35: 0 | GH35: 0 | GI35: 0 | GJ35: 0 | GK35: 0 | GL35: 0 | GM35: 0 | GN35: 0 | GO35: 0 | GP35: 0 | GQ35: 0 | GR35: 0 | GS35: 0 | GT35: =$G$35*GT3 -> 0 | GU35: 0 | GV35: 0 | GW35: 0 | GX35: 0 | GY35: 0 | GZ35: 0 | HA35: 0
D36: Construction Expenditure | F36: MED | I36: =SUM(J36:HA36) -> 25000 | J36: =J34*J35 -> 1041.666667 | K36: =K34*K35 -> 1041.666667 | L36: 1041.666667 | M36: 1041.666667 | N36: 1041.666667 | O36: 1041.666667 | P36: 1041.666667 | Q36: 1041.666667 | R36: 1041.666667 | S36: 1041.666667 | T36: 1041.666667 | U36: 1041.666667 | V36: 1041.666667 | W36: 1041.666667 | X36: 1041.666667 | Y36: 1041.666667 | Z36: 1041.666667 | AA36: 1041.666667 | AB36: 1041.666667 | AC36: 1041.666667 | AD36: 1041.666667 | AE36: 1041.666667 | AF36: 1041.666667 | AG36: 1041.666667 | AH36: 0 | AI36: 0 | AJ36: 0 | AK36: 0 | AL36: 0 | AM36: 0 | AN36: 0 | AO36: 0 | AP36: 0 | AQ36: 0 | AR36: 0 | AS36: 0 | AT36: 0 | AU36: 0 | AV36: 0 | AW36: 0 | AX36: 0 | AY36: 0 | AZ36: 0 | BA36: 0 | BB36: 0 | BC36: 0 | BD36: 0 | BE36: 0 | BF36: 0 | BG36: 0 | BH36: 0 | BI36: 0 | BJ36: 0 | BK36: 0 | BL36: 0 | BM36: 0 | BN36: 0 | BO36: 0 | BP36: 0 | BQ36: 0 | BR36: 0 | BS36: 0 | BT36: 0 | BU36: 0 | BV36: 0 | BW36: =BW34*BW35 -> 0 | BX36: 0 | BY36: 0 | BZ36: 0 | CA36: 0 | CB36: 0 | CC36: 0 | CD36: 0 | CE36: 0 | CF36: 0 | CG36: 0 | CH36: 0 | CI36: 0 | CJ36: 0 | CK36: 0 | CL36: 0 | CM36: 0 | CN36: 0 | CO36: 0 | CP36: 0 | CQ36: 0 | CR36: 0 | CS36: 0 | CT36: 0 | CU36: 0 | CV36: 0 | CW36: 0 | CX36: 0 | CY36: 0 | CZ36: 0 | DA36: 0 | DB36: 0 | DC36: 0 | DD36: 0 | DE36: 0 | DF36: 0 | DG36: 0 | DH36: 0 | DI36: 0 | DJ36: 0 | DK36: 0 | DL36: 0 | DM36: 0 | DN36: 0 | DO36: 0 | DP36: 0 | DQ36: 0 | DR36: 0 | DS36: 0 | DT36: 0 | DU36: 0 | DV36: 0 | DW36: 0 | DX36: 0 | DY36: 0 | DZ36: 0 | EA36: 0 | EB36: 0 | EC36: 0 | ED36: 0 | EE36: 0 | EF36: 0 | EG36: 0 | EH36: 0 | EI36: =EI34*EI35 -> 0 | EJ36: 0 | EK36: 0 | EL36: 0 | EM36: 0 | EN36: 0 | EO36: 0 | EP36: 0 | EQ36: 0 | ER36: 0 | ES36: 0 | ET36: 0 | EU36: 0 | EV36: 0 | EW36: 0 | EX36: 0 | EY36: 0 | EZ36: 0 | FA36: 0 | FB36: 0 | FC36: 0 | FD36: 0 | FE36: 0 | FF36: 0 | FG36: 0 | FH36: 0 | FI36: 0 | FJ36: 0 | FK36: 0 | FL36: 0 | FM36: 0 | FN36: 0 | FO36: 0 | FP36: 0 | FQ36: 0 | FR36: 0 | FS36: 0 | FT36: 0 | FU36: 0 | FV36: 0 | FW36: 0 | FX36: 0 | FY36: 0 | FZ36: 0 | GA36: 0 | GB36: 0 | GC36: 0 | GD36: 0 | GE36: 0 | GF36: 0 | GG36: 0 | GH36: 0 | GI36: 0 | GJ36: 0 | GK36: 0 | GL36: 0 | GM36: 0 | GN36: 0 | GO36: 0 | GP36: 0 | GQ36: 0 | GR36: 0 | GS36: 0 | GT36: 0 | GU36: =GU34*GU35 -> 0 | GV36: 0 | GW36: 0 | GX36: 0 | GY36: 0 | GZ36: 0 | HA36: 0
C38: Operation
D39: Base EBITDA | F39: MED | G39: =G16 -> 800 | J39: =$G$39 -> 800 | K39: =$G$39 -> 800 | L39: 800 | M39: 800 | N39: 800 | O39: 800 | P39: 800 | Q39: 800 | R39: 800 | S39: 800 | T39: 800 | U39: 800 | V39: 800 | W39: 800 | X39: 800 | Y39: 800 | Z39: 800 | AA39: 800 | AB39: 800 | AC39: 800 | AD39: 800 | AE39: 800 | AF39: 800 | AG39: 800 | AH39: 800 | AI39: 800 | AJ39: 800 | AK39: 800 | AL39: 800 | AM39: 800 | AN39: 800 | AO39: 800 | AP39: 800 | AQ39: 800 | AR39: 800 | AS39: 800 | AT39: 800 | AU39: 800 | AV39: 800 | AW39: 800 | AX39: 800 | AY39: 800 | AZ39: 800 | BA39: 800 | BB39: 800 | BC39: 800 | BD39: 800 | BE39: 800 | BF39: 800 | BG39: 800 | BH39: 800 | BI39: 800 | BJ39: 800 | BK39: 800 | BL39: 800 | BM39: 800 | BN39: 800 | BO39: 800 | BP39: 800 | BQ39: 800 | BR39: 800 | BS39: 800 | BT39: 800 | BU39: 800 | BV39: 800 | BW39: =$G$39 -> 800 | BX39: 800 | BY39: 800 | BZ39: 800 | CA39: 800 | CB39: 800 | CC39: 800 | CD39: 800 | CE39: 800 | CF39: 800 | CG39: 800 | CH39: 800 | CI39: 800 | CJ39: 800 | CK39: 800 | CL39: 800 | CM39: 800 | CN39: 800 | CO39: 800 | CP39: 800 | CQ39: 800 | CR39: 800 | CS39: 800 | CT39: 800 | CU39: 800 | CV39: 800 | CW39: 800 | CX39: 800 | CY39: 800 | CZ39: 800 | DA39: 800 | DB39: 800 | DC39: 800 | DD39: 800 | DE39: 800 | DF39: 800 | DG39: 800 | DH39: 800 | DI39: 800 | DJ39: 800 | DK39: 800 | DL39: 800 | DM39: 800 | DN39: 800 | DO39: 800 | DP39: 800 | DQ39: 800 | DR39: 800 | DS39: 800 | DT39: 800 | DU39: 800 | DV39: 800 | DW39: 800 | DX39: 800 | DY39: 800 | DZ39: 800 | EA39: 800 | EB39: 800 | EC39: 800 | ED39: 800 | EE39: 800 | EF39: 800 | EG39: 800 | EH39: 800 | EI39: =$G$39 -> 800 | EJ39: 800 | EK39: 800 | EL39: 800 | EM39: 800 | EN39: 800 | EO39: 800 | EP39: 800 | EQ39: 800 | ER39: 800 | ES39: 800 | ET39: 800 | EU39: 800 | EV39: 800 | EW39: 800 | EX39: 800 | EY39: 800 | EZ39: 800 | FA39: 800 | FB39: 800 | FC39: 800 | FD39: 800 | FE39: 800 | FF39: 800 | FG39: 800 | FH39: 800 | FI39: 800 | FJ39: 800 | FK39: 800 | FL39: 800 | FM39: 800 | FN39: 800 | FO39: 800 | FP39: 800 | FQ39: 800 | FR39: 800 | FS39: 800 | FT39: 800 | FU39: 800 | FV39: 800 | FW39: 800 | FX39: 800 | FY39: 800 | FZ39: 800 | GA39: 800 | GB39: 800 | GC39: 800 | GD39: 800 | GE39: 800 | GF39: 800 | GG39: 800 | GH39: 800 | GI39: 800 | GJ39: 800 | GK39: 800 | GL39: 800 | GM39: 800 | GN39: 800 | GO39: 800 | GP39: 800 | GQ39: 800 | GR39: 800 | GS39: 800 | GT39: 800 | GU39: =$G$39 -> 800 | GV39: 800 | GW39: 800 | GX39: 800 | GY39: 800 | GZ39: 800 | HA39: 800
D40: Growth Index | F40: Index | G40: =G17 -> -0.1 | I40: 1 | J40: =I40*(1+J7*$G$40) -> 1 | K40: 1 | L40: 1 | M40: 1 | N40: 1 | O40: 1 | P40: 1 | Q40: 1 | R40: 1 | S40: 1 | T40: 1 | U40: 1 | V40: 1 | W40: 1 | X40: 1 | Y40: 1 | Z40: 1 | AA40: 1 | AB40: 1 | AC40: 1 | AD40: 1 | AE40: 1 | AF40: 1 | AG40: 1 | AH40: 0.9 | AI40: 0.81 | AJ40: 0.729 | AK40: 0.6561 | AL40: 0.59049 | AM40: 0.531441 | AN40: 0.4782969 | AO40: 0.43046721 | AP40: =AO40*(1+AP7*$G$40) -> 0.387420489 | AQ40: 0.3486784401 | AR40: 0.3138105961 | AS40: 0.2824295365 | AT40: 0.2541865828 | AU40: 0.2287679245 | AV40: 0.2058911321 | AW40: 0.1853020189 | AX40: 0.166771817 | AY40: 0.1500946353 | AZ40: 0.1350851718 | BA40: 0.1215766546 | BB40: 0.1215766546 | BC40: 0.1215766546 | BD40: 0.1215766546 | BE40: 0.1215766546 | BF40: 0.1215766546 | BG40: 0.1215766546 | BH40: 0.1215766546 | BI40: 0.1215766546 | BJ40: 0.1215766546 | BK40: 0.1215766546 | BL40: 0.1215766546 | BM40: 0.1215766546 | BN40: 0.1215766546 | BO40: 0.1215766546 | BP40: 0.1215766546 | BQ40: 0.1215766546 | BR40: 0.1215766546 | BS40: 0.1215766546 | BT40: 0.1215766546 | BU40: 0.1215766546 | BV40: =BU40*(1+BV7*$G$40) -> 0.1215766546 | BW40: 0.1215766546 | BX40: 0.1215766546 | BY40: 0.1215766546 | BZ40: 0.1215766546 | CA40: 0.1215766546 | CB40: 0.1215766546 | CC40: 0.1215766546 | CD40: 0.1215766546 | CE40: 0.1215766546 | CF40: 0.1215766546 | CG40: 0.1215766546 | CH40: 0.1215766546 | CI40: 0.1215766546 | CJ40: 0.1215766546 | CK40: 0.1215766546 | CL40: 0.1215766546 | CM40: 0.1215766546 | CN40: 0.1215766546 | CO40: 0.1215766546 | CP40: 0.1215766546 | CQ40: 0.1215766546 | CR40: 0.1215766546 | CS40: 0.1215766546 | CT40: 0.1215766546 | CU40: 0.1215766546 | CV40: 0.1215766546 | CW40: 0.1215766546 | CX40: 0.1215766546 | CY40: 0.1215766546 | CZ40: 0.1215766546 | DA40: 0.1215766546 | DB40: =DA40*(1+DB7*$G$40) -> 0.1215766546 | DC40: 0.1215766546 | DD40: 0.1215766546 | DE40: 0.1215766546 | DF40: 0.1215766546 | DG40: 0.1215766546 | DH40: 0.1215766546 | DI40: 0.1215766546 | DJ40: 0.1215766546 | DK40: 0.1215766546 | DL40: 0.1215766546 | DM40: 0.1215766546 | DN40: 0.1215766546 | DO40: 0.1215766546 | DP40: 0.1215766546 | DQ40: 0.1215766546 | DR40: 0.1215766546 | DS40: 0.1215766546 | DT40: 0.1215766546 | DU40: 0.1215766546 | DV40: 0.1215766546 | DW40: 0.1215766546 | DX40: 0.1215766546 | DY40: 0.1215766546 | DZ40: 0.1215766546 | EA40: 0.1215766546 | EB40: 0.1215766546 | EC40: 0.1215766546 | ED40: 0.1215766546 | EE40: 0.1215766546 | EF40: 0.1215766546 | EG40: 0.1215766546 | EH40: =EG40*(1+EH7*$G$40) -> 0.1215766546 | EI40: 0.1215766546 | EJ40: 0.1215766546 | EK40: 0.1215766546 | EL40: 0.1215766546 | EM40: 0.1215766546 | EN40: 0.1215766546 | EO40: 0.1215766546 | EP40: 0.1215766546 | EQ40: 0.1215766546 | ER40: 0.1215766546 | ES40: 0.1215766546 | ET40: 0.1215766546 | EU40: 0.1215766546 | EV40: 0.1215766546 | EW40: 0.1215766546 | EX40: 0.1215766546 | EY40: 0.1215766546 | EZ40: 0.1215766546 | FA40: 0.1215766546 | FB40: 0.1215766546 | FC40: 0.1215766546 | FD40: 0.1215766546 | FE40: 0.1215766546 | FF40: 0.1215766546 | FG40: 0.1215766546 | FH40: 0.1215766546 | FI40: 0.1215766546 | FJ40: 0.1215766546 | FK40: 0.1215766546 | FL40: 0.1215766546 | FM40: 0.1215766546 | FN40: =FM40*(1+FN7*$G$40) -> 0.1215766546 | FO40: 0.1215766546 | FP40: 0.1215766546 | FQ40: 0.1215766546 | FR40: 0.1215766546 | FS40: 0.1215766546 | FT40: 0.1215766546 | FU40: 0.1215766546 | FV40: 0.1215766546 | FW40: 0.1215766546 | FX40: 0.1215766546 | FY40: 0.1215766546 | FZ40: 0.1215766546 | GA40: 0.1215766546 | GB40: 0.1215766546 | GC40: 0.1215766546 | GD40: 0.1215766546 | GE40: 0.1215766546 | GF40: 0.1215766546 | GG40: 0.1215766546 | GH40: 0.1215766546 | GI40: 0.1215766546 | GJ40: 0.1215766546 | GK40: 0.1215766546 | GL40: 0.1215766546 | GM40: 0.1215766546 | GN40: 0.1215766546 | GO40: 0.1215766546 | GP40: 0.1215766546 | GQ40: 0.1215766546 | GR40: 0.1215766546 | GS40: 0.1215766546 | GT40: =GS40*(1+GT7*$G$40) -> 0.1215766546 | GU40: 0.1215766546 | GV40: 0.1215766546 | GW40: 0.1215766546 | GX40: 0.1215766546 | GY40: 0.1215766546 | GZ40: 0.1215766546 | HA40: 0.1215766546
D41: EBITDA Applied | F41: MED | I41: =SUM(J41:HA41) -> 6324.648087 | J41: =J39*J40*J7 -> 0 | K41: 0 | L41: 0 | M41: 0 | N41: 0 | O41: 0 | P41: 0 | Q41: 0 | R41: 0 | S41: 0 | T41: 0 | U41: 0 | V41: 0 | W41: 0 | X41: 0 | Y41: 0 | Z41: 0 | AA41: 0 | AB41: 0 | AC41: 0 | AD41: 0 | AE41: 0 | AF41: 0 | AG41: 0 | AH41: 720 | AI41: 648 | AJ41: 583.2 | AK41: 524.88 | AL41: 472.392 | AM41: 425.1528 | AN41: 382.63752 | AO41: 344.373768 | AP41: =AP39*AP40*AP7 -> 309.9363912 | AQ41: 278.9427521 | AR41: 251.0484769 | AS41: 225.9436292 | AT41: 203.3492663 | AU41: 183.0143396 | AV41: 164.7129057 | AW41: 148.2416151 | AX41: 133.4174536 | AY41: 120.0757082 | AZ41: 108.0681374 | BA41: 97.26132367 | BB41: 0 | BC41: 0 | BD41: 0 | BE41: 0 | BF41: 0 | BG41: 0 | BH41: 0 | BI41: 0 | BJ41: 0 | BK41: 0 | BL41: 0 | BM41: 0 | BN41: 0 | BO41: 0 | BP41: 0 | BQ41: 0 | BR41: 0 | BS41: 0 | BT41: 0 | BU41: 0 | BV41: =BV39*BV40*BV7 -> 0 | BW41: 0 | BX41: 0 | BY41: 0 | BZ41: 0 | CA41: 0 | CB41: 0 | CC41: 0 | CD41: 0 | CE41: 0 | CF41: 0 | CG41: 0 | CH41: 0 | CI41: 0 | CJ41: 0 | CK41: 0 | CL41: 0 | CM41: 0 | CN41: 0 | CO41: 0 | CP41: 0 | CQ41: 0 | CR41: 0 | CS41: 0 | CT41: 0 | CU41: 0 | CV41: 0 | CW41: 0 | CX41: 0 | CY41: 0 | CZ41: 0 | DA41: 0 | DB41: =DB39*DB40*DB7 -> 0 | DC41: 0 | DD41: 0 | DE41: 0 | DF41: 0 | DG41: 0 | DH41: 0 | DI41: 0 | DJ41: 0 | DK41: 0 | DL41: 0 | DM41: 0 | DN41: 0 | DO41: 0 | DP41: 0 | DQ41: 0 | DR41: 0 | DS41: 0 | DT41: 0 | DU41: 0 | DV41: 0 | DW41: 0 | DX41: 0 | DY41: 0 | DZ41: 0 | EA41: 0 | EB41: 0 | EC41: 0 | ED41: 0 | EE41: 0 | EF41: 0 | EG41: 0 | EH41: =EH39*EH40*EH7 -> 0 | EI41: 0 | EJ41: 0 | EK41: 0 | EL41: 0 | EM41: 0 | EN41: 0 | EO41: 0 | EP41: 0 | EQ41: 0 | ER41: 0 | ES41: 0 | ET41: 0 | EU41: 0 | EV41: 0 | EW41: 0 | EX41: 0 | EY41: 0 | EZ41: 0 | FA41: 0 | FB41: 0 | FC41: 0 | FD41: 0 | FE41: 0 | FF41: 0 | FG41: 0 | FH41: 0 | FI41: 0 | FJ41: 0 | FK41: 0 | FL41: 0 | FM41: 0 | FN41: =FN39*FN40*FN7 -> 0 | FO41: 0 | FP41: 0 | FQ41: 0 | FR41: 0 | FS41: 0 | FT41: 0 | FU41: 0 | FV41: 0 | FW41: 0 | FX41: 0 | FY41: 0 | FZ41: 0 | GA41: 0 | GB41: 0 | GC41: 0 | GD41: 0 | GE41: 0 | GF41: 0 | GG41: 0 | GH41: 0 | GI41: 0 | GJ41: 0 | GK41: 0 | GL41: 0 | GM41: 0 | GN41: 0 | GO41: 0 | GP41: 0 | GQ41: 0 | GR41: 0 | GS41: 0 | GT41: =GT39*GT40*GT7 -> 0 | GU41: 0 | GV41: 0 | GW41: 0 | GX41: 0 | GY41: 0 | GZ41: 0 | HA41: 0
D43: Free Cash Flow | F43: MED | J43: =J41-J36 -> -1041.666667 | K43: =K41-K36 -> -1041.666667 | L43: -1041.666667 | M43: -1041.666667 | N43: -1041.666667 | O43: -1041.666667 | P43: -1041.666667 | Q43: -1041.666667 | R43: -1041.666667 | S43: -1041.666667 | T43: -1041.666667 | U43: -1041.666667 | V43: -1041.666667 | W43: -1041.666667 | X43: -1041.666667 | Y43: -1041.666667 | Z43: -1041.666667 | AA43: -1041.666667 | AB43: -1041.666667 | AC43: -1041.666667 | AD43: -1041.666667 | AE43: -1041.666667 | AF43: -1041.666667 | AG43: -1041.666667 | AH43: 720 | AI43: 648 | AJ43: 583.2 | AK43: 524.88 | AL43: 472.392 | AM43: 425.1528 | AN43: 382.63752 | AO43: 344.373768 | AP43: 309.9363912 | AQ43: 278.9427521 | AR43: 251.0484769 | AS43: 225.9436292 | AT43: 203.3492663 | AU43: 183.0143396 | AV43: 164.7129057 | AW43: 148.2416151 | AX43: 133.4174536 | AY43: 120.0757082 | AZ43: 108.0681374 | BA43: 97.26132367 | BB43: 0 | BC43: 0 | BD43: 0 | BE43: 0 | BF43: 0 | BG43: 0 | BH43: 0 | BI43: 0 | BJ43: 0 | BK43: 0 | BL43: 0 | BM43: 0 | BN43: 0 | BO43: 0 | BP43: 0 | BQ43: 0 | BR43: 0 | BS43: 0 | BT43: 0 | BU43: 0 | BV43: 0 | BW43: =BW41-BW36 -> 0 | BX43: 0 | BY43: 0 | BZ43: 0 | CA43: 0 | CB43: 0 | CC43: 0 | CD43: 0 | CE43: 0 | CF43: 0 | CG43: 0 | CH43: 0 | CI43: 0 | CJ43: 0 | CK43: 0 | CL43: 0 | CM43: 0 | CN43: 0 | CO43: 0 | CP43: 0 | CQ43: 0 | CR43: 0 | CS43: 0 | CT43: 0 | CU43: 0 | CV43: 0 | CW43: 0 | CX43: 0 | CY43: 0 | CZ43: 0 | DA43: 0 | DB43: 0 | DC43: 0 | DD43: 0 | DE43: 0 | DF43: 0 | DG43: 0 | DH43: 0 | DI43: 0 | DJ43: 0 | DK43: 0 | DL43: 0 | DM43: 0 | DN43: 0 | DO43: 0 | DP43: 0 | DQ43: 0 | DR43: 0 | DS43: 0 | DT43: 0 | DU43: 0 | DV43: 0 | DW43: 0 | DX43: 0 | DY43: 0 | DZ43: 0 | EA43: 0 | EB43: 0 | EC43: 0 | ED43: 0 | EE43: 0 | EF43: 0 | EG43: 0 | EH43: 0 | EI43: =EI41-EI36 -> 0 | EJ43: 0 | EK43: 0 | EL43: 0 | EM43: 0 | EN43: 0 | EO43: 0 | EP43: 0 | EQ43: 0 | ER43: 0 | ES43: 0 | ET43: 0 | EU43: 0 | EV43: 0 | EW43: 0 | EX43: 0 | EY43: 0 | EZ43: 0 | FA43: 0 | FB43: 0 | FC43: 0 | FD43: 0 | FE43: 0 | FF43: 0 | FG43: 0 | FH43: 0 | FI43: 0 | FJ43: 0 | FK43: 0 | FL43: 0 | FM43: 0 | FN43: 0 | FO43: 0 | FP43: 0 | FQ43: 0 | FR43: 0 | FS43: 0 | FT43: 0 | FU43: 0 | FV43: 0 | FW43: 0 | FX43: 0 | FY43: 0 | FZ43: 0 | GA43: 0 | GB43: 0 | GC43: 0 | GD43: 0 | GE43: 0 | GF43: 0 | GG43: 0 | GH43: 0 | GI43: 0 | GJ43: 0 | GK43: 0 | GL43: 0 | GM43: 0 | GN43: 0 | GO43: 0 | GP43: 0 | GQ43: 0 | GR43: 0 | GS43: 0 | GT43: 0 | GU43: =GU41-GU36 -> 0 | GV43: 0 | GW43: 0 | GX43: 0 | GY43: 0 | GZ43: 0 | HA43: 0
D44: Date | F44: Date | I44: 2020-01-01 | J44: =EDATE(I44,J6) -> 2020-02-01 | K44: 2020-03-01 | L44: 2020-04-01 | M44: 2020-05-01 | N44: 2020-06-01 | O44: 2020-07-01 | P44: 2020-08-01 | Q44: 2020-09-01 | R44: 2020-10-01 | S44: 2020-11-01 | T44: 2020-12-01 | U44: 2021-01-01 | V44: 2021-02-01 | W44: 2021-03-01 | X44: 2021-04-01 | Y44: 2021-05-01 | Z44: 2021-06-01 | AA44: 2021-07-01 | AB44: 2021-08-01 | AC44: 2021-09-01 | AD44: 2021-10-01 | AE44: 2021-11-01 | AF44: 2021-12-01 | AG44: 2022-01-01 | AH44: 2023-01-01 | AI44: 2024-01-01 | AJ44: 2025-01-01 | AK44: 2026-01-01 | AL44: 2027-01-01 | AM44: 2028-01-01 | AN44: 2029-01-01 | AO44: 2030-01-01 | AP44: =EDATE(AO44,AP6) -> 2031-01-01 | AQ44: 2032-01-01 | AR44: 2033-01-01 | AS44: 2034-01-01 | AT44: 2035-01-01 | AU44: 2036-01-01 | AV44: 2037-01-01 | AW44: 2038-01-01 | AX44: 2039-01-01 | AY44: 2040-01-01 | AZ44: 2041-01-01 | BA44: 2042-01-01 | BB44: 2043-01-01 | BC44: 2044-01-01 | BD44: 2045-01-01 | BE44: 2046-01-01 | BF44: 2047-01-01 | BG44: 2048-01-01 | BH44: 2049-01-01 | BI44: 2050-01-01 | BJ44: 2051-01-01 | BK44: 2052-01-01 | BL44: 2053-01-01 | BM44: 2054-01-01 | BN44: 2055-01-01 | BO44: 2056-01-01 | BP44: 2057-01-01 | BQ44: 2058-01-01 | BR44: 2059-01-01 | BS44: 2060-01-01 | BT44: 2061-01-01 | BU44: 2062-01-01 | BV44: =EDATE(BU44,BV6) -> 2063-01-01 | BW44: 2064-01-01 | BX44: 2065-01-01 | BY44: 2066-01-01 | BZ44: 2067-01-01 | CA44: 2068-01-01 | CB44: 2069-01-01 | CC44: 2070-01-01 | CD44: 2071-01-01 | CE44: 2072-01-01 | CF44: 2073-01-01 | CG44: 2074-01-01 | CH44: 2075-01-01 | CI44: 2076-01-01 | CJ44: 2077-01-01 | CK44: 2078-01-01 | CL44: 2079-01-01 | CM44: 2080-01-01 | CN44: 2081-01-01 | CO44: 2082-01-01 | CP44: 2083-01-01 | CQ44: 2084-01-01 | CR44: 2085-01-01 | CS44: 2086-01-01 | CT44: 2087-01-01 | CU44: 2088-01-01 | CV44: 2089-01-01 | CW44: 2090-01-01 | CX44: 2091-01-01 | CY44: 2092-01-01 | CZ44: 2093-01-01 | DA44: 2094-01-01 | DB44: =EDATE(DA44,DB6) -> 2095-01-01 | DC44: 2096-01-01 | DD44: 2097-01-01 | DE44: 2098-01-01 | DF44: 2099-01-01 | DG44: 2100-01-01 | DH44: 2101-01-01 | DI44: 2102-01-01 | DJ44: 2103-01-01 | DK44: 2104-01-01 | DL44: 2105-01-01 | DM44: 2106-01-01 | DN44: 2107-01-01 | DO44: 2108-01-01 | DP44: 2109-01-01 | DQ44: 2110-01-01 | DR44: 2111-01-01 | DS44: 2112-01-01 | DT44: 2113-01-01 | DU44: 2114-01-01 | DV44: 2115-01-01 | DW44: 2116-01-01 | DX44: 2117-01-01 | DY44: 2118-01-01 | DZ44: 2119-01-01 | EA44: 2120-01-01 | EB44: 2121-01-01 | EC44: 2122-01-01 | ED44: 2123-01-01 | EE44: 2124-01-01 | EF44: 2125-01-01 | EG44: 2126-01-01 | EH44: =EDATE(EG44,EH6) -> 2127-01-01 | EI44: 2128-01-01 | EJ44: 2129-01-01 | EK44: 2130-01-01 | EL44: 2131-01-01 | EM44: 2132-01-01 | EN44: 2133-01-01 | EO44: 2134-01-01 | EP44: 2135-01-01 | EQ44: 2136-01-01 | ER44: 2137-01-01 | ES44: 2138-01-01 | ET44: 2139-01-01 | EU44: 2140-01-01 | EV44: 2141-01-01 | EW44: 2142-01-01 | EX44: 2143-01-01 | EY44: 2144-01-01 | EZ44: 2145-01-01 | FA44: 2146-01-01 | FB44: 2147-01-01 | FC44: 2148-01-01 | FD44: 2149-01-01 | FE44: 2150-01-01 | FF44: 2151-01-01 | FG44: 2152-01-01 | FH44: 2153-01-01 | FI44: 2154-01-01 | FJ44: 2155-01-01 | FK44: 2156-01-01 | FL44: 2157-01-01 | FM44: 2158-01-01 | FN44: =EDATE(FM44,FN6) -> 2159-01-01 | FO44: 2160-01-01 | FP44: 2161-01-01 | FQ44: 2162-01-01 | FR44: 2163-01-01 | FS44: 2164-01-01 | FT44: 2165-01-01 | FU44: 2166-01-01 | FV44: 2167-01-01 | FW44: 2168-01-01 | FX44: 2169-01-01 | FY44: 2170-01-01 | FZ44: 2171-01-01 | GA44: 2172-01-01 | GB44: 2173-01-01 | GC44: 2174-01-01 | GD44: 2175-01-01 | GE44: 2176-01-01 | GF44: 2177-01-01 | GG44: 2178-01-01 | GH44: 2179-01-01 | GI44: 2180-01-01 | GJ44: 2181-01-01 | GK44: 2182-01-01 | GL44: 2183-01-01 | GM44: 2184-01-01 | GN44: 2185-01-01 | GO44: 2186-01-01 | GP44: 2187-01-01 | GQ44: 2188-01-01 | GR44: 2189-01-01 | GS44: 2190-01-01 | GT44: =EDATE(GS44,GT6) -> 2191-01-01 | GU44: 2192-01-01 | GV44: 2193-01-01 | GW44: 2194-01-01 | GX44: 2195-01-01 | GY44: 2196-01-01 | GZ44: 2197-01-01 | HA44: 2198-01-01
D45: Project IRR | F45: % | G45: =XIRR(J43:HA43,J44:HA44) -> 2.980232239e-09
C47: Taxes
D48: EBITDA | I48: =SUM(J48:HA48) -> 6324.648087 | J48: =J41 -> 0 | K48: =K41 -> 0 | L48: 0 | M48: 0 | N48: 0 | O48: 0 | P48: 0 | Q48: 0 | R48: 0 | S48: 0 | T48: 0 | U48: 0 | V48: 0 | W48: 0 | X48: 0 | Y48: 0 | Z48: 0 | AA48: 0 | AB48: 0 | AC48: 0 | AD48: 0 | AE48: 0 | AF48: 0 | AG48: 0 | AH48: 720 | AI48: 648 | AJ48: 583.2 | AK48: 524.88 | AL48: 472.392 | AM48: 425.1528 | AN48: 382.63752 | AO48: 344.373768 | AP48: 309.9363912 | AQ48: 278.9427521 | AR48: 251.0484769 | AS48: 225.9436292 | AT48: 203.3492663 | AU48: 183.0143396 | AV48: 164.7129057 | AW48: 148.2416151 | AX48: 133.4174536 | AY48: 120.0757082 | AZ48: 108.0681374 | BA48: 97.26132367 | BB48: 0 | BC48: 0 | BD48: 0 | BE48: 0 | BF48: 0 | BG48: 0 | BH48: 0 | BI48: 0 | BJ48: 0 | BK48: 0 | BL48: 0 | BM48: 0 | BN48: 0 | BO48: 0 | BP48: 0 | BQ48: 0 | BR48: 0 | BS48: 0 | BT48: 0 | BU48: 0 | BV48: 0 | BW48: =BW41 -> 0 | BX48: 0 | BY48: 0 | BZ48: 0 | CA48: 0 | CB48: 0 | CC48: 0 | CD48: 0 | CE48: 0 | CF48: 0 | CG48: 0 | CH48: 0 | CI48: 0 | CJ48: 0 | CK48: 0 | CL48: 0 | CM48: 0 | CN48: 0 | CO48: 0 | CP48: 0 | CQ48: 0 | CR48: 0 | CS48: 0 | CT48: 0 | CU48: 0 | CV48: 0 | CW48: 0 | CX48: 0 | CY48: 0 | CZ48: 0 | DA48: 0 | DB48: 0 | DC48: 0 | DD48: 0 | DE48: 0 | DF48: 0 | DG48: 0 | DH48: 0 | DI48: 0 | DJ48: 0 | DK48: 0 | DL48: 0 | DM48: 0 | DN48: 0 | DO48: 0 | DP48: 0 | DQ48: 0 | DR48: 0 | DS48: 0 | DT48: 0 | DU48: 0 | DV48: 0 | DW48: 0 | DX48: 0 | DY48: 0 | DZ48: 0 | EA48: 0 | EB48: 0 | EC48: 0 | ED48: 0 | EE48: 0 | EF48: 0 | EG48: 0 | EH48: 0 | EI48: =EI41 -> 0 | EJ48: 0 | EK48: 0 | EL48: 0 | EM48: 0 | EN48: 0 | EO48: 0 | EP48: 0 | EQ48: 0 | ER48: 0 | ES48: 0 | ET48: 0 | EU48: 0 | EV48: 0 | EW48: 0 | EX48: 0 | EY48: 0 | EZ48: 0 | FA48: 0 | FB48: 0 | FC48: 0 | FD48: 0 | FE48: 0 | FF48: 0 | FG48: 0 | FH48: 0 | FI48: 0 | FJ48: 0 | FK48: 0 | FL48: 0 | FM48: 0 | FN48: 0 | FO48: 0 | FP48: 0 | FQ48: 0 | FR48: 0 | FS48: 0 | FT48: 0 | FU48: 0 | FV48: 0 | FW48: 0 | FX48: 0 | FY48: 0 | FZ48: 0 | GA48: 0 | GB48: 0 | GC48: 0 | GD48: 0 | GE48: 0 | GF48: 0 | GG48: 0 | GH48: 0 | GI48: 0 | GJ48: 0 | GK48: 0 | GL48: 0 | GM48: 0 | GN48: 0 | GO48: 0 | GP48: 0 | GQ48: 0 | GR48: 0 | GS48: 0 | GT48: 0 | GU48: =GU41 -> 0 | GV48: 0 | GW48: 0 | GX48: 0 | GY48: 0 | GZ48: 0 | HA48: 0
D49: Less: Interest | I49: 1333.225755 | J49: =J155 -> 0 | K49: =K155 -> 0 | L49: 0 | M49: 0 | N49: 0 | O49: 0 | P49: 0 | Q49: 0 | R49: 0 | S49: 0 | T49: 0 | U49: 0 | V49: 0 | W49: 0 | X49: 0 | Y49: 0 | Z49: 0 | AA49: 0 | AB49: 0 | AC49: 0 | AD49: 0 | AE49: 0 | AF49: 0 | AG49: 0 | AH49: 171.1639994 | AI49: 153.0622129 | AJ49: 136.7130414 | AK49: 121.9378608 | AL49: 108.5757128 | AM49: 96.48152711 | AN49: 85.52452035 | AO49: 75.58675459 | AP49: 66.56183917 | AQ49: 58.35376155 | AR49: 50.87583431 | AS49: 44.04974645 | AT49: 37.8047087 | AU49: 32.07668327 | AV49: 26.80768957 | AW49: 21.94517825 | AX49: 17.44146664 | AY49: 13.25322939 | AZ49: 9.341038785 | BA49: 5.6689495 | BB49: 0 | BC49: 0 | BD49: 0 | BE49: 0 | BF49: 0 | BG49: 0 | BH49: 0 | BI49: 0 | BJ49: 0 | BK49: 0 | BL49: 0 | BM49: 0 | BN49: 0 | BO49: 0 | BP49: 0 | BQ49: 0 | BR49: 0 | BS49: 0 | BT49: 0 | BU49: 0 | BV49: 0 | BW49: =BW155 -> 0 | BX49: 0 | BY49: 0 | BZ49: 0 | CA49: 0 | CB49: 0 | CC49: 0 | CD49: 0 | CE49: 0 | CF49: 0 | CG49: 0 | CH49: 0 | CI49: 0 | CJ49: 0 | CK49: 0 | CL49: 0 | CM49: 0 | CN49: 0 | CO49: 0 | CP49: 0 | CQ49: 0 | CR49: 0 | CS49: 0 | CT49: 0 | CU49: 0 | CV49: 0 | CW49: 0 | CX49: 0 | CY49: 0 | CZ49: 0 | DA49: 0 | DB49: 0 | DC49: 0 | DD49: 0 | DE49: 0 | DF49: 0 | DG49: 0 | DH49: 0 | DI49: 0 | DJ49: 0 | DK49: 0 | DL49: 0 | DM49: 0 | DN49: 0 | DO49: 0 | DP49: 0 | DQ49: 0 | DR49: 0 | DS49: 0 | DT49: 0 | DU49: 0 | DV49: 0 | DW49: 0 | DX49: 0 | DY49: 0 | DZ49: 0 | EA49: 0 | EB49: 0 | EC49: 0 | ED49: 0 | EE49: 0 | EF49: 0 | EG49: 0 | EH49: 0 | EI49: =EI155 -> 0 | EJ49: 0 | EK49: 0 | EL49: 0 | EM49: 0 | EN49: 0 | EO49: 0 | EP49: 0 | EQ49: 0 | ER49: 0 | ES49: 0 | ET49: 0 | EU49: 0 | EV49: 0 | EW49: 0 | EX49: 0 | EY49: 0 | EZ49: 0 | FA49: 0 | FB49: 0 | FC49: 0 | FD49: 0 | FE49: 0 | FF49: 0 | FG49: 0 | FH49: 0 | FI49: 0 | FJ49: 0 | FK49: 0 | FL49: 0 | FM49: 0 | FN49: 0 | FO49: 0 | FP49: 0 | FQ49: 0 | FR49: 0 | FS49: 0 | FT49: 0 | FU49: 0 | FV49: 0 | FW49: 0 | FX49: 0 | FY49: 0 | FZ49: 0 | GA49: 0 | GB49: 0 | GC49: 0 | GD49: 0 | GE49: 0 | GF49: 0 | GG49: 0 | GH49: 0 | GI49: 0 | GJ49: 0 | GK49: 0 | GL49: 0 | GM49: 0 | GN49: 0 | GO49: 0 | GP49: 0 | GQ49: 0 | GR49: 0 | GS49: 0 | GT49: 0 | GU49: =GU155 -> 0 | GV49: 0 | GW49: 0 | GX49: 0 | GY49: 0 | GZ49: 0 | HA49: 0
D50: Taxable Income | I50: =SUM(J50:HA50) -> 4991.422332 | J50: =J48-J49 -> 0 | K50: =K48-K49 -> 0 | L50: 0 | M50: 0 | N50: 0 | O50: 0 | P50: 0 | Q50: 0 | R50: 0 | S50: 0 | T50: 0 | U50: 0 | V50: 0 | W50: 0 | X50: 0 | Y50: 0 | Z50: 0 | AA50: 0 | AB50: 0 | AC50: 0 | AD50: 0 | AE50: 0 | AF50: 0 | AG50: 0 | AH50: =AH48-AH49 -> 548.8360006 | AI50: 494.9377871 | AJ50: 446.4869586 | AK50: 402.9421392 | AL50: 363.8162872 | AM50: 328.6712729 | AN50: 297.1129996 | AO50: 268.7870134 | AP50: 243.374552 | AQ50: 220.5889905 | AR50: 200.1726426 | AS50: 181.8938827 | AT50: 165.5445576 | AU50: 150.9376564 | AV50: 137.9052161 | AW50: 126.2964369 | AX50: 115.975987 | AY50: 106.8224788 | AZ50: 98.72709863 | BA50: 91.59237417 | BB50: 0 | BC50: 0 | BD50: 0 | BE50: 0 | BF50: 0 | BG50: 0 | BH50: 0 | BI50: 0 | BJ50: 0 | BK50: 0 | BL50: 0 | BM50: 0 | BN50: 0 | BO50: 0 | BP50: 0 | BQ50: 0 | BR50: 0 | BS50: 0 | BT50: 0 | BU50: 0 | BV50: 0 | BW50: =BW48-BW49 -> 0 | BX50: 0 | BY50: 0 | BZ50: 0 | CA50: 0 | CB50: 0 | CC50: 0 | CD50: 0 | CE50: 0 | CF50: 0 | CG50: 0 | CH50: 0 | CI50: 0 | CJ50: 0 | CK50: 0 | CL50: 0 | CM50: 0 | CN50: 0 | CO50: 0 | CP50: 0 | CQ50: 0 | CR50: 0 | CS50: 0 | CT50: 0 | CU50: 0 | CV50: 0 | CW50: 0 | CX50: 0 | CY50: 0 | CZ50: 0 | DA50: 0 | DB50: 0 | DC50: 0 | DD50: 0 | DE50: 0 | DF50: 0 | DG50: 0 | DH50: 0 | DI50: 0 | DJ50: 0 | DK50: 0 | DL50: 0 | DM50: 0 | DN50: 0 | DO50: 0 | DP50: 0 | DQ50: 0 | DR50: 0 | DS50: 0 | DT50: 0 | DU50: 0 | DV50: 0 | DW50: 0 | DX50: 0 | DY50: 0 | DZ50: 0 | EA50: 0 | EB50: 0 | EC50: 0 | ED50: 0 | EE50: 0 | EF50: 0 | EG50: 0 | EH50: 0 | EI50: =EI48-EI49 -> 0 | EJ50: 0 | EK50: 0 | EL50: 0 | EM50: 0 | EN50: 0 | EO50: 0 | EP50: 0 | EQ50: 0 | ER50: 0 | ES50: 0 | ET50: 0 | EU50: 0 | EV50: 0 | EW50: 0 | EX50: 0 | EY50: 0 | EZ50: 0 | FA50: 0 | FB50: 0 | FC50: 0 | FD50: 0 | FE50: 0 | FF50: 0 | FG50: 0 | FH50: 0 | FI50: 0 | FJ50: 0 | FK50: 0 | FL50: 0 | FM50: 0 | FN50: 0 | FO50: 0 | FP50: 0 | FQ50: 0 | FR50: 0 | FS50: 0 | FT50: 0 | FU50: 0 | FV50: 0 | FW50: 0 | FX50: 0 | FY50: 0 | FZ50: 0 | GA50: 0 | GB50: 0 | GC50: 0 | GD50: 0 | GE50: 0 | GF50: 0 | GG50: 0 | GH50: 0 | GI50: 0 | GJ50: 0 | GK50: 0 | GL50: 0 | GM50: 0 | GN50: 0 | GO50: 0 | GP50: 0 | GQ50: 0 | GR50: 0 | GS50: 0 | GT50: 0 | GU50: =GU48-GU49 -> 0 | GV50: 0 | GW50: 0 | GX50: 0 | GY50: 0 | GZ50: 0 | HA50: 0
D52: NOL Opening Balance | J52: =I55 -> 0 | K52: =J55 -> 0 | L52: 0 | M52: 0 | N52: 0 | O52: 0 | P52: 0 | Q52: 0 | R52: 0 | S52: 0 | T52: 0 | U52: 0 | V52: 0 | W52: 0 | X52: 0 | Y52: 0 | Z52: 0 | AA52: 0 | AB52: 0 | AC52: 0 | AD52: 0 | AE52: 0 | AF52: 0 | AG52: 0 | AH52: 0 | AI52: 0 | AJ52: 0 | AK52: 0 | AL52: 0 | AM52: 0 | AN52: 0 | AO52: 0 | AP52: 0 | AQ52: 0 | AR52: 0 | AS52: 0 | AT52: 0 | AU52: 0 | AV52: 0 | AW52: 0 | AX52: 0 | AY52: 0 | AZ52: 0 | BA52: 0 | BB52: 0 | BC52: 0 | BD52: 0 | BE52: 0 | BF52: 0 | BG52: 0 | BH52: 0 | BI52: 0 | BJ52: 0 | BK52: 0 | BL52: 0 | BM52: 0 | BN52: 0 | BO52: 0 | BP52: 0 | BQ52: 0 | BR52: 0 | BS52: 0 | BT52: 0 | BU52: 0 | BV52: 0 | BW52: =BV55 -> 0 | BX52: 0 | BY52: 0 | BZ52: 0 | CA52: 0 | CB52: 0 | CC52: 0 | CD52: 0 | CE52: 0 | CF52: 0 | CG52: 0 | CH52: 0 | CI52: 0 | CJ52: 0 | CK52: 0 | CL52: 0 | CM52: 0 | CN52: 0 | CO52: 0 | CP52: 0 | CQ52: 0 | CR52: 0 | CS52: 0 | CT52: 0 | CU52: 0 | CV52: 0 | CW52: 0 | CX52: 0 | CY52: 0 | CZ52: 0 | DA52: 0 | DB52: 0 | DC52: 0 | DD52: 0 | DE52: 0 | DF52: 0 | DG52: 0 | DH52: 0 | DI52: 0 | DJ52: 0 | DK52: 0 | DL52: 0 | DM52: 0 | DN52: 0 | DO52: 0 | DP52: 0 | DQ52: 0 | DR52: 0 | DS52: 0 | DT52: 0 | DU52: 0 | DV52: 0 | DW52: 0 | DX52: 0 | DY52: 0 | DZ52: 0 | EA52: 0 | EB52: 0 | EC52: 0 | ED52: 0 | EE52: 0 | EF52: 0 | EG52: 0 | EH52: 0 | EI52: =EH55 -> 0 | EJ52: 0 | EK52: 0 | EL52: 0 | EM52: 0 | EN52: 0 | EO52: 0 | EP52: 0 | EQ52: 0 | ER52: 0 | ES52: 0 | ET52: 0 | EU52: 0 | EV52: 0 | EW52: 0 | EX52: 0 | EY52: 0 | EZ52: 0 | FA52: 0 | FB52: 0 | FC52: 0 | FD52: 0 | FE52: 0 | FF52: 0 | FG52: 0 | FH52: 0 | FI52: 0 | FJ52: 0 | FK52: 0 | FL52: 0 | FM52: 0 | FN52: 0 | FO52: 0 | FP52: 0 | FQ52: 0 | FR52: 0 | FS52: 0 | FT52: 0 | FU52: 0 | FV52: 0 | FW52: 0 | FX52: 0 | FY52: 0 | FZ52: 0 | GA52: 0 | GB52: 0 | GC52: 0 | GD52: 0 | GE52: 0 | GF52: 0 | GG52: 0 | GH52: 0 | GI52: 0 | GJ52: 0 | GK52: 0 | GL52: 0 | GM52: 0 | GN52: 0 | GO52: 0 | GP52: 0 | GQ52: 0 | GR52: 0 | GS52: 0 | GT52: 0 | GU52: =GT55 -> 0 | GV52: 0 | GW52: 0 | GX52: 0 | GY52: 0 | GZ52: 0 | HA52: 0
D53: Add: NOL Created | J53: =MAX(-J50,0) -> 0 | K53: =MAX(-K50,0) -> 0 | L53: 0 | M53: 0 | N53: 0 | O53: 0 | P53: 0 | Q53: 0 | R53: 0 | S53: 0 | T53: 0 | U53: 0 | V53: 0 | W53: 0 | X53: 0 | Y53: 0 | Z53: 0 | AA53: 0 | AB53: 0 | AC53: 0 | AD53: 0 | AE53: 0 | AF53: 0 | AG53: 0 | AH53: 0 | AI53: 0 | AJ53: 0 | AK53: 0 | AL53: 0 | AM53: 0 | AN53: 0 | AO53: 0 | AP53: 0 | AQ53: 0 | AR53: 0 | AS53: 0 | AT53: 0 | AU53: 0 | AV53: 0 | AW53: 0 | AX53: 0 | AY53: 0 | AZ53: 0 | BA53: 0 | BB53: 0 | BC53: 0 | BD53: 0 | BE53: 0 | BF53: 0 | BG53: 0 | BH53: 0 | BI53: 0 | BJ53: 0 | BK53: 0 | BL53: 0 | BM53: 0 | BN53: 0 | BO53: 0 | BP53: 0 | BQ53: 0 | BR53: 0 | BS53: 0 | BT53: 0 | BU53: 0 | BV53: 0 | BW53: =MAX(-BW50,0) -> 0 | BX53: 0 | BY53: 0 | BZ53: 0 | CA53: 0 | CB53: 0 | CC53: 0 | CD53: 0 | CE53: 0 | CF53: 0 | CG53: 0 | CH53: 0 | CI53: 0 | CJ53: 0 | CK53: 0 | CL53: 0 | CM53: 0 | CN53: 0 | CO53: 0 | CP53: 0 | CQ53: 0 | CR53: 0 | CS53: 0 | CT53: 0 | CU53: 0 | CV53: 0 | CW53: 0 | CX53: 0 | CY53: 0 | CZ53: 0 | DA53: 0 | DB53: 0 | DC53: 0 | DD53: 0 | DE53: 0 | DF53: 0 | DG53: 0 | DH53: 0 | DI53: 0 | DJ53: 0 | DK53: 0 | DL53: 0 | DM53: 0 | DN53: 0 | DO53: 0 | DP53: 0 | DQ53: 0 | DR53: 0 | DS53: 0 | DT53: 0 | DU53: 0 | DV53: 0 | DW53: 0 | DX53: 0 | DY53: 0 | DZ53: 0 | EA53: 0 | EB53: 0 | EC53: 0 | ED53: 0 | EE53: 0 | EF53: 0 | EG53: 0 | EH53: 0 | EI53: =MAX(-EI50,0) -> 0 | EJ53: 0 | EK53: 0 | EL53: 0 | EM53: 0 | EN53: 0 | EO53: 0 | EP53: 0 | EQ53: 0 | ER53: 0 | ES53: 0 | ET53: 0 | EU53: 0 | EV53: 0 | EW53: 0 | EX53: 0 | EY53: 0 | EZ53: 0 | FA53: 0 | FB53: 0 | FC53: 0 | FD53: 0 | FE53: 0 | FF53: 0 | FG53: 0 | FH53: 0 | FI53: 0 | FJ53: 0 | FK53: 0 | FL53: 0 | FM53: 0 | FN53: 0 | FO53: 0 | FP53: 0 | FQ53: 0 | FR53: 0 | FS53: 0 | FT53: 0 | FU53: 0 | FV53: 0 | FW53: 0 | FX53: 0 | FY53: 0 | FZ53: 0 | GA53: 0 | GB53: 0 | GC53: 0 | GD53: 0 | GE53: 0 | GF53: 0 | GG53: 0 | GH53: 0 | GI53: 0 | GJ53: 0 | GK53: 0 | GL53: 0 | GM53: 0 | GN53: 0 | GO53: 0 | GP53: 0 | GQ53: 0 | GR53: 0 | GS53: 0 | GT53: 0 | GU53: =MAX(-GU50,0) -> 0 | GV53: 0 | GW53: 0 | GX53: 0 | GY53: 0 | GZ53: 0 | HA53: 0
D54: Less: NOL Used | J54: =MIN(J52,MAX(J50,0)) -> 0 | K54: =MIN(K52,MAX(K50,0)) -> 0 | L54: 0 | M54: 0 | N54: 0 | O54: 0 | P54: 0 | Q54: 0 | R54: 0 | S54: 0 | T54: 0 | U54: 0 | V54: 0 | W54: 0 | X54: 0 | Y54: 0 | Z54: 0 | AA54: 0 | AB54: 0 | AC54: 0 | AD54: 0 | AE54: 0 | AF54: 0 | AG54: 0 | AH54: 0 | AI54: 0 | AJ54: 0 | AK54: 0 | AL54: 0 | AM54: 0 | AN54: 0 | AO54: 0 | AP54: 0 | AQ54: 0 | AR54: 0 | AS54: 0 | AT54: 0 | AU54: 0 | AV54: 0 | AW54: 0 | AX54: 0 | AY54: 0 | AZ54: 0 | BA54: 0 | BB54: 0 | BC54: 0 | BD54: 0 | BE54: 0 | BF54: 0 | BG54: 0 | BH54: 0 | BI54: 0 | BJ54: 0 | BK54: 0 | BL54: 0 | BM54: 0 | BN54: 0 | BO54: 0 | BP54: 0 | BQ54: 0 | BR54: 0 | BS54: 0 | BT54: 0 | BU54: 0 | BV54: 0 | BW54: =MIN(BW52,MAX(BW50,0)) -> 0 | BX54: 0 | BY54: 0 | BZ54: 0 | CA54: 0 | CB54: 0 | CC54: 0 | CD54: 0 | CE54: 0 | CF54: 0 | CG54: 0 | CH54: 0 | CI54: 0 | CJ54: 0 | CK54: 0 | CL54: 0 | CM54: 0 | CN54: 0 | CO54: 0 | CP54: 0 | CQ54: 0 | CR54: 0 | CS54: 0 | CT54: 0 | CU54: 0 | CV54: 0 | CW54: 0 | CX54: 0 | CY54: 0 | CZ54: 0 | DA54: 0 | DB54: 0 | DC54: 0 | DD54: 0 | DE54: 0 | DF54: 0 | DG54: 0 | DH54: 0 | DI54: 0 | DJ54: 0 | DK54: 0 | DL54: 0 | DM54: 0 | DN54: 0 | DO54: 0 | DP54: 0 | DQ54: 0 | DR54: 0 | DS54: 0 | DT54: 0 | DU54: 0 | DV54: 0 | DW54: 0 | DX54: 0 | DY54: 0 | DZ54: 0 | EA54: 0 | EB54: 0 | EC54: 0 | ED54: 0 | EE54: 0 | EF54: 0 | EG54: 0 | EH54: 0 | EI54: =MIN(EI52,MAX(EI50,0)) -> 0 | EJ54: 0 | EK54: 0 | EL54: 0 | EM54: 0 | EN54: 0 | EO54: 0 | EP54: 0 | EQ54: 0 | ER54: 0 | ES54: 0 | ET54: 0 | EU54: 0 | EV54: 0 | EW54: 0 | EX54: 0 | EY54: 0 | EZ54: 0 | FA54: 0 | FB54: 0 | FC54: 0 | FD54: 0 | FE54: 0 | FF54: 0 | FG54: 0 | FH54: 0 | FI54: 0 | FJ54: 0 | FK54: 0 | FL54: 0 | FM54: 0 | FN54: 0 | FO54: 0 | FP54: 0 | FQ54: 0 | FR54: 0 | FS54: 0 | FT54: 0 | FU54: 0 | FV54: 0 | FW54: 0 | FX54: 0 | FY54: 0 | FZ54: 0 | GA54: 0 | GB54: 0 | GC54: 0 | GD54: 0 | GE54: 0 | GF54: 0 | GG54: 0 | GH54: 0 | GI54: 0 | GJ54: 0 | GK54: 0 | GL54: 0 | GM54: 0 | GN54: 0 | GO54: 0 | GP54: 0 | GQ54: 0 | GR54: 0 | GS54: 0 | GT54: 0 | GU54: =MIN(GU52,MAX(GU50,0)) -> 0 | GV54: 0 | GW54: 0 | GX54: 0 | GY54: 0 | GZ54: 0 | HA54: 0
D55: Closing NOL | J55: =J52+J53-J54 -> 0 | K55: =K52+K53-K54 -> 0 | L55: 0 | M55: 0 | N55: 0 | O55: 0 | P55: 0 | Q55: 0 | R55: 0 | S55: 0 | T55: 0 | U55: 0 | V55: 0 | W55: 0 | X55: 0 | Y55: 0 | Z55: 0 | AA55: 0 | AB55: 0 | AC55: 0 | AD55: 0 | AE55: 0 | AF55: 0 | AG55: 0 | AH55: 0 | AI55: 0 | AJ55: 0 | AK55: 0 | AL55: 0 | AM55: 0 | AN55: 0 | AO55: 0 | AP55: 0 | AQ55: 0 | AR55: 0 | AS55: 0 | AT55: 0 | AU55: 0 | AV55: 0 | AW55: 0 | AX55: 0 | AY55: 0 | AZ55: 0 | BA55: 0 | BB55: 0 | BC55: 0 | BD55: 0 | BE55: 0 | BF55: 0 | BG55: 0 | BH55: 0 | BI55: 0 | BJ55: 0 | BK55: 0 | BL55: 0 | BM55: 0 | BN55: 0 | BO55: 0 | BP55: 0 | BQ55: 0 | BR55: 0 | BS55: 0 | BT55: 0 | BU55: 0 | BV55: 0 | BW55: =BW52+BW53-BW54 -> 0 | BX55: 0 | BY55: 0 | BZ55: 0 | CA55: 0 | CB55: 0 | CC55: 0 | CD55: 0 | CE55: 0 | CF55: 0 | CG55: 0 | CH55: 0 | CI55: 0 | CJ55: 0 | CK55: 0 | CL55: 0 | CM55: 0 | CN55: 0 | CO55: 0 | CP55: 0 | CQ55: 0 | CR55: 0 | CS55: 0 | CT55: 0 | CU55: 0 | CV55: 0 | CW55: 0 | CX55: 0 | CY55: 0 | CZ55: 0 | DA55: 0 | DB55: 0 | DC55: 0 | DD55: 0 | DE55: 0 | DF55: 0 | DG55: 0 | DH55: 0 | DI55: 0 | DJ55: 0 | DK55: 0 | DL55: 0 | DM55: 0 | DN55: 0 | DO55: 0 | DP55: 0 | DQ55: 0 | DR55: 0 | DS55: 0 | DT55: 0 | DU55: 0 | DV55: 0 | DW55: 0 | DX55: 0 | DY55: 0 | DZ55: 0 | EA55: 0 | EB55: 0 | EC55: 0 | ED55: 0 | EE55: 0 | EF55: 0 | EG55: 0 | EH55: 0 | EI55: =EI52+EI53-EI54 -> 0 | EJ55: 0 | EK55: 0 | EL55: 0 | EM55: 0 | EN55: 0 | EO55: 0 | EP55: 0 | EQ55: 0 | ER55: 0 | ES55: 0 | ET55: 0 | EU55: 0 | EV55: 0 | EW55: 0 | EX55: 0 | EY55: 0 | EZ55: 0 | FA55: 0 | FB55: 0 | FC55: 0 | FD55: 0 | FE55: 0 | FF55: 0 | FG55: 0 | FH55: 0 | FI55: 0 | FJ55: 0 | FK55: 0 | FL55: 0 | FM55: 0 | FN55: 0 | FO55: 0 | FP55: 0 | FQ55: 0 | FR55: 0 | FS55: 0 | FT55: 0 | FU55: 0 | FV55: 0 | FW55: 0 | FX55: 0 | FY55: 0 | FZ55: 0 | GA55: 0 | GB55: 0 | GC55: 0 | GD55: 0 | GE55: 0 | GF55: 0 | GG55: 0 | GH55: 0 | GI55: 0 | GJ55: 0 | GK55: 0 | GL55: 0 | GM55: 0 | GN55: 0 | GO55: 0 | GP55: 0 | GQ55: 0 | GR55: 0 | GS55: 0 | GT55: 0 | GU55: =GU52+GU53-GU54 -> 0 | GV55: 0 | GW55: 0 | GX55: 0 | GY55: 0 | GZ55: 0 | HA55: 0
D56: Adjusted EBT | J56: =J50+J53-J54 -> 0 | K56: =K50+K53-K54 -> 0 | L56: 0 | M56: 0 | N56: 0 | O56: 0 | P56: 0 | Q56: 0 | R56: 0 | S56: 0 | T56: 0 | U56: 0 | V56: 0 | W56: 0 | X56: 0 | Y56: 0 | Z56: 0 | AA56: 0 | AB56: 0 | AC56: 0 | AD56: 0 | AE56: 0 | AF56: 0 | AG56: 0 | AH56: 548.8360006 | AI56: 494.9377871 | AJ56: 446.4869586 | AK56: 402.9421392 | AL56: 363.8162872 | AM56: 328.6712729 | AN56: 297.1129996 | AO56: 268.7870134 | AP56: 243.374552 | AQ56: 220.5889905 | AR56: 200.1726426 | AS56: 181.8938827 | AT56: 165.5445576 | AU56: 150.9376564 | AV56: 137.9052161 | AW56: 126.2964369 | AX56: 115.975987 | AY56: 106.8224788 | AZ56: 98.72709863 | BA56: 91.59237417 | BB56: 0 | BC56: 0 | BD56: 0 | BE56: 0 | BF56: 0 | BG56: 0 | BH56: 0 | BI56: 0 | BJ56: 0 | BK56: 0 | BL56: 0 | BM56: 0 | BN56: 0 | BO56: 0 | BP56: 0 | BQ56: 0 | BR56: 0 | BS56: 0 | BT56: 0 | BU56: 0 | BV56: 0 | BW56: =BW50+BW53-BW54 -> 0 | BX56: 0 | BY56: 0 | BZ56: 0 | CA56: 0 | CB56: 0 | CC56: 0 | CD56: 0 | CE56: 0 | CF56: 0 | CG56: 0 | CH56: 0 | CI56: 0 | CJ56: 0 | CK56: 0 | CL56: 0 | CM56: 0 | CN56: 0 | CO56: 0 | CP56: 0 | CQ56: 0 | CR56: 0 | CS56: 0 | CT56: 0 | CU56: 0 | CV56: 0 | CW56: 0 | CX56: 0 | CY56: 0 | CZ56: 0 | DA56: 0 | DB56: 0 | DC56: 0 | DD56: 0 | DE56: 0 | DF56: 0 | DG56: 0 | DH56: 0 | DI56: 0 | DJ56: 0 | DK56: 0 | DL56: 0 | DM56: 0 | DN56: 0 | DO56: 0 | DP56: 0 | DQ56: 0 | DR56: 0 | DS56: 0 | DT56: 0 | DU56: 0 | DV56: 0 | DW56: 0 | DX56: 0 | DY56: 0 | DZ56: 0 | EA56: 0 | EB56: 0 | EC56: 0 | ED56: 0 | EE56: 0 | EF56: 0 | EG56: 0 | EH56: 0 | EI56: =EI50+EI53-EI54 -> 0 | EJ56: 0 | EK56: 0 | EL56: 0 | EM56: 0 | EN56: 0 | EO56: 0 | EP56: 0 | EQ56: 0 | ER56: 0 | ES56: 0 | ET56: 0 | EU56: 0 | EV56: 0 | EW56: 0 | EX56: 0 | EY56: 0 | EZ56: 0 | FA56: 0 | FB56: 0 | FC56: 0 | FD56: 0 | FE56: 0 | FF56: 0 | FG56: 0 | FH56: 0 | FI56: 0 | FJ56: 0 | FK56: 0 | FL56: 0 | FM56: 0 | FN56: 0 | FO56: 0 | FP56: 0 | FQ56: 0 | FR56: 0 | FS56: 0 | FT56: 0 | FU56: 0 | FV56: 0 | FW56: 0 | FX56: 0 | FY56: 0 | FZ56: 0 | GA56: 0 | GB56: 0 | GC56: 0 | GD56: 0 | GE56: 0 | GF56: 0 | GG56: 0 | GH56: 0 | GI56: 0 | GJ56: 0 | GK56: 0 | GL56: 0 | GM56: 0 | GN56: 0 | GO56: 0 | GP56: 0 | GQ56: 0 | GR56: 0 | GS56: 0 | GT56: 0 | GU56: =GU50+GU53-GU54 -> 0 | GV56: 0 | GW56: 0 | GX56: 0 | GY56: 0 | GZ56: 0 | HA56: 0
D58: Taxes | G58: 0.25 | I58: =SUM(J58:HA58) -> 1247.855583 | J58: =J56*$G$58 -> 0 | K58: =K56*$G$58 -> 0 | L58: 0 | M58: 0 | N58: 0 | O58: 0 | P58: 0 | Q58: 0 | R58: 0 | S58: 0 | T58: 0 | U58: 0 | V58: 0 | W58: 0 | X58: 0 | Y58: 0 | Z58: 0 | AA58: 0 | AB58: 0 | AC58: 0 | AD58: 0 | AE58: 0 | AF58: 0 | AG58: 0 | AH58: 137.2090002 | AI58: 123.7344468 | AJ58: 111.6217396 | AK58: 100.7355348 | AL58: 90.9540718 | AM58: 82.16781822 | AN58: 74.27824991 | AO58: 67.19675335 | AP58: 60.84363801 | AQ58: 55.14724763 | AR58: 50.04316064 | AS58: 45.47347068 | AT58: 41.38613939 | AU58: 37.73441409 | AV58: 34.47630403 | AW58: 31.57410921 | AX58: 28.99399674 | AY58: 26.70561971 | AZ58: 24.68177466 | BA58: 22.89809354 | BB58: 0 | BC58: 0 | BD58: 0 | BE58: 0 | BF58: 0 | BG58: 0 | BH58: 0 | BI58: 0 | BJ58: 0 | BK58: 0 | BL58: 0 | BM58: 0 | BN58: 0 | BO58: 0 | BP58: 0 | BQ58: 0 | BR58: 0 | BS58: 0 | BT58: 0 | BU58: 0 | BV58: 0 | BW58: =BW56*$G$58 -> 0 | BX58: 0 | BY58: 0 | BZ58: 0 | CA58: 0 | CB58: 0 | CC58: 0 | CD58: 0 | CE58: 0 | CF58: 0 | CG58: 0 | CH58: 0 | CI58: 0 | CJ58: 0 | CK58: 0 | CL58: 0 | CM58: 0 | CN58: 0 | CO58: 0 | CP58: 0 | CQ58: 0 | CR58: 0 | CS58: 0 | CT58: 0 | CU58: 0 | CV58: 0 | CW58: 0 | CX58: 0 | CY58: 0 | CZ58: 0 | DA58: 0 | DB58: 0 | DC58: 0 | DD58: 0 | DE58: 0 | DF58: 0 | DG58: 0 | DH58: 0 | DI58: 0 | DJ58: 0 | DK58: 0 | DL58: 0 | DM58: 0 | DN58: 0 | DO58: 0 | DP58: 0 | DQ58: 0 | DR58: 0 | DS58: 0 | DT58: 0 | DU58: 0 | DV58: 0 | DW58: 0 | DX58: 0 | DY58: 0 | DZ58: 0 | EA58: 0 | EB58: 0 | EC58: 0 | ED58: 0 | EE58: 0 | EF58: 0 | EG58: 0 | EH58: 0 | EI58: =EI56*$G$58 -> 0 | EJ58: 0 | EK58: 0 | EL58: 0 | EM58: 0 | EN58: 0 | EO58: 0 | EP58: 0 | EQ58: 0 | ER58: 0 | ES58: 0 | ET58: 0 | EU58: 0 | EV58: 0 | EW58: 0 | EX58: 0 | EY58: 0 | EZ58: 0 | FA58: 0 | FB58: 0 | FC58: 0 | FD58: 0 | FE58: 0 | FF58: 0 | FG58: 0 | FH58: 0 | FI58: 0 | FJ58: 0 | FK58: 0 | FL58: 0 | FM58: 0 | FN58: 0 | FO58: 0 | FP58: 0 | FQ58: 0 | FR58: 0 | FS58: 0 | FT58: 0 | FU58: 0 | FV58: 0 | FW58: 0 | FX58: 0 | FY58: 0 | FZ58: 0 | GA58: 0 | GB58: 0 | GC58: 0 | GD58: 0 | GE58: 0 | GF58: 0 | GG58: 0 | GH58: 0 | GI58: 0 | GJ58: 0 | GK58: 0 | GL58: 0 | GM58: 0 | GN58: 0 | GO58: 0 | GP58: 0 | GQ58: 0 | GR58: 0 | GS58: 0 | GT58: 0 | GU58: =GU56*$G$58 -> 0 | GV58: 0 | GW58: 0 | GX58: 0 | GY58: 0 | GZ58: 0 | HA58: 0
C60: Sculpting without DSRA
D61: EBITDA | J61: =J41 -> 0 | K61: 0 | L61: 0 | M61: 0 | N61: 0 | O61: 0 | P61: 0 | Q61: 0 | R61: 0 | S61: 0 | T61: 0 | U61: 0 | V61: 0 | W61: 0 | X61: 0 | Y61: 0 | Z61: 0 | AA61: 0 | AB61: 0 | AC61: 0 | AD61: 0 | AE61: 0 | AF61: 0 | AG61: 0 | AH61: 720 | AI61: 648 | AJ61: 583.2 | AK61: 524.88 | AL61: 472.392 | AM61: 425.1528 | AN61: 382.63752 | AO61: 344.373768 | AP61: =AP41 -> 309.9363912 | AQ61: 278.9427521 | AR61: 251.0484769 | AS61: 225.9436292 | AT61: 203.3492663 | AU61: 183.0143396 | AV61: 164.7129057 | AW61: 148.2416151 | AX61: 133.4174536 | AY61: 120.0757082 | AZ61: 108.0681374 | BA61: 97.26132367 | BB61: 0 | BC61: 0 | BD61: 0 | BE61: 0 | BF61: 0 | BG61: 0 | BH61: 0 | BI61: 0 | BJ61: 0 | BK61: 0 | BL61: 0 | BM61: 0 | BN61: 0 | BO61: 0 | BP61: 0 | BQ61: 0 | BR61: 0 | BS61: 0 | BT61: 0 | BU61: 0 | BV61: =BV41 -> 0 | BW61: 0 | BX61: 0 | BY61: 0 | BZ61: 0 | CA61: 0 | CB61: 0 | CC61: 0 | CD61: 0 | CE61: 0 | CF61: 0 | CG61: 0 | CH61: 0 | CI61: 0 | CJ61: 0 | CK61: 0 | CL61: 0 | CM61: 0 | CN61: 0 | CO61: 0 | CP61: 0 | CQ61: 0 | CR61: 0 | CS61: 0 | CT61: 0 | CU61: 0 | CV61: 0 | CW61: 0 | CX61: 0 | CY61: 0 | CZ61: 0 | DA61: 0 | DB61: =DB41 -> 0 | DC61: 0 | DD61: 0 | DE61: 0 | DF61: 0 | DG61: 0 | DH61: 0 | DI61: 0 | DJ61: 0 | DK61: 0 | DL61: 0 | DM61: 0 | DN61: 0 | DO61: 0 | DP61: 0 | DQ61: 0 | DR61: 0 | DS61: 0 | DT61: 0 | DU61: 0 | DV61: 0 | DW61: 0 | DX61: 0 | DY61: 0 | DZ61: 0 | EA61: 0 | EB61: 0 | EC61: 0 | ED61: 0 | EE61: 0 | EF61: 0 | EG61: 0 | EH61: =EH41 -> 0 | EI61: 0 | EJ61: 0 | EK61: 0 | EL61: 0 | EM61: 0 | EN61: 0 | EO61: 0 | EP61: 0 | EQ61: 0 | ER61: 0 | ES61: 0 | ET61: 0 | EU61: 0 | EV61: 0 | EW61: 0 | EX61: 0 | EY61: 0 | EZ61: 0 | FA61: 0 | FB61: 0 | FC61: 0 | FD61: 0 | FE61: 0 | FF61: 0 | FG61: 0 | FH61: 0 | FI61: 0 | FJ61: 0 | FK61: 0 | FL61: 0 | FM61: 0 | FN61: =FN41 -> 0 | FO61: 0 | FP61: 0 | FQ61: 0 | FR61: 0 | FS61: 0 | FT61: 0 | FU61: 0 | FV61: 0 | FW61: 0 | FX61: 0 | FY61: 0 | FZ61: 0 | GA61: 0 | GB61: 0 | GC61: 0 | GD61: 0 | GE61: 0 | GF61: 0 | GG61: 0 | GH61: 0 | GI61: 0 | GJ61: 0 | GK61: 0 | GL61: 0 | GM61: 0 | GN61: 0 | GO61: 0 | GP61: 0 | GQ61: 0 | GR61: 0 | GS61: 0 | GT61: =GT41 -> 0 | GU61: 0 | GV61: 0 | GW61: 0 | GX61: 0 | GY61: 0 | GZ61: 0 | HA61: 0
D62: Less: Taxes | J62: =J58 -> 0 | K62: 0 | L62: 0 | M62: 0 | N62: 0 | O62: 0 | P62: 0 | Q62: 0 | R62: 0 | S62: 0 | T62: 0 | U62: 0 | V62: 0 | W62: 0 | X62: 0 | Y62: 0 | Z62: 0 | AA62: 0 | AB62: 0 | AC62: 0 | AD62: 0 | AE62: 0 | AF62: 0 | AG62: 0 | AH62: 137.2090002 | AI62: 123.7344468 | AJ62: 111.6217396 | AK62: 100.7355348 | AL62: 90.9540718 | AM62: 82.16781822 | AN62: 74.27824991 | AO62: 67.19675335 | AP62: =AP58 -> 60.84363801 | AQ62: 55.14724763 | AR62: 50.04316064 | AS62: 45.47347068 | AT62: 41.38613939 | AU62: 37.73441409 | AV62: 34.47630403 | AW62: 31.57410921 | AX62: 28.99399674 | AY62: 26.70561971 | AZ62: 24.68177466 | BA62: 22.89809354 | BB62: 0 | BC62: 0 | BD62: 0 | BE62: 0 | BF62: 0 | BG62: 0 | BH62: 0 | BI62: 0 | BJ62: 0 | BK62: 0 | BL62: 0 | BM62: 0 | BN62: 0 | BO62: 0 | BP62: 0 | BQ62: 0 | BR62: 0 | BS62: 0 | BT62: 0 | BU62: 0 | BV62: =BV58 -> 0 | BW62: 0 | BX62: 0 | BY62: 0 | BZ62: 0 | CA62: 0 | CB62: 0 | CC62: 0 | CD62: 0 | CE62: 0 | CF62: 0 | CG62: 0 | CH62: 0 | CI62: 0 | CJ62: 0 | CK62: 0 | CL62: 0 | CM62: 0 | CN62: 0 | CO62: 0 | CP62: 0 | CQ62: 0 | CR62: 0 | CS62: 0 | CT62: 0 | CU62: 0 | CV62: 0 | CW62: 0 | CX62: 0 | CY62: 0 | CZ62: 0 | DA62: 0 | DB62: =DB58 -> 0 | DC62: 0 | DD62: 0 | DE62: 0 | DF62: 0 | DG62: 0 | DH62: 0 | DI62: 0 | DJ62: 0 | DK62: 0 | DL62: 0 | DM62: 0 | DN62: 0 | DO62: 0 | DP62: 0 | DQ62: 0 | DR62: 0 | DS62: 0 | DT62: 0 | DU62: 0 | DV62: 0 | DW62: 0 | DX62: 0 | DY62: 0 | DZ62: 0 | EA62: 0 | EB62: 0 | EC62: 0 | ED62: 0 | EE62: 0 | EF62: 0 | EG62: 0 | EH62: =EH58 -> 0 | EI62: 0 | EJ62: 0 | EK62: 0 | EL62: 0 | EM62: 0 | EN62: 0 | EO62: 0 | EP62: 0 | EQ62: 0 | ER62: 0 | ES62: 0 | ET62: 0 | EU62: 0 | EV62: 0 | EW62: 0 | EX62: 0 | EY62: 0 | EZ62: 0 | FA62: 0 | FB62: 0 | FC62: 0 | FD62: 0 | FE62: 0 | FF62: 0 | FG62: 0 | FH62: 0 | FI62: 0 | FJ62: 0 | FK62: 0 | FL62: 0 | FM62: 0 | FN62: =FN58 -> 0 | FO62: 0 | FP62: 0 | FQ62: 0 | FR62: 0 | FS62: 0 | FT62: 0 | FU62: 0 | FV62: 0 | FW62: 0 | FX62: 0 | FY62: 0 | FZ62: 0 | GA62: 0 | GB62: 0 | GC62: 0 | GD62: 0 | GE62: 0 | GF62: 0 | GG62: 0 | GH62: 0 | GI62: 0 | GJ62: 0 | GK62: 0 | GL62: 0 | GM62: 0 | GN62: 0 | GO62: 0 | GP62: 0 | GQ62: 0 | GR62: 0 | GS62: 0 | GT62: =GT58 -> 0 | GU62: 0 | GV62: 0 | GW62: 0 | GX62: 0 | GY62: 0 | GZ62: 0 | HA62: 0
D63: CFADS | J63: =J61-J62 -> 0 | K63: =K61-K62 -> 0 | L63: 0 | M63: 0 | N63: 0 | O63: 0 | P63: 0 | Q63: 0 | R63: 0 | S63: 0 | T63: 0 | U63: 0 | V63: 0 | W63: 0 | X63: 0 | Y63: 0 | Z63: 0 | AA63: 0 | AB63: 0 | AC63: 0 | AD63: 0 | AE63: 0 | AF63: 0 | AG63: 0 | AH63: 582.7909998 | AI63: 524.2655532 | AJ63: 471.5782604 | AK63: 424.1444652 | AL63: 381.4379282 | AM63: 342.9849818 | AN63: 308.3592701 | AO63: 277.1770146 | AP63: 249.0927532 | AQ63: 223.7955044 | AR63: 201.0053162 | AS63: 180.4701585 | AT63: 161.9631269 | AU63: 145.2799255 | AV63: 130.2366017 | AW63: 116.6675059 | AX63: 104.4234569 | AY63: 93.37008853 | AZ63: 83.38636276 | BA63: 74.36323013 | BB63: 0 | BC63: 0 | BD63: 0 | BE63: 0 | BF63: 0 | BG63: 0 | BH63: 0 | BI63: 0 | BJ63: 0 | BK63: 0 | BL63: 0 | BM63: 0 | BN63: 0 | BO63: 0 | BP63: 0 | BQ63: 0 | BR63: 0 | BS63: 0 | BT63: 0 | BU63: 0 | BV63: 0 | BW63: =BW61-BW62 -> 0 | BX63: 0 | BY63: 0 | BZ63: 0 | CA63: 0 | CB63: 0 | CC63: 0 | CD63: 0 | CE63: 0 | CF63: 0 | CG63: 0 | CH63: 0 | CI63: 0 | CJ63: 0 | CK63: 0 | CL63: 0 | CM63: 0 | CN63: 0 | CO63: 0 | CP63: 0 | CQ63: 0 | CR63: 0 | CS63: 0 | CT63: 0 | CU63: 0 | CV63: 0 | CW63: 0 | CX63: 0 | CY63: 0 | CZ63: 0 | DA63: 0 | DB63: 0 | DC63: 0 | DD63: 0 | DE63: 0 | DF63: 0 | DG63: 0 | DH63: 0 | DI63: 0 | DJ63: 0 | DK63: 0 | DL63: 0 | DM63: 0 | DN63: 0 | DO63: 0 | DP63: 0 | DQ63: 0 | DR63: 0 | DS63: 0 | DT63: 0 | DU63: 0 | DV63: 0 | DW63: 0 | DX63: 0 | DY63: 0 | DZ63: 0 | EA63: 0 | EB63: 0 | EC63: 0 | ED63: 0 | EE63: 0 | EF63: 0 | EG63: 0 | EH63: 0 | EI63: =EI61-EI62 -> 0 | EJ63: 0 | EK63: 0 | EL63: 0 | EM63: 0 | EN63: 0 | EO63: 0 | EP63: 0 | EQ63: 0 | ER63: 0 | ES63: 0 | ET63: 0 | EU63: 0 | EV63: 0 | EW63: 0 | EX63: 0 | EY63: 0 | EZ63: 0 | FA63: 0 | FB63: 0 | FC63: 0 | FD63: 0 | FE63: 0 | FF63: 0 | FG63: 0 | FH63: 0 | FI63: 0 | FJ63: 0 | FK63: 0 | FL63: 0 | FM63: 0 | FN63: 0 | FO63: 0 | FP63: 0 | FQ63: 0 | FR63: 0 | FS63: 0 | FT63: 0 | FU63: 0 | FV63: 0 | FW63: 0 | FX63: 0 | FY63: 0 | FZ63: 0 | GA63: 0 | GB63: 0 | GC63: 0 | GD63: 0 | GE63: 0 | GF63: 0 | GG63: 0 | GH63: 0 | GI63: 0 | GJ63: 0 | GK63: 0 | GL63: 0 | GM63: 0 | GN63: 0 | GO63: 0 | GP63: 0 | GQ63: 0 | GR63: 0 | GS63: 0 | GT63: 0 | GU63: =GU61-GU62 -> 0 | GV63: 0 | GW63: 0 | GX63: 0 | GY63: 0 | GZ63: 0 | HA63: 0
D65: CFADS Fixed for Tax Circularity | J65: 0 | K65: 0 | L65: 0 | M65: 0 | N65: 0 | O65: 0 | P65: 0 | Q65: 0 | R65: 0 | S65: 0 | T65: 0 | U65: 0 | V65: 0 | W65: 0 | X65: 0 | Y65: 0 | Z65: 0 | AA65: 0 | AB65: 0 | AC65: 0 | AD65: 0 | AE65: 0 | AF65: 0 | AG65: 0 | AH65: 582.7909998 | AI65: 524.2655532 | AJ65: 471.5782604 | AK65: 424.1444652 | AL65: 381.4379282 | AM65: 342.9849818 | AN65: 308.3592701 | AO65: 277.1770146 | AP65: 249.0927532 | AQ65: 223.7955044 | AR65: 201.0053162 | AS65: 180.4701585 | AT65: 161.9631269 | AU65: 145.2799255 | AV65: 130.2366017 | AW65: 116.6675059 | AX65: 104.4234569 | AY65: 93.37008853 | AZ65: 83.38636276 | BA65: 74.36323013 | BB65: 0 | BC65: 0 | BD65: 0 | BE65: 0 | BF65: 0 | BG65: 0 | BH65: 0 | BI65: 0 | BJ65: 0 | BK65: 0 | BL65: 0 | BM65: 0 | BN65: 0 | BO65: 0 | BP65: 0 | BQ65: 0 | BR65: 0 | BS65: 0 | BT65: 0 | BU65: 0 | BV65: 0 | BW65: 0 | BX65: 0 | BY65: 0 | BZ65: 0 | CA65: 0 | CB65: 0 | CC65: 0 | CD65: 0 | CE65: 0 | CF65: 0 | CG65: 0 | CH65: 0 | CI65: 0 | CJ65: 0 | CK65: 0 | CL65: 0 | CM65: 0 | CN65: 0 | CO65: 0 | CP65: 0 | CQ65: 0 | CR65: 0 | CS65: 0 | CT65: 0 | CU65: 0 | CV65: 0 | CW65: 0 | CX65: 0 | CY65: 0 | CZ65: 0 | DA65: 0 | DB65: 0 | DC65: 0 | DD65: 0 | DE65: 0 | DF65: 0 | DG65: 0 | DH65: 0 | DI65: 0 | DJ65: 0 | DK65: 0 | DL65: 0 | DM65: 0 | DN65: 0 | DO65: 0 | DP65: 0 | DQ65: 0 | DR65: 0 | DS65: 0 | DT65: 0 | DU65: 0 | DV65: 0 | DW65: 0 | DX65: 0 | DY65: 0 | DZ65: 0 | EA65: 0 | EB65: 0 | EC65: 0 | ED65: 0 | EE65: 0 | EF65: 0 | EG65: 0 | EH65: 0 | EI65: 0 | EJ65: 0 | EK65: 0 | EL65: 0 | EM65: 0 | EN65: 0 | EO65: 0 | EP65: 0 | EQ65: 0 | ER65: 0 | ES65: 0 | ET65: 0 | EU65: 0 | EV65: 0 | EW65: 0 | EX65: 0 | EY65: 0 | EZ65: 0 | FA65: 0 | FB65: 0 | FC65: 0 | FD65: 0 | FE65: 0 | FF65: 0 | FG65: 0 | FH65: 0 | FI65: 0 | FJ65: 0 | FK65: 0 | FL65: 0 | FM65: 0 | FN65: 0 | FO65: 0 | FP65: 0 | FQ65: 0 | FR65: 0 | FS65: 0 | FT65: 0 | FU65: 0 | FV65: 0 | FW65: 0 | FX65: 0 | FY65: 0 | FZ65: 0 | GA65: 0 | GB65: 0 | GC65: 0 | GD65: 0 | GE65: 0 | GF65: 0 | GG65: 0 | GH65: 0 | GI65: 0 | GJ65: 0 | GK65: 0 | GL65: 0 | GM65: 0 | GN65: 0 | GO65: 0 | GP65: 0 | GQ65: 0 | GR65: 0 | GS65: 0 | GT65: 0 | GU65: 0 | GV65: 0 | GW65: 0 | GX65: 0 | GY65: 0 | GZ65: 0 | HA65: 0
D66: Difference | I66: =SUM(J66:HA66) -> 0 | J66: =J63-J65 -> 0 | K66: =K63-K65 -> 0 | L66: =L63-L65 -> 0 | M66: =M63-M65 -> 0 | N66: =N63-N65 -> 0 | O66: =O63-O65 -> 0 | P66: =P63-P65 -> 0 | Q66: =Q63-Q65 -> 0 | R66: =R63-R65 -> 0 | S66: =S63-S65 -> 0 | T66: =T63-T65 -> 0 | U66: =U63-U65 -> 0 | V66: =V63-V65 -> 0 | W66: =W63-W65 -> 0 | X66: =X63-X65 -> 0 | Y66: =Y63-Y65 -> 0 | Z66: =Z63-Z65 -> 0 | AA66: =AA63-AA65 -> 0 | AB66: =AB63-AB65 -> 0 | AC66: =AC63-AC65 -> 0 | AD66: =AD63-AD65 -> 0 | AE66: =AE63-AE65 -> 0 | AF66: =AF63-AF65 -> 0 | AG66: =AG63-AG65 -> 0 | AH66: =AH63-AH65 -> 0 | AI66: =AI63-AI65 -> 0 | AJ66: =AJ63-AJ65 -> 0 | AK66: =AK63-AK65 -> 0 | AL66: =AL63-AL65 -> 0 | AM66: =AM63-AM65 -> 0 | AN66: =AN63-AN65 -> 0 | AO66: =AO63-AO65 -> 0 | AP66: =AP63-AP65 -> 0 | AQ66: =AQ63-AQ65 -> 0 | AR66: =AR63-AR65 -> 0 | AS66: =AS63-AS65 -> 0 | AT66: =AT63-AT65 -> 0 | AU66: =AU63-AU65 -> 0 | AV66: =AV63-AV65 -> 0 | AW66: =AW63-AW65 -> 0 | AX66: =AX63-AX65 -> 0 | AY66: =AY63-AY65 -> 0 | AZ66: =AZ63-AZ65 -> 0 | BA66: =BA63-BA65 -> 0 | BB66: =BB63-BB65 -> 0 | BC66: =BC63-BC65 -> 0 | BD66: =BD63-BD65 -> 0 | BE66: =BE63-BE65 -> 0 | BF66: =BF63-BF65 -> 0 | BG66: =BG63-BG65 -> 0 | BH66: =BH63-BH65 -> 0 | BI66: =BI63-BI65 -> 0 | BJ66: =BJ63-BJ65 -> 0 | BK66: =BK63-BK65 -> 0 | BL66: =BL63-BL65 -> 0 | BM66: =BM63-BM65 -> 0 | BN66: =BN63-BN65 -> 0 | BO66: =BO63-BO65 -> 0 | BP66: =BP63-BP65 -> 0 | BQ66: =BQ63-BQ65 -> 0 | BR66: =BR63-BR65 -> 0 | BS66: =BS63-BS65 -> 0 | BT66: =BT63-BT65 -> 0 | BU66: =BU63-BU65 -> 0 | BV66: =BV63-BV65 -> 0 | BW66: =BW63-BW65 -> 0 | BX66: =BX63-BX65 -> 0 | BY66: =BY63-BY65 -> 0 | BZ66: =BZ63-BZ65 -> 0 | CA66: =CA63-CA65 -> 0 | CB66: =CB63-CB65 -> 0 | CC66: =CC63-CC65 -> 0 | CD66: =CD63-CD65 -> 0 | CE66: =CE63-CE65 -> 0 | CF66: =CF63-CF65 -> 0 | CG66: =CG63-CG65 -> 0 | CH66: =CH63-CH65 -> 0 | CI66: =CI63-CI65 -> 0 | CJ66: =CJ63-CJ65 -> 0 | CK66: =CK63-CK65 -> 0 | CL66: =CL63-CL65 -> 0 | CM66: =CM63-CM65 -> 0 | CN66: =CN63-CN65 -> 0 | CO66: =CO63-CO65 -> 0 | CP66: =CP63-CP65 -> 0 | CQ66: =CQ63-CQ65 -> 0 | CR66: =CR63-CR65 -> 0 | CS66: =CS63-CS65 -> 0 | CT66: =CT63-CT65 -> 0 | CU66: =CU63-CU65 -> 0 | CV66: =CV63-CV65 -> 0 | CW66: =CW63-CW65 -> 0 | CX66: =CX63-CX65 -> 0 | CY66: =CY63-CY65 -> 0 | CZ66: =CZ63-CZ65 -> 0 | DA66: =DA63-DA65 -> 0 | DB66: =DB63-DB65 -> 0 | DC66: =DC63-DC65 -> 0 | DD66: =DD63-DD65 -> 0 | DE66: =DE63-DE65 -> 0 | DF66: =DF63-DF65 -> 0 | DG66: =DG63-DG65 -> 0 | DH66: =DH63-DH65 -> 0 | DI66: =DI63-DI65 -> 0 | DJ66: =DJ63-DJ65 -> 0 | DK66: =DK63-DK65 -> 0 | DL66: =DL63-DL65 -> 0 | DM66: =DM63-DM65 -> 0 | DN66: =DN63-DN65 -> 0 | DO66: =DO63-DO65 -> 0 | DP66: =DP63-DP65 -> 0 | DQ66: =DQ63-DQ65 -> 0 | DR66: =DR63-DR65 -> 0 | DS66: =DS63-DS65 -> 0 | DT66: =DT63-DT65 -> 0 | DU66: =DU63-DU65 -> 0 | DV66: =DV63-DV65 -> 0 | DW66: =DW63-DW65 -> 0 | DX66: =DX63-DX65 -> 0 | DY66: =DY63-DY65 -> 0 | DZ66: =DZ63-DZ65 -> 0 | EA66: =EA63-EA65 -> 0 | EB66: =EB63-EB65 -> 0 | EC66: =EC63-EC65 -> 0 | ED66: =ED63-ED65 -> 0 | EE66: =EE63-EE65 -> 0 | EF66: =EF63-EF65 -> 0 | EG66: =EG63-EG65 -> 0 | EH66: =EH63-EH65 -> 0 | EI66: =EI63-EI65 -> 0 | EJ66: =EJ63-EJ65 -> 0 | EK66: =EK63-EK65 -> 0 | EL66: =EL63-EL65 -> 0 | EM66: =EM63-EM65 -> 0 | EN66: =EN63-EN65 -> 0 | EO66: =EO63-EO65 -> 0 | EP66: =EP63-EP65 -> 0 | EQ66: =EQ63-EQ65 -> 0 | ER66: =ER63-ER65 -> 0 | ES66: =ES63-ES65 -> 0 | ET66: =ET63-ET65 -> 0 | EU66: =EU63-EU65 -> 0 | EV66: =EV63-EV65 -> 0 | EW66: =EW63-EW65 -> 0 | EX66: =EX63-EX65 -> 0 | EY66: =EY63-EY65 -> 0 | EZ66: =EZ63-EZ65 -> 0 | FA66: =FA63-FA65 -> 0 | FB66: =FB63-FB65 -> 0 | FC66: =FC63-FC65 -> 0 | FD66: =FD63-FD65 -> 0 | FE66: =FE63-FE65 -> 0 | FF66: =FF63-FF65 -> 0 | FG66: =FG63-FG65 -> 0 | FH66: =FH63-FH65 -> 0 | FI66: =FI63-FI65 -> 0 | FJ66: =FJ63-FJ65 -> 0 | FK66: =FK63-FK65 -> 0 | FL66: =FL63-FL65 -> 0 | FM66: =FM63-FM65 -> 0 | FN66: =FN63-FN65 -> 0 | FO66: =FO63-FO65 -> 0 | FP66: =FP63-FP65 -> 0 | FQ66: =FQ63-FQ65 -> 0 | FR66: =FR63-FR65 -> 0 | FS66: =FS63-FS65 -> 0 | FT66: =FT63-FT65 -> 0 | FU66: =FU63-FU65 -> 0 | FV66: =FV63-FV65 -> 0 | FW66: =FW63-FW65 -> 0 | FX66: =FX63-FX65 -> 0 | FY66: =FY63-FY65 -> 0 | FZ66: =FZ63-FZ65 -> 0 | GA66: =GA63-GA65 -> 0 | GB66: =GB63-GB65 -> 0 | GC66: =GC63-GC65 -> 0 | GD66: =GD63-GD65 -> 0 | GE66: =GE63-GE65 -> 0 | GF66: =GF63-GF65 -> 0 | GG66: =GG63-GG65 -> 0 | GH66: =GH63-GH65 -> 0 | GI66: =GI63-GI65 -> 0 | GJ66: =GJ63-GJ65 -> 0 | GK66: =GK63-GK65 -> 0 | GL66: =GL63-GL65 -> 0 | GM66: =GM63-GM65 -> 0 | GN66: =GN63-GN65 -> 0 | GO66: =GO63-GO65 -> 0 | GP66: =GP63-GP65 -> 0 | GQ66: =GQ63-GQ65 -> 0 | GR66: =GR63-GR65 -> 0 | GS66: =GS63-GS65 -> 0 | GT66: =GT63-GT65 -> 0 | GU66: =GU63-GU65 -> 0 | GV66: =GV63-GV65 -> 0 | GW66: =GW63-GW65 -> 0 | GX66: =GX63-GX65 -> 0 | GY66: =GY63-GY65 -> 0 | GZ66: =GZ63-GZ65 -> 0 | HA66: =HA63-HA65 -> 0
D68: Debt Service from Direct Sculpting without DSRA | G68: =G21 -> 1.45 | I68: =SUM(J68:HA68) -> 3501.23621 | J68: =(J65/$G$68)*J7 -> 0 | K68: =(K65/$G$68)*K7 -> 0 | L68: =(L65/$G$68)*L7 -> 0 | M68: =(M65/$G$68)*M7 -> 0 | N68: =(N65/$G$68)*N7 -> 0 | O68: =(O65/$G$68)*O7 -> 0 | P68: =(P65/$G$68)*P7 -> 0 | Q68: =(Q65/$G$68)*Q7 -> 0 | R68: =(R65/$G$68)*R7 -> 0 | S68: =(S65/$G$68)*S7 -> 0 | T68: =(T65/$G$68)*T7 -> 0 | U68: =(U65/$G$68)*U7 -> 0 | V68: =(V65/$G$68)*V7 -> 0 | W68: =(W65/$G$68)*W7 -> 0 | X68: =(X65/$G$68)*X7 -> 0 | Y68: =(Y65/$G$68)*Y7 -> 0 | Z68: =(Z65/$G$68)*Z7 -> 0 | AA68: =(AA65/$G$68)*AA7 -> 0 | AB68: =(AB65/$G$68)*AB7 -> 0 | AC68: =(AC65/$G$68)*AC7 -> 0 | AD68: =(AD65/$G$68)*AD7 -> 0 | AE68: =(AE65/$G$68)*AE7 -> 0 | AF68: =(AF65/$G$68)*AF7 -> 0 | AG68: =(AG65/$G$68)*AG7 -> 0 | AH68: =(AH65/$G$68)*AH7 -> 401.9248275 | AI68: =(AI65/$G$68)*AI7 -> 361.5624505 | AJ68: =(AJ65/$G$68)*AJ7 -> 325.2263864 | AK68: =(AK65/$G$68)*AK7 -> 292.5134243 | AL68: =(AL65/$G$68)*AL7 -> 263.0606401 | AM68: =(AM65/$G$68)*AM7 -> 236.5413667 | AN68: =(AN65/$G$68)*AN7 -> 212.6615656 | AO68: =(AO65/$G$68)*AO7 -> 191.1565618 | AP68: =(AP65/$G$68)*AP7 -> 171.7881056 | AQ68: =(AQ65/$G$68)*AQ7 -> 154.3417272 | AR68: =(AR65/$G$68)*AR7 -> 138.624356 | AS68: =(AS65/$G$68)*AS7 -> 124.4621783 | AT68: =(AT65/$G$68)*AT7 -> 111.6987082 | AU68: =(AU65/$G$68)*AU7 -> 100.1930521 | AV68: =(AV65/$G$68)*AV7 -> 89.81834597 | AW68: =(AW65/$G$68)*AW7 -> 80.46034889 | AX68: =(AX65/$G$68)*AX7 -> 72.01617714 | AY68: =(AY65/$G$68)*AY7 -> 64.3931645 | AZ68: =(AZ65/$G$68)*AZ7 -> 57.50783638 | BA68: =(BA65/$G$68)*BA7 -> 51.2849863 | BB68: =(BB65/$G$68)*BB7 -> 0 | BC68: =(BC65/$G$68)*BC7 -> 0 | BD68: =(BD65/$G$68)*BD7 -> 0 | BE68: =(BE65/$G$68)*BE7 -> 0 | BF68: =(BF65/$G$68)*BF7 -> 0 | BG68: =(BG65/$G$68)*BG7 -> 0 | BH68: =(BH65/$G$68)*BH7 -> 0 | BI68: =(BI65/$G$68)*BI7 -> 0 | BJ68: =(BJ65/$G$68)*BJ7 -> 0 | BK68: =(BK65/$G$68)*BK7 -> 0 | BL68: =(BL65/$G$68)*BL7 -> 0 | BM68: =(BM65/$G$68)*BM7 -> 0 | BN68: =(BN65/$G$68)*BN7 -> 0 | BO68: =(BO65/$G$68)*BO7 -> 0 | BP68: =(BP65/$G$68)*BP7 -> 0 | BQ68: =(BQ65/$G$68)*BQ7 -> 0 | BR68: =(BR65/$G$68)*BR7 -> 0 | BS68: =(BS65/$G$68)*BS7 -> 0 | BT68: =(BT65/$G$68)*BT7 -> 0 | BU68: =(BU65/$G$68)*BU7 -> 0 | BV68: =(BV65/$G$68)*BV7 -> 0 | BW68: =(BW65/$G$68)*BW7 -> 0 | BX68: =(BX65/$G$68)*BX7 -> 0 | BY68: =(BY65/$G$68)*BY7 -> 0 | BZ68: =(BZ65/$G$68)*BZ7 -> 0 | CA68: =(CA65/$G$68)*CA7 -> 0 | CB68: =(CB65/$G$68)*CB7 -> 0 | CC68: =(CC65/$G$68)*CC7 -> 0 | CD68: =(CD65/$G$68)*CD7 -> 0 | CE68: =(CE65/$G$68)*CE7 -> 0 | CF68: =(CF65/$G$68)*CF7 -> 0 | CG68: =(CG65/$G$68)*CG7 -> 0 | CH68: =(CH65/$G$68)*CH7 -> 0 | CI68: =(CI65/$G$68)*CI7 -> 0 | CJ68: =(CJ65/$G$68)*CJ7 -> 0 | CK68: =(CK65/$G$68)*CK7 -> 0 | CL68: =(CL65/$G$68)*CL7 -> 0 | CM68: =(CM65/$G$68)*CM7 -> 0 | CN68: =(CN65/$G$68)*CN7 -> 0 | CO68: =(CO65/$G$68)*CO7 -> 0 | CP68: =(CP65/$G$68)*CP7 -> 0 | CQ68: =(CQ65/$G$68)*CQ7 -> 0 | CR68: =(CR65/$G$68)*CR7 -> 0 | CS68: =(CS65/$G$68)*CS7 -> 0 | CT68: =(CT65/$G$68)*CT7 -> 0 | CU68: =(CU65/$G$68)*CU7 -> 0 | CV68: =(CV65/$G$68)*CV7 -> 0 | CW68: =(CW65/$G$68)*CW7 -> 0 | CX68: =(CX65/$G$68)*CX7 -> 0 | CY68: =(CY65/$G$68)*CY7 -> 0 | CZ68: =(CZ65/$G$68)*CZ7 -> 0 | DA68: =(DA65/$G$68)*DA7 -> 0 | DB68: =(DB65/$G$68)*DB7 -> 0 | DC68: =(DC65/$G$68)*DC7 -> 0 | DD68: =(DD65/$G$68)*DD7 -> 0 | DE68: =(DE65/$G$68)*DE7 -> 0 | DF68: =(DF65/$G$68)*DF7 -> 0 | DG68: =(DG65/$G$68)*DG7 -> 0 | DH68: =(DH65/$G$68)*DH7 -> 0 | DI68: =(DI65/$G$68)*DI7 -> 0 | DJ68: =(DJ65/$G$68)*DJ7 -> 0 | DK68: =(DK65/$G$68)*DK7 -> 0 | DL68: =(DL65/$G$68)*DL7 -> 0 | DM68: =(DM65/$G$68)*DM7 -> 0 | DN68: =(DN65/$G$68)*DN7 -> 0 | DO68: =(DO65/$G$68)*DO7 -> 0 | DP68: =(DP65/$G$68)*DP7 -> 0 | DQ68: =(DQ65/$G$68)*DQ7 -> 0 | DR68: =(DR65/$G$68)*DR7 -> 0 | DS68: =(DS65/$G$68)*DS7 -> 0 | DT68: =(DT65/$G$68)*DT7 -> 0 | DU68: =(DU65/$G$68)*DU7 -> 0 | DV68: =(DV65/$G$68)*DV7 -> 0 | DW68: =(DW65/$G$68)*DW7 -> 0 | DX68: =(DX65/$G$68)*DX7 -> 0 | DY68: =(DY65/$G$68)*DY7 -> 0 | DZ68: =(DZ65/$G$68)*DZ7 -> 0 | EA68: =(EA65/$G$68)*EA7 -> 0 | EB68: =(EB65/$G$68)*EB7 -> 0 | EC68: =(EC65/$G$68)*EC7 -> 0 | ED68: =(ED65/$G$68)*ED7 -> 0 | EE68: =(EE65/$G$68)*EE7 -> 0 | EF68: =(EF65/$G$68)*EF7 -> 0 | EG68: =(EG65/$G$68)*EG7 -> 0 | EH68: =(EH65/$G$68)*EH7 -> 0 | EI68: =(EI65/$G$68)*EI7 -> 0 | EJ68: =(EJ65/$G$68)*EJ7 -> 0 | EK68: =(EK65/$G$68)*EK7 -> 0 | EL68: =(EL65/$G$68)*EL7 -> 0 | EM68: =(EM65/$G$68)*EM7 -> 0 | EN68: =(EN65/$G$68)*EN7 -> 0 | EO68: =(EO65/$G$68)*EO7 -> 0 | EP68: =(EP65/$G$68)*EP7 -> 0 | EQ68: =(EQ65/$G$68)*EQ7 -> 0 | ER68: =(ER65/$G$68)*ER7 -> 0 | ES68: =(ES65/$G$68)*ES7 -> 0 | ET68: =(ET65/$G$68)*ET7 -> 0 | EU68: =(EU65/$G$68)*EU7 -> 0 | EV68: =(EV65/$G$68)*EV7 -> 0 | EW68: =(EW65/$G$68)*EW7 -> 0 | EX68: =(EX65/$G$68)*EX7 -> 0 | EY68: =(EY65/$G$68)*EY7 -> 0 | EZ68: =(EZ65/$G$68)*EZ7 -> 0 | FA68: =(FA65/$G$68)*FA7 -> 0 | FB68: =(FB65/$G$68)*FB7 -> 0 | FC68: =(FC65/$G$68)*FC7 -> 0 | FD68: =(FD65/$G$68)*FD7 -> 0 | FE68: =(FE65/$G$68)*FE7 -> 0 | FF68: =(FF65/$G$68)*FF7 -> 0 | FG68: =(FG65/$G$68)*FG7 -> 0 | FH68: =(FH65/$G$68)*FH7 -> 0 | FI68: =(FI65/$G$68)*FI7 -> 0 | FJ68: =(FJ65/$G$68)*FJ7 -> 0 | FK68: =(FK65/$G$68)*FK7 -> 0 | FL68: =(FL65/$G$68)*FL7 -> 0 | FM68: =(FM65/$G$68)*FM7 -> 0 | FN68: =(FN65/$G$68)*FN7 -> 0 | FO68: =(FO65/$G$68)*FO7 -> 0 | FP68: =(FP65/$G$68)*FP7 -> 0 | FQ68: =(FQ65/$G$68)*FQ7 -> 0 | FR68: =(FR65/$G$68)*FR7 -> 0 | FS68: =(FS65/$G$68)*FS7 -> 0 | FT68: =(FT65/$G$68)*FT7 -> 0 | FU68: =(FU65/$G$68)*FU7 -> 0 | FV68: =(FV65/$G$68)*FV7 -> 0 | FW68: =(FW65/$G$68)*FW7 -> 0 | FX68: =(FX65/$G$68)*FX7 -> 0 | FY68: =(FY65/$G$68)*FY7 -> 0 | FZ68: =(FZ65/$G$68)*FZ7 -> 0 | GA68: =(GA65/$G$68)*GA7 -> 0 | GB68: =(GB65/$G$68)*GB7 -> 0 | GC68: =(GC65/$G$68)*GC7 -> 0 | GD68: =(GD65/$G$68)*GD7 -> 0 | GE68: =(GE65/$G$68)*GE7 -> 0 | GF68: =(GF65/$G$68)*GF7 -> 0 | GG68: =(GG65/$G$68)*GG7 -> 0 | GH68: =(GH65/$G$68)*GH7 -> 0 | GI68: =(GI65/$G$68)*GI7 -> 0 | GJ68: =(GJ65/$G$68)*GJ7 -> 0 | GK68: =(GK65/$G$68)*GK7 -> 0 | GL68: =(GL65/$G$68)*GL7 -> 0 | GM68: =(GM65/$G$68)*GM7 -> 0 | GN68: =(GN65/$G$68)*GN7 -> 0 | GO68: =(GO65/$G$68)*GO7 -> 0 | GP68: =(GP65/$G$68)*GP7 -> 0 | GQ68: =(GQ65/$G$68)*GQ7 -> 0 | GR68: =(GR65/$G$68)*GR7 -> 0 | GS68: =(GS65/$G$68)*GS7 -> 0 | GT68: =(GT65/$G$68)*GT7 -> 0 | GU68: =(GU65/$G$68)*GU7 -> 0 | GV68: =(GV65/$G$68)*GV7 -> 0 | GW68: =(GW65/$G$68)*GW7 -> 0 | GX68: =(GX65/$G$68)*GX7 -> 0 | GY68: =(GY65/$G$68)*GY7 -> 0 | GZ68: =(GZ65/$G$68)*GZ7 -> 0 | HA68: =(HA65/$G$68)*HA7 -> 0
D69: Interest Rate Periodic | J69: =J151 -> 0.005833333333 | K69: =K151 -> 0.005833333333 | L69: 0.005833333333 | M69: 0.005833333333 | N69: 0.005833333333 | O69: 0.005833333333 | P69: 0.005833333333 | Q69: 0.005833333333 | R69: 0.005833333333 | S69: 0.005833333333 | T69: 0.005833333333 | U69: 0.005833333333 | V69: 0.005833333333 | W69: 0.005833333333 | X69: 0.005833333333 | Y69: 0.005833333333 | Z69: 0.005833333333 | AA69: 0.005833333333 | AB69: 0.005833333333 | AC69: 0.005833333333 | AD69: 0.005833333333 | AE69: 0.005833333333 | AF69: 0.005833333333 | AG69: 0.005833333333 | AH69: 0.07 | AI69: 0.07 | AJ69: 0.07 | AK69: 0.07 | AL69: 0.07 | AM69: 0.07 | AN69: 0.07 | AO69: 0.07 | AP69: 0.07 | AQ69: 0.07 | AR69: 0.07 | AS69: 0.07 | AT69: 0.07 | AU69: 0.07 | AV69: 0.07 | AW69: 0.07 | AX69: 0.07 | AY69: 0.07 | AZ69: 0.07 | BA69: 0.07 | BB69: 0.07 | BC69: 0.07 | BD69: 0.07 | BE69: 0.07 | BF69: 0.07 | BG69: 0.07 | BH69: 0.07 | BI69: 0.07 | BJ69: 0.07 | BK69: 0.07 | BL69: 0.07 | BM69: 0.07 | BN69: 0.07 | BO69: 0.07 | BP69: 0.07 | BQ69: 0.07 | BR69: 0.07 | BS69: 0.07 | BT69: 0.07 | BU69: 0.07 | BV69: 0.07 | BW69: =BW151 -> 0.07 | BX69: 0.07 | BY69: 0.07 | BZ69: 0.07 | CA69: 0.07 | CB69: 0.07 | CC69: 0.07 | CD69: 0.07 | CE69: 0.07 | CF69: 0.07 | CG69: 0.07 | CH69: 0.07 | CI69: 0.07 | CJ69: 0.07 | CK69: 0.07 | CL69: 0.07 | CM69: 0.07 | CN69: 0.07 | CO69: 0.07 | CP69: 0.07 | CQ69: 0.07 | CR69: 0.07 | CS69: 0.07 | CT69: 0.07 | CU69: 0.07 | CV69: 0.07 | CW69: 0.07 | CX69: 0.07 | CY69: 0.07 | CZ69: 0.07 | DA69: 0.07 | DB69: 0.07 | DC69: 0.07 | DD69: 0.07 | DE69: 0.07 | DF69: 0.07 | DG69: 0.07 | DH69: 0.07 | DI69: 0.07 | DJ69: 0.07 | DK69: 0.07 | DL69: 0.07 | DM69: 0.07 | DN69: 0.07 | DO69: 0.07 | DP69: 0.07 | DQ69: 0.07 | DR69: 0.07 | DS69: 0.07 | DT69: 0.07 | DU69: 0.07 | DV69: 0.07 | DW69: 0.07 | DX69: 0.07 | DY69: 0.07 | DZ69: 0.07 | EA69: 0.07 | EB69: 0.07 | EC69: 0.07 | ED69: 0.07 | EE69: 0.07 | EF69: 0.07 | EG69: 0.07 | EH69: 0.07 | EI69: =EI151 -> 0.07 | EJ69: 0.07 | EK69: 0.07 | EL69: 0.07 | EM69: 0.07 | EN69: 0.07 | EO69: 0.07 | EP69: 0.07 | EQ69: 0.07 | ER69: 0.07 | ES69: 0.07 | ET69: 0.07 | EU69: 0.07 | EV69: 0.07 | EW69: 0.07 | EX69: 0.07 | EY69: 0.07 | EZ69: 0.07 | FA69: 0.07 | FB69: 0.07 | FC69: 0.07 | FD69: 0.07 | FE69: 0.07 | FF69: 0.07 | FG69: 0.07 | FH69: 0.07 | FI69: 0.07 | FJ69: 0.07 | FK69: 0.07 | FL69: 0.07 | FM69: 0.07 | FN69: 0.07 | FO69: 0.07 | FP69: 0.07 | FQ69: 0.07 | FR69: 0.07 | FS69: 0.07 | FT69: 0.07 | FU69: 0.07 | FV69: 0.07 | FW69: 0.07 | FX69: 0.07 | FY69: 0.07 | FZ69: 0.07 | GA69: 0.07 | GB69: 0.07 | GC69: 0.07 | GD69: 0.07 | GE69: 0.07 | GF69: 0.07 | GG69: 0.07 | GH69: 0.07 | GI69: 0.07 | GJ69: 0.07 | GK69: 0.07 | GL69: 0.07 | GM69: 0.07 | GN69: 0.07 | GO69: 0.07 | GP69: 0.07 | GQ69: 0.07 | GR69: 0.07 | GS69: 0.07 | GT69: 0.07 | GU69: =GU151 -> 0.07 | GV69: 0.07 | GW69: 0.07 | GX69: 0.07 | GY69: 0.07 | GZ69: 0.07 | HA69: 0.07
D70: Interest Rate Factor | F70: Index | I70: 1 | J70: =I70*(1+J69*J7) -> 1 | K70: =J70*(1+K69*K7) -> 1 | L70: =K70*(1+L69*L7) -> 1 | M70: =L70*(1+M69*M7) -> 1 | N70: =M70*(1+N69*N7) -> 1 | O70: =N70*(1+O69*O7) -> 1 | P70: =O70*(1+P69*P7) -> 1 | Q70: =P70*(1+Q69*Q7) -> 1 | R70: =Q70*(1+R69*R7) -> 1 | S70: =R70*(1+S69*S7) -> 1 | T70: =S70*(1+T69*T7) -> 1 | U70: =T70*(1+U69*U7) -> 1 | V70: =U70*(1+V69*V7) -> 1 | W70: =V70*(1+W69*W7) -> 1 | X70: =W70*(1+X69*X7) -> 1 | Y70: =X70*(1+Y69*Y7) -> 1 | Z70: =Y70*(1+Z69*Z7) -> 1 | AA70: =Z70*(1+AA69*AA7) -> 1 | AB70: =AA70*(1+AB69*AB7) -> 1 | AC70: =AB70*(1+AC69*AC7) -> 1 | AD70: =AC70*(1+AD69*AD7) -> 1 | AE70: =AD70*(1+AE69*AE7) -> 1 | AF70: =AE70*(1+AF69*AF7) -> 1 | AG70: =AF70*(1+AG69*AG7) -> 1 | AH70: =AG70*(1+AH69*AH7) -> 1.07 | AI70: =AH70*(1+AI69*AI7) -> 1.1449 | AJ70: =AI70*(1+AJ69*AJ7) -> 1.225043 | AK70: =AJ70*(1+AK69*AK7) -> 1.31079601 | AL70: =AK70*(1+AL69*AL7) -> 1.402551731 | AM70: =AL70*(1+AM69*AM7) -> 1.500730352 | AN70: =AM70*(1+AN69*AN7) -> 1.605781476 | AO70: =AN70*(1+AO69*AO7) -> 1.71818618 | AP70: =AO70*(1+AP69*AP7) -> 1.838459212 | AQ70: =AP70*(1+AQ69*AQ7) -> 1.967151357 | AR70: =AQ70*(1+AR69*AR7) -> 2.104851952 | AS70: =AR70*(1+AS69*AS7) -> 2.252191589 | AT70: =AS70*(1+AT69*AT7) -> 2.409845 | AU70: =AT70*(1+AU69*AU7) -> 2.57853415 | AV70: =AU70*(1+AV69*AV7) -> 2.759031541 | AW70: =AV70*(1+AW69*AW7) -> 2.952163749 | AX70: =AW70*(1+AX69*AX7) -> 3.158815211 | AY70: =AX70*(1+AY69*AY7) -> 3.379932276 | AZ70: =AY70*(1+AZ69*AZ7) -> 3.616527535 | BA70: =AZ70*(1+BA69*BA7) -> 3.869684462 | BB70: =BA70*(1+BB69*BB7) -> 3.869684462 | BC70: =BB70*(1+BC69*BC7) -> 3.869684462 | BD70: =BC70*(1+BD69*BD7) -> 3.869684462 | BE70: =BD70*(1+BE69*BE7) -> 3.869684462 | BF70: =BE70*(1+BF69*BF7) -> 3.869684462 | BG70: =BF70*(1+BG69*BG7) -> 3.869684462 | BH70: =BG70*(1+BH69*BH7) -> 3.869684462 | BI70: =BH70*(1+BI69*BI7) -> 3.869684462 | BJ70: =BI70*(1+BJ69*BJ7) -> 3.869684462 | BK70: =BJ70*(1+BK69*BK7) -> 3.869684462 | BL70: =BK70*(1+BL69*BL7) -> 3.869684462 | BM70: =BL70*(1+BM69*BM7) -> 3.869684462 | BN70: =BM70*(1+BN69*BN7) -> 3.869684462 | BO70: =BN70*(1+BO69*BO7) -> 3.869684462 | BP70: =BO70*(1+BP69*BP7) -> 3.869684462 | BQ70: =BP70*(1+BQ69*BQ7) -> 3.869684462 | BR70: =BQ70*(1+BR69*BR7) -> 3.869684462 | BS70: =BR70*(1+BS69*BS7) -> 3.869684462 | BT70: =BS70*(1+BT69*BT7) -> 3.869684462 | BU70: =BT70*(1+BU69*BU7) -> 3.869684462 | BV70: =BU70*(1+BV69*BV7) -> 3.869684462 | BW70: =BV70*(1+BW69*BW7) -> 3.869684462 | BX70: =BW70*(1+BX69*BX7) -> 3.869684462 | BY70: =BX70*(1+BY69*BY7) -> 3.869684462 | BZ70: =BY70*(1+BZ69*BZ7) -> 3.869684462 | CA70: =BZ70*(1+CA69*CA7) -> 3.869684462 | CB70: =CA70*(1+CB69*CB7) -> 3.869684462 | CC70: =CB70*(1+CC69*CC7) -> 3.869684462 | CD70: =CC70*(1+CD69*CD7) -> 3.869684462 | CE70: =CD70*(1+CE69*CE7) -> 3.869684462 | CF70: =CE70*(1+CF69*CF7) -> 3.869684462 | CG70: =CF70*(1+CG69*CG7) -> 3.869684462 | CH70: =CG70*(1+CH69*CH7) -> 3.869684462 | CI70: =CH70*(1+CI69*CI7) -> 3.869684462 | CJ70: =CI70*(1+CJ69*CJ7) -> 3.869684462 | CK70: =CJ70*(1+CK69*CK7) -> 3.869684462 | CL70: =CK70*(1+CL69*CL7) -> 3.869684462 | CM70: =CL70*(1+CM69*CM7) -> 3.869684462 | CN70: =CM70*(1+CN69*CN7) -> 3.869684462 | CO70: =CN70*(1+CO69*CO7) -> 3.869684462 | CP70: =CO70*(1+CP69*CP7) -> 3.869684462 | CQ70: =CP70*(1+CQ69*CQ7) -> 3.869684462 | CR70: =CQ70*(1+CR69*CR7) -> 3.869684462 | CS70: =CR70*(1+CS69*CS7) -> 3.869684462 | CT70: =CS70*(1+CT69*CT7) -> 3.869684462 | CU70: =CT70*(1+CU69*CU7) -> 3.869684462 | CV70: =CU70*(1+CV69*CV7) -> 3.869684462 | CW70: =CV70*(1+CW69*CW7) -> 3.869684462 | CX70: =CW70*(1+CX69*CX7) -> 3.869684462 | CY70: =CX70*(1+CY69*CY7) -> 3.869684462 | CZ70: =CY70*(1+CZ69*CZ7) -> 3.869684462 | DA70: =CZ70*(1+DA69*DA7) -> 3.869684462 | DB70: =DA70*(1+DB69*DB7) -> 3.869684462 | DC70: =DB70*(1+DC69*DC7) -> 3.869684462 | DD70: =DC70*(1+DD69*DD7) -> 3.869684462 | DE70: =DD70*(1+DE69*DE7) -> 3.869684462 | DF70: =DE70*(1+DF69*DF7) -> 3.869684462 | DG70: =DF70*(1+DG69*DG7) -> 3.869684462 | DH70: =DG70*(1+DH69*DH7) -> 3.869684462 | DI70: =DH70*(1+DI69*DI7) -> 3.869684462 | DJ70: =DI70*(1+DJ69*DJ7) -> 3.869684462 | DK70: =DJ70*(1+DK69*DK7) -> 3.869684462 | DL70: =DK70*(1+DL69*DL7) -> 3.869684462 | DM70: =DL70*(1+DM69*DM7) -> 3.869684462 | DN70: =DM70*(1+DN69*DN7) -> 3.869684462 | DO70: =DN70*(1+DO69*DO7) -> 3.869684462 | DP70: =DO70*(1+DP69*DP7) -> 3.869684462 | DQ70: =DP70*(1+DQ69*DQ7) -> 3.869684462 | DR70: =DQ70*(1+DR69*DR7) -> 3.869684462 | DS70: =DR70*(1+DS69*DS7) -> 3.869684462 | DT70: =DS70*(1+DT69*DT7) -> 3.869684462 | DU70: =DT70*(1+DU69*DU7) -> 3.869684462 | DV70: =DU70*(1+DV69*DV7) -> 3.869684462 | DW70: =DV70*(1+DW69*DW7) -> 3.869684462 | DX70: =DW70*(1+DX69*DX7) -> 3.869684462 | DY70: =DX70*(1+DY69*DY7) -> 3.869684462 | DZ70: =DY70*(1+DZ69*DZ7) -> 3.869684462 | EA70: =DZ70*(1+EA69*EA7) -> 3.869684462 | EB70: =EA70*(1+EB69*EB7) -> 3.869684462 | EC70: =EB70*(1+EC69*EC7) -> 3.869684462 | ED70: =EC70*(1+ED69*ED7) -> 3.869684462 | EE70: =ED70*(1+EE69*EE7) -> 3.869684462 | EF70: =EE70*(1+EF69*EF7) -> 3.869684462 | EG70: =EF70*(1+EG69*EG7) -> 3.869684462 | EH70: =EG70*(1+EH69*EH7) -> 3.869684462 | EI70: =EH70*(1+EI69*EI7) -> 3.869684462 | EJ70: =EI70*(1+EJ69*EJ7) -> 3.869684462 | EK70: =EJ70*(1+EK69*EK7) -> 3.869684462 | EL70: =EK70*(1+EL69*EL7) -> 3.869684462 | EM70: =EL70*(1+EM69*EM7) -> 3.869684462 | EN70: =EM70*(1+EN69*EN7) -> 3.869684462 | EO70: =EN70*(1+EO69*EO7) -> 3.869684462 | EP70: =EO70*(1+EP69*EP7) -> 3.869684462 | EQ70: =EP70*(1+EQ69*EQ7) -> 3.869684462 | ER70: =EQ70*(1+ER69*ER7) -> 3.869684462 | ES70: =ER70*(1+ES69*ES7) -> 3.869684462 | ET70: =ES70*(1+ET69*ET7) -> 3.869684462 | EU70: =ET70*(1+EU69*EU7) -> 3.869684462 | EV70: =EU70*(1+EV69*EV7) -> 3.869684462 | EW70: =EV70*(1+EW69*EW7) -> 3.869684462 | EX70: =EW70*(1+EX69*EX7) -> 3.869684462 | EY70: =EX70*(1+EY69*EY7) -> 3.869684462 | EZ70: =EY70*(1+EZ69*EZ7) -> 3.869684462 | FA70: =EZ70*(1+FA69*FA7) -> 3.869684462 | FB70: =FA70*(1+FB69*FB7) -> 3.869684462 | FC70: =FB70*(1+FC69*FC7) -> 3.869684462 | FD70: =FC70*(1+FD69*FD7) -> 3.869684462 | FE70: =FD70*(1+FE69*FE7) -> 3.869684462 | FF70: =FE70*(1+FF69*FF7) -> 3.869684462 | FG70: =FF70*(1+FG69*FG7) -> 3.869684462 | FH70: =FG70*(1+FH69*FH7) -> 3.869684462 | FI70: =FH70*(1+FI69*FI7) -> 3.869684462 | FJ70: =FI70*(1+FJ69*FJ7) -> 3.869684462 | FK70: =FJ70*(1+FK69*FK7) -> 3.869684462 | FL70: =FK70*(1+FL69*FL7) -> 3.869684462 | FM70: =FL70*(1+FM69*FM7) -> 3.869684462 | FN70: =FM70*(1+FN69*FN7) -> 3.869684462 | FO70: =FN70*(1+FO69*FO7) -> 3.869684462 | FP70: =FO70*(1+FP69*FP7) -> 3.869684462 | FQ70: =FP70*(1+FQ69*FQ7) -> 3.869684462 | FR70: =FQ70*(1+FR69*FR7) -> 3.869684462 | FS70: =FR70*(1+FS69*FS7) -> 3.869684462 | FT70: =FS70*(1+FT69*FT7) -> 3.869684462 | FU70: =FT70*(1+FU69*FU7) -> 3.869684462 | FV70: =FU70*(1+FV69*FV7) -> 3.869684462 | FW70: =FV70*(1+FW69*FW7) -> 3.869684462 | FX70: =FW70*(1+FX69*FX7) -> 3.869684462 | FY70: =FX70*(1+FY69*FY7) -> 3.869684462 | FZ70: =FY70*(1+FZ69*FZ7) -> 3.869684462 | GA70: =FZ70*(1+GA69*GA7) -> 3.869684462 | GB70: =GA70*(1+GB69*GB7) -> 3.869684462 | GC70: =GB70*(1+GC69*GC7) -> 3.869684462 | GD70: =GC70*(1+GD69*GD7) -> 3.869684462 | GE70: =GD70*(1+GE69*GE7) -> 3.869684462 | GF70: =GE70*(1+GF69*GF7) -> 3.869684462 | GG70: =GF70*(1+GG69*GG7) -> 3.869684462 | GH70: =GG70*(1+GH69*GH7) -> 3.869684462 | GI70: =GH70*(1+GI69*GI7) -> 3.869684462 | GJ70: =GI70*(1+GJ69*GJ7) -> 3.869684462 | GK70: =GJ70*(1+GK69*GK7) -> 3.869684462 | GL70: =GK70*(1+GL69*GL7) -> 3.869684462 | GM70: =GL70*(1+GM69*GM7) -> 3.869684462 | GN70: =GM70*(1+GN69*GN7) -> 3.869684462 | GO70: =GN70*(1+GO69*GO7) -> 3.869684462 | GP70: =GO70*(1+GP69*GP7) -> 3.869684462 | GQ70: =GP70*(1+GQ69*GQ7) -> 3.869684462 | GR70: =GQ70*(1+GR69*GR7) -> 3.869684462 | GS70: =GR70*(1+GS69*GS7) -> 3.869684462 | GT70: =GS70*(1+GT69*GT7) -> 3.869684462 | GU70: =GT70*(1+GU69*GU7) -> 3.869684462 | GV70: =GU70*(1+GV69*GV7) -> 3.869684462 | GW70: =GV70*(1+GW69*GW7) -> 3.869684462 | GX70: =GW70*(1+GX69*GX7) -> 3.869684462 | GY70: =GX70*(1+GY69*GY7) -> 3.869684462 | GZ70: =GY70*(1+GZ69*GZ7) -> 3.869684462 | HA70: =GZ70*(1+HA69*HA7) -> 3.869684462
D71: PV Debt Service | G71: =SUMPRODUCT(J68:HA68/J70:HA70) -> 2277.982
C73: Debt Balance and Repayment without sculpting
D74: Availability Period End | G74: =G3 -> 24 | J74: =J2=$G$74 -> FALSE | K74: =K2=$G$74 -> FALSE | L74: =L2=$G$74 -> FALSE | M74: =M2=$G$74 -> FALSE | N74: =N2=$G$74 -> FALSE | O74: =O2=$G$74 -> FALSE | P74: =P2=$G$74 -> FALSE | Q74: =Q2=$G$74 -> FALSE | R74: =R2=$G$74 -> FALSE | S74: =S2=$G$74 -> FALSE | T74: =T2=$G$74 -> FALSE | U74: =U2=$G$74 -> FALSE | V74: =V2=$G$74 -> FALSE | W74: =W2=$G$74 -> FALSE | X74: =X2=$G$74 -> FALSE | Y74: =Y2=$G$74 -> FALSE | Z74: =Z2=$G$74 -> FALSE | AA74: =AA2=$G$74 -> FALSE | AB74: =AB2=$G$74 -> FALSE | AC74: =AC2=$G$74 -> FALSE | AD74: =AD2=$G$74 -> FALSE | AE74: =AE2=$G$74 -> FALSE | AF74: =AF2=$G$74 -> FALSE | AG74: =AG2=$G$74 -> TRUE | AH74: =AH2=$G$74 -> FALSE | AI74: =AI2=$G$74 -> FALSE | AJ74: =AJ2=$G$74 -> FALSE | AK74: =AK2=$G$74 -> FALSE | AL74: =AL2=$G$74 -> FALSE | AM74: =AM2=$G$74 -> FALSE | AN74: =AN2=$G$74 -> FALSE | AO74: =AO2=$G$74 -> FALSE | AP74: =AP2=$G$74 -> FALSE | AQ74: =AQ2=$G$74 -> FALSE | AR74: =AR2=$G$74 -> FALSE | AS74: =AS2=$G$74 -> FALSE | AT74: =AT2=$G$74 -> FALSE | AU74: =AU2=$G$74 -> FALSE | AV74: =AV2=$G$74 -> FALSE | AW74: =AW2=$G$74 -> FALSE | AX74: =AX2=$G$74 -> FALSE | AY74: =AY2=$G$74 -> FALSE | AZ74: =AZ2=$G$74 -> FALSE | BA74: =BA2=$G$74 -> FALSE | BB74: =BB2=$G$74 -> FALSE | BC74: =BC2=$G$74 -> FALSE | BD74: =BD2=$G$74 -> FALSE | BE74: =BE2=$G$74 -> FALSE | BF74: =BF2=$G$74 -> FALSE | BG74: =BG2=$G$74 -> FALSE | BH74: =BH2=$G$74 -> FALSE | BI74: =BI2=$G$74 -> FALSE | BJ74: =BJ2=$G$74 -> FALSE | BK74: =BK2=$G$74 -> FALSE | BL74: =BL2=$G$74 -> FALSE | BM74: =BM2=$G$74 -> FALSE | BN74: =BN2=$G$74 -> FALSE | BO74: =BO2=$G$74 -> FALSE | BP74: =BP2=$G$74 -> FALSE | BQ74: =BQ2=$G$74 -> FALSE | BR74: =BR2=$G$74 -> FALSE | BS74: =BS2=$G$74 -> FALSE | BT74: =BT2=$G$74 -> FALSE | BU74: =BU2=$G$74 -> FALSE | BV74: =BV2=$G$74 -> FALSE | BW74: =BW2=$G$74 -> FALSE | BX74: =BX2=$G$74 -> FALSE | BY74: =BY2=$G$74 -> FALSE | BZ74: =BZ2=$G$74 -> FALSE | CA74: =CA2=$G$74 -> FALSE | CB74: =CB2=$G$74 -> FALSE | CC74: =CC2=$G$74 -> FALSE | CD74: =CD2=$G$74 -> FALSE | CE74: =CE2=$G$74 -> FALSE | CF74: =CF2=$G$74 -> FALSE | CG74: =CG2=$G$74 -> FALSE | CH74: =CH2=$G$74 -> FALSE | CI74: =CI2=$G$74 -> FALSE | CJ74: =CJ2=$G$74 -> FALSE | CK74: =CK2=$G$74 -> FALSE | CL74: =CL2=$G$74 -> FALSE | CM74: =CM2=$G$74 -> FALSE | CN74: =CN2=$G$74 -> FALSE | CO74: =CO2=$G$74 -> FALSE | CP74: =CP2=$G$74 -> FALSE | CQ74: =CQ2=$G$74 -> FALSE | CR74: =CR2=$G$74 -> FALSE | CS74: =CS2=$G$74 -> FALSE | CT74: =CT2=$G$74 -> FALSE | CU74: =CU2=$G$74 -> FALSE | CV74: =CV2=$G$74 -> FALSE | CW74: =CW2=$G$74 -> FALSE | CX74: =CX2=$G$74 -> FALSE | CY74: =CY2=$G$74 -> FALSE | CZ74: =CZ2=$G$74 -> FALSE | DA74: =DA2=$G$74 -> FALSE | DB74: =DB2=$G$74 -> FALSE | DC74: =DC2=$G$74 -> FALSE | DD74: =DD2=$G$74 -> FALSE | DE74: =DE2=$G$74 -> FALSE | DF74: =DF2=$G$74 -> FALSE | DG74: =DG2=$G$74 -> FALSE | DH74: =DH2=$G$74 -> FALSE | DI74: =DI2=$G$74 -> FALSE | DJ74: =DJ2=$G$74 -> FALSE | DK74: =DK2=$G$74 -> FALSE | DL74: =DL2=$G$74 -> FALSE | DM74: =DM2=$G$74 -> FALSE | DN74: =DN2=$G$74 -> FALSE | DO74: =DO2=$G$74 -> FALSE | DP74: =DP2=$G$74 -> FALSE | DQ74: =DQ2=$G$74 -> FALSE | DR74: =DR2=$G$74 -> FALSE | DS74: =DS2=$G$74 -> FALSE | DT74: =DT2=$G$74 -> FALSE | DU74: =DU2=$G$74 -> FALSE | DV74: =DV2=$G$74 -> FALSE | DW74: =DW2=$G$74 -> FALSE | DX74: =DX2=$G$74 -> FALSE | DY74: =DY2=$G$74 -> FALSE | DZ74: =DZ2=$G$74 -> FALSE | EA74: =EA2=$G$74 -> FALSE | EB74: =EB2=$G$74 -> FALSE | EC74: =EC2=$G$74 -> FALSE | ED74: =ED2=$G$74 -> FALSE | EE74: =EE2=$G$74 -> FALSE | EF74: =EF2=$G$74 -> FALSE | EG74: =EG2=$G$74 -> FALSE | EH74: =EH2=$G$74 -> FALSE | EI74: =EI2=$G$74 -> FALSE | EJ74: =EJ2=$G$74 -> FALSE | EK74: =EK2=$G$74 -> FALSE | EL74: =EL2=$G$74 -> FALSE | EM74: =EM2=$G$74 -> FALSE | EN74: =EN2=$G$74 -> FALSE | EO74: =EO2=$G$74 -> FALSE | EP74: =EP2=$G$74 -> FALSE | EQ74: =EQ2=$G$74 -> FALSE | ER74: =ER2=$G$74 -> FALSE | ES74: =ES2=$G$74 -> FALSE | ET74: =ET2=$G$74 -> FALSE | EU74: =EU2=$G$74 -> FALSE | EV74: =EV2=$G$74 -> FALSE | EW74: =EW2=$G$74 -> FALSE | EX74: =EX2=$G$74 -> FALSE | EY74: =EY2=$G$74 -> FALSE | EZ74: =EZ2=$G$74 -> FALSE | FA74: =FA2=$G$74 -> FALSE | FB74: =FB2=$G$74 -> FALSE | FC74: =FC2=$G$74 -> FALSE | FD74: =FD2=$G$74 -> FALSE | FE74: =FE2=$G$74 -> FALSE | FF74: =FF2=$G$74 -> FALSE | FG74: =FG2=$G$74 -> FALSE | FH74: =FH2=$G$74 -> FALSE | FI74: =FI2=$G$74 -> FALSE | FJ74: =FJ2=$G$74 -> FALSE | FK74: =FK2=$G$74 -> FALSE | FL74: =FL2=$G$74 -> FALSE | FM74: =FM2=$G$74 -> FALSE | FN74: =FN2=$G$74 -> FALSE | FO74: =FO2=$G$74 -> FALSE | FP74: =FP2=$G$74 -> FALSE | FQ74: =FQ2=$G$74 -> FALSE | FR74: =FR2=$G$74 -> FALSE | FS74: =FS2=$G$74 -> FALSE | FT74: =FT2=$G$74 -> FALSE | FU74: =FU2=$G$74 -> FALSE | FV74: =FV2=$G$74 -> FALSE | FW74: =FW2=$G$74 -> FALSE | FX74: =FX2=$G$74 -> FALSE | FY74: =FY2=$G$74 -> FALSE | FZ74: =FZ2=$G$74 -> FALSE | GA74: =GA2=$G$74 -> FALSE | GB74: =GB2=$G$74 -> FALSE | GC74: =GC2=$G$74 -> FALSE | GD74: =GD2=$G$74 -> FALSE | GE74: =GE2=$G$74 -> FALSE | GF74: =GF2=$G$74 -> FALSE | GG74: =GG2=$G$74 -> FALSE | GH74: =GH2=$G$74 -> FALSE | GI74: =GI2=$G$74 -> FALSE | GJ74: =GJ2=$G$74 -> FALSE | GK74: =GK2=$G$74 -> FALSE | GL74: =GL2=$G$74 -> FALSE | GM74: =GM2=$G$74 -> FALSE | GN74: =GN2=$G$74 -> FALSE | GO74: =GO2=$G$74 -> FALSE | GP74: =GP2=$G$74 -> FALSE | GQ74: =GQ2=$G$74 -> FALSE | GR74: =GR2=$G$74 -> FALSE | GS74: =GS2=$G$74 -> FALSE | GT74: =GT2=$G$74 -> FALSE | GU74: =GU2=$G$74 -> FALSE | GV74: =GV2=$G$74 -> FALSE | GW74: =GW2=$G$74 -> FALSE | GX74: =GX2=$G$74 -> FALSE | GY74: =GY2=$G$74 -> FALSE | GZ74: =GZ2=$G$74 -> FALSE | HA74: =HA2=$G$74 -> FALSE
D75: Opening Balance without DSRA | J75: =I78 -> 0 | K75: =J78 -> 0 | L75: 0 | M75: 0 | N75: 0 | O75: 0 | P75: 0 | Q75: 0 | R75: 0 | S75: 0 | T75: 0 | U75: 0 | V75: 0 | W75: 0 | X75: 0 | Y75: 0 | Z75: 0 | AA75: 0 | AB75: 0 | AC75: 0 | AD75: 0 | AE75: 0 | AF75: 0 | AG75: 0 | AH75: 2277.982 | AI75: 2035.515912 | AJ75: 1816.439575 | AK75: 1618.363959 | AL75: 1439.136012 | AM75: 1276.814893 | AN75: 1129.650569 | AO75: 996.0645427 | AP75: 874.6324989 | AQ75: 764.0686682 | AR75: 663.2117477 | AS75: 571.0122141 | AT75: 486.5208908 | AU75: 408.8786449 | AV75: 337.307098 | AW75: 271.1002489 | AX75: 209.6169174 | AY75: 152.2739245 | AZ75: 98.53993469 | BA75: 47.92989373 | BB75: -3.623767952e-12 | BC75: -3.877431709e-12 | BD75: -4.148851929e-12 | BE75: -4.439271564e-12 | BF75: -4.750020573e-12 | BG75: -5.082522013e-12 | BH75: -5.438298554e-12 | BI75: -5.818979453e-12 | BJ75: -6.226308015e-12 | BK75: -6.662149576e-12 | BL75: -7.128500046e-12 | BM75: -7.627495049e-12 | BN75: -8.161419703e-12 | BO75: -8.732719082e-12 | BP75: -9.344009418e-12 | BQ75: -9.998090077e-12 | BR75: -1.069795638e-11 | BS75: -1.144681333e-11 | BT75: -1.224809026e-11 | BU75: -1.310545658e-11 | BV75: -1.402283854e-11 | BW75: =BV78 -> -1.500443724e-11 | BX75: -1.605474785e-11 | BY75: -1.717858019e-11 | BZ75: -1.838108081e-11 | CA75: -1.966775646e-11 | CB75: -2.104449942e-11 | CC75: -2.251761438e-11 | CD75: -2.409384738e-11 | CE75: -2.57804167e-11 | CF75: -2.758504587e-11 | CG75: -2.951599908e-11 | CH75: -3.158211902e-11 | CI75: -3.379286735e-11 | CJ75: -3.615836806e-11 | CK75: -3.868945382e-11 | CL75: -4.139771559e-11 | CM75: -4.429555568e-11 | CN75: -4.739624458e-11 | CO75: -5.07139817e-11 | CP75: -5.426396042e-11 | CQ75: -5.806243765e-11 | CR75: -6.212680829e-11 | CS75: -6.647568487e-11 | CT75: -7.112898281e-11 | CU75: -7.61080116e-11 | CV75: -8.143557242e-11 | CW75: -8.713606249e-11 | CX75: -9.323558686e-11 | CY75: -9.976207794e-11 | CZ75: -1.067454234e-10 | DA75: -1.14217603e-10 | DB75: -1.222128352e-10 | DC75: -1.307677337e-10 | DD75: -1.399214751e-10 | DE75: -1.497159783e-10 | DF75: -1.601960968e-10 | DG75: -1.714098236e-10 | DH75: -1.834085112e-10 | DI75: -1.96247107e-10 | DJ75: -2.099844045e-10 | DK75: -2.246833128e-10 | DL75: -2.404111447e-10 | DM75: -2.572399249e-10 | DN75: -2.752467196e-10 | DO75: -2.9451399e-10 | DP75: -3.151299693e-10 | DQ75: -3.371890671e-10 | DR75: -3.607923018e-10 | DS75: -3.86047763e-10 | DT75: -4.130711064e-10 | DU75: -4.419860838e-10 | DV75: -4.729251097e-10 | DW75: -5.060298673e-10 | DX75: -5.414519581e-10 | DY75: -5.793535951e-10 | DZ75: -6.199083468e-10 | EA75: -6.633019311e-10 | EB75: -7.097330662e-10 | EC75: -7.594143809e-10 | ED75: -8.125733875e-10 | EE75: -8.694535247e-10 | EF75: -9.303152714e-10 | EG75: -9.954373404e-10 | EH75: -1.065117954e-09 | EI75: =EH78 -> -1.139676211e-09 | EJ75: -1.219453546e-09 | EK75: -1.304815294e-09 | EL75: -1.396152365e-09 | EM75: -1.49388303e-09 | EN75: -1.598454842e-09 | EO75: -1.710346681e-09 | EP75: -1.830070949e-09 | EQ75: -1.958175915e-09 | ER75: -2.095248229e-09 | ES75: -2.241915605e-09 | ET75: -2.398849698e-09 | EU75: -2.566769177e-09 | EV75: -2.746443019e-09 | EW75: -2.93869403e-09 | EX75: -3.144402612e-09 | EY75: -3.364510795e-09 | EZ75: -3.600026551e-09 | FA75: -3.852028409e-09 | FB75: -4.121670398e-09 | FC75: -4.410187326e-09 | FD75: -4.718900439e-09 | FE75: -5.049223469e-09 | FF75: -5.402669112e-09 | FG75: -5.78085595e-09 | FH75: -6.185515867e-09 | FI75: -6.618501977e-09 | FJ75: -7.081797116e-09 | FK75: -7.577522914e-09 | FL75: -8.107949518e-09 | FM75: -8.675505984e-09 | FN75: -9.282791403e-09 | FO75: -9.932586801e-09 | FP75: -1.062786788e-08 | FQ75: -1.137181863e-08 | FR75: -1.216784593e-08 | FS75: -1.301959515e-08 | FT75: -1.393096681e-08 | FU75: -1.490613449e-08 | FV75: -1.59495639e-08 | FW75: -1.706603337e-08 | FX75: -1.826065571e-08 | FY75: -1.953890161e-08 | FZ75: -2.090662472e-08 | GA75: -2.237008845e-08 | GB75: -2.393599464e-08 | GC75: -2.561151427e-08 | GD75: -2.740432027e-08 | GE75: -2.932262268e-08 | GF75: -3.137520627e-08 | GG75: -3.357147071e-08 | GH75: -3.592147366e-08 | GI75: -3.843597682e-08 | GJ75: -4.112649519e-08 | GK75: -4.400534986e-08 | GL75: -4.708572435e-08 | GM75: -5.038172505e-08 | GN75: -5.390844581e-08 | GO75: -5.768203701e-08 | GP75: -6.17197796e-08 | GQ75: -6.604016418e-08 | GR75: -7.066297567e-08 | GS75: -7.560938396e-08 | GT75: -8.090204084e-08 | GU75: =GT78 -> -8.65651837e-08 | GV75: -9.262474656e-08 | GW75: -9.910847882e-08 | GX75: -1.060460723e-07 | GY75: -1.134692974e-07 | GZ75: -1.214121482e-07 | HA75: -1.299109986e-07
D76: Add: Issue at COD -1 | G76: =G71 -> 2277.982 | J76: =J74*$G$76 -> 0 | K76: =K74*$G$76 -> 0 | L76: 0 | M76: 0 | N76: 0 | O76: 0 | P76: 0 | Q76: 0 | R76: 0 | S76: 0 | T76: 0 | U76: 0 | V76: 0 | W76: 0 | X76: 0 | Y76: 0 | Z76: 0 | AA76: 0 | AB76: 0 | AC76: 0 | AD76: 0 | AE76: 0 | AF76: 0 | AG76: 2277.982 | AH76: 0 | AI76: 0 | AJ76: 0 | AK76: 0 | AL76: 0 | AM76: 0 | AN76: 0 | AO76: 0 | AP76: 0 | AQ76: 0 | AR76: 0 | AS76: 0 | AT76: 0 | AU76: 0 | AV76: 0 | AW76: 0 | AX76: 0 | AY76: 0 | AZ76: 0 | BA76: 0 | BB76: 0 | BC76: 0 | BD76: 0 | BE76: 0 | BF76: 0 | BG76: 0 | BH76: 0 | BI76: 0 | BJ76: 0 | BK76: 0 | BL76: 0 | BM76: 0 | BN76: 0 | BO76: 0 | BP76: 0 | BQ76: 0 | BR76: 0 | BS76: 0 | BT76: 0 | BU76: 0 | BV76: 0 | BW76: =BW74*$G$76 -> 0 | BX76: 0 | BY76: 0 | BZ76: 0 | CA76: 0 | CB76: 0 | CC76: 0 | CD76: 0 | CE76: 0 | CF76: 0 | CG76: 0 | CH76: 0 | CI76: 0 | CJ76: 0 | CK76: 0 | CL76: 0 | CM76: 0 | CN76: 0 | CO76: 0 | CP76: 0 | CQ76: 0 | CR76: 0 | CS76: 0 | CT76: 0 | CU76: 0 | CV76: 0 | CW76: 0 | CX76: 0 | CY76: 0 | CZ76: 0 | DA76: 0 | DB76: 0 | DC76: 0 | DD76: 0 | DE76: 0 | DF76: 0 | DG76: 0 | DH76: 0 | DI76: 0 | DJ76: 0 | DK76: 0 | DL76: 0 | DM76: 0 | DN76: 0 | DO76: 0 | DP76: 0 | DQ76: 0 | DR76: 0 | DS76: 0 | DT76: 0 | DU76: 0 | DV76: 0 | DW76: 0 | DX76: 0 | DY76: 0 | DZ76: 0 | EA76: 0 | EB76: 0 | EC76: 0 | ED76: 0 | EE76: 0 | EF76: 0 | EG76: 0 | EH76: 0 | EI76: =EI74*$G$76 -> 0 | EJ76: 0 | EK76: 0 | EL76: 0 | EM76: 0 | EN76: 0 | EO76: 0 | EP76: 0 | EQ76: 0 | ER76: 0 | ES76: 0 | ET76: 0 | EU76: 0 | EV76: 0 | EW76: 0 | EX76: 0 | EY76: 0 | EZ76: 0 | FA76: 0 | FB76: 0 | FC76: 0 | FD76: 0 | FE76: 0 | FF76: 0 | FG76: 0 | FH76: 0 | FI76: 0 | FJ76: 0 | FK76: 0 | FL76: 0 | FM76: 0 | FN76: 0 | FO76: 0 | FP76: 0 | FQ76: 0 | FR76: 0 | FS76: 0 | FT76: 0 | FU76: 0 | FV76: 0 | FW76: 0 | FX76: 0 | FY76: 0 | FZ76: 0 | GA76: 0 | GB76: 0 | GC76: 0 | GD76: 0 | GE76: 0 | GF76: 0 | GG76: 0 | GH76: 0 | GI76: 0 | GJ76: 0 | GK76: 0 | GL76: 0 | GM76: 0 | GN76: 0 | GO76: 0 | GP76: 0 | GQ76: 0 | GR76: 0 | GS76: 0 | GT76: 0 | GU76: =GU74*$G$76 -> 0 | GV76: 0 | GW76: 0 | GX76: 0 | GY76: 0 | GZ76: 0 | HA76: 0
D77: Less Repayment | J77: =J68-J79 -> 0 | K77: =K68-K79 -> 0 | L77: 0 | M77: 0 | N77: 0 | O77: 0 | P77: 0 | Q77: 0 | R77: 0 | S77: 0 | T77: 0 | U77: 0 | V77: 0 | W77: 0 | X77: 0 | Y77: 0 | Z77: 0 | AA77: 0 | AB77: 0 | AC77: 0 | AD77: 0 | AE77: 0 | AF77: 0 | AG77: 0 | AH77: 242.4660875 | AI77: 219.0763367 | AJ77: 198.0756162 | AK77: 179.2279471 | AL77: 162.3211193 | AM77: 147.1643242 | AN77: 133.5860258 | AO77: 121.4320438 | AP77: 110.5638307 | AQ77: 100.8569204 | AR77: 92.19953368 | AS77: 84.49132329 | AT77: 77.64224584 | AU77: 71.57154696 | AV77: 66.20684911 | AW77: 61.48333147 | AX77: 57.34299292 | AY77: 53.73398979 | AZ77: 50.61004096 | BA77: 47.92989373 | BB77: 2.536637567e-13 | BC77: 2.714202196e-13 | BD77: 2.90419635e-13 | BE77: 3.107490095e-13 | BF77: 3.325014401e-13 | BG77: 3.557765409e-13 | BH77: 3.806808988e-13 | BI77: 4.073285617e-13 | BJ77: 4.35841561e-13 | BK77: 4.663504703e-13 | BL77: 4.989950032e-13 | BM77: 5.339246534e-13 | BN77: 5.712993792e-13 | BO77: 6.112903357e-13 | BP77: 6.540806592e-13 | BQ77: 6.998663054e-13 | BR77: 7.488569468e-13 | BS77: 8.01276933e-13 | BT77: 8.573663183e-13 | BU77: 9.173819606e-13 | BV77: 9.815986979e-13 | BW77: =BW68-BW79 -> 1.050310607e-12 | BX77: 1.123832349e-12 | BY77: 1.202500614e-12 | BZ77: 1.286675657e-12 | CA77: 1.376742953e-12 | CB77: 1.473114959e-12 | CC77: 1.576233006e-12 | CD77: 1.686569317e-12 | CE77: 1.804629169e-12 | CF77: 1.930953211e-12 | CG77: 2.066119936e-12 | CH77: 2.210748331e-12 | CI77: 2.365500714e-12 | CJ77: 2.531085764e-12 | CK77: 2.708261768e-12 | CL77: 2.897840091e-12 | CM77: 3.100688898e-12 | CN77: 3.317737121e-12 | CO77: 3.549978719e-12 | CP77: 3.79847723e-12 | CQ77: 4.064370636e-12 | CR77: 4.34887658e-12 | CS77: 4.653297941e-12 | CT77: 4.979028797e-12 | CU77: 5.327560812e-12 | CV77: 5.700490069e-12 | CW77: 6.099524374e-12 | CX77: 6.52649108e-12 | CY77: 6.983345456e-12 | CZ77: 7.472179638e-12 | DA77: 7.995232212e-12 | DB77: 8.554898467e-12 | DC77: 9.15374136e-12 | DD77: 9.794503255e-12 | DE77: 1.048011848e-11 | DF77: 1.121372678e-11 | DG77: 1.199868765e-11 | DH77: 1.283859579e-11 | DI77: 1.373729749e-11 | DJ77: 1.469890832e-11 | DK77: 1.57278319e-11 | DL77: 1.682878013e-11 | DM77: 1.800679474e-11 | DN77: 1.926727037e-11 | DO77: 2.06159793e-11 | DP77: 2.205909785e-11 | DQ77: 2.36032347e-11 | DR77: 2.525546113e-11 | DS77: 2.702334341e-11 | DT77: 2.891497744e-11 | DU77: 3.093902587e-11 | DV77: 3.310475768e-11 | DW77: 3.542209071e-11 | DX77: 3.790163706e-11 | DY77: 4.055475166e-11 | DZ77: 4.339358427e-11 | EA77: 4.643113517e-11 | EB77: 4.968131464e-11 | EC77: 5.315900666e-11 | ED77: 5.688013713e-11 | EE77: 6.086174673e-11 | EF77: 6.5122069e-11 | EG77: 6.968061383e-11 | EH77: 7.455825679e-11 | EI77: =EI68-EI79 -> 7.977733477e-11 | EJ77: 8.53617482e-11 | EK77: 9.133707058e-11 | EL77: 9.773066552e-11 | EM77: 1.045718121e-10 | EN77: 1.11891839e-10 | EO77: 1.197242677e-10 | EP77: 1.281049664e-10 | EQ77: 1.370723141e-10 | ER77: 1.46667376e-10 | ES77: 1.569340924e-10 | ET77: 1.679194788e-10 | EU77: 1.796738424e-10 | EV77: 1.922510113e-10 | EW77: 2.057085821e-10 | EX77: 2.201081829e-10 | EY77: 2.355157557e-10 | EZ77: 2.520018586e-10 | FA77: 2.696419887e-10 | FB77: 2.885169279e-10 | FC77: 3.087131128e-10 | FD77: 3.303230307e-10 | FE77: 3.534456429e-10 | FF77: 3.781868379e-10 | FG77: 4.046599165e-10 | FH77: 4.329861107e-10 | FI77: 4.632951384e-10 | FJ77: 4.957257981e-10 | FK77: 5.30426604e-10 | FL77: 5.675564663e-10 | FM77: 6.072854189e-10 | FN77: 6.497953982e-10 | FO77: 6.952810761e-10 | FP77: 7.439507514e-10 | FQ77: 7.96027304e-10 | FR77: 8.517492153e-10 | FS77: 9.113716604e-10 | FT77: 9.751676766e-10 | FU77: 1.043429414e-09 | FV77: 1.116469473e-09 | FW77: 1.194622336e-09 | FX77: 1.2782459e-09 | FY77: 1.367723113e-09 | FZ77: 1.46346373e-09 | GA77: 1.565906192e-09 | GB77: 1.675519625e-09 | GC77: 1.792805999e-09 | GD77: 1.918302419e-09 | GE77: 2.052583588e-09 | GF77: 2.196264439e-09 | GG77: 2.35000295e-09 | GH77: 2.514503156e-09 | GI77: 2.690518377e-09 | GJ77: 2.878854664e-09 | GK77: 3.08037449e-09 | GL77: 3.296000704e-09 | GM77: 3.526720754e-09 | GN77: 3.773591206e-09 | GO77: 4.037742591e-09 | GP77: 4.320384572e-09 | GQ77: 4.622811492e-09 | GR77: 4.946408297e-09 | GS77: 5.292656878e-09 | GT77: 5.663142859e-09 | GU77: =GU68-GU79 -> 6.059562859e-09 | GV77: 6.483732259e-09 | GW77: 6.937593517e-09 | GX77: 7.423225064e-09 | GY77: 7.942850818e-09 | GZ77: 8.498850375e-09 | HA77: 9.093769902e-09
D78: Closing | J78: =J75+J76-J77 -> 0 | K78: =K75+K76-K77 -> 0 | L78: 0 | M78: 0 | N78: 0 | O78: 0 | P78: 0 | Q78: 0 | R78: 0 | S78: 0 | T78: 0 | U78: 0 | V78: 0 | W78: 0 | X78: 0 | Y78: 0 | Z78: 0 | AA78: 0 | AB78: 0 | AC78: 0 | AD78: 0 | AE78: 0 | AF78: 0 | AG78: 2277.982 | AH78: 2035.515912 | AI78: 1816.439575 | AJ78: 1618.363959 | AK78: 1439.136012 | AL78: 1276.814893 | AM78: 1129.650569 | AN78: 996.0645427 | AO78: 874.6324989 | AP78: 764.0686682 | AQ78: 663.2117477 | AR78: 571.0122141 | AS78: 486.5208908 | AT78: 408.8786449 | AU78: 337.307098 | AV78: 271.1002489 | AW78: 209.6169174 | AX78: 152.2739245 | AY78: 98.53993469 | AZ78: 47.92989373 | BA78: -3.623767952e-12 | BB78: -3.877431709e-12 | BC78: -4.148851929e-12 | BD78: -4.439271564e-12 | BE78: -4.750020573e-12 | BF78: -5.082522013e-12 | BG78: -5.438298554e-12 | BH78: -5.818979453e-12 | BI78: -6.226308015e-12 | BJ78: -6.662149576e-12 | BK78: -7.128500046e-12 | BL78: -7.627495049e-12 | BM78: -8.161419703e-12 | BN78: -8.732719082e-12 | BO78: -9.344009418e-12 | BP78: -9.998090077e-12 | BQ78: -1.069795638e-11 | BR78: -1.144681333e-11 | BS78: -1.224809026e-11 | BT78: -1.310545658e-11 | BU78: -1.402283854e-11 | BV78: -1.500443724e-11 | BW78: =BW75+BW76-BW77 -> -1.605474785e-11 | BX78: -1.717858019e-11 | BY78: -1.838108081e-11 | BZ78: -1.966775646e-11 | CA78: -2.104449942e-11 | CB78: -2.251761438e-11 | CC78: -2.409384738e-11 | CD78: -2.57804167e-11 | CE78: -2.758504587e-11 | CF78: -2.951599908e-11 | CG78: -3.158211902e-11 | CH78: -3.379286735e-11 | CI78: -3.615836806e-11 | CJ78: -3.868945382e-11 | CK78: -4.139771559e-11 | CL78: -4.429555568e-11 | CM78: -4.739624458e-11 | CN78: -5.07139817e-11 | CO78: -5.426396042e-11 | CP78: -5.806243765e-11 | CQ78: -6.212680829e-11 | CR78: -6.647568487e-11 | CS78: -7.112898281e-11 | CT78: -7.61080116e-11 | CU78: -8.143557242e-11 | CV78: -8.713606249e-11 | CW78: -9.323558686e-11 | CX78: -9.976207794e-11 | CY78: -1.067454234e-10 | CZ78: -1.14217603e-10 | DA78: -1.222128352e-10 | DB78: -1.307677337e-10 | DC78: -1.399214751e-10 | DD78: -1.497159783e-10 | DE78: -1.601960968e-10 | DF78: -1.714098236e-10 | DG78: -1.834085112e-10 | DH78: -1.96247107e-10 | DI78: -2.099844045e-10 | DJ78: -2.246833128e-10 | DK78: -2.404111447e-10 | DL78: -2.572399249e-10 | DM78: -2.752467196e-10 | DN78: -2.9451399e-10 | DO78: -3.151299693e-10 | DP78: -3.371890671e-10 | DQ78: -3.607923018e-10 | DR78: -3.86047763e-10 | DS78: -4.130711064e-10 | DT78: -4.419860838e-10 | DU78: -4.729251097e-10 | DV78: -5.060298673e-10 | DW78: -5.414519581e-10 | DX78: -5.793535951e-10 | DY78: -6.199083468e-10 | DZ78: -6.633019311e-10 | EA78: -7.097330662e-10 | EB78: -7.594143809e-10 | EC78: -8.125733875e-10 | ED78: -8.694535247e-10 | EE78: -9.303152714e-10 | EF78: -9.954373404e-10 | EG78: -1.065117954e-09 | EH78: -1.139676211e-09 | EI78: =EI75+EI76-EI77 -> -1.219453546e-09 | EJ78: -1.304815294e-09 | EK78: -1.396152365e-09 | EL78: -1.49388303e-09 | EM78: -1.598454842e-09 | EN78: -1.710346681e-09 | EO78: -1.830070949e-09 | EP78: -1.958175915e-09 | EQ78: -2.095248229e-09 | ER78: -2.241915605e-09 | ES78: -2.398849698e-09 | ET78: -2.566769177e-09 | EU78: -2.746443019e-09 | EV78: -2.93869403e-09 | EW78: -3.144402612e-09 | EX78: -3.364510795e-09 | EY78: -3.600026551e-09 | EZ78: -3.852028409e-09 | FA78: -4.121670398e-09 | FB78: -4.410187326e-09 | FC78: -4.718900439e-09 | FD78: -5.049223469e-09 | FE78: -5.402669112e-09 | FF78: -5.78085595e-09 | FG78: -6.185515867e-09 | FH78: -6.618501977e-09 | FI78: -7.081797116e-09 | FJ78: -7.577522914e-09 | FK78: -8.107949518e-09 | FL78: -8.675505984e-09 | FM78: -9.282791403e-09 | FN78: -9.932586801e-09 | FO78: -1.062786788e-08 | FP78: -1.137181863e-08 | FQ78: -1.216784593e-08 | FR78: -1.301959515e-08 | FS78: -1.393096681e-08 | FT78: -1.490613449e-08 | FU78: -1.59495639e-08 | FV78: -1.706603337e-08 | FW78: -1.826065571e-08 | FX78: -1.953890161e-08 | FY78: -2.090662472e-08 | FZ78: -2.237008845e-08 | GA78: -2.393599464e-08 | GB78: -2.561151427e-08 | GC78: -2.740432027e-08 | GD78: -2.932262268e-08 | GE78: -3.137520627e-08 | GF78: -3.357147071e-08 | GG78: -3.592147366e-08 | GH78: -3.843597682e-08 | GI78: -4.112649519e-08 | GJ78: -4.400534986e-08 | GK78: -4.708572435e-08 | GL78: -5.038172505e-08 | GM78: -5.390844581e-08 | GN78: -5.768203701e-08 | GO78: -6.17197796e-08 | GP78: -6.604016418e-08 | GQ78: -7.066297567e-08 | GR78: -7.560938396e-08 | GS78: -8.090204084e-08 | GT78: -8.65651837e-08 | GU78: =GU75+GU76-GU77 -> -9.262474656e-08 | GV78: -9.910847882e-08 | GW78: -1.060460723e-07 | GX78: -1.134692974e-07 | GY78: -1.214121482e-07 | GZ78: -1.299109986e-07 | HA78: -1.390047685e-07
D79: Interest | J79: =J75*J69 -> 0 | K79: =K75*K69 -> 0 | L79: 0 | M79: 0 | N79: 0 | O79: 0 | P79: 0 | Q79: 0 | R79: 0 | S79: 0 | T79: 0 | U79: 0 | V79: 0 | W79: 0 | X79: 0 | Y79: 0 | Z79: 0 | AA79: 0 | AB79: 0 | AC79: 0 | AD79: 0 | AE79: 0 | AF79: 0 | AG79: 0 | AH79: 159.45874 | AI79: 142.4861138 | AJ79: 127.1507703 | AK79: 113.2854771 | AL79: 100.7395208 | AM79: 89.37704249 | AN79: 79.0755398 | AO79: 69.72451799 | AP79: 61.22427492 | AQ79: 53.48480677 | AR79: 46.42482234 | AS79: 39.97085498 | AT79: 34.05646235 | AU79: 28.62150515 | AV79: 23.61149686 | AW79: 18.97701742 | AX79: 14.67318422 | AY79: 10.65917471 | AZ79: 6.897795428 | BA79: 3.355092561 | BB79: -2.536637567e-13 | BC79: -2.714202196e-13 | BD79: -2.90419635e-13 | BE79: -3.107490095e-13 | BF79: -3.325014401e-13 | BG79: -3.557765409e-13 | BH79: -3.806808988e-13 | BI79: -4.073285617e-13 | BJ79: -4.35841561e-13 | BK79: -4.663504703e-13 | BL79: -4.989950032e-13 | BM79: -5.339246534e-13 | BN79: -5.712993792e-13 | BO79: -6.112903357e-13 | BP79: -6.540806592e-13 | BQ79: -6.998663054e-13 | BR79: -7.488569468e-13 | BS79: -8.01276933e-13 | BT79: -8.573663183e-13 | BU79: -9.173819606e-13 | BV79: -9.815986979e-13 | BW79: =BW75*BW69 -> -1.050310607e-12 | BX79: -1.123832349e-12 | BY79: -1.202500614e-12 | BZ79: -1.286675657e-12 | CA79: -1.376742953e-12 | CB79: -1.473114959e-12 | CC79: -1.576233006e-12 | CD79: -1.686569317e-12 | CE79: -1.804629169e-12 | CF79: -1.930953211e-12 | CG79: -2.066119936e-12 | CH79: -2.210748331e-12 | CI79: -2.365500714e-12 | CJ79: -2.531085764e-12 | CK79: -2.708261768e-12 | CL79: -2.897840091e-12 | CM79: -3.100688898e-12 | CN79: -3.317737121e-12 | CO79: -3.549978719e-12 | CP79: -3.79847723e-12 | CQ79: -4.064370636e-12 | CR79: -4.34887658e-12 | CS79: -4.653297941e-12 | CT79: -4.979028797e-12 | CU79: -5.327560812e-12 | CV79: -5.700490069e-12 | CW79: -6.099524374e-12 | CX79: -6.52649108e-12 | CY79: -6.983345456e-12 | CZ79: -7.472179638e-12 | DA79: -7.995232212e-12 | DB79: -8.554898467e-12 | DC79: -9.15374136e-12 | DD79: -9.794503255e-12 | DE79: -1.048011848e-11 | DF79: -1.121372678e-11 | DG79: -1.199868765e-11 | DH79: -1.283859579e-11 | DI79: -1.373729749e-11 | DJ79: -1.469890832e-11 | DK79: -1.57278319e-11 | DL79: -1.682878013e-11 | DM79: -1.800679474e-11 | DN79: -1.926727037e-11 | DO79: -2.06159793e-11 | DP79: -2.205909785e-11 | DQ79: -2.36032347e-11 | DR79: -2.525546113e-11 | DS79: -2.702334341e-11 | DT79: -2.891497744e-11 | DU79: -3.093902587e-11 | DV79: -3.310475768e-11 | DW79: -3.542209071e-11 | DX79: -3.790163706e-11 | DY79: -4.055475166e-11 | DZ79: -4.339358427e-11 | EA79: -4.643113517e-11 | EB79: -4.968131464e-11 | EC79: -5.315900666e-11 | ED79: -5.688013713e-11 | EE79: -6.086174673e-11 | EF79: -6.5122069e-11 | EG79: -6.968061383e-11 | EH79: -7.455825679e-11 | EI79: =EI75*EI69 -> -7.977733477e-11 | EJ79: -8.53617482e-11 | EK79: -9.133707058e-11 | EL79: -9.773066552e-11 | EM79: -1.045718121e-10 | EN79: -1.11891839e-10 | EO79: -1.197242677e-10 | EP79: -1.281049664e-10 | EQ79: -1.370723141e-10 | ER79: -1.46667376e-10 | ES79: -1.569340924e-10 | ET79: -1.679194788e-10 | EU79: -1.796738424e-10 | EV79: -1.922510113e-10 | EW79: -2.057085821e-10 | EX79: -2.201081829e-10 | EY79: -2.355157557e-10 | EZ79: -2.520018586e-10 | FA79: -2.696419887e-10 | FB79: -2.885169279e-10 | FC79: -3.087131128e-10 | FD79: -3.303230307e-10 | FE79: -3.534456429e-10 | FF79: -3.781868379e-10 | FG79: -4.046599165e-10 | FH79: -4.329861107e-10 | FI79: -4.632951384e-10 | FJ79: -4.957257981e-10 | FK79: -5.30426604e-10 | FL79: -5.675564663e-10 | FM79: -6.072854189e-10 | FN79: -6.497953982e-10 | FO79: -6.952810761e-10 | FP79: -7.439507514e-10 | FQ79: -7.96027304e-10 | FR79: -8.517492153e-10 | FS79: -9.113716604e-10 | FT79: -9.751676766e-10 | FU79: -1.043429414e-09 | FV79: -1.116469473e-09 | FW79: -1.194622336e-09 | FX79: -1.2782459e-09 | FY79: -1.367723113e-09 | FZ79: -1.46346373e-09 | GA79: -1.565906192e-09 | GB79: -1.675519625e-09 | GC79: -1.792805999e-09 | GD79: -1.918302419e-09 | GE79: -2.052583588e-09 | GF79: -2.196264439e-09 | GG79: -2.35000295e-09 | GH79: -2.514503156e-09 | GI79: -2.690518377e-09 | GJ79: -2.878854664e-09 | GK79: -3.08037449e-09 | GL79: -3.296000704e-09 | GM79: -3.526720754e-09 | GN79: -3.773591206e-09 | GO79: -4.037742591e-09 | GP79: -4.320384572e-09 | GQ79: -4.622811492e-09 | GR79: -4.946408297e-09 | GS79: -5.292656878e-09 | GT79: -5.663142859e-09 | GU79: =GU75*GU69 -> -6.059562859e-09 | GV79: -6.483732259e-09 | GW79: -6.937593517e-09 | GX79: -7.423225064e-09 | GY79: -7.942850818e-09 | GZ79: -8.498850375e-09 | HA79: -9.093769902e-09
C81: DSRA Movement Adjustments
D82: Computed Movements in DSRA | G82: Comp DSRA | J82: =-J180*$H$86 -> 0 | K82: =-K180*$H$86 -> 0 | L82: 0 | M82: 0 | N82: 0 | O82: 0 | P82: 0 | Q82: 0 | R82: 0 | S82: 0 | T82: 0 | U82: 0 | V82: 0 | W82: 0 | X82: 0 | Y82: 0 | Z82: 0 | AA82: 0 | AB82: 0 | AC82: 0 | AD82: 0 | AE82: 0 | AF82: 0 | AG82: 0 | AH82: 40.36237698 | AI82: 36.33606404 | AJ82: 32.71296217 | AK82: 29.45278414 | AL82: 26.5192734 | AM82: 23.87980117 | AN82: 21.50500375 | AO82: 19.36845618 | AP82: 17.44637844 | AQ82: 15.71737118 | AR82: 14.16217774 | AS82: 12.76347009 | AT82: 11.50565609 | AU82: 10.37470614 | AV82: 9.357997073 | AW82: 8.44417175 | AX82: 7.623012642 | AY82: 6.885328117 | AZ82: 6.222850088 | BA82: 51.2849863 | BB82: 0 | BC82: 0 | BD82: 0 | BE82: 0 | BF82: 0 | BG82: 0 | BH82: 0 | BI82: 0 | BJ82: 0 | BK82: 0 | BL82: 0 | BM82: 0 | BN82: 0 | BO82: 0 | BP82: 0 | BQ82: 0 | BR82: 0 | BS82: 0 | BT82: 0 | BU82: 0 | BV82: 0 | BW82: =-BW180*$H$86 -> 0 | BX82: 0 | BY82: 0 | BZ82: 0 | CA82: 0 | CB82: 0 | CC82: 0 | CD82: 0 | CE82: 0 | CF82: 0 | CG82: 0 | CH82: 0 | CI82: 0 | CJ82: 0 | CK82: 0 | CL82: 0 | CM82: 0 | CN82: 0 | CO82: 0 | CP82: 0 | CQ82: 0 | CR82: 0 | CS82: 0 | CT82: 0 | CU82: 0 | CV82: 0 | CW82: 0 | CX82: 0 | CY82: 0 | CZ82: 0 | DA82: 0 | DB82: 0 | DC82: 0 | DD82: 0 | DE82: 0 | DF82: 0 | DG82: 0 | DH82: 0 | DI82: 0 | DJ82: 0 | DK82: 0 | DL82: 0 | DM82: 0 | DN82: 0 | DO82: 0 | DP82: 0 | DQ82: 0 | DR82: 0 | DS82: 0 | DT82: 0 | DU82: 0 | DV82: 0 | DW82: 0 | DX82: 0 | DY82: 0 | DZ82: 0 | EA82: 0 | EB82: 0 | EC82: 0 | ED82: 0 | EE82: 0 | EF82: 0 | EG82: 0 | EH82: 0 | EI82: =-EI180*$H$86 -> 0 | EJ82: 0 | EK82: 0 | EL82: 0 | EM82: 0 | EN82: 0 | EO82: 0 | EP82: 0 | EQ82: 0 | ER82: 0 | ES82: 0 | ET82: 0 | EU82: 0 | EV82: 0 | EW82: 0 | EX82: 0 | EY82: 0 | EZ82: 0 | FA82: 0 | FB82: 0 | FC82: 0 | FD82: 0 | FE82: 0 | FF82: 0 | FG82: 0 | FH82: 0 | FI82: 0 | FJ82: 0 | FK82: 0 | FL82: 0 | FM82: 0 | FN82: 0 | FO82: 0 | FP82: 0 | FQ82: 0 | FR82: 0 | FS82: 0 | FT82: 0 | FU82: 0 | FV82: 0 | FW82: 0 | FX82: 0 | FY82: 0 | FZ82: 0 | GA82: 0 | GB82: 0 | GC82: 0 | GD82: 0 | GE82: 0 | GF82: 0 | GG82: 0 | GH82: 0 | GI82: 0 | GJ82: 0 | GK82: 0 | GL82: 0 | GM82: 0 | GN82: 0 | GO82: 0 | GP82: 0 | GQ82: 0 | GR82: 0 | GS82: 0 | GT82: 0 | GU82: =-GU180*$H$86 -> 0 | GV82: 0 | GW82: 0 | GX82: 0 | GY82: 0 | GZ82: 0 | HA82: 0
D83: Fixed DSRA Moves | G83: Fixed DSRA | J83: 0 | K83: 0 | L83: 0 | M83: 0 | N83: 0 | O83: 0 | P83: 0 | Q83: 0 | R83: 0 | S83: 0 | T83: 0 | U83: 0 | V83: 0 | W83: 0 | X83: 0 | Y83: 0 | Z83: 0 | AA83: 0 | AB83: 0 | AC83: 0 | AD83: 0 | AE83: 0 | AF83: 0 | AG83: 0 | AH83: 40.36237698 | AI83: 36.33606404 | AJ83: 32.71296217 | AK83: 29.45278414 | AL83: 26.5192734 | AM83: 23.87980117 | AN83: 21.50500375 | AO83: 19.36845618 | AP83: 17.44637844 | AQ83: 15.71737118 | AR83: 14.16217774 | AS83: 12.76347009 | AT83: 11.50565609 | AU83: 10.37470614 | AV83: 9.357997073 | AW83: 8.44417175 | AX83: 7.623012642 | AY83: 6.885328117 | AZ83: 6.222850088 | BA83: 51.2849863 | BB83: 0 | BC83: 0 | BD83: 0 | BE83: 0 | BF83: 0 | BG83: 0 | BH83: 0 | BI83: 0 | BJ83: 0 | BK83: 0 | BL83: 0 | BM83: 0 | BN83: 0 | BO83: 0 | BP83: 0 | BQ83: 0 | BR83: 0 | BS83: 0 | BT83: 0 | BU83: 0 | BV83: 0 | BW83: 0 | BX83: 0 | BY83: 0 | BZ83: 0 | CA83: 0 | CB83: 0 | CC83: 0 | CD83: 0 | CE83: 0 | CF83: 0 | CG83: 0 | CH83: 0 | CI83: 0 | CJ83: 0 | CK83: 0 | CL83: 0 | CM83: 0 | CN83: 0 | CO83: 0 | CP83: 0 | CQ83: 0 | CR83: 0 | CS83: 0 | CT83: 0 | CU83: 0 | CV83: 0 | CW83: 0 | CX83: 0 | CY83: 0 | CZ83: 0 | DA83: 0 | DB83: 0 | DC83: 0 | DD83: 0 | DE83: 0 | DF83: 0 | DG83: 0 | DH83: 0 | DI83: 0 | DJ83: 0 | DK83: 0 | DL83: 0 | DM83: 0 | DN83: 0 | DO83: 0 | DP83: 0 | DQ83: 0 | DR83: 0 | DS83: 0 | DT83: 0 | DU83: 0 | DV83: 0 | DW83: 0 | DX83: 0 | DY83: 0 | DZ83: 0 | EA83: 0 | EB83: 0 | EC83: 0 | ED83: 0 | EE83: 0 | EF83: 0 | EG83: 0 | EH83: 0 | EI83: 0 | EJ83: 0 | EK83: 0 | EL83: 0 | EM83: 0 | EN83: 0 | EO83: 0 | EP83: 0 | EQ83: 0 | ER83: 0 | ES83: 0 | ET83: 0 | EU83: 0 | EV83: 0 | EW83: 0 | EX83: 0 | EY83: 0 | EZ83: 0 | FA83: 0 | FB83: 0 | FC83: 0 | FD83: 0 | FE83: 0 | FF83: 0 | FG83: 0 | FH83: 0 | FI83: 0 | FJ83: 0 | FK83: 0 | FL83: 0 | FM83: 0 | FN83: 0 | FO83: 0 | FP83: 0 | FQ83: 0 | FR83: 0 | FS83: 0 | FT83: 0 | FU83: 0 | FV83: 0 | FW83: 0 | FX83: 0 | FY83: 0 | FZ83: 0 | GA83: 0 | GB83: 0 | GC83: 0 | GD83: 0 | GE83: 0 | GF83: 0 | GG83: 0 | GH83: 0 | GI83: 0 | GJ83: 0 | GK83: 0 | GL83: 0 | GM83: 0 | GN83: 0 | GO83: 0 | GP83: 0 | GQ83: 0 | GR83: 0 | GS83: 0 | GT83: 0 | GU83: 0 | GV83: 0 | GW83: 0 | GX83: 0 | GY83: 0 | GZ83: 0 | HA83: 0
D84: DSRA Difference | I84: =SUM(J84:HA84) -> 0 | J84: =ABS(J82-J83) -> 0 | K84: =ABS(K82-K83) -> 0 | L84: 0 | M84: 0 | N84: 0 | O84: 0 | P84: 0 | Q84: 0 | R84: 0 | S84: 0 | T84: 0 | U84: 0 | V84: 0 | W84: 0 | X84: 0 | Y84: 0 | Z84: 0 | AA84: 0 | AB84: 0 | AC84: 0 | AD84: 0 | AE84: 0 | AF84: 0 | AG84: 0 | AH84: 0 | AI84: 0 | AJ84: 0 | AK84: 0 | AL84: 0 | AM84: 0 | AN84: 0 | AO84: 0 | AP84: 0 | AQ84: 0 | AR84: 0 | AS84: 0 | AT84: 0 | AU84: 0 | AV84: 0 | AW84: 0 | AX84: 0 | AY84: 0 | AZ84: 0 | BA84: 0 | BB84: 0 | BC84: 0 | BD84: 0 | BE84: 0 | BF84: 0 | BG84: 0 | BH84: 0 | BI84: 0 | BJ84: 0 | BK84: 0 | BL84: 0 | BM84: 0 | BN84: 0 | BO84: 0 | BP84: 0 | BQ84: 0 | BR84: 0 | BS84: 0 | BT84: 0 | BU84: 0 | BV84: 0 | BW84: =ABS(BW82-BW83) -> 0 | BX84: 0 | BY84: 0 | BZ84: 0 | CA84: 0 | CB84: 0 | CC84: 0 | CD84: 0 | CE84: 0 | CF84: 0 | CG84: 0 | CH84: 0 | CI84: 0 | CJ84: 0 | CK84: 0 | CL84: 0 | CM84: 0 | CN84: 0 | CO84: 0 | CP84: 0 | CQ84: 0 | CR84: 0 | CS84: 0 | CT84: 0 | CU84: 0 | CV84: 0 | CW84: 0 | CX84: 0 | CY84: 0 | CZ84: 0 | DA84: 0 | DB84: 0 | DC84: 0 | DD84: 0 | DE84: 0 | DF84: 0 | DG84: 0 | DH84: 0 | DI84: 0 | DJ84: 0 | DK84: 0 | DL84: 0 | DM84: 0 | DN84: 0 | DO84: 0 | DP84: 0 | DQ84: 0 | DR84: 0 | DS84: 0 | DT84: 0 | DU84: 0 | DV84: 0 | DW84: 0 | DX84: 0 | DY84: 0 | DZ84: 0 | EA84: 0 | EB84: 0 | EC84: 0 | ED84: 0 | EE84: 0 | EF84: 0 | EG84: 0 | EH84: 0 | EI84: =ABS(EI82-EI83) -> 0 | EJ84: 0 | EK84: 0 | EL84: 0 | EM84: 0 | EN84: 0 | EO84: 0 | EP84: 0 | EQ84: 0 | ER84: 0 | ES84: 0 | ET84: 0 | EU84: 0 | EV84: 0 | EW84: 0 | EX84: 0 | EY84: 0 | EZ84: 0 | FA84: 0 | FB84: 0 | FC84: 0 | FD84: 0 | FE84: 0 | FF84: 0 | FG84: 0 | FH84: 0 | FI84: 0 | FJ84: 0 | FK84: 0 | FL84: 0 | FM84: 0 | FN84: 0 | FO84: 0 | FP84: 0 | FQ84: 0 | FR84: 0 | FS84: 0 | FT84: 0 | FU84: 0 | FV84: 0 | FW84: 0 | FX84: 0 | FY84: 0 | FZ84: 0 | GA84: 0 | GB84: 0 | GC84: 0 | GD84: 0 | GE84: 0 | GF84: 0 | GG84: 0 | GH84: 0 | GI84: 0 | GJ84: 0 | GK84: 0 | GL84: 0 | GM84: 0 | GN84: 0 | GO84: 0 | GP84: 0 | GQ84: 0 | GR84: 0 | GS84: 0 | GT84: 0 | GU84: =ABS(GU82-GU83) -> 0 | GV84: 0 | GW84: 0 | GX84: 0 | GY84: 0 | GZ84: 0 | HA84: 0
D86: Movements in DSRA post-COD to Sculpt | G86: =G68 -> 1.45 | H86: TRUE | I86: =SUM(J86:HA86) -> 277.1895362 | J86: =J83/$G$86*$H$86 -> 0 | K86: =K83/$G$86*$H$86 -> 0 | L86: 0 | M86: 0 | N86: 0 | O86: 0 | P86: 0 | Q86: 0 | R86: 0 | S86: 0 | T86: 0 | U86: 0 | V86: 0 | W86: 0 | X86: 0 | Y86: 0 | Z86: 0 | AA86: 0 | AB86: 0 | AC86: 0 | AD86: 0 | AE86: 0 | AF86: 0 | AG86: 0 | AH86: 27.83612206 | AI86: 25.05935451 | AJ86: 22.56066357 | AK86: 20.31226492 | AL86: 18.28915407 | AM86: 16.46882839 | AN86: 14.83103707 | AO86: 13.35755598 | AP86: 12.03198513 | AQ86: 10.83956633 | AR86: 9.767019134 | AS86: 8.802393163 | AT86: 7.934935233 | AU86: 7.154969749 | AV86: 6.453791085 | AW86: 5.823566724 | AX86: 5.257250098 | AY86: 4.74850215 | AZ86: 4.29162075 | BA86: 35.36895607 | BB86: 0 | BC86: 0 | BD86: 0 | BE86: 0 | BF86: 0 | BG86: 0 | BH86: 0 | BI86: 0 | BJ86: 0 | BK86: 0 | BL86: 0 | BM86: 0 | BN86: 0 | BO86: 0 | BP86: 0 | BQ86: 0 | BR86: 0 | BS86: 0 | BT86: 0 | BU86: 0 | BV86: 0 | BW86: =BW83/$G$86*$H$86 -> 0 | BX86: 0 | BY86: 0 | BZ86: 0 | CA86: 0 | CB86: 0 | CC86: 0 | CD86: 0 | CE86: 0 | CF86: 0 | CG86: 0 | CH86: 0 | CI86: 0 | CJ86: 0 | CK86: 0 | CL86: 0 | CM86: 0 | CN86: 0 | CO86: 0 | CP86: 0 | CQ86: 0 | CR86: 0 | CS86: 0 | CT86: 0 | CU86: 0 | CV86: 0 | CW86: 0 | CX86: 0 | CY86: 0 | CZ86: 0 | DA86: 0 | DB86: 0 | DC86: 0 | DD86: 0 | DE86: 0 | DF86: 0 | DG86: 0 | DH86: 0 | DI86: 0 | DJ86: 0 | DK86: 0 | DL86: 0 | DM86: 0 | DN86: 0 | DO86: 0 | DP86: 0 | DQ86: 0 | DR86: 0 | DS86: 0 | DT86: 0 | DU86: 0 | DV86: 0 | DW86: 0 | DX86: 0 | DY86: 0 | DZ86: 0 | EA86: 0 | EB86: 0 | EC86: 0 | ED86: 0 | EE86: 0 | EF86: 0 | EG86: 0 | EH86: 0 | EI86: =EI83/$G$86*$H$86 -> 0 | EJ86: 0 | EK86: 0 | EL86: 0 | EM86: 0 | EN86: 0 | EO86: 0 | EP86: 0 | EQ86: 0 | ER86: 0 | ES86: 0 | ET86: 0 | EU86: 0 | EV86: 0 | EW86: 0 | EX86: 0 | EY86: 0 | EZ86: 0 | FA86: 0 | FB86: 0 | FC86: 0 | FD86: 0 | FE86: 0 | FF86: 0 | FG86: 0 | FH86: 0 | FI86: 0 | FJ86: 0 | FK86: 0 | FL86: 0 | FM86: 0 | FN86: 0 | FO86: 0 | FP86: 0 | FQ86: 0 | FR86: 0 | FS86: 0 | FT86: 0 | FU86: 0 | FV86: 0 | FW86: 0 | FX86: 0 | FY86: 0 | FZ86: 0 | GA86: 0 | GB86: 0 | GC86: 0 | GD86: 0 | GE86: 0 | GF86: 0 | GG86: 0 | GH86: 0 | GI86: 0 | GJ86: 0 | GK86: 0 | GL86: 0 | GM86: 0 | GN86: 0 | GO86: 0 | GP86: 0 | GQ86: 0 | GR86: 0 | GS86: 0 | GT86: 0 | GU86: =GU83/$G$86*$H$86 -> 0 | GV86: 0 | GW86: 0 | GX86: 0 | GY86: 0 | GZ86: 0 | HA86: 0
D87: PV of DSRA Moves | G87: =SUMPRODUCT(J86:HA86/J70:HA70) -> 167.2179914
D88: Total Debt Increased for PV of DSRA | G88: =G71+G87 -> 2445.199991
D90: Opening Balance of Adjustment | J90: =I93 -> 0 | K90: =J93 -> 0 | L90: 0 | M90: 0 | N90: 0 | O90: 0 | P90: 0 | Q90: 0 | R90: 0 | S90: 0 | T90: 0 | U90: 0 | V90: 0 | W90: 0 | X90: 0 | Y90: 0 | Z90: 0 | AA90: 0 | AB90: 0 | AC90: 0 | AD90: 0 | AE90: 0 | AF90: 0 | AG90: 0 | AH90: 167.2179914 | AI90: 151.0871287 | AJ90: 136.6038732 | AK90: 123.6054808 | AL90: 111.9455995 | AM90: 101.4926374 | AN90: 92.12829364 | AO90: 83.74623713 | AP90: 76.25091774 | AQ90: 69.55649685 | AR90: 63.5858853 | AS90: 58.26987813 | AT90: 53.54637644 | AU90: 49.35968756 | AV90: 45.65989594 | AW90: 42.40229757 | AX90: 39.54689167 | AY90: 37.05792399 | AZ90: 34.90347652 | BA90: 33.05509913 | BB90: -1.776356839e-13 | BC90: -1.900701818e-13 | BD90: -2.033750945e-13 | BE90: -2.176113512e-13 | BF90: -2.328441457e-13 | BG90: -2.491432359e-13 | BH90: -2.665832625e-13 | BI90: -2.852440908e-13 | BJ90: -3.052111772e-13 | BK90: -3.265759596e-13 | BL90: -3.494362768e-13 | BM90: -3.738968161e-13 | BN90: -4.000695933e-13 | BO90: -4.280744648e-13 | BP90: -4.580396773e-13 | BQ90: -4.901024547e-13 | BR90: -5.244096266e-13 | BS90: -5.611183004e-13 | BT90: -6.003965815e-13 | BU90: -6.424243422e-13 | BV90: -6.873940461e-13 | BW90: =BV93 -> -7.355116294e-13 | BX90: -7.869974434e-13 | BY90: -8.420872644e-13 | BZ90: -9.01033373e-13 | CA90: -9.641057091e-13 | CB90: -1.031593109e-12 | CC90: -1.103804626e-12 | CD90: -1.18107095e-12 | CE90: -1.263745917e-12 | CF90: -1.352208131e-12 | CG90: -1.4468627e-12 | CH90: -1.548143089e-12 | CI90: -1.656513105e-12 | CJ90: -1.772469023e-12 | CK90: -1.896541854e-12 | CL90: -2.029299784e-12 | CM90: -2.171350769e-12 | CN90: -2.323345323e-12 | CO90: -2.485979495e-12 | CP90: -2.65999806e-12 | CQ90: -2.846197924e-12 | CR90: -3.045431779e-12 | CS90: -3.258612003e-12 | CT90: -3.486714844e-12 | CU90: -3.730784883e-12 | CV90: -3.991939824e-12 | CW90: -4.271375612e-12 | CX90: -4.570371905e-12 | CY90: -4.890297938e-12 | CZ90: -5.232618794e-12 | DA90: -5.598902109e-12 | DB90: -5.990825257e-12 | DC90: -6.410183025e-12 | DD90: -6.858895837e-12 | DE90: -7.339018546e-12 | DF90: -7.852749844e-12 | DG90: -8.402442333e-12 | DH90: -8.990613296e-12 | DI90: -9.619956227e-12 | DJ90: -1.029335316e-11 | DK90: -1.101388788e-11 | DL90: -1.178486004e-11 | DM90: -1.260980024e-11 | DN90: -1.349248626e-11 | DO90: -1.443696029e-11 | DP90: -1.544754751e-11 | DQ90: -1.652887584e-11 | DR90: -1.768589715e-11 | DS90: -1.892390995e-11 | DT90: -2.024858364e-11 | DU90: -2.16659845e-11 | DV90: -2.318260342e-11 | DW90: -2.480538565e-11 | DX90: -2.654176265e-11 | DY90: -2.839968604e-11 | DZ90: -3.038766406e-11 | EA90: -3.251480054e-11 | EB90: -3.479083658e-11 | EC90: -3.722619514e-11 | ED90: -3.98320288e-11 | EE90: -4.262027082e-11 | EF90: -4.560368977e-11 | EG90: -4.879594806e-11 | EH90: -5.221166442e-11 | EI90: =EH93 -> -5.586648093e-11 | EJ90: -5.97771346e-11 | EK90: -6.396153402e-11 | EL90: -6.84388414e-11 | EM90: -7.32295603e-11 | EN90: -7.835562952e-11 | EO90: -8.384052358e-11 | EP90: -8.970936024e-11 | EQ90: -9.598901545e-11 | ER90: -1.027082465e-10 | ES90: -1.098978238e-10 | ET90: -1.175906715e-10 | EU90: -1.258220185e-10 | EV90: -1.346295598e-10 | EW90: -1.440536289e-10 | EX90: -1.54137383e-10 | EY90: -1.649269998e-10 | EZ90: -1.764718897e-10 | FA90: -1.88824922e-10 | FB90: -2.020426666e-10 | FC90: -2.161856532e-10 | FD90: -2.31318649e-10 | FE90: -2.475109544e-10 | FF90: -2.648367212e-10 | FG90: -2.833752917e-10 | FH90: -3.032115621e-10 | FI90: -3.244363714e-10 | FJ90: -3.471469174e-10 | FK90: -3.714472017e-10 | FL90: -3.974485058e-10 | FM90: -4.252699012e-10 | FN90: -4.550387943e-10 | FO90: -4.868915099e-10 | FP90: -5.209739156e-10 | FQ90: -5.574420896e-10 | FR90: -5.964630359e-10 | FS90: -6.382154484e-10 | FT90: -6.828905298e-10 | FU90: -7.306928669e-10 | FV90: -7.818413676e-10 | FW90: -8.365702633e-10 | FX90: -8.951301818e-10 | FY90: -9.577892945e-10 | FZ90: -1.024834545e-09 | GA90: -1.096572963e-09 | GB90: -1.173333071e-09 | GC90: -1.255466386e-09 | GD90: -1.343349033e-09 | GE90: -1.437383465e-09 | GF90: -1.538000307e-09 | GG90: -1.645660329e-09 | GH90: -1.760856552e-09 | GI90: -1.884116511e-09 | GJ90: -2.016004666e-09 | GK90: -2.157124993e-09 | GL90: -2.308123743e-09 | GM90: -2.469692405e-09 | GN90: -2.642570873e-09 | GO90: -2.827550834e-09 | GP90: -3.025479392e-09 | GQ90: -3.23726295e-09 | GR90: -3.463871356e-09 | GS90: -3.706342351e-09 | GT90: -3.965786316e-09 | GU90: =GT93 -> -4.243391358e-09 | GV90: -4.540428753e-09 | GW90: -4.858258766e-09 | GX90: -5.198336879e-09 | GY90: -5.562220461e-09 | GZ90: -5.951575893e-09 | HA90: -6.368186206e-09
D91: Add: Issue | G91: =G87 -> 167.2179914 | J91: =$G$91*J74 -> 0 | K91: =$G$91*K74 -> 0 | L91: 0 | M91: 0 | N91: 0 | O91: 0 | P91: 0 | Q91: 0 | R91: 0 | S91: 0 | T91: 0 | U91: 0 | V91: 0 | W91: 0 | X91: 0 | Y91: 0 | Z91: 0 | AA91: 0 | AB91: 0 | AC91: 0 | AD91: 0 | AE91: 0 | AF91: 0 | AG91: 167.2179914 | AH91: 0 | AI91: 0 | AJ91: 0 | AK91: 0 | AL91: 0 | AM91: 0 | AN91: 0 | AO91: 0 | AP91: 0 | AQ91: 0 | AR91: 0 | AS91: 0 | AT91: 0 | AU91: 0 | AV91: 0 | AW91: 0 | AX91: 0 | AY91: 0 | AZ91: 0 | BA91: 0 | BB91: 0 | BC91: 0 | BD91: 0 | BE91: 0 | BF91: 0 | BG91: 0 | BH91: 0 | BI91: 0 | BJ91: 0 | BK91: 0 | BL91: 0 | BM91: 0 | BN91: 0 | BO91: 0 | BP91: 0 | BQ91: 0 | BR91: 0 | BS91: 0 | BT91: 0 | BU91: 0 | BV91: 0 | BW91: =$G$91*BW74 -> 0 | BX91: 0 | BY91: 0 | BZ91: 0 | CA91: 0 | CB91: 0 | CC91: 0 | CD91: 0 | CE91: 0 | CF91: 0 | CG91: 0 | CH91: 0 | CI91: 0 | CJ91: 0 | CK91: 0 | CL91: 0 | CM91: 0 | CN91: 0 | CO91: 0 | CP91: 0 | CQ91: 0 | CR91: 0 | CS91: 0 | CT91: 0 | CU91: 0 | CV91: 0 | CW91: 0 | CX91: 0 | CY91: 0 | CZ91: 0 | DA91: 0 | DB91: 0 | DC91: 0 | DD91: 0 | DE91: 0 | DF91: 0 | DG91: 0 | DH91: 0 | DI91: 0 | DJ91: 0 | DK91: 0 | DL91: 0 | DM91: 0 | DN91: 0 | DO91: 0 | DP91: 0 | DQ91: 0 | DR91: 0 | DS91: 0 | DT91: 0 | DU91: 0 | DV91: 0 | DW91: 0 | DX91: 0 | DY91: 0 | DZ91: 0 | EA91: 0 | EB91: 0 | EC91: 0 | ED91: 0 | EE91: 0 | EF91: 0 | EG91: 0 | EH91: 0 | EI91: =$G$91*EI74 -> 0 | EJ91: 0 | EK91: 0 | EL91: 0 | EM91: 0 | EN91: 0 | EO91: 0 | EP91: 0 | EQ91: 0 | ER91: 0 | ES91: 0 | ET91: 0 | EU91: 0 | EV91: 0 | EW91: 0 | EX91: 0 | EY91: 0 | EZ91: 0 | FA91: 0 | FB91: 0 | FC91: 0 | FD91: 0 | FE91: 0 | FF91: 0 | FG91: 0 | FH91: 0 | FI91: 0 | FJ91: 0 | FK91: 0 | FL91: 0 | FM91: 0 | FN91: 0 | FO91: 0 | FP91: 0 | FQ91: 0 | FR91: 0 | FS91: 0 | FT91: 0 | FU91: 0 | FV91: 0 | FW91: 0 | FX91: 0 | FY91: 0 | FZ91: 0 | GA91: 0 | GB91: 0 | GC91: 0 | GD91: 0 | GE91: 0 | GF91: 0 | GG91: 0 | GH91: 0 | GI91: 0 | GJ91: 0 | GK91: 0 | GL91: 0 | GM91: 0 | GN91: 0 | GO91: 0 | GP91: 0 | GQ91: 0 | GR91: 0 | GS91: 0 | GT91: 0 | GU91: =$G$91*GU74 -> 0 | GV91: 0 | GW91: 0 | GX91: 0 | GY91: 0 | GZ91: 0 | HA91: 0
D92: Less Repayment | I92: =SUM(J92:HA92) -> 167.2179914 | J92: =J86-J94 -> 0 | K92: =K86-K94 -> 0 | L92: 0 | M92: 0 | N92: 0 | O92: 0 | P92: 0 | Q92: 0 | R92: 0 | S92: 0 | T92: 0 | U92: 0 | V92: 0 | W92: 0 | X92: 0 | Y92: 0 | Z92: 0 | AA92: 0 | AB92: 0 | AC92: 0 | AD92: 0 | AE92: 0 | AF92: 0 | AG92: 0 | AH92: 16.13086266 | AI92: 14.4832555 | AJ92: 12.99839244 | AK92: 11.65988127 | AL92: 10.4529621 | AM92: 9.364343771 | AN92: 8.382056515 | AO92: 7.495319385 | AP92: 6.694420892 | AQ92: 5.970611554 | AR92: 5.316007164 | AS92: 4.723501694 | AT92: 4.186688882 | AU92: 3.69979162 | AV92: 3.25759837 | AW92: 2.855405894 | AX92: 2.488967681 | AY92: 2.15444747 | AZ92: 1.848377394 | BA92: 33.05509913 | BB92: 1.243449788e-14 | BC92: 1.330491273e-14 | BD92: 1.423625662e-14 | BE92: 1.523279458e-14 | BF92: 1.62990902e-14 | BG92: 1.744002652e-14 | BH92: 1.866082837e-14 | BI92: 1.996708636e-14 | BJ92: 2.13647824e-14 | BK92: 2.286031717e-14 | BL92: 2.446053937e-14 | BM92: 2.617277713e-14 | BN92: 2.800487153e-14 | BO92: 2.996521254e-14 | BP92: 3.206277741e-14 | BQ92: 3.430717183e-14 | BR92: 3.670867386e-14 | BS92: 3.927828103e-14 | BT92: 4.20277607e-14 | BU92: 4.496970395e-14 | BV92: 4.811758323e-14 | BW92: =BW86-BW94 -> 5.148581405e-14 | BX92: 5.508982104e-14 | BY92: 5.894610851e-14 | BZ92: 6.307233611e-14 | CA92: 6.748739963e-14 | CB92: 7.221151761e-14 | CC92: 7.726632384e-14 | CD92: 8.267496651e-14 | CE92: 8.846221417e-14 | CF92: 9.465456916e-14 | CG92: 1.01280389e-13 | CH92: 1.083700162e-13 | CI92: 1.159559174e-13 | CJ92: 1.240728316e-13 | CK92: 1.327579298e-13 | CL92: 1.420509849e-13 | CM92: 1.519945538e-13 | CN92: 1.626341726e-13 | CO92: 1.740185647e-13 | CP92: 1.861998642e-13 | CQ92: 1.992338547e-13 | CR92: 2.131802245e-13 | CS92: 2.281028402e-13 | CT92: 2.44070039e-13 | CU92: 2.611549418e-13 | CV92: 2.794357877e-13 | CW92: 2.989962928e-13 | CX92: 3.199260333e-13 | CY92: 3.423208557e-13 | CZ92: 3.662833156e-13 | DA92: 3.919231477e-13 | DB92: 4.19357768e-13 | DC92: 4.487128118e-13 | DD92: 4.801227086e-13 | DE92: 5.137312982e-13 | DF92: 5.496924891e-13 | DG92: 5.881709633e-13 | DH92: 6.293429307e-13 | DI92: 6.733969359e-13 | DJ92: 7.205347214e-13 | DK92: 7.709721519e-13 | DL92: 8.249402025e-13 | DM92: 8.826860167e-13 | DN92: 9.444740379e-13 | DO92: 1.010587221e-12 | DP92: 1.081328326e-12 | DQ92: 1.157021309e-12 | DR92: 1.2380128e-12 | DS92: 1.324673696e-12 | DT92: 1.417400855e-12 | DU92: 1.516618915e-12 | DV92: 1.622782239e-12 | DW92: 1.736376996e-12 | DX92: 1.857923385e-12 | DY92: 1.987978022e-12 | DZ92: 2.127136484e-12 | EA92: 2.276036038e-12 | EB92: 2.435358561e-12 | EC92: 2.60583366e-12 | ED92: 2.788242016e-12 | EE92: 2.983418957e-12 | EF92: 3.192258284e-12 | EG92: 3.415716364e-12 | EH92: 3.65481651e-12 | EI92: =EI86-EI94 -> 3.910653665e-12 | EJ92: 4.184399422e-12 | EK92: 4.477307381e-12 | EL92: 4.790718898e-12 | EM92: 5.126069221e-12 | EN92: 5.484894066e-12 | EO92: 5.868836651e-12 | EP92: 6.279655216e-12 | EQ92: 6.719231082e-12 | ER92: 7.189577257e-12 | ES92: 7.692847665e-12 | ET92: 8.231347002e-12 | EU92: 8.807541292e-12 | EV92: 9.424069183e-12 | EW92: 1.008375403e-11 | EX92: 1.078961681e-11 | EY92: 1.154488998e-11 | EZ92: 1.235303228e-11 | FA92: 1.321774454e-11 | FB92: 1.414298666e-11 | FC92: 1.513299573e-11 | FD92: 1.619230543e-11 | FE92: 1.732576681e-11 | FF92: 1.853857048e-11 | FG92: 1.983627042e-11 | FH92: 2.122480935e-11 | FI92: 2.2710546e-11 | FJ92: 2.430028422e-11 | FK92: 2.600130412e-11 | FL92: 2.78213954e-11 | FM92: 2.976889308e-11 | FN92: 3.18527156e-11 | FO92: 3.408240569e-11 | FP92: 3.646817409e-11 | FQ92: 3.902094628e-11 | FR92: 4.175241251e-11 | FS92: 4.467508139e-11 | FT92: 4.780233709e-11 | FU92: 5.114850068e-11 | FV92: 5.472889573e-11 | FW92: 5.855991843e-11 | FX92: 6.265911272e-11 | FY92: 6.704525061e-11 | FZ92: 7.173841816e-11 | GA92: 7.676010743e-11 | GB92: 8.213331495e-11 | GC92: 8.788264699e-11 | GD92: 9.403443228e-11 | GE92: 1.006168425e-10 | GF92: 1.076600215e-10 | GG92: 1.15196223e-10 | GH92: 1.232599586e-10 | GI92: 1.318881557e-10 | GJ92: 1.411203266e-10 | GK92: 1.509987495e-10 | GL92: 1.61568662e-10 | GM92: 1.728784683e-10 | GN92: 1.849799611e-10 | GO92: 1.979285584e-10 | GP92: 2.117835575e-10 | GQ92: 2.266084065e-10 | GR92: 2.424709949e-10 | GS92: 2.594439646e-10 | GT92: 2.776050421e-10 | GU92: =GU86-GU94 -> 2.970373951e-10 | GV92: 3.178300127e-10 | GW92: 3.400781136e-10 | GX92: 3.638835815e-10 | GY92: 3.893554323e-10 | GZ92: 4.166103125e-10 | HA92: 4.457730344e-10
D93: Closing Balance | J93: =J90+J91-J92 -> 0 | K93: =K90+K91-K92 -> 0 | L93: 0 | M93: 0 | N93: 0 | O93: 0 | P93: 0 | Q93: 0 | R93: 0 | S93: 0 | T93: 0 | U93: 0 | V93: 0 | W93: 0 | X93: 0 | Y93: 0 | Z93: 0 | AA93: 0 | AB93: 0 | AC93: 0 | AD93: 0 | AE93: 0 | AF93: 0 | AG93: 167.2179914 | AH93: 151.0871287 | AI93: 136.6038732 | AJ93: 123.6054808 | AK93: 111.9455995 | AL93: 101.4926374 | AM93: 92.12829364 | AN93: 83.74623713 | AO93: 76.25091774 | AP93: 69.55649685 | AQ93: 63.5858853 | AR93: 58.26987813 | AS93: 53.54637644 | AT93: 49.35968756 | AU93: 45.65989594 | AV93: 42.40229757 | AW93: 39.54689167 | AX93: 37.05792399 | AY93: 34.90347652 | AZ93: 33.05509913 | BA93: -1.776356839e-13 | BB93: -1.900701818e-13 | BC93: -2.033750945e-13 | BD93: -2.176113512e-13 | BE93: -2.328441457e-13 | BF93: -2.491432359e-13 | BG93: -2.665832625e-13 | BH93: -2.852440908e-13 | BI93: -3.052111772e-13 | BJ93: -3.265759596e-13 | BK93: -3.494362768e-13 | BL93: -3.738968161e-13 | BM93: -4.000695933e-13 | BN93: -4.280744648e-13 | BO93: -4.580396773e-13 | BP93: -4.901024547e-13 | BQ93: -5.244096266e-13 | BR93: -5.611183004e-13 | BS93: -6.003965815e-13 | BT93: -6.424243422e-13 | BU93: -6.873940461e-13 | BV93: -7.355116294e-13 | BW93: =BW90+BW91-BW92 -> -7.869974434e-13 | BX93: -8.420872644e-13 | BY93: -9.01033373e-13 | BZ93: -9.641057091e-13 | CA93: -1.031593109e-12 | CB93: -1.103804626e-12 | CC93: -1.18107095e-12 | CD93: -1.263745917e-12 | CE93: -1.352208131e-12 | CF93: -1.4468627e-12 | CG93: -1.548143089e-12 | CH93: -1.656513105e-12 | CI93: -1.772469023e-12 | CJ93: -1.896541854e-12 | CK93: -2.029299784e-12 | CL93: -2.171350769e-12 | CM93: -2.323345323e-12 | CN93: -2.485979495e-12 | CO93: -2.65999806e-12 | CP93: -2.846197924e-12 | CQ93: -3.045431779e-12 | CR93: -3.258612003e-12 | CS93: -3.486714844e-12 | CT93: -3.730784883e-12 | CU93: -3.991939824e-12 | CV93: -4.271375612e-12 | CW93: -4.570371905e-12 | CX93: -4.890297938e-12 | CY93: -5.232618794e-12 | CZ93: -5.598902109e-12 | DA93: -5.990825257e-12 | DB93: -6.410183025e-12 | DC93: -6.858895837e-12 | DD93: -7.339018546e-12 | DE93: -7.852749844e-12 | DF93: -8.402442333e-12 | DG93: -8.990613296e-12 | DH93: -9.619956227e-12 | DI93: -1.029335316e-11 | DJ93: -1.101388788e-11 | DK93: -1.178486004e-11 | DL93: -1.260980024e-11 | DM93: -1.349248626e-11 | DN93: -1.443696029e-11 | DO93: -1.544754751e-11 | DP93: -1.652887584e-11 | DQ93: -1.768589715e-11 | DR93: -1.892390995e-11 | DS93: -2.024858364e-11 | DT93: -2.16659845e-11 | DU93: -2.318260342e-11 | DV93: -2.480538565e-11 | DW93: -2.654176265e-11 | DX93: -2.839968604e-11 | DY93: -3.038766406e-11 | DZ93: -3.251480054e-11 | EA93: -3.479083658e-11 | EB93: -3.722619514e-11 | EC93: -3.98320288e-11 | ED93: -4.262027082e-11 | EE93: -4.560368977e-11 | EF93: -4.879594806e-11 | EG93: -5.221166442e-11 | EH93: -5.586648093e-11 | EI93: =EI90+EI91-EI92 -> -5.97771346e-11 | EJ93: -6.396153402e-11 | EK93: -6.84388414e-11 | EL93: -7.32295603e-11 | EM93: -7.835562952e-11 | EN93: -8.384052358e-11 | EO93: -8.970936024e-11 | EP93: -9.598901545e-11 | EQ93: -1.027082465e-10 | ER93: -1.098978238e-10 | ES93: -1.175906715e-10 | ET93: -1.258220185e-10 | EU93: -1.346295598e-10 | EV93: -1.440536289e-10 | EW93: -1.54137383e-10 | EX93: -1.649269998e-10 | EY93: -1.764718897e-10 | EZ93: -1.88824922e-10 | FA93: -2.020426666e-10 | FB93: -2.161856532e-10 | FC93: -2.31318649e-10 | FD93: -2.475109544e-10 | FE93: -2.648367212e-10 | FF93: -2.833752917e-10 | FG93: -3.032115621e-10 | FH93: -3.244363714e-10 | FI93: -3.471469174e-10 | FJ93: -3.714472017e-10 | FK93: -3.974485058e-10 | FL93: -4.252699012e-10 | FM93: -4.550387943e-10 | FN93: -4.868915099e-10 | FO93: -5.209739156e-10 | FP93: -5.574420896e-10 | FQ93: -5.964630359e-10 | FR93: -6.382154484e-10 | FS93: -6.828905298e-10 | FT93: -7.306928669e-10 | FU93: -7.818413676e-10 | FV93: -8.365702633e-10 | FW93: -8.951301818e-10 | FX93: -9.577892945e-10 | FY93: -1.024834545e-09 | FZ93: -1.096572963e-09 | GA93: -1.173333071e-09 | GB93: -1.255466386e-09 | GC93: -1.343349033e-09 | GD93: -1.437383465e-09 | GE93: -1.538000307e-09 | GF93: -1.645660329e-09 | GG93: -1.760856552e-09 | GH93: -1.884116511e-09 | GI93: -2.016004666e-09 | GJ93: -2.157124993e-09 | GK93: -2.308123743e-09 | GL93: -2.469692405e-09 | GM93: -2.642570873e-09 | GN93: -2.827550834e-09 | GO93: -3.025479392e-09 | GP93: -3.23726295e-09 | GQ93: -3.463871356e-09 | GR93: -3.706342351e-09 | GS93: -3.965786316e-09 | GT93: -4.243391358e-09 | GU93: =GU90+GU91-GU92 -> -4.540428753e-09 | GV93: -4.858258766e-09 | GW93: -5.198336879e-09 | GX93: -5.562220461e-09 | GY93: -5.951575893e-09 | GZ93: -6.368186206e-09 | HA93: -6.81395924e-09
D94: Interest | J94: =J90*J69 -> 0 | K94: =K90*K69 -> 0 | L94: 0 | M94: 0 | N94: 0 | O94: 0 | P94: 0 | Q94: 0 | R94: 0 | S94: 0 | T94: 0 | U94: 0 | V94: 0 | W94: 0 | X94: 0 | Y94: 0 | Z94: 0 | AA94: 0 | AB94: 0 | AC94: 0 | AD94: 0 | AE94: 0 | AF94: 0 | AG94: 0 | AH94: 11.7052594 | AI94: 10.57609901 | AJ94: 9.562271126 | AK94: 8.652383655 | AL94: 7.836191966 | AM94: 7.104484619 | AN94: 6.448980555 | AO94: 5.862236599 | AP94: 5.337564242 | AQ94: 4.86895478 | AR94: 4.451011971 | AS94: 4.078891469 | AT94: 3.748246351 | AU94: 3.455178129 | AV94: 3.196192716 | AW94: 2.96816083 | AX94: 2.768282417 | AY94: 2.594054679 | AZ94: 2.443243356 | BA94: 2.313856939 | BB94: -1.243449788e-14 | BC94: -1.330491273e-14 | BD94: -1.423625662e-14 | BE94: -1.523279458e-14 | BF94: -1.62990902e-14 | BG94: -1.744002652e-14 | BH94: -1.866082837e-14 | BI94: -1.996708636e-14 | BJ94: -2.13647824e-14 | BK94: -2.286031717e-14 | BL94: -2.446053937e-14 | BM94: -2.617277713e-14 | BN94: -2.800487153e-14 | BO94: -2.996521254e-14 | BP94: -3.206277741e-14 | BQ94: -3.430717183e-14 | BR94: -3.670867386e-14 | BS94: -3.927828103e-14 | BT94: -4.20277607e-14 | BU94: -4.496970395e-14 | BV94: -4.811758323e-14 | BW94: =BW90*BW69 -> -5.148581405e-14 | BX94: -5.508982104e-14 | BY94: -5.894610851e-14 | BZ94: -6.307233611e-14 | CA94: -6.748739963e-14 | CB94: -7.221151761e-14 | CC94: -7.726632384e-14 | CD94: -8.267496651e-14 | CE94: -8.846221417e-14 | CF94: -9.465456916e-14 | CG94: -1.01280389e-13 | CH94: -1.083700162e-13 | CI94: -1.159559174e-13 | CJ94: -1.240728316e-13 | CK94: -1.327579298e-13 | CL94: -1.420509849e-13 | CM94: -1.519945538e-13 | CN94: -1.626341726e-13 | CO94: -1.740185647e-13 | CP94: -1.861998642e-13 | CQ94: -1.992338547e-13 | CR94: -2.131802245e-13 | CS94: -2.281028402e-13 | CT94: -2.44070039e-13 | CU94: -2.611549418e-13 | CV94: -2.794357877e-13 | CW94: -2.989962928e-13 | CX94: -3.199260333e-13 | CY94: -3.423208557e-13 | CZ94: -3.662833156e-13 | DA94: -3.919231477e-13 | DB94: -4.19357768e-13 | DC94: -4.487128118e-13 | DD94: -4.801227086e-13 | DE94: -5.137312982e-13 | DF94: -5.496924891e-13 | DG94: -5.881709633e-13 | DH94: -6.293429307e-13 | DI94: -6.733969359e-13 | DJ94: -7.205347214e-13 | DK94: -7.709721519e-13 | DL94: -8.249402025e-13 | DM94: -8.826860167e-13 | DN94: -9.444740379e-13 | DO94: -1.010587221e-12 | DP94: -1.081328326e-12 | DQ94: -1.157021309e-12 | DR94: -1.2380128e-12 | DS94: -1.324673696e-12 | DT94: -1.417400855e-12 | DU94: -1.516618915e-12 | DV94: -1.622782239e-12 | DW94: -1.736376996e-12 | DX94: -1.857923385e-12 | DY94: -1.987978022e-12 | DZ94: -2.127136484e-12 | EA94: -2.276036038e-12 | EB94: -2.435358561e-12 | EC94: -2.60583366e-12 | ED94: -2.788242016e-12 | EE94: -2.983418957e-12 | EF94: -3.192258284e-12 | EG94: -3.415716364e-12 | EH94: -3.65481651e-12 | EI94: =EI90*EI69 -> -3.910653665e-12 | EJ94: -4.184399422e-12 | EK94: -4.477307381e-12 | EL94: -4.790718898e-12 | EM94: -5.126069221e-12 | EN94: -5.484894066e-12 | EO94: -5.868836651e-12 | EP94: -6.279655216e-12 | EQ94: -6.719231082e-12 | ER94: -7.189577257e-12 | ES94: -7.692847665e-12 | ET94: -8.231347002e-12 | EU94: -8.807541292e-12 | EV94: -9.424069183e-12 | EW94: -1.008375403e-11 | EX94: -1.078961681e-11 | EY94: -1.154488998e-11 | EZ94: -1.235303228e-11 | FA94: -1.321774454e-11 | FB94: -1.414298666e-11 | FC94: -1.513299573e-11 | FD94: -1.619230543e-11 | FE94: -1.732576681e-11 | FF94: -1.853857048e-11 | FG94: -1.983627042e-11 | FH94: -2.122480935e-11 | FI94: -2.2710546e-11 | FJ94: -2.430028422e-11 | FK94: -2.600130412e-11 | FL94: -2.78213954e-11 | FM94: -2.976889308e-11 | FN94: -3.18527156e-11 | FO94: -3.408240569e-11 | FP94: -3.646817409e-11 | FQ94: -3.902094628e-11 | FR94: -4.175241251e-11 | FS94: -4.467508139e-11 | FT94: -4.780233709e-11 | FU94: -5.114850068e-11 | FV94: -5.472889573e-11 | FW94: -5.855991843e-11 | FX94: -6.265911272e-11 | FY94: -6.704525061e-11 | FZ94: -7.173841816e-11 | GA94: -7.676010743e-11 | GB94: -8.213331495e-11 | GC94: -8.788264699e-11 | GD94: -9.403443228e-11 | GE94: -1.006168425e-10 | GF94: -1.076600215e-10 | GG94: -1.15196223e-10 | GH94: -1.232599586e-10 | GI94: -1.318881557e-10 | GJ94: -1.411203266e-10 | GK94: -1.509987495e-10 | GL94: -1.61568662e-10 | GM94: -1.728784683e-10 | GN94: -1.849799611e-10 | GO94: -1.979285584e-10 | GP94: -2.117835575e-10 | GQ94: -2.266084065e-10 | GR94: -2.424709949e-10 | GS94: -2.594439646e-10 | GT94: -2.776050421e-10 | GU94: =GU90*GU69 -> -2.970373951e-10 | GV94: -3.178300127e-10 | GW94: -3.400781136e-10 | GX94: -3.638835815e-10 | GY94: -3.893554323e-10 | GZ94: -4.166103125e-10 | HA94: -4.457730344e-10
J96: =IF(J7,J189,NA()) ->  | K96: =IF(K7,K189,NA()) ->  | L96: =IF(L7,L189,NA()) ->  | M96: =IF(M7,M189,NA()) ->  | N96: =IF(N7,N189,NA()) ->  | O96: =IF(O7,O189,NA()) ->  | P96: =IF(P7,P189,NA()) ->  | Q96: =IF(Q7,Q189,NA()) ->  | R96: =IF(R7,R189,NA()) ->  | S96: =IF(S7,S189,NA()) ->  | T96: =IF(T7,T189,NA()) ->  | U96: =IF(U7,U189,NA()) ->  | V96: =IF(V7,V189,NA()) ->  | W96: =IF(W7,W189,NA()) ->  | X96: =IF(X7,X189,NA()) ->  | Y96: =IF(Y7,Y189,NA()) ->  | Z96: =IF(Z7,Z189,NA()) ->  | AA96: =IF(AA7,AA189,NA()) ->  | AB96: =IF(AB7,AB189,NA()) ->  | AC96: =IF(AC7,AC189,NA()) ->  | AD96: =IF(AD7,AD189,NA()) ->  | AE96: =IF(AE7,AE189,NA()) ->  | AF96: =IF(AF7,AF189,NA()) ->  | AG96: =IF(AG7,AG189,NA()) ->  | AH96: =IF(AH7,AH189,NA()) -> 2025-01-01 | AI96: =IF(AI7,AI189,NA()) -> 2026-01-01 | AJ96: =IF(AJ7,AJ189,NA()) -> 2027-01-01 | AK96: =IF(AK7,AK189,NA()) -> 2028-01-01 | AL96: =IF(AL7,AL189,NA()) -> 2029-01-01 | AM96: =IF(AM7,AM189,NA()) -> 2030-01-01 | AN96: =IF(AN7,AN189,NA()) -> 2031-01-01 | AO96: =IF(AO7,AO189,NA()) -> 2032-01-01 | AP96: =IF(AP7,AP189,NA()) -> 2033-01-01 | AQ96: =IF(AQ7,AQ189,NA()) -> 2034-01-01 | AR96: =IF(AR7,AR189,NA()) -> 2035-01-01 | AS96: =IF(AS7,AS189,NA()) -> 2036-01-01 | AT96: =IF(AT7,AT189,NA()) -> 2037-01-01 | AU96: =IF(AU7,AU189,NA()) -> 2038-01-01 | AV96: =IF(AV7,AV189,NA()) -> 2039-01-01 | AW96: =IF(AW7,AW189,NA()) -> 2040-01-01 | AX96: =IF(AX7,AX189,NA()) -> 2041-01-01 | AY96: =IF(AY7,AY189,NA()) -> 2042-01-01 | AZ96: =IF(AZ7,AZ189,NA()) -> 2043-01-01 | BA96: =IF(BA7,BA189,NA()) -> 2044-01-01 | BB96: =IF(BB7,BB189,NA()) ->  | BC96: =IF(BC7,BC189,NA()) ->  | BD96: =IF(BD7,BD189,NA()) ->  | BE96: =IF(BE7,BE189,NA()) ->  | BF96: =IF(BF7,BF189,NA()) ->  | BG96: =IF(BG7,BG189,NA()) ->  | BH96: =IF(BH7,BH189,NA()) ->  | BI96: =IF(BI7,BI189,NA()) ->  | BJ96: =IF(BJ7,BJ189,NA()) ->  | BK96: =IF(BK7,BK189,NA()) ->  | BL96: =IF(BL7,BL189,NA()) ->  | BM96: =IF(BM7,BM189,NA()) ->  | BN96: =IF(BN7,BN189,NA()) ->  | BO96: =IF(BO7,BO189,NA()) ->  | BP96: =IF(BP7,BP189,NA()) ->  | BQ96: =IF(BQ7,BQ189,NA()) ->  | BR96: =IF(BR7,BR189,NA()) ->  | BS96: =IF(BS7,BS189,NA()) ->  | BT96: =IF(BT7,BT189,NA()) ->  | BU96: =IF(BU7,BU189,NA()) ->  | BV96: =IF(BV7,BV189,NA()) ->  | BW96: =IF(BW7,BW189,NA()) ->  | BX96: =IF(BX7,BX189,NA()) ->  | BY96: =IF(BY7,BY189,NA()) ->  | BZ96: =IF(BZ7,BZ189,NA()) ->  | CA96: =IF(CA7,CA189,NA()) ->  | CB96: =IF(CB7,CB189,NA()) ->  | CC96: =IF(CC7,CC189,NA()) ->  | CD96: =IF(CD7,CD189,NA()) ->  | CE96: =IF(CE7,CE189,NA()) ->  | CF96: =IF(CF7,CF189,NA()) ->  | CG96: =IF(CG7,CG189,NA()) ->  | CH96: =IF(CH7,CH189,NA()) ->  | CI96: =IF(CI7,CI189,NA()) ->  | CJ96: =IF(CJ7,CJ189,NA()) ->  | CK96: =IF(CK7,CK189,NA()) ->  | CL96: =IF(CL7,CL189,NA()) ->  | CM96: =IF(CM7,CM189,NA()) ->  | CN96: =IF(CN7,CN189,NA()) ->  | CO96: =IF(CO7,CO189,NA()) ->  | CP96: =IF(CP7,CP189,NA()) ->  | CQ96: =IF(CQ7,CQ189,NA()) ->  | CR96: =IF(CR7,CR189,NA()) ->  | CS96: =IF(CS7,CS189,NA()) ->  | CT96: =IF(CT7,CT189,NA()) ->  | CU96: =IF(CU7,CU189,NA()) ->  | CV96: =IF(CV7,CV189,NA()) ->  | CW96: =IF(CW7,CW189,NA()) ->  | CX96: =IF(CX7,CX189,NA()) ->  | CY96: =IF(CY7,CY189,NA()) ->  | CZ96: =IF(CZ7,CZ189,NA()) ->  | DA96: =IF(DA7,DA189,NA()) ->  | DB96: =IF(DB7,DB189,NA()) ->  | DC96: =IF(DC7,DC189,NA()) ->  | DD96: =IF(DD7,DD189,NA()) ->  | DE96: =IF(DE7,DE189,NA()) ->  | DF96: =IF(DF7,DF189,NA()) ->  | DG96: =IF(DG7,DG189,NA()) ->  | DH96: =IF(DH7,DH189,NA()) ->  | DI96: =IF(DI7,DI189,NA()) ->  | DJ96: =IF(DJ7,DJ189,NA()) ->  | DK96: =IF(DK7,DK189,NA()) ->  | DL96: =IF(DL7,DL189,NA()) ->  | DM96: =IF(DM7,DM189,NA()) ->  | DN96: =IF(DN7,DN189,NA()) ->  | DO96: =IF(DO7,DO189,NA()) ->  | DP96: =IF(DP7,DP189,NA()) ->  | DQ96: =IF(DQ7,DQ189,NA()) ->  | DR96: =IF(DR7,DR189,NA()) ->  | DS96: =IF(DS7,DS189,NA()) ->  | DT96: =IF(DT7,DT189,NA()) ->  | DU96: =IF(DU7,DU189,NA()) ->  | DV96: =IF(DV7,DV189,NA()) ->  | DW96: =IF(DW7,DW189,NA()) ->  | DX96: =IF(DX7,DX189,NA()) ->  | DY96: =IF(DY7,DY189,NA()) ->  | DZ96: =IF(DZ7,DZ189,NA()) ->  | EA96: =IF(EA7,EA189,NA()) ->  | EB96: =IF(EB7,EB189,NA()) ->  | EC96: =IF(EC7,EC189,NA()) ->  | ED96: =IF(ED7,ED189,NA()) ->  | EE96: =IF(EE7,EE189,NA()) ->  | EF96: =IF(EF7,EF189,NA()) ->  | EG96: =IF(EG7,EG189,NA()) ->  | EH96: =IF(EH7,EH189,NA()) ->  | EI96: =IF(EI7,EI189,NA()) ->  | EJ96: =IF(EJ7,EJ189,NA()) ->  | EK96: =IF(EK7,EK189,NA()) ->  | EL96: =IF(EL7,EL189,NA()) ->  | EM96: =IF(EM7,EM189,NA()) ->  | EN96: =IF(EN7,EN189,NA()) ->  | EO96: =IF(EO7,EO189,NA()) ->  | EP96: =IF(EP7,EP189,NA()) ->  | EQ96: =IF(EQ7,EQ189,NA()) ->  | ER96: =IF(ER7,ER189,NA()) ->  | ES96: =IF(ES7,ES189,NA()) ->  | ET96: =IF(ET7,ET189,NA()) ->  | EU96: =IF(EU7,EU189,NA()) ->  | EV96: =IF(EV7,EV189,NA()) ->  | EW96: =IF(EW7,EW189,NA()) ->  | EX96: =IF(EX7,EX189,NA()) ->  | EY96: =IF(EY7,EY189,NA()) ->  | EZ96: =IF(EZ7,EZ189,NA()) ->  | FA96: =IF(FA7,FA189,NA()) ->  | FB96: =IF(FB7,FB189,NA()) ->  | FC96: =IF(FC7,FC189,NA()) ->  | FD96: =IF(FD7,FD189,NA()) ->  | FE96: =IF(FE7,FE189,NA()) ->  | FF96: =IF(FF7,FF189,NA()) ->  | FG96: =IF(FG7,FG189,NA()) ->  | FH96: =IF(FH7,FH189,NA()) ->  | FI96: =IF(FI7,FI189,NA()) ->  | FJ96: =IF(FJ7,FJ189,NA()) ->  | FK96: =IF(FK7,FK189,NA()) ->  | FL96: =IF(FL7,FL189,NA()) ->  | FM96: =IF(FM7,FM189,NA()) ->  | FN96: =IF(FN7,FN189,NA()) ->  | FO96: =IF(FO7,FO189,NA()) ->  | FP96: =IF(FP7,FP189,NA()) ->  | FQ96: =IF(FQ7,FQ189,NA()) ->  | FR96: =IF(FR7,FR189,NA()) ->  | FS96: =IF(FS7,FS189,NA()) ->  | FT96: =IF(FT7,FT189,NA()) ->  | FU96: =IF(FU7,FU189,NA()) ->  | FV96: =IF(FV7,FV189,NA()) ->  | FW96: =IF(FW7,FW189,NA()) ->  | FX96: =IF(FX7,FX189,NA()) ->  | FY96: =IF(FY7,FY189,NA()) ->  | FZ96: =IF(FZ7,FZ189,NA()) ->  | GA96: =IF(GA7,GA189,NA()) ->  | GB96: =IF(GB7,GB189,NA()) ->  | GC96: =IF(GC7,GC189,NA()) ->  | GD96: =IF(GD7,GD189,NA()) ->  | GE96: =IF(GE7,GE189,NA()) ->  | GF96: =IF(GF7,GF189,NA()) ->  | GG96: =IF(GG7,GG189,NA()) ->  | GH96: =IF(GH7,GH189,NA()) ->  | GI96: =IF(GI7,GI189,NA()) ->  | GJ96: =IF(GJ7,GJ189,NA()) ->  | GK96: =IF(GK7,GK189,NA()) ->  | GL96: =IF(GL7,GL189,NA()) ->  | GM96: =IF(GM7,GM189,NA()) ->  | GN96: =IF(GN7,GN189,NA()) ->  | GO96: =IF(GO7,GO189,NA()) ->  | GP96: =IF(GP7,GP189,NA()) ->  | GQ96: =IF(GQ7,GQ189,NA()) ->  | GR96: =IF(GR7,GR189,NA()) ->  | GS96: =IF(GS7,GS189,NA()) ->  | GT96: =IF(GT7,GT189,NA()) ->  | GU96: =IF(GU7,GU189,NA()) ->  | GV96: =IF(GV7,GV189,NA()) ->  | GW96: =IF(GW7,GW189,NA()) ->  | GX96: =IF(GX7,GX189,NA()) ->  | GY96: =IF(GY7,GY189,NA()) ->  | GZ96: =IF(GZ7,GZ189,NA()) ->  | HA96: =IF(HA7,HA189,NA()) -> 
D97: EBITDA | J97: =J100 -> 0 | K97: =K100 -> 0 | L97: 0 | M97: 0 | N97: 0 | O97: 0 | P97: 0 | Q97: 0 | R97: 0 | S97: 0 | T97: 0 | U97: 0 | V97: 0 | W97: 0 | X97: 0 | Y97: 0 | Z97: 0 | AA97: 0 | AB97: 0 | AC97: 0 | AD97: 0 | AE97: 0 | AF97: 0 | AG97: 0 | AH97: 720 | AI97: 648 | AJ97: 583.2 | AK97: 524.88 | AL97: 472.392 | AM97: 425.1528 | AN97: 382.63752 | AO97: 344.373768 | AP97: 309.9363912 | AQ97: 278.9427521 | AR97: 251.0484769 | AS97: 225.9436292 | AT97: 203.3492663 | AU97: 183.0143396 | AV97: 164.7129057 | AW97: 148.2416151 | AX97: 133.4174536 | AY97: 120.0757082 | AZ97: 108.0681374 | BA97: 97.26132367 | BB97: 0 | BC97: 0 | BD97: 0 | BE97: 0 | BF97: 0 | BG97: 0 | BH97: 0 | BI97: 0 | BJ97: 0 | BK97: 0 | BL97: 0 | BM97: 0 | BN97: 0 | BO97: 0 | BP97: 0 | BQ97: 0 | BR97: 0 | BS97: 0 | BT97: 0 | BU97: 0 | BV97: 0 | BW97: =BW100 -> 0 | BX97: 0 | BY97: 0 | BZ97: 0 | CA97: 0 | CB97: 0 | CC97: 0 | CD97: 0 | CE97: 0 | CF97: 0 | CG97: 0 | CH97: 0 | CI97: 0 | CJ97: 0 | CK97: 0 | CL97: 0 | CM97: 0 | CN97: 0 | CO97: 0 | CP97: 0 | CQ97: 0 | CR97: 0 | CS97: 0 | CT97: 0 | CU97: 0 | CV97: 0 | CW97: 0 | CX97: 0 | CY97: 0 | CZ97: 0 | DA97: 0 | DB97: 0 | DC97: 0 | DD97: 0 | DE97: 0 | DF97: 0 | DG97: 0 | DH97: 0 | DI97: 0 | DJ97: 0 | DK97: 0 | DL97: 0 | DM97: 0 | DN97: 0 | DO97: 0 | DP97: 0 | DQ97: 0 | DR97: 0 | DS97: 0 | DT97: 0 | DU97: 0 | DV97: 0 | DW97: 0 | DX97: 0 | DY97: 0 | DZ97: 0 | EA97: 0 | EB97: 0 | EC97: 0 | ED97: 0 | EE97: 0 | EF97: 0 | EG97: 0 | EH97: 0 | EI97: =EI100 -> 0 | EJ97: 0 | EK97: 0 | EL97: 0 | EM97: 0 | EN97: 0 | EO97: 0 | EP97: 0 | EQ97: 0 | ER97: 0 | ES97: 0 | ET97: 0 | EU97: 0 | EV97: 0 | EW97: 0 | EX97: 0 | EY97: 0 | EZ97: 0 | FA97: 0 | FB97: 0 | FC97: 0 | FD97: 0 | FE97: 0 | FF97: 0 | FG97: 0 | FH97: 0 | FI97: 0 | FJ97: 0 | FK97: 0 | FL97: 0 | FM97: 0 | FN97: 0 | FO97: 0 | FP97: 0 | FQ97: 0 | FR97: 0 | FS97: 0 | FT97: 0 | FU97: 0 | FV97: 0 | FW97: 0 | FX97: 0 | FY97: 0 | FZ97: 0 | GA97: 0 | GB97: 0 | GC97: 0 | GD97: 0 | GE97: 0 | GF97: 0 | GG97: 0 | GH97: 0 | GI97: 0 | GJ97: 0 | GK97: 0 | GL97: 0 | GM97: 0 | GN97: 0 | GO97: 0 | GP97: 0 | GQ97: 0 | GR97: 0 | GS97: 0 | GT97: 0 | GU97: =GU100 -> 0 | GV97: 0 | GW97: 0 | GX97: 0 | GY97: 0 | GZ97: 0 | HA97: 0
D98: Debt Service | J98: =J107 -> 0 | K98: =K107 -> 0 | L98: 0 | M98: 0 | N98: 0 | O98: 0 | P98: 0 | Q98: 0 | R98: 0 | S98: 0 | T98: 0 | U98: 0 | V98: 0 | W98: 0 | X98: 0 | Y98: 0 | Z98: 0 | AA98: 0 | AB98: 0 | AC98: 0 | AD98: 0 | AE98: 0 | AF98: 0 | AG98: 0 | AH98: 429.7609495 | AI98: 386.621805 | AJ98: 347.78705 | AK98: 312.8256892 | AL98: 281.3497942 | AM98: 253.0101951 | AN98: 227.4926026 | AO98: 204.5141178 | AP98: 183.8200908 | AQ98: 165.1812935 | AR98: 148.3913752 | AS98: 133.2645714 | AT98: 119.6336434 | AU98: 107.3480219 | AV98: 96.27213705 | AW98: 86.28391562 | AX98: 77.27342724 | AY98: 69.14166665 | AZ98: 61.79945713 | BA98: 86.65394236 | BB98: 0 | BC98: 0 | BD98: 0 | BE98: 0 | BF98: 0 | BG98: 0 | BH98: 0 | BI98: 0 | BJ98: 0 | BK98: 0 | BL98: 0 | BM98: 0 | BN98: 0 | BO98: 0 | BP98: 0 | BQ98: 0 | BR98: 0 | BS98: 0 | BT98: 0 | BU98: 0 | BV98: 0 | BW98: =BW107 -> 0 | BX98: 0 | BY98: 0 | BZ98: 0 | CA98: 0 | CB98: 0 | CC98: 0 | CD98: 0 | CE98: 0 | CF98: 0 | CG98: 0 | CH98: 0 | CI98: 0 | CJ98: 0 | CK98: 0 | CL98: 0 | CM98: 0 | CN98: 0 | CO98: 0 | CP98: 0 | CQ98: 0 | CR98: 0 | CS98: 0 | CT98: 0 | CU98: 0 | CV98: 0 | CW98: 0 | CX98: 0 | CY98: 0 | CZ98: 0 | DA98: 0 | DB98: 0 | DC98: 0 | DD98: 0 | DE98: 0 | DF98: 0 | DG98: 0 | DH98: 0 | DI98: 0 | DJ98: 0 | DK98: 0 | DL98: 0 | DM98: 0 | DN98: 0 | DO98: 0 | DP98: 0 | DQ98: 0 | DR98: 0 | DS98: 0 | DT98: 0 | DU98: 0 | DV98: 0 | DW98: 0 | DX98: 0 | DY98: 0 | DZ98: 0 | EA98: 0 | EB98: 0 | EC98: 0 | ED98: 0 | EE98: 0 | EF98: 0 | EG98: 0 | EH98: 0 | EI98: =EI107 -> 0 | EJ98: 0 | EK98: 0 | EL98: 0 | EM98: 0 | EN98: 0 | EO98: 0 | EP98: 0 | EQ98: 0 | ER98: 0 | ES98: 0 | ET98: 0 | EU98: 0 | EV98: 0 | EW98: 0 | EX98: 0 | EY98: 0 | EZ98: 0 | FA98: 0 | FB98: 0 | FC98: 0 | FD98: 0 | FE98: 0 | FF98: 0 | FG98: 0 | FH98: 0 | FI98: 0 | FJ98: 0 | FK98: 0 | FL98: 0 | FM98: 0 | FN98: 0 | FO98: 0 | FP98: 0 | FQ98: 0 | FR98: 0 | FS98: 0 | FT98: 0 | FU98: 0 | FV98: 0 | FW98: 0 | FX98: 0 | FY98: 0 | FZ98: 0 | GA98: 0 | GB98: 0 | GC98: 0 | GD98: 0 | GE98: 0 | GF98: 0 | GG98: 0 | GH98: 0 | GI98: 0 | GJ98: 0 | GK98: 0 | GL98: 0 | GM98: 0 | GN98: 0 | GO98: 0 | GP98: 0 | GQ98: 0 | GR98: 0 | GS98: 0 | GT98: 0 | GU98: =GU107 -> 0 | GV98: 0 | GW98: 0 | GX98: 0 | GY98: 0 | GZ98: 0 | HA98: 0
D100: EBITDA | J100: =J61 -> 0 | K100: =K61 -> 0 | L100: =L61 -> 0 | M100: =M61 -> 0 | N100: =N61 -> 0 | O100: =O61 -> 0 | P100: =P61 -> 0 | Q100: =Q61 -> 0 | R100: =R61 -> 0 | S100: =S61 -> 0 | T100: =T61 -> 0 | U100: =U61 -> 0 | V100: =V61 -> 0 | W100: =W61 -> 0 | X100: =X61 -> 0 | Y100: =Y61 -> 0 | Z100: =Z61 -> 0 | AA100: =AA61 -> 0 | AB100: =AB61 -> 0 | AC100: =AC61 -> 0 | AD100: =AD61 -> 0 | AE100: =AE61 -> 0 | AF100: =AF61 -> 0 | AG100: =AG61 -> 0 | AH100: =AH61 -> 720 | AI100: =AI61 -> 648 | AJ100: =AJ61 -> 583.2 | AK100: =AK61 -> 524.88 | AL100: =AL61 -> 472.392 | AM100: =AM61 -> 425.1528 | AN100: =AN61 -> 382.63752 | AO100: =AO61 -> 344.373768 | AP100: =AP61 -> 309.9363912 | AQ100: =AQ61 -> 278.9427521 | AR100: =AR61 -> 251.0484769 | AS100: =AS61 -> 225.9436292 | AT100: =AT61 -> 203.3492663 | AU100: =AU61 -> 183.0143396 | AV100: =AV61 -> 164.7129057 | AW100: =AW61 -> 148.2416151 | AX100: =AX61 -> 133.4174536 | AY100: =AY61 -> 120.0757082 | AZ100: =AZ61 -> 108.0681374 | BA100: =BA61 -> 97.26132367 | BB100: =BB61 -> 0 | BC100: =BC61 -> 0 | BD100: =BD61 -> 0 | BE100: =BE61 -> 0 | BF100: =BF61 -> 0 | BG100: =BG61 -> 0 | BH100: =BH61 -> 0 | BI100: =BI61 -> 0 | BJ100: =BJ61 -> 0 | BK100: =BK61 -> 0 | BL100: =BL61 -> 0 | BM100: =BM61 -> 0 | BN100: =BN61 -> 0 | BO100: =BO61 -> 0 | BP100: =BP61 -> 0 | BQ100: =BQ61 -> 0 | BR100: =BR61 -> 0 | BS100: =BS61 -> 0 | BT100: =BT61 -> 0 | BU100: =BU61 -> 0 | BV100: =BV61 -> 0 | BW100: =BW61 -> 0 | BX100: =BX61 -> 0 | BY100: =BY61 -> 0 | BZ100: =BZ61 -> 0 | CA100: =CA61 -> 0 | CB100: =CB61 -> 0 | CC100: =CC61 -> 0 | CD100: =CD61 -> 0 | CE100: =CE61 -> 0 | CF100: =CF61 -> 0 | CG100: =CG61 -> 0 | CH100: =CH61 -> 0 | CI100: =CI61 -> 0 | CJ100: =CJ61 -> 0 | CK100: =CK61 -> 0 | CL100: =CL61 -> 0 | CM100: =CM61 -> 0 | CN100: =CN61 -> 0 | CO100: =CO61 -> 0 | CP100: =CP61 -> 0 | CQ100: =CQ61 -> 0 | CR100: =CR61 -> 0 | CS100: =CS61 -> 0 | CT100: =CT61 -> 0 | CU100: =CU61 -> 0 | CV100: =CV61 -> 0 | CW100: =CW61 -> 0 | CX100: =CX61 -> 0 | CY100: =CY61 -> 0 | CZ100: =CZ61 -> 0 | DA100: =DA61 -> 0 | DB100: =DB61 -> 0 | DC100: =DC61 -> 0 | DD100: =DD61 -> 0 | DE100: =DE61 -> 0 | DF100: =DF61 -> 0 | DG100: =DG61 -> 0 | DH100: =DH61 -> 0 | DI100: =DI61 -> 0 | DJ100: =DJ61 -> 0 | DK100: =DK61 -> 0 | DL100: =DL61 -> 0 | DM100: =DM61 -> 0 | DN100: =DN61 -> 0 | DO100: =DO61 -> 0 | DP100: =DP61 -> 0 | DQ100: =DQ61 -> 0 | DR100: =DR61 -> 0 | DS100: =DS61 -> 0 | DT100: =DT61 -> 0 | DU100: =DU61 -> 0 | DV100: =DV61 -> 0 | DW100: =DW61 -> 0 | DX100: =DX61 -> 0 | DY100: =DY61 -> 0 | DZ100: =DZ61 -> 0 | EA100: =EA61 -> 0 | EB100: =EB61 -> 0 | EC100: =EC61 -> 0 | ED100: =ED61 -> 0 | EE100: =EE61 -> 0 | EF100: =EF61 -> 0 | EG100: =EG61 -> 0 | EH100: =EH61 -> 0 | EI100: =EI61 -> 0 | EJ100: =EJ61 -> 0 | EK100: =EK61 -> 0 | EL100: =EL61 -> 0 | EM100: =EM61 -> 0 | EN100: =EN61 -> 0 | EO100: =EO61 -> 0 | EP100: =EP61 -> 0 | EQ100: =EQ61 -> 0 | ER100: =ER61 -> 0 | ES100: =ES61 -> 0 | ET100: =ET61 -> 0 | EU100: =EU61 -> 0 | EV100: =EV61 -> 0 | EW100: =EW61 -> 0 | EX100: =EX61 -> 0 | EY100: =EY61 -> 0 | EZ100: =EZ61 -> 0 | FA100: =FA61 -> 0 | FB100: =FB61 -> 0 | FC100: =FC61 -> 0 | FD100: =FD61 -> 0 | FE100: =FE61 -> 0 | FF100: =FF61 -> 0 | FG100: =FG61 -> 0 | FH100: =FH61 -> 0 | FI100: =FI61 -> 0 | FJ100: =FJ61 -> 0 | FK100: =FK61 -> 0 | FL100: =FL61 -> 0 | FM100: =FM61 -> 0 | FN100: =FN61 -> 0 | FO100: =FO61 -> 0 | FP100: =FP61 -> 0 | FQ100: =FQ61 -> 0 | FR100: =FR61 -> 0 | FS100: =FS61 -> 0 | FT100: =FT61 -> 0 | FU100: =FU61 -> 0 | FV100: =FV61 -> 0 | FW100: =FW61 -> 0 | FX100: =FX61 -> 0 | FY100: =FY61 -> 0 | FZ100: =FZ61 -> 0 | GA100: =GA61 -> 0 | GB100: =GB61 -> 0 | GC100: =GC61 -> 0 | GD100: =GD61 -> 0 | GE100: =GE61 -> 0 | GF100: =GF61 -> 0 | GG100: =GG61 -> 0 | GH100: =GH61 -> 0 | GI100: =GI61 -> 0 | GJ100: =GJ61 -> 0 | GK100: =GK61 -> 0 | GL100: =GL61 -> 0 | GM100: =GM61 -> 0 | GN100: =GN61 -> 0 | GO100: =GO61 -> 0 | GP100: =GP61 -> 0 | GQ100: =GQ61 -> 0 | GR100: =GR61 -> 0 | GS100: =GS61 -> 0 | GT100: =GT61 -> 0 | GU100: =GU61 -> 0 | GV100: =GV61 -> 0 | GW100: =GW61 -> 0 | GX100: =GX61 -> 0 | GY100: =GY61 -> 0 | GZ100: =GZ61 -> 0 | HA100: =HA61 -> 0
D101: Less: Taxes | J101: =J62 -> 0 | K101: =K62 -> 0 | L101: =L62 -> 0 | M101: =M62 -> 0 | N101: =N62 -> 0 | O101: =O62 -> 0 | P101: =P62 -> 0 | Q101: =Q62 -> 0 | R101: =R62 -> 0 | S101: =S62 -> 0 | T101: =T62 -> 0 | U101: =U62 -> 0 | V101: =V62 -> 0 | W101: =W62 -> 0 | X101: =X62 -> 0 | Y101: =Y62 -> 0 | Z101: =Z62 -> 0 | AA101: =AA62 -> 0 | AB101: =AB62 -> 0 | AC101: =AC62 -> 0 | AD101: =AD62 -> 0 | AE101: =AE62 -> 0 | AF101: =AF62 -> 0 | AG101: =AG62 -> 0 | AH101: =AH62 -> 137.2090002 | AI101: =AI62 -> 123.7344468 | AJ101: =AJ62 -> 111.6217396 | AK101: =AK62 -> 100.7355348 | AL101: =AL62 -> 90.9540718 | AM101: =AM62 -> 82.16781822 | AN101: =AN62 -> 74.27824991 | AO101: =AO62 -> 67.19675335 | AP101: =AP62 -> 60.84363801 | AQ101: =AQ62 -> 55.14724763 | AR101: =AR62 -> 50.04316064 | AS101: =AS62 -> 45.47347068 | AT101: =AT62 -> 41.38613939 | AU101: =AU62 -> 37.73441409 | AV101: =AV62 -> 34.47630403 | AW101: =AW62 -> 31.57410921 | AX101: =AX62 -> 28.99399674 | AY101: =AY62 -> 26.70561971 | AZ101: =AZ62 -> 24.68177466 | BA101: =BA62 -> 22.89809354 | BB101: =BB62 -> 0 | BC101: =BC62 -> 0 | BD101: =BD62 -> 0 | BE101: =BE62 -> 0 | BF101: =BF62 -> 0 | BG101: =BG62 -> 0 | BH101: =BH62 -> 0 | BI101: =BI62 -> 0 | BJ101: =BJ62 -> 0 | BK101: =BK62 -> 0 | BL101: =BL62 -> 0 | BM101: =BM62 -> 0 | BN101: =BN62 -> 0 | BO101: =BO62 -> 0 | BP101: =BP62 -> 0 | BQ101: =BQ62 -> 0 | BR101: =BR62 -> 0 | BS101: =BS62 -> 0 | BT101: =BT62 -> 0 | BU101: =BU62 -> 0 | BV101: =BV62 -> 0 | BW101: =BW62 -> 0 | BX101: =BX62 -> 0 | BY101: =BY62 -> 0 | BZ101: =BZ62 -> 0 | CA101: =CA62 -> 0 | CB101: =CB62 -> 0 | CC101: =CC62 -> 0 | CD101: =CD62 -> 0 | CE101: =CE62 -> 0 | CF101: =CF62 -> 0 | CG101: =CG62 -> 0 | CH101: =CH62 -> 0 | CI101: =CI62 -> 0 | CJ101: =CJ62 -> 0 | CK101: =CK62 -> 0 | CL101: =CL62 -> 0 | CM101: =CM62 -> 0 | CN101: =CN62 -> 0 | CO101: =CO62 -> 0 | CP101: =CP62 -> 0 | CQ101: =CQ62 -> 0 | CR101: =CR62 -> 0 | CS101: =CS62 -> 0 | CT101: =CT62 -> 0 | CU101: =CU62 -> 0 | CV101: =CV62 -> 0 | CW101: =CW62 -> 0 | CX101: =CX62 -> 0 | CY101: =CY62 -> 0 | CZ101: =CZ62 -> 0 | DA101: =DA62 -> 0 | DB101: =DB62 -> 0 | DC101: =DC62 -> 0 | DD101: =DD62 -> 0 | DE101: =DE62 -> 0 | DF101: =DF62 -> 0 | DG101: =DG62 -> 0 | DH101: =DH62 -> 0 | DI101: =DI62 -> 0 | DJ101: =DJ62 -> 0 | DK101: =DK62 -> 0 | DL101: =DL62 -> 0 | DM101: =DM62 -> 0 | DN101: =DN62 -> 0 | DO101: =DO62 -> 0 | DP101: =DP62 -> 0 | DQ101: =DQ62 -> 0 | DR101: =DR62 -> 0 | DS101: =DS62 -> 0 | DT101: =DT62 -> 0 | DU101: =DU62 -> 0 | DV101: =DV62 -> 0 | DW101: =DW62 -> 0 | DX101: =DX62 -> 0 | DY101: =DY62 -> 0 | DZ101: =DZ62 -> 0 | EA101: =EA62 -> 0 | EB101: =EB62 -> 0 | EC101: =EC62 -> 0 | ED101: =ED62 -> 0 | EE101: =EE62 -> 0 | EF101: =EF62 -> 0 | EG101: =EG62 -> 0 | EH101: =EH62 -> 0 | EI101: =EI62 -> 0 | EJ101: =EJ62 -> 0 | EK101: =EK62 -> 0 | EL101: =EL62 -> 0 | EM101: =EM62 -> 0 | EN101: =EN62 -> 0 | EO101: =EO62 -> 0 | EP101: =EP62 -> 0 | EQ101: =EQ62 -> 0 | ER101: =ER62 -> 0 | ES101: =ES62 -> 0 | ET101: =ET62 -> 0 | EU101: =EU62 -> 0 | EV101: =EV62 -> 0 | EW101: =EW62 -> 0 | EX101: =EX62 -> 0 | EY101: =EY62 -> 0 | EZ101: =EZ62 -> 0 | FA101: =FA62 -> 0 | FB101: =FB62 -> 0 | FC101: =FC62 -> 0 | FD101: =FD62 -> 0 | FE101: =FE62 -> 0 | FF101: =FF62 -> 0 | FG101: =FG62 -> 0 | FH101: =FH62 -> 0 | FI101: =FI62 -> 0 | FJ101: =FJ62 -> 0 | FK101: =FK62 -> 0 | FL101: =FL62 -> 0 | FM101: =FM62 -> 0 | FN101: =FN62 -> 0 | FO101: =FO62 -> 0 | FP101: =FP62 -> 0 | FQ101: =FQ62 -> 0 | FR101: =FR62 -> 0 | FS101: =FS62 -> 0 | FT101: =FT62 -> 0 | FU101: =FU62 -> 0 | FV101: =FV62 -> 0 | FW101: =FW62 -> 0 | FX101: =FX62 -> 0 | FY101: =FY62 -> 0 | FZ101: =FZ62 -> 0 | GA101: =GA62 -> 0 | GB101: =GB62 -> 0 | GC101: =GC62 -> 0 | GD101: =GD62 -> 0 | GE101: =GE62 -> 0 | GF101: =GF62 -> 0 | GG101: =GG62 -> 0 | GH101: =GH62 -> 0 | GI101: =GI62 -> 0 | GJ101: =GJ62 -> 0 | GK101: =GK62 -> 0 | GL101: =GL62 -> 0 | GM101: =GM62 -> 0 | GN101: =GN62 -> 0 | GO101: =GO62 -> 0 | GP101: =GP62 -> 0 | GQ101: =GQ62 -> 0 | GR101: =GR62 -> 0 | GS101: =GS62 -> 0 | GT101: =GT62 -> 0 | GU101: =GU62 -> 0 | GV101: =GV62 -> 0 | GW101: =GW62 -> 0 | GX101: =GX62 -> 0 | GY101: =GY62 -> 0 | GZ101: =GZ62 -> 0 | HA101: =HA62 -> 0
D102: DSRA Moves | J102: =-J82 -> 0 | K102: =-K82 -> 0 | L102: 0 | M102: 0 | N102: 0 | O102: 0 | P102: 0 | Q102: 0 | R102: 0 | S102: 0 | T102: 0 | U102: 0 | V102: 0 | W102: 0 | X102: 0 | Y102: 0 | Z102: 0 | AA102: 0 | AB102: 0 | AC102: 0 | AD102: 0 | AE102: 0 | AF102: 0 | AG102: 0 | AH102: -40.36237698 | AI102: -36.33606404 | AJ102: -32.71296217 | AK102: -29.45278414 | AL102: -26.5192734 | AM102: -23.87980117 | AN102: -21.50500375 | AO102: -19.36845618 | AP102: -17.44637844 | AQ102: -15.71737118 | AR102: -14.16217774 | AS102: -12.76347009 | AT102: -11.50565609 | AU102: -10.37470614 | AV102: -9.357997073 | AW102: -8.44417175 | AX102: -7.623012642 | AY102: -6.885328117 | AZ102: -6.222850088 | BA102: -51.2849863 | BB102: 0 | BC102: 0 | BD102: 0 | BE102: 0 | BF102: 0 | BG102: 0 | BH102: 0 | BI102: 0 | BJ102: 0 | BK102: 0 | BL102: 0 | BM102: 0 | BN102: 0 | BO102: 0 | BP102: 0 | BQ102: 0 | BR102: 0 | BS102: 0 | BT102: 0 | BU102: 0 | BV102: 0 | BW102: =-BW82 -> 0 | BX102: 0 | BY102: 0 | BZ102: 0 | CA102: 0 | CB102: 0 | CC102: 0 | CD102: 0 | CE102: 0 | CF102: 0 | CG102: 0 | CH102: 0 | CI102: 0 | CJ102: 0 | CK102: 0 | CL102: 0 | CM102: 0 | CN102: 0 | CO102: 0 | CP102: 0 | CQ102: 0 | CR102: 0 | CS102: 0 | CT102: 0 | CU102: 0 | CV102: 0 | CW102: 0 | CX102: 0 | CY102: 0 | CZ102: 0 | DA102: 0 | DB102: 0 | DC102: 0 | DD102: 0 | DE102: 0 | DF102: 0 | DG102: 0 | DH102: 0 | DI102: 0 | DJ102: 0 | DK102: 0 | DL102: 0 | DM102: 0 | DN102: 0 | DO102: 0 | DP102: 0 | DQ102: 0 | DR102: 0 | DS102: 0 | DT102: 0 | DU102: 0 | DV102: 0 | DW102: 0 | DX102: 0 | DY102: 0 | DZ102: 0 | EA102: 0 | EB102: 0 | EC102: 0 | ED102: 0 | EE102: 0 | EF102: 0 | EG102: 0 | EH102: 0 | EI102: =-EI82 -> 0 | EJ102: 0 | EK102: 0 | EL102: 0 | EM102: 0 | EN102: 0 | EO102: 0 | EP102: 0 | EQ102: 0 | ER102: 0 | ES102: 0 | ET102: 0 | EU102: 0 | EV102: 0 | EW102: 0 | EX102: 0 | EY102: 0 | EZ102: 0 | FA102: 0 | FB102: 0 | FC102: 0 | FD102: 0 | FE102: 0 | FF102: 0 | FG102: 0 | FH102: 0 | FI102: 0 | FJ102: 0 | FK102: 0 | FL102: 0 | FM102: 0 | FN102: 0 | FO102: 0 | FP102: 0 | FQ102: 0 | FR102: 0 | FS102: 0 | FT102: 0 | FU102: 0 | FV102: 0 | FW102: 0 | FX102: 0 | FY102: 0 | FZ102: 0 | GA102: 0 | GB102: 0 | GC102: 0 | GD102: 0 | GE102: 0 | GF102: 0 | GG102: 0 | GH102: 0 | GI102: 0 | GJ102: 0 | GK102: 0 | GL102: 0 | GM102: 0 | GN102: 0 | GO102: 0 | GP102: 0 | GQ102: 0 | GR102: 0 | GS102: 0 | GT102: 0 | GU102: =-GU82 -> 0 | GV102: 0 | GW102: 0 | GX102: 0 | GY102: 0 | GZ102: 0 | HA102: 0
D103: Adjusted CFADS | J103: =J100-J102-J101 -> 0 | K103: =K100-K102-K101 -> 0 | L103: 0 | M103: 0 | N103: 0 | O103: 0 | P103: 0 | Q103: 0 | R103: 0 | S103: 0 | T103: 0 | U103: 0 | V103: 0 | W103: 0 | X103: 0 | Y103: 0 | Z103: 0 | AA103: 0 | AB103: 0 | AC103: 0 | AD103: 0 | AE103: 0 | AF103: 0 | AG103: 0 | AH103: 623.1533768 | AI103: 560.6016173 | AJ103: 504.2912225 | AK103: 453.5972493 | AL103: 407.9572016 | AM103: 366.8647829 | AN103: 329.8642738 | AO103: 296.5454708 | AP103: 266.5391316 | AQ103: 239.5128756 | AR103: 215.167494 | AS103: 193.2336286 | AT103: 173.468783 | AU103: 155.6546317 | AV103: 139.5945987 | AW103: 125.1116776 | AX103: 112.0464695 | AY103: 100.2554166 | AZ103: 89.60921284 | BA103: 125.6482164 | BB103: 0 | BC103: 0 | BD103: 0 | BE103: 0 | BF103: 0 | BG103: 0 | BH103: 0 | BI103: 0 | BJ103: 0 | BK103: 0 | BL103: 0 | BM103: 0 | BN103: 0 | BO103: 0 | BP103: 0 | BQ103: 0 | BR103: 0 | BS103: 0 | BT103: 0 | BU103: 0 | BV103: 0 | BW103: =BW100-BW102-BW101 -> 0 | BX103: 0 | BY103: 0 | BZ103: 0 | CA103: 0 | CB103: 0 | CC103: 0 | CD103: 0 | CE103: 0 | CF103: 0 | CG103: 0 | CH103: 0 | CI103: 0 | CJ103: 0 | CK103: 0 | CL103: 0 | CM103: 0 | CN103: 0 | CO103: 0 | CP103: 0 | CQ103: 0 | CR103: 0 | CS103: 0 | CT103: 0 | CU103: 0 | CV103: 0 | CW103: 0 | CX103: 0 | CY103: 0 | CZ103: 0 | DA103: 0 | DB103: 0 | DC103: 0 | DD103: 0 | DE103: 0 | DF103: 0 | DG103: 0 | DH103: 0 | DI103: 0 | DJ103: 0 | DK103: 0 | DL103: 0 | DM103: 0 | DN103: 0 | DO103: 0 | DP103: 0 | DQ103: 0 | DR103: 0 | DS103: 0 | DT103: 0 | DU103: 0 | DV103: 0 | DW103: 0 | DX103: 0 | DY103: 0 | DZ103: 0 | EA103: 0 | EB103: 0 | EC103: 0 | ED103: 0 | EE103: 0 | EF103: 0 | EG103: 0 | EH103: 0 | EI103: =EI100-EI102-EI101 -> 0 | EJ103: 0 | EK103: 0 | EL103: 0 | EM103: 0 | EN103: 0 | EO103: 0 | EP103: 0 | EQ103: 0 | ER103: 0 | ES103: 0 | ET103: 0 | EU103: 0 | EV103: 0 | EW103: 0 | EX103: 0 | EY103: 0 | EZ103: 0 | FA103: 0 | FB103: 0 | FC103: 0 | FD103: 0 | FE103: 0 | FF103: 0 | FG103: 0 | FH103: 0 | FI103: 0 | FJ103: 0 | FK103: 0 | FL103: 0 | FM103: 0 | FN103: 0 | FO103: 0 | FP103: 0 | FQ103: 0 | FR103: 0 | FS103: 0 | FT103: 0 | FU103: 0 | FV103: 0 | FW103: 0 | FX103: 0 | FY103: 0 | FZ103: 0 | GA103: 0 | GB103: 0 | GC103: 0 | GD103: 0 | GE103: 0 | GF103: 0 | GG103: 0 | GH103: 0 | GI103: 0 | GJ103: 0 | GK103: 0 | GL103: 0 | GM103: 0 | GN103: 0 | GO103: 0 | GP103: 0 | GQ103: 0 | GR103: 0 | GS103: 0 | GT103: 0 | GU103: =GU100-GU102-GU101 -> 0 | GV103: 0 | GW103: 0 | GX103: 0 | GY103: 0 | GZ103: 0 | HA103: 0
D105: Debt Service from Base sculpting | J105: =J68 -> 0 | K105: =K68 -> 0 | L105: 0 | M105: 0 | N105: 0 | O105: 0 | P105: 0 | Q105: 0 | R105: 0 | S105: 0 | T105: 0 | U105: 0 | V105: 0 | W105: 0 | X105: 0 | Y105: 0 | Z105: 0 | AA105: 0 | AB105: 0 | AC105: 0 | AD105: 0 | AE105: 0 | AF105: 0 | AG105: 0 | AH105: 401.9248275 | AI105: 361.5624505 | AJ105: 325.2263864 | AK105: 292.5134243 | AL105: 263.0606401 | AM105: 236.5413667 | AN105: 212.6615656 | AO105: 191.1565618 | AP105: 171.7881056 | AQ105: 154.3417272 | AR105: 138.624356 | AS105: 124.4621783 | AT105: 111.6987082 | AU105: 100.1930521 | AV105: 89.81834597 | AW105: 80.46034889 | AX105: 72.01617714 | AY105: 64.3931645 | AZ105: 57.50783638 | BA105: 51.2849863 | BB105: 0 | BC105: 0 | BD105: 0 | BE105: 0 | BF105: 0 | BG105: 0 | BH105: 0 | BI105: 0 | BJ105: 0 | BK105: 0 | BL105: 0 | BM105: 0 | BN105: 0 | BO105: 0 | BP105: 0 | BQ105: 0 | BR105: 0 | BS105: 0 | BT105: 0 | BU105: 0 | BV105: 0 | BW105: =BW68 -> 0 | BX105: 0 | BY105: 0 | BZ105: 0 | CA105: 0 | CB105: 0 | CC105: 0 | CD105: 0 | CE105: 0 | CF105: 0 | CG105: 0 | CH105: 0 | CI105: 0 | CJ105: 0 | CK105: 0 | CL105: 0 | CM105: 0 | CN105: 0 | CO105: 0 | CP105: 0 | CQ105: 0 | CR105: 0 | CS105: 0 | CT105: 0 | CU105: 0 | CV105: 0 | CW105: 0 | CX105: 0 | CY105: 0 | CZ105: 0 | DA105: 0 | DB105: 0 | DC105: 0 | DD105: 0 | DE105: 0 | DF105: 0 | DG105: 0 | DH105: 0 | DI105: 0 | DJ105: 0 | DK105: 0 | DL105: 0 | DM105: 0 | DN105: 0 | DO105: 0 | DP105: 0 | DQ105: 0 | DR105: 0 | DS105: 0 | DT105: 0 | DU105: 0 | DV105: 0 | DW105: 0 | DX105: 0 | DY105: 0 | DZ105: 0 | EA105: 0 | EB105: 0 | EC105: 0 | ED105: 0 | EE105: 0 | EF105: 0 | EG105: 0 | EH105: 0 | EI105: =EI68 -> 0 | EJ105: 0 | EK105: 0 | EL105: 0 | EM105: 0 | EN105: 0 | EO105: 0 | EP105: 0 | EQ105: 0 | ER105: 0 | ES105: 0 | ET105: 0 | EU105: 0 | EV105: 0 | EW105: 0 | EX105: 0 | EY105: 0 | EZ105: 0 | FA105: 0 | FB105: 0 | FC105: 0 | FD105: 0 | FE105: 0 | FF105: 0 | FG105: 0 | FH105: 0 | FI105: 0 | FJ105: 0 | FK105: 0 | FL105: 0 | FM105: 0 | FN105: 0 | FO105: 0 | FP105: 0 | FQ105: 0 | FR105: 0 | FS105: 0 | FT105: 0 | FU105: 0 | FV105: 0 | FW105: 0 | FX105: 0 | FY105: 0 | FZ105: 0 | GA105: 0 | GB105: 0 | GC105: 0 | GD105: 0 | GE105: 0 | GF105: 0 | GG105: 0 | GH105: 0 | GI105: 0 | GJ105: 0 | GK105: 0 | GL105: 0 | GM105: 0 | GN105: 0 | GO105: 0 | GP105: 0 | GQ105: 0 | GR105: 0 | GS105: 0 | GT105: 0 | GU105: =GU68 -> 0 | GV105: 0 | GW105: 0 | GX105: 0 | GY105: 0 | GZ105: 0 | HA105: 0
D106: Added Debt Service | J106: =J86 -> 0 | K106: =K86 -> 0 | L106: 0 | M106: 0 | N106: 0 | O106: 0 | P106: 0 | Q106: 0 | R106: 0 | S106: 0 | T106: 0 | U106: 0 | V106: 0 | W106: 0 | X106: 0 | Y106: 0 | Z106: 0 | AA106: 0 | AB106: 0 | AC106: 0 | AD106: 0 | AE106: 0 | AF106: 0 | AG106: 0 | AH106: 27.83612206 | AI106: 25.05935451 | AJ106: 22.56066357 | AK106: 20.31226492 | AL106: 18.28915407 | AM106: 16.46882839 | AN106: 14.83103707 | AO106: 13.35755598 | AP106: 12.03198513 | AQ106: 10.83956633 | AR106: 9.767019134 | AS106: 8.802393163 | AT106: 7.934935233 | AU106: 7.154969749 | AV106: 6.453791085 | AW106: 5.823566724 | AX106: 5.257250098 | AY106: 4.74850215 | AZ106: 4.29162075 | BA106: 35.36895607 | BB106: 0 | BC106: 0 | BD106: 0 | BE106: 0 | BF106: 0 | BG106: 0 | BH106: 0 | BI106: 0 | BJ106: 0 | BK106: 0 | BL106: 0 | BM106: 0 | BN106: 0 | BO106: 0 | BP106: 0 | BQ106: 0 | BR106: 0 | BS106: 0 | BT106: 0 | BU106: 0 | BV106: 0 | BW106: =BW86 -> 0 | BX106: 0 | BY106: 0 | BZ106: 0 | CA106: 0 | CB106: 0 | CC106: 0 | CD106: 0 | CE106: 0 | CF106: 0 | CG106: 0 | CH106: 0 | CI106: 0 | CJ106: 0 | CK106: 0 | CL106: 0 | CM106: 0 | CN106: 0 | CO106: 0 | CP106: 0 | CQ106: 0 | CR106: 0 | CS106: 0 | CT106: 0 | CU106: 0 | CV106: 0 | CW106: 0 | CX106: 0 | CY106: 0 | CZ106: 0 | DA106: 0 | DB106: 0 | DC106: 0 | DD106: 0 | DE106: 0 | DF106: 0 | DG106: 0 | DH106: 0 | DI106: 0 | DJ106: 0 | DK106: 0 | DL106: 0 | DM106: 0 | DN106: 0 | DO106: 0 | DP106: 0 | DQ106: 0 | DR106: 0 | DS106: 0 | DT106: 0 | DU106: 0 | DV106: 0 | DW106: 0 | DX106: 0 | DY106: 0 | DZ106: 0 | EA106: 0 | EB106: 0 | EC106: 0 | ED106: 0 | EE106: 0 | EF106: 0 | EG106: 0 | EH106: 0 | EI106: =EI86 -> 0 | EJ106: 0 | EK106: 0 | EL106: 0 | EM106: 0 | EN106: 0 | EO106: 0 | EP106: 0 | EQ106: 0 | ER106: 0 | ES106: 0 | ET106: 0 | EU106: 0 | EV106: 0 | EW106: 0 | EX106: 0 | EY106: 0 | EZ106: 0 | FA106: 0 | FB106: 0 | FC106: 0 | FD106: 0 | FE106: 0 | FF106: 0 | FG106: 0 | FH106: 0 | FI106: 0 | FJ106: 0 | FK106: 0 | FL106: 0 | FM106: 0 | FN106: 0 | FO106: 0 | FP106: 0 | FQ106: 0 | FR106: 0 | FS106: 0 | FT106: 0 | FU106: 0 | FV106: 0 | FW106: 0 | FX106: 0 | FY106: 0 | FZ106: 0 | GA106: 0 | GB106: 0 | GC106: 0 | GD106: 0 | GE106: 0 | GF106: 0 | GG106: 0 | GH106: 0 | GI106: 0 | GJ106: 0 | GK106: 0 | GL106: 0 | GM106: 0 | GN106: 0 | GO106: 0 | GP106: 0 | GQ106: 0 | GR106: 0 | GS106: 0 | GT106: 0 | GU106: =GU86 -> 0 | GV106: 0 | GW106: 0 | GX106: 0 | GY106: 0 | GZ106: 0 | HA106: 0
D107: Total Debt Service | G107: =SUM(J107:HA107) -> 3778.425746 | J107: =J105+J106 -> 0 | K107: =K105+K106 -> 0 | L107: 0 | M107: 0 | N107: 0 | O107: 0 | P107: 0 | Q107: 0 | R107: 0 | S107: 0 | T107: 0 | U107: 0 | V107: 0 | W107: 0 | X107: 0 | Y107: 0 | Z107: 0 | AA107: 0 | AB107: 0 | AC107: 0 | AD107: 0 | AE107: 0 | AF107: 0 | AG107: 0 | AH107: 429.7609495 | AI107: 386.621805 | AJ107: 347.78705 | AK107: 312.8256892 | AL107: 281.3497942 | AM107: 253.0101951 | AN107: 227.4926026 | AO107: 204.5141178 | AP107: 183.8200908 | AQ107: 165.1812935 | AR107: 148.3913752 | AS107: 133.2645714 | AT107: 119.6336434 | AU107: 107.3480219 | AV107: 96.27213705 | AW107: 86.28391562 | AX107: 77.27342724 | AY107: 69.14166665 | AZ107: 61.79945713 | BA107: 86.65394236 | BB107: 0 | BC107: 0 | BD107: 0 | BE107: 0 | BF107: 0 | BG107: 0 | BH107: 0 | BI107: 0 | BJ107: 0 | BK107: 0 | BL107: 0 | BM107: 0 | BN107: 0 | BO107: 0 | BP107: 0 | BQ107: 0 | BR107: 0 | BS107: 0 | BT107: 0 | BU107: 0 | BV107: 0 | BW107: =BW105+BW106 -> 0 | BX107: 0 | BY107: 0 | BZ107: 0 | CA107: 0 | CB107: 0 | CC107: 0 | CD107: 0 | CE107: 0 | CF107: 0 | CG107: 0 | CH107: 0 | CI107: 0 | CJ107: 0 | CK107: 0 | CL107: 0 | CM107: 0 | CN107: 0 | CO107: 0 | CP107: 0 | CQ107: 0 | CR107: 0 | CS107: 0 | CT107: 0 | CU107: 0 | CV107: 0 | CW107: 0 | CX107: 0 | CY107: 0 | CZ107: 0 | DA107: 0 | DB107: 0 | DC107: 0 | DD107: 0 | DE107: 0 | DF107: 0 | DG107: 0 | DH107: 0 | DI107: 0 | DJ107: 0 | DK107: 0 | DL107: 0 | DM107: 0 | DN107: 0 | DO107: 0 | DP107: 0 | DQ107: 0 | DR107: 0 | DS107: 0 | DT107: 0 | DU107: 0 | DV107: 0 | DW107: 0 | DX107: 0 | DY107: 0 | DZ107: 0 | EA107: 0 | EB107: 0 | EC107: 0 | ED107: 0 | EE107: 0 | EF107: 0 | EG107: 0 | EH107: 0 | EI107: =EI105+EI106 -> 0 | EJ107: 0 | EK107: 0 | EL107: 0 | EM107: 0 | EN107: 0 | EO107: 0 | EP107: 0 | EQ107: 0 | ER107: 0 | ES107: 0 | ET107: 0 | EU107: 0 | EV107: 0 | EW107: 0 | EX107: 0 | EY107: 0 | EZ107: 0 | FA107: 0 | FB107: 0 | FC107: 0 | FD107: 0 | FE107: 0 | FF107: 0 | FG107: 0 | FH107: 0 | FI107: 0 | FJ107: 0 | FK107: 0 | FL107: 0 | FM107: 0 | FN107: 0 | FO107: 0 | FP107: 0 | FQ107: 0 | FR107: 0 | FS107: 0 | FT107: 0 | FU107: 0 | FV107: 0 | FW107: 0 | FX107: 0 | FY107: 0 | FZ107: 0 | GA107: 0 | GB107: 0 | GC107: 0 | GD107: 0 | GE107: 0 | GF107: 0 | GG107: 0 | GH107: 0 | GI107: 0 | GJ107: 0 | GK107: 0 | GL107: 0 | GM107: 0 | GN107: 0 | GO107: 0 | GP107: 0 | GQ107: 0 | GR107: 0 | GS107: 0 | GT107: 0 | GU107: =GU105+GU106 -> 0 | GV107: 0 | GW107: 0 | GX107: 0 | GY107: 0 | GZ107: 0 | HA107: 0
D108: DSCR | J108: =IF(J107>0.1,J103/J107) -> FALSE | K108: =IF(K107>0.1,K103/K107) -> FALSE | L108: FALSE | M108: FALSE | N108: FALSE | O108: FALSE | P108: FALSE | Q108: FALSE | R108: FALSE | S108: FALSE | T108: FALSE | U108: FALSE | V108: FALSE | W108: FALSE | X108: FALSE | Y108: FALSE | Z108: FALSE | AA108: FALSE | AB108: FALSE | AC108: FALSE | AD108: FALSE | AE108: FALSE | AF108: FALSE | AG108: FALSE | AH108: 1.45 | AI108: 1.45 | AJ108: 1.45 | AK108: 1.45 | AL108: 1.45 | AM108: 1.45 | AN108: 1.45 | AO108: 1.45 | AP108: 1.45 | AQ108: 1.45 | AR108: 1.45 | AS108: 1.45 | AT108: 1.45 | AU108: 1.45 | AV108: 1.45 | AW108: 1.45 | AX108: 1.45 | AY108: 1.45 | AZ108: 1.45 | BA108: 1.45 | BB108: FALSE | BC108: FALSE | BD108: FALSE | BE108: FALSE | BF108: FALSE | BG108: FALSE | BH108: FALSE | BI108: FALSE | BJ108: FALSE | BK108: FALSE | BL108: FALSE | BM108: FALSE | BN108: FALSE | BO108: FALSE | BP108: FALSE | BQ108: FALSE | BR108: FALSE | BS108: FALSE | BT108: FALSE | BU108: FALSE | BV108: FALSE | BW108: =IF(BW107>0.1,BW103/BW107) -> FALSE | BX108: FALSE | BY108: FALSE | BZ108: FALSE | CA108: FALSE | CB108: FALSE | CC108: FALSE | CD108: FALSE | CE108: FALSE | CF108: FALSE | CG108: FALSE | CH108: FALSE | CI108: FALSE | CJ108: FALSE | CK108: FALSE | CL108: FALSE | CM108: FALSE | CN108: FALSE | CO108: FALSE | CP108: FALSE | CQ108: FALSE | CR108: FALSE | CS108: FALSE | CT108: FALSE | CU108: FALSE | CV108: FALSE | CW108: FALSE | CX108: FALSE | CY108: FALSE | CZ108: FALSE | DA108: FALSE | DB108: FALSE | DC108: FALSE | DD108: FALSE | DE108: FALSE | DF108: FALSE | DG108: FALSE | DH108: FALSE | DI108: FALSE | DJ108: FALSE | DK108: FALSE | DL108: FALSE | DM108: FALSE | DN108: FALSE | DO108: FALSE | DP108: FALSE | DQ108: FALSE | DR108: FALSE | DS108: FALSE | DT108: FALSE | DU108: FALSE | DV108: FALSE | DW108: FALSE | DX108: FALSE | DY108: FALSE | DZ108: FALSE | EA108: FALSE | EB108: FALSE | EC108: FALSE | ED108: FALSE | EE108: FALSE | EF108: FALSE | EG108: FALSE | EH108: FALSE | EI108: =IF(EI107>0.1,EI103/EI107) -> FALSE | EJ108: FALSE | EK108: FALSE | EL108: FALSE | EM108: FALSE | EN108: FALSE | EO108: FALSE | EP108: FALSE | EQ108: FALSE | ER108: FALSE | ES108: FALSE | ET108: FALSE | EU108: FALSE | EV108: FALSE | EW108: FALSE | EX108: FALSE | EY108: FALSE | EZ108: FALSE | FA108: FALSE | FB108: FALSE | FC108: FALSE | FD108: FALSE | FE108: FALSE | FF108: FALSE | FG108: FALSE | FH108: FALSE | FI108: FALSE | FJ108: FALSE | FK108: FALSE | FL108: FALSE | FM108: FALSE | FN108: FALSE | FO108: FALSE | FP108: FALSE | FQ108: FALSE | FR108: FALSE | FS108: FALSE | FT108: FALSE | FU108: FALSE | FV108: FALSE | FW108: FALSE | FX108: FALSE | FY108: FALSE | FZ108: FALSE | GA108: FALSE | GB108: FALSE | GC108: FALSE | GD108: FALSE | GE108: FALSE | GF108: FALSE | GG108: FALSE | GH108: FALSE | GI108: FALSE | GJ108: FALSE | GK108: FALSE | GL108: FALSE | GM108: FALSE | GN108: FALSE | GO108: FALSE | GP108: FALSE | GQ108: FALSE | GR108: FALSE | GS108: FALSE | GT108: FALSE | GU108: =IF(GU107>0.1,GU103/GU107) -> FALSE | GV108: FALSE | GW108: FALSE | GX108: FALSE | GY108: FALSE | GZ108: FALSE | HA108: FALSE
B110: Summary Sources and Uses
C111: Uses of Funds | K111: Fixed | L111: Computed | M111: Difference | N111: UDF
D112: Capital Expenditures | F112: MED | G112: =SUM(J36:HA36) -> 25000 | N112: =UDFOutput!H15 -> 25000
D113: IDC | F113: MED | G113: =K113 -> 161.481249 | K113: 161.481249 | L113: =I127 -> 161.481249 | M113: =K113-L113 -> 0 | N113: =UDFOutput!H17 -> 155.8045893
D114: Up Front Fee | F114: MED | G114: =K114 -> 48.90399982 | K114: 48.90399982 | L114: =I128 -> 48.90399982 | M114: =K114-L114 -> 0 | N114: =UDFOutput!H18 -> 47.21153051
D115: Commitment Fee | F115: MED | G115: =K115 -> 38.75287493 | K115: 38.75287493 | L115: =I129 -> 38.75287493 | M115: 0 | N115: =UDFOutput!H19 -> 37.43059807
D116: DSRA | F116: MED | G116: =K116 -> 401.9248275 | K116: 401.9248275 | L116: =I130 -> 401.9248275 | M116: 0 | N116: =UDFOutput!H20 -> 416.2072248
E117: Total Uses | F117: MED | G117: =SUM(G112:G116) -> 25651.06295 | M117: =SUM(M112:M116)+I133+I66+Debt_Difference+I84 -> 0 | N117: =SUM(N112:N116) -> 25656.65394
C119: Sources
D120: Debt | F120: MED | G120: =K120 -> 2445.199991 | H120: =G120/G117 -> 0.095325484 | K120: 2445.199991 | L120: =G88 -> 2445.199991 | M120: =K120-L120 -> 0 | N120: =UDFOutput!H24 -> 2360.576526
D121: Equity | F121: MED | G121: =G117-G120 -> 23205.86296 | N121: =UDFOutput!H25 -> 23296.07742
D122: Total Sources | F122: MED | G122: =SUM(G120:G121) -> 25651.06295 | N122: =SUM(N120:N121) -> 25656.65394
B124: Construction Funding
C125: Funing Requirements
D126: Capital Expenditures | F126: MED | J126: =J36 -> 1041.666667 | K126: =K36 -> 1041.666667 | L126: =L36 -> 1041.666667 | M126: =M36 -> 1041.666667 | N126: =N36 -> 1041.666667 | O126: =O36 -> 1041.666667 | P126: =P36 -> 1041.666667 | Q126: =Q36 -> 1041.666667 | R126: =R36 -> 1041.666667 | S126: =S36 -> 1041.666667 | T126: =T36 -> 1041.666667 | U126: =U36 -> 1041.666667 | V126: =V36 -> 1041.666667 | W126: =W36 -> 1041.666667 | X126: =X36 -> 1041.666667 | Y126: =Y36 -> 1041.666667 | Z126: =Z36 -> 1041.666667 | AA126: =AA36 -> 1041.666667 | AB126: =AB36 -> 1041.666667 | AC126: =AC36 -> 1041.666667 | AD126: =AD36 -> 1041.666667 | AE126: =AE36 -> 1041.666667 | AF126: =AF36 -> 1041.666667 | AG126: =AG36 -> 1041.666667 | AH126: =AH36 -> 0 | AI126: =AI36 -> 0 | AJ126: =AJ36 -> 0 | AK126: =AK36 -> 0 | AL126: =AL36 -> 0 | AM126: =AM36 -> 0 | AN126: =AN36 -> 0 | AO126: =AO36 -> 0 | AP126: =AP36 -> 0 | AQ126: =AQ36 -> 0 | AR126: =AR36 -> 0 | AS126: =AS36 -> 0 | AT126: =AT36 -> 0 | AU126: =AU36 -> 0 | AV126: =AV36 -> 0 | AW126: =AW36 -> 0 | AX126: =AX36 -> 0 | AY126: =AY36 -> 0 | AZ126: =AZ36 -> 0 | BA126: =BA36 -> 0 | BB126: =BB36 -> 0 | BC126: =BC36 -> 0 | BD126: =BD36 -> 0 | BE126: =BE36 -> 0 | BF126: =BF36 -> 0 | BG126: =BG36 -> 0 | BH126: =BH36 -> 0 | BI126: =BI36 -> 0 | BJ126: =BJ36 -> 0 | BK126: =BK36 -> 0 | BL126: =BL36 -> 0 | BM126: =BM36 -> 0 | BN126: =BN36 -> 0 | BO126: =BO36 -> 0 | BP126: =BP36 -> 0 | BQ126: =BQ36 -> 0 | BR126: =BR36 -> 0 | BS126: =BS36 -> 0 | BT126: =BT36 -> 0 | BU126: =BU36 -> 0 | BV126: =BV36 -> 0 | BW126: =BW36 -> 0 | BX126: =BX36 -> 0 | BY126: =BY36 -> 0 | BZ126: =BZ36 -> 0 | CA126: =CA36 -> 0 | CB126: =CB36 -> 0 | CC126: =CC36 -> 0 | CD126: =CD36 -> 0 | CE126: =CE36 -> 0 | CF126: =CF36 -> 0 | CG126: =CG36 -> 0 | CH126: =CH36 -> 0 | CI126: =CI36 -> 0 | CJ126: =CJ36 -> 0 | CK126: =CK36 -> 0 | CL126: =CL36 -> 0 | CM126: =CM36 -> 0 | CN126: =CN36 -> 0 | CO126: =CO36 -> 0 | CP126: =CP36 -> 0 | CQ126: =CQ36 -> 0 | CR126: =CR36 -> 0 | CS126: =CS36 -> 0 | CT126: =CT36 -> 0 | CU126: =CU36 -> 0 | CV126: =CV36 -> 0 | CW126: =CW36 -> 0 | CX126: =CX36 -> 0 | CY126: =CY36 -> 0 | CZ126: =CZ36 -> 0 | DA126: =DA36 -> 0 | DB126: =DB36 -> 0 | DC126: =DC36 -> 0 | DD126: =DD36 -> 0 | DE126: =DE36 -> 0 | DF126: =DF36 -> 0 | DG126: =DG36 -> 0 | DH126: =DH36 -> 0 | DI126: =DI36 -> 0 | DJ126: =DJ36 -> 0 | DK126: =DK36 -> 0 | DL126: =DL36 -> 0 | DM126: =DM36 -> 0 | DN126: =DN36 -> 0 | DO126: =DO36 -> 0 | DP126: =DP36 -> 0 | DQ126: =DQ36 -> 0 | DR126: =DR36 -> 0 | DS126: =DS36 -> 0 | DT126: =DT36 -> 0 | DU126: =DU36 -> 0 | DV126: =DV36 -> 0 | DW126: =DW36 -> 0 | DX126: =DX36 -> 0 | DY126: =DY36 -> 0 | DZ126: =DZ36 -> 0 | EA126: =EA36 -> 0 | EB126: =EB36 -> 0 | EC126: =EC36 -> 0 | ED126: =ED36 -> 0 | EE126: =EE36 -> 0 | EF126: =EF36 -> 0 | EG126: =EG36 -> 0 | EH126: =EH36 -> 0 | EI126: =EI36 -> 0 | EJ126: =EJ36 -> 0 | EK126: =EK36 -> 0 | EL126: =EL36 -> 0 | EM126: =EM36 -> 0 | EN126: =EN36 -> 0 | EO126: =EO36 -> 0 | EP126: =EP36 -> 0 | EQ126: =EQ36 -> 0 | ER126: =ER36 -> 0 | ES126: =ES36 -> 0 | ET126: =ET36 -> 0 | EU126: =EU36 -> 0 | EV126: =EV36 -> 0 | EW126: =EW36 -> 0 | EX126: =EX36 -> 0 | EY126: =EY36 -> 0 | EZ126: =EZ36 -> 0 | FA126: =FA36 -> 0 | FB126: =FB36 -> 0 | FC126: =FC36 -> 0 | FD126: =FD36 -> 0 | FE126: =FE36 -> 0 | FF126: =FF36 -> 0 | FG126: =FG36 -> 0 | FH126: =FH36 -> 0 | FI126: =FI36 -> 0 | FJ126: =FJ36 -> 0 | FK126: =FK36 -> 0 | FL126: =FL36 -> 0 | FM126: =FM36 -> 0 | FN126: =FN36 -> 0 | FO126: =FO36 -> 0 | FP126: =FP36 -> 0 | FQ126: =FQ36 -> 0 | FR126: =FR36 -> 0 | FS126: =FS36 -> 0 | FT126: =FT36 -> 0 | FU126: =FU36 -> 0 | FV126: =FV36 -> 0 | FW126: =FW36 -> 0 | FX126: =FX36 -> 0 | FY126: =FY36 -> 0 | FZ126: =FZ36 -> 0 | GA126: =GA36 -> 0 | GB126: =GB36 -> 0 | GC126: =GC36 -> 0 | GD126: =GD36 -> 0 | GE126: =GE36 -> 0 | GF126: =GF36 -> 0 | GG126: =GG36 -> 0 | GH126: =GH36 -> 0 | GI126: =GI36 -> 0 | GJ126: =GJ36 -> 0 | GK126: =GK36 -> 0 | GL126: =GL36 -> 0 | GM126: =GM36 -> 0 | GN126: =GN36 -> 0 | GO126: =GO36 -> 0 | GP126: =GP36 -> 0 | GQ126: =GQ36 -> 0 | GR126: =GR36 -> 0 | GS126: =GS36 -> 0 | GT126: =GT36 -> 0 | GU126: =GU36 -> 0 | GV126: =GV36 -> 0 | GW126: =GW36 -> 0 | GX126: =GX36 -> 0 | GY126: =GY36 -> 0 | GZ126: =GZ36 -> 0 | HA126: =HA36 -> 0
D127: IDC | F127: MED | I127: =SUM(J127:HA127) -> 161.481249 | J127: =J154 -> 0 | K127: =K154 -> 0.6081281439 | L127: 1.189328166 | M127: 1.770782119 | N127: 2.352490114 | O127: 2.934452262 | P127: 3.516668675 | Q127: 4.099139462 | R127: 4.681864737 | S127: 5.264844608 | T127: 5.848079189 | U127: 6.43156859 | V127: 7.015312922 | W127: 7.599312297 | X127: 8.183566827 | Y127: 8.768076622 | Z127: 9.352841794 | AA127: 9.937862455 | AB127: 10.52313872 | AC127: 11.10867069 | AD127: 11.69445849 | AE127: 12.28050222 | AF127: 12.866802 | AG127: 13.45335794 | AH127: 0 | AI127: 0 | AJ127: 0 | AK127: 0 | AL127: 0 | AM127: 0 | AN127: 0 | AO127: 0 | AP127: 0 | AQ127: 0 | AR127: 0 | AS127: 0 | AT127: 0 | AU127: 0 | AV127: 0 | AW127: 0 | AX127: 0 | AY127: 0 | AZ127: 0 | BA127: 0 | BB127: 0 | BC127: 0 | BD127: 0 | BE127: 0 | BF127: 0 | BG127: 0 | BH127: 0 | BI127: 0 | BJ127: 0 | BK127: 0 | BL127: 0 | BM127: 0 | BN127: 0 | BO127: 0 | BP127: 0 | BQ127: 0 | BR127: 0 | BS127: 0 | BT127: 0 | BU127: 0 | BV127: 0 | BW127: =BW154 -> 0 | BX127: 0 | BY127: 0 | BZ127: 0 | CA127: 0 | CB127: 0 | CC127: 0 | CD127: 0 | CE127: 0 | CF127: 0 | CG127: 0 | CH127: 0 | CI127: 0 | CJ127: 0 | CK127: 0 | CL127: 0 | CM127: 0 | CN127: 0 | CO127: 0 | CP127: 0 | CQ127: 0 | CR127: 0 | CS127: 0 | CT127: 0 | CU127: 0 | CV127: 0 | CW127: 0 | CX127: 0 | CY127: 0 | CZ127: 0 | DA127: 0 | DB127: 0 | DC127: 0 | DD127: 0 | DE127: 0 | DF127: 0 | DG127: 0 | DH127: 0 | DI127: 0 | DJ127: 0 | DK127: 0 | DL127: 0 | DM127: 0 | DN127: 0 | DO127: 0 | DP127: 0 | DQ127: 0 | DR127: 0 | DS127: 0 | DT127: 0 | DU127: 0 | DV127: 0 | DW127: 0 | DX127: 0 | DY127: 0 | DZ127: 0 | EA127: 0 | EB127: 0 | EC127: 0 | ED127: 0 | EE127: 0 | EF127: 0 | EG127: 0 | EH127: 0 | EI127: =EI154 -> 0 | EJ127: 0 | EK127: 0 | EL127: 0 | EM127: 0 | EN127: 0 | EO127: 0 | EP127: 0 | EQ127: 0 | ER127: 0 | ES127: 0 | ET127: 0 | EU127: 0 | EV127: 0 | EW127: 0 | EX127: 0 | EY127: 0 | EZ127: 0 | FA127: 0 | FB127: 0 | FC127: 0 | FD127: 0 | FE127: 0 | FF127: 0 | FG127: 0 | FH127: 0 | FI127: 0 | FJ127: 0 | FK127: 0 | FL127: 0 | FM127: 0 | FN127: 0 | FO127: 0 | FP127: 0 | FQ127: 0 | FR127: 0 | FS127: 0 | FT127: 0 | FU127: 0 | FV127: 0 | FW127: 0 | FX127: 0 | FY127: 0 | FZ127: 0 | GA127: 0 | GB127: 0 | GC127: 0 | GD127: 0 | GE127: 0 | GF127: 0 | GG127: 0 | GH127: 0 | GI127: 0 | GJ127: 0 | GK127: 0 | GL127: 0 | GM127: 0 | GN127: 0 | GO127: 0 | GP127: 0 | GQ127: 0 | GR127: 0 | GS127: 0 | GT127: 0 | GU127: =GU154 -> 0 | GV127: 0 | GW127: 0 | GX127: 0 | GY127: 0 | GZ127: 0 | HA127: 0
D128: Up Front Fee | F128: MED | I128: =SUM(J128:HA128) -> 48.90399982 | J128: =J158 -> 48.90399982 | K128: =K158 -> 0 | L128: 0 | M128: 0 | N128: 0 | O128: 0 | P128: 0 | Q128: 0 | R128: 0 | S128: 0 | T128: 0 | U128: 0 | V128: 0 | W128: 0 | X128: 0 | Y128: 0 | Z128: 0 | AA128: 0 | AB128: 0 | AC128: 0 | AD128: 0 | AE128: 0 | AF128: 0 | AG128: 0 | AH128: 0 | AI128: 0 | AJ128: 0 | AK128: 0 | AL128: 0 | AM128: 0 | AN128: 0 | AO128: 0 | AP128: 0 | AQ128: 0 | AR128: 0 | AS128: 0 | AT128: 0 | AU128: 0 | AV128: 0 | AW128: 0 | AX128: 0 | AY128: 0 | AZ128: 0 | BA128: 0 | BB128: 0 | BC128: 0 | BD128: 0 | BE128: 0 | BF128: 0 | BG128: 0 | BH128: 0 | BI128: 0 | BJ128: 0 | BK128: 0 | BL128: 0 | BM128: 0 | BN128: 0 | BO128: 0 | BP128: 0 | BQ128: 0 | BR128: 0 | BS128: 0 | BT128: 0 | BU128: 0 | BV128: 0 | BW128: =BW158 -> 0 | BX128: 0 | BY128: 0 | BZ128: 0 | CA128: 0 | CB128: 0 | CC128: 0 | CD128: 0 | CE128: 0 | CF128: 0 | CG128: 0 | CH128: 0 | CI128: 0 | CJ128: 0 | CK128: 0 | CL128: 0 | CM128: 0 | CN128: 0 | CO128: 0 | CP128: 0 | CQ128: 0 | CR128: 0 | CS128: 0 | CT128: 0 | CU128: 0 | CV128: 0 | CW128: 0 | CX128: 0 | CY128: 0 | CZ128: 0 | DA128: 0 | DB128: 0 | DC128: 0 | DD128: 0 | DE128: 0 | DF128: 0 | DG128: 0 | DH128: 0 | DI128: 0 | DJ128: 0 | DK128: 0 | DL128: 0 | DM128: 0 | DN128: 0 | DO128: 0 | DP128: 0 | DQ128: 0 | DR128: 0 | DS128: 0 | DT128: 0 | DU128: 0 | DV128: 0 | DW128: 0 | DX128: 0 | DY128: 0 | DZ128: 0 | EA128: 0 | EB128: 0 | EC128: 0 | ED128: 0 | EE128: 0 | EF128: 0 | EG128: 0 | EH128: 0 | EI128: =EI158 -> 0 | EJ128: 0 | EK128: 0 | EL128: 0 | EM128: 0 | EN128: 0 | EO128: 0 | EP128: 0 | EQ128: 0 | ER128: 0 | ES128: 0 | ET128: 0 | EU128: 0 | EV128: 0 | EW128: 0 | EX128: 0 | EY128: 0 | EZ128: 0 | FA128: 0 | FB128: 0 | FC128: 0 | FD128: 0 | FE128: 0 | FF128: 0 | FG128: 0 | FH128: 0 | FI128: 0 | FJ128: 0 | FK128: 0 | FL128: 0 | FM128: 0 | FN128: 0 | FO128: 0 | FP128: 0 | FQ128: 0 | FR128: 0 | FS128: 0 | FT128: 0 | FU128: 0 | FV128: 0 | FW128: 0 | FX128: 0 | FY128: 0 | FZ128: 0 | GA128: 0 | GB128: 0 | GC128: 0 | GD128: 0 | GE128: 0 | GF128: 0 | GG128: 0 | GH128: 0 | GI128: 0 | GJ128: 0 | GK128: 0 | GL128: 0 | GM128: 0 | GN128: 0 | GO128: 0 | GP128: 0 | GQ128: 0 | GR128: 0 | GS128: 0 | GT128: 0 | GU128: =GU158 -> 0 | GV128: 0 | GW128: 0 | GX128: 0 | GY128: 0 | GZ128: 0 | HA128: 0
D129: Commitment Fee | F129: MED | I129: 38.75287493 | J129: =J162 -> 3.056499989 | K129: =K162 -> 2.926186815 | L129: 2.801643953 | M129: 2.677046677 | N129: 2.552394964 | O129: 2.42768879 | P129: 2.30292813 | Q129: 2.178112961 | R129: 2.053243259 | S129: 1.928319001 | T129: 1.803340162 | U129: 1.678306719 | V129: 1.553218648 | W129: 1.428075925 | X129: 1.302878526 | Y129: 1.177626427 | Z129: 1.052319604 | AA129: 0.9269580339 | AB129: 0.8015416922 | AC129: 0.6760705549 | AD129: 0.5505445982 | AE129: 0.4249637982 | AF129: 0.2993281309 | AG129: 0.1736375723 | AH129: 0 | AI129: 0 | AJ129: 0 | AK129: 0 | AL129: 0 | AM129: 0 | AN129: 0 | AO129: 0 | AP129: 0 | AQ129: 0 | AR129: 0 | AS129: 0 | AT129: 0 | AU129: 0 | AV129: 0 | AW129: 0 | AX129: 0 | AY129: 0 | AZ129: 0 | BA129: 0 | BB129: 0 | BC129: 0 | BD129: 0 | BE129: 0 | BF129: 0 | BG129: 0 | BH129: 0 | BI129: 0 | BJ129: 0 | BK129: 0 | BL129: 0 | BM129: 0 | BN129: 0 | BO129: 0 | BP129: 0 | BQ129: 0 | BR129: 0 | BS129: 0 | BT129: 0 | BU129: 0 | BV129: 0 | BW129: =BW162 -> 0 | BX129: 0 | BY129: 0 | BZ129: 0 | CA129: 0 | CB129: 0 | CC129: 0 | CD129: 0 | CE129: 0 | CF129: 0 | CG129: 0 | CH129: 0 | CI129: 0 | CJ129: 0 | CK129: 0 | CL129: 0 | CM129: 0 | CN129: 0 | CO129: 0 | CP129: 0 | CQ129: 0 | CR129: 0 | CS129: 0 | CT129: 0 | CU129: 0 | CV129: 0 | CW129: 0 | CX129: 0 | CY129: 0 | CZ129: 0 | DA129: 0 | DB129: 0 | DC129: 0 | DD129: 0 | DE129: 0 | DF129: 0 | DG129: 0 | DH129: 0 | DI129: 0 | DJ129: 0 | DK129: 0 | DL129: 0 | DM129: 0 | DN129: 0 | DO129: 0 | DP129: 0 | DQ129: 0 | DR129: 0 | DS129: 0 | DT129: 0 | DU129: 0 | DV129: 0 | DW129: 0 | DX129: 0 | DY129: 0 | DZ129: 0 | EA129: 0 | EB129: 0 | EC129: 0 | ED129: 0 | EE129: 0 | EF129: 0 | EG129: 0 | EH129: 0 | EI129: =EI162 -> 0 | EJ129: 0 | EK129: 0 | EL129: 0 | EM129: 0 | EN129: 0 | EO129: 0 | EP129: 0 | EQ129: 0 | ER129: 0 | ES129: 0 | ET129: 0 | EU129: 0 | EV129: 0 | EW129: 0 | EX129: 0 | EY129: 0 | EZ129: 0 | FA129: 0 | FB129: 0 | FC129: 0 | FD129: 0 | FE129: 0 | FF129: 0 | FG129: 0 | FH129: 0 | FI129: 0 | FJ129: 0 | FK129: 0 | FL129: 0 | FM129: 0 | FN129: 0 | FO129: 0 | FP129: 0 | FQ129: 0 | FR129: 0 | FS129: 0 | FT129: 0 | FU129: 0 | FV129: 0 | FW129: 0 | FX129: 0 | FY129: 0 | FZ129: 0 | GA129: 0 | GB129: 0 | GC129: 0 | GD129: 0 | GE129: 0 | GF129: 0 | GG129: 0 | GH129: 0 | GI129: 0 | GJ129: 0 | GK129: 0 | GL129: 0 | GM129: 0 | GN129: 0 | GO129: 0 | GP129: 0 | GQ129: 0 | GR129: 0 | GS129: 0 | GT129: 0 | GU129: =GU162 -> 0 | GV129: 0 | GW129: 0 | GX129: 0 | GY129: 0 | GZ129: 0 | HA129: 0
D130: DSRA | F130: MED | I130: =SUM(J130:HA130) -> 401.9248275 | J130: =J179 -> 0 | K130: =K179 -> 0 | L130: 0 | M130: 0 | N130: 0 | O130: 0 | P130: 0 | Q130: 0 | R130: 0 | S130: 0 | T130: 0 | U130: 0 | V130: 0 | W130: 0 | X130: 0 | Y130: 0 | Z130: 0 | AA130: 0 | AB130: 0 | AC130: 0 | AD130: 0 | AE130: 0 | AF130: 0 | AG130: 401.9248275 | AH130: 0 | AI130: 0 | AJ130: 0 | AK130: 0 | AL130: 0 | AM130: 0 | AN130: 0 | AO130: 0 | AP130: 0 | AQ130: 0 | AR130: 0 | AS130: 0 | AT130: 0 | AU130: 0 | AV130: 0 | AW130: 0 | AX130: 0 | AY130: 0 | AZ130: 0 | BA130: 0 | BB130: 0 | BC130: 0 | BD130: 0 | BE130: 0 | BF130: 0 | BG130: 0 | BH130: 0 | BI130: 0 | BJ130: 0 | BK130: 0 | BL130: 0 | BM130: 0 | BN130: 0 | BO130: 0 | BP130: 0 | BQ130: 0 | BR130: 0 | BS130: 0 | BT130: 0 | BU130: 0 | BV130: 0 | BW130: =BW179 -> 0 | BX130: 0 | BY130: 0 | BZ130: 0 | CA130: 0 | CB130: 0 | CC130: 0 | CD130: 0 | CE130: 0 | CF130: 0 | CG130: 0 | CH130: 0 | CI130: 0 | CJ130: 0 | CK130: 0 | CL130: 0 | CM130: 0 | CN130: 0 | CO130: 0 | CP130: 0 | CQ130: 0 | CR130: 0 | CS130: 0 | CT130: 0 | CU130: 0 | CV130: 0 | CW130: 0 | CX130: 0 | CY130: 0 | CZ130: 0 | DA130: 0 | DB130: 0 | DC130: 0 | DD130: 0 | DE130: 0 | DF130: 0 | DG130: 0 | DH130: 0 | DI130: 0 | DJ130: 0 | DK130: 0 | DL130: 0 | DM130: 0 | DN130: 0 | DO130: 0 | DP130: 0 | DQ130: 0 | DR130: 0 | DS130: 0 | DT130: 0 | DU130: 0 | DV130: 0 | DW130: 0 | DX130: 0 | DY130: 0 | DZ130: 0 | EA130: 0 | EB130: 0 | EC130: 0 | ED130: 0 | EE130: 0 | EF130: 0 | EG130: 0 | EH130: 0 | EI130: =EI179 -> 0 | EJ130: 0 | EK130: 0 | EL130: 0 | EM130: 0 | EN130: 0 | EO130: 0 | EP130: 0 | EQ130: 0 | ER130: 0 | ES130: 0 | ET130: 0 | EU130: 0 | EV130: 0 | EW130: 0 | EX130: 0 | EY130: 0 | EZ130: 0 | FA130: 0 | FB130: 0 | FC130: 0 | FD130: 0 | FE130: 0 | FF130: 0 | FG130: 0 | FH130: 0 | FI130: 0 | FJ130: 0 | FK130: 0 | FL130: 0 | FM130: 0 | FN130: 0 | FO130: 0 | FP130: 0 | FQ130: 0 | FR130: 0 | FS130: 0 | FT130: 0 | FU130: 0 | FV130: 0 | FW130: 0 | FX130: 0 | FY130: 0 | FZ130: 0 | GA130: 0 | GB130: 0 | GC130: 0 | GD130: 0 | GE130: 0 | GF130: 0 | GG130: 0 | GH130: 0 | GI130: 0 | GJ130: 0 | GK130: 0 | GL130: 0 | GM130: 0 | GN130: 0 | GO130: 0 | GP130: 0 | GQ130: 0 | GR130: 0 | GS130: 0 | GT130: 0 | GU130: =GU179 -> 0 | GV130: 0 | GW130: 0 | GX130: 0 | GY130: 0 | GZ130: 0 | HA130: 0
E131: Total Funding Needs | F131: MED | I131: Fixed Funding | J131: 1093.627166 | K131: 1045.200982 | L131: 1045.657639 | M131: 1046.114495 | N131: 1046.571552 | O131: 1047.028808 | P131: 1047.486263 | Q131: 1047.943919 | R131: 1048.401775 | S131: 1048.85983 | T131: 1049.318086 | U131: 1049.776542 | V131: 1050.235198 | W131: 1050.694055 | X131: 1051.153112 | Y131: 1051.61237 | Z131: 1052.071828 | AA131: 1052.531487 | AB131: 1052.991347 | AC131: 1053.451408 | AD131: 1053.91167 | AE131: 1054.372133 | AF131: 1054.832797 | AG131: 1457.21849 | AH131: 0 | AI131: 0 | AJ131: 0 | AK131: 0 | AL131: 0 | AM131: 0 | AN131: 0 | AO131: 0 | AP131: 0 | AQ131: 0 | AR131: 0 | AS131: 0 | AT131: 0 | AU131: 0 | AV131: 0 | AW131: 0 | AX131: 0 | AY131: 0 | AZ131: 0 | BA131: 0 | BB131: 0 | BC131: 0 | BD131: 0 | BE131: 0 | BF131: 0 | BG131: 0 | BH131: 0 | BI131: 0 | BJ131: 0 | BK131: 0 | BL131: 0 | BM131: 0 | BN131: 0 | BO131: 0 | BP131: 0 | BQ131: 0 | BR131: 0 | BS131: 0 | BT131: 0 | BU131: 0 | BV131: 0 | BW131: 0 | BX131: 0 | BY131: 0 | BZ131: 0 | CA131: 0 | CB131: 0 | CC131: 0 | CD131: 0 | CE131: 0 | CF131: 0 | CG131: 0 | CH131: 0 | CI131: 0 | CJ131: 0 | CK131: 0 | CL131: 0 | CM131: 0 | CN131: 0 | CO131: 0 | CP131: 0 | CQ131: 0 | CR131: 0 | CS131: 0 | CT131: 0 | CU131: 0 | CV131: 0 | CW131: 0 | CX131: 0 | CY131: 0 | CZ131: 0 | DA131: 0 | DB131: 0 | DC131: 0 | DD131: 0 | DE131: 0 | DF131: 0 | DG131: 0 | DH131: 0 | DI131: 0 | DJ131: 0 | DK131: 0 | DL131: 0 | DM131: 0 | DN131: 0 | DO131: 0 | DP131: 0 | DQ131: 0 | DR131: 0 | DS131: 0 | DT131: 0 | DU131: 0 | DV131: 0 | DW131: 0 | DX131: 0 | DY131: 0 | DZ131: 0 | EA131: 0 | EB131: 0 | EC131: 0 | ED131: 0 | EE131: 0 | EF131: 0 | EG131: 0 | EH131: 0 | EI131: 0 | EJ131: 0 | EK131: 0 | EL131: 0 | EM131: 0 | EN131: 0 | EO131: 0 | EP131: 0 | EQ131: 0 | ER131: 0 | ES131: 0 | ET131: 0 | EU131: 0 | EV131: 0 | EW131: 0 | EX131: 0 | EY131: 0 | EZ131: 0 | FA131: 0 | FB131: 0 | FC131: 0 | FD131: 0 | FE131: 0 | FF131: 0 | FG131: 0 | FH131: 0 | FI131: 0 | FJ131: 0 | FK131: 0 | FL131: 0 | FM131: 0 | FN131: 0 | FO131: 0 | FP131: 0 | FQ131: 0 | FR131: 0 | FS131: 0 | FT131: 0 | FU131: 0 | FV131: 0 | FW131: 0 | FX131: 0 | FY131: 0 | FZ131: 0 | GA131: 0 | GB131: 0 | GC131: 0 | GD131: 0 | GE131: 0 | GF131: 0 | GG131: 0 | GH131: 0 | GI131: 0 | GJ131: 0 | GK131: 0 | GL131: 0 | GM131: 0 | GN131: 0 | GO131: 0 | GP131: 0 | GQ131: 0 | GR131: 0 | GS131: 0 | GT131: 0 | GU131: 0 | GV131: 0 | GW131: 0 | GX131: 0 | GY131: 0 | GZ131: 0 | HA131: 0
E132: Computed Funding Needs | I132: Computed Funding | J132: =SUM(J126:J130) -> 1093.627166 | K132: =SUM(K126:K130) -> 1045.200982 | L132: 1045.657639 | M132: 1046.114495 | N132: 1046.571552 | O132: 1047.028808 | P132: 1047.486263 | Q132: 1047.943919 | R132: 1048.401775 | S132: 1048.85983 | T132: 1049.318086 | U132: 1049.776542 | V132: 1050.235198 | W132: 1050.694055 | X132: 1051.153112 | Y132: 1051.61237 | Z132: 1052.071828 | AA132: 1052.531487 | AB132: 1052.991347 | AC132: 1053.451408 | AD132: 1053.91167 | AE132: 1054.372133 | AF132: 1054.832797 | AG132: 1457.21849 | AH132: 0 | AI132: 0 | AJ132: 0 | AK132: 0 | AL132: 0 | AM132: 0 | AN132: 0 | AO132: 0 | AP132: 0 | AQ132: 0 | AR132: 0 | AS132: 0 | AT132: 0 | AU132: 0 | AV132: 0 | AW132: 0 | AX132: 0 | AY132: 0 | AZ132: 0 | BA132: 0 | BB132: 0 | BC132: 0 | BD132: 0 | BE132: 0 | BF132: 0 | BG132: 0 | BH132: 0 | BI132: 0 | BJ132: 0 | BK132: 0 | BL132: 0 | BM132: 0 | BN132: 0 | BO132: 0 | BP132: 0 | BQ132: 0 | BR132: 0 | BS132: 0 | BT132: 0 | BU132: 0 | BV132: 0 | BW132: =SUM(BW126:BW130) -> 0 | BX132: 0 | BY132: 0 | BZ132: 0 | CA132: 0 | CB132: 0 | CC132: 0 | CD132: 0 | CE132: 0 | CF132: 0 | CG132: 0 | CH132: 0 | CI132: 0 | CJ132: 0 | CK132: 0 | CL132: 0 | CM132: 0 | CN132: 0 | CO132: 0 | CP132: 0 | CQ132: 0 | CR132: 0 | CS132: 0 | CT132: 0 | CU132: 0 | CV132: 0 | CW132: 0 | CX132: 0 | CY132: 0 | CZ132: 0 | DA132: 0 | DB132: 0 | DC132: 0 | DD132: 0 | DE132: 0 | DF132: 0 | DG132: 0 | DH132: 0 | DI132: 0 | DJ132: 0 | DK132: 0 | DL132: 0 | DM132: 0 | DN132: 0 | DO132: 0 | DP132: 0 | DQ132: 0 | DR132: 0 | DS132: 0 | DT132: 0 | DU132: 0 | DV132: 0 | DW132: 0 | DX132: 0 | DY132: 0 | DZ132: 0 | EA132: 0 | EB132: 0 | EC132: 0 | ED132: 0 | EE132: 0 | EF132: 0 | EG132: 0 | EH132: 0 | EI132: =SUM(EI126:EI130) -> 0 | EJ132: 0 | EK132: 0 | EL132: 0 | EM132: 0 | EN132: 0 | EO132: 0 | EP132: 0 | EQ132: 0 | ER132: 0 | ES132: 0 | ET132: 0 | EU132: 0 | EV132: 0 | EW132: 0 | EX132: 0 | EY132: 0 | EZ132: 0 | FA132: 0 | FB132: 0 | FC132: 0 | FD132: 0 | FE132: 0 | FF132: 0 | FG132: 0 | FH132: 0 | FI132: 0 | FJ132: 0 | FK132: 0 | FL132: 0 | FM132: 0 | FN132: 0 | FO132: 0 | FP132: 0 | FQ132: 0 | FR132: 0 | FS132: 0 | FT132: 0 | FU132: 0 | FV132: 0 | FW132: 0 | FX132: 0 | FY132: 0 | FZ132: 0 | GA132: 0 | GB132: 0 | GC132: 0 | GD132: 0 | GE132: 0 | GF132: 0 | GG132: 0 | GH132: 0 | GI132: 0 | GJ132: 0 | GK132: 0 | GL132: 0 | GM132: 0 | GN132: 0 | GO132: 0 | GP132: 0 | GQ132: 0 | GR132: 0 | GS132: 0 | GT132: 0 | GU132: =SUM(GU126:GU130) -> 0 | GV132: 0 | GW132: 0 | GX132: 0 | GY132: 0 | GZ132: 0 | HA132: 0
E133: Difference | I133: =SUM(J133:HA133) -> 0 | J133: =J131-J132 -> 0 | K133: =K131-K132 -> 0 | L133: 0 | M133: 0 | N133: 0 | O133: 0 | P133: 0 | Q133: 0 | R133: 0 | S133: 0 | T133: 0 | U133: 0 | V133: 0 | W133: 0 | X133: 0 | Y133: 0 | Z133: 0 | AA133: 0 | AB133: 0 | AC133: 0 | AD133: 0 | AE133: 0 | AF133: 0 | AG133: 0 | AH133: 0 | AI133: 0 | AJ133: 0 | AK133: 0 | AL133: 0 | AM133: 0 | AN133: 0 | AO133: 0 | AP133: 0 | AQ133: 0 | AR133: 0 | AS133: 0 | AT133: 0 | AU133: 0 | AV133: 0 | AW133: 0 | AX133: 0 | AY133: 0 | AZ133: 0 | BA133: 0 | BB133: 0 | BC133: 0 | BD133: 0 | BE133: 0 | BF133: 0 | BG133: 0 | BH133: 0 | BI133: 0 | BJ133: 0 | BK133: 0 | BL133: 0 | BM133: 0 | BN133: 0 | BO133: 0 | BP133: 0 | BQ133: 0 | BR133: 0 | BS133: 0 | BT133: 0 | BU133: 0 | BV133: 0 | BW133: =BW131-BW132 -> 0 | BX133: 0 | BY133: 0 | BZ133: 0 | CA133: 0 | CB133: 0 | CC133: 0 | CD133: 0 | CE133: 0 | CF133: 0 | CG133: 0 | CH133: 0 | CI133: 0 | CJ133: 0 | CK133: 0 | CL133: 0 | CM133: 0 | CN133: 0 | CO133: 0 | CP133: 0 | CQ133: 0 | CR133: 0 | CS133: 0 | CT133: 0 | CU133: 0 | CV133: 0 | CW133: 0 | CX133: 0 | CY133: 0 | CZ133: 0 | DA133: 0 | DB133: 0 | DC133: 0 | DD133: 0 | DE133: 0 | DF133: 0 | DG133: 0 | DH133: 0 | DI133: 0 | DJ133: 0 | DK133: 0 | DL133: 0 | DM133: 0 | DN133: 0 | DO133: 0 | DP133: 0 | DQ133: 0 | DR133: 0 | DS133: 0 | DT133: 0 | DU133: 0 | DV133: 0 | DW133: 0 | DX133: 0 | DY133: 0 | DZ133: 0 | EA133: 0 | EB133: 0 | EC133: 0 | ED133: 0 | EE133: 0 | EF133: 0 | EG133: 0 | EH133: 0 | EI133: =EI131-EI132 -> 0 | EJ133: 0 | EK133: 0 | EL133: 0 | EM133: 0 | EN133: 0 | EO133: 0 | EP133: 0 | EQ133: 0 | ER133: 0 | ES133: 0 | ET133: 0 | EU133: 0 | EV133: 0 | EW133: 0 | EX133: 0 | EY133: 0 | EZ133: 0 | FA133: 0 | FB133: 0 | FC133: 0 | FD133: 0 | FE133: 0 | FF133: 0 | FG133: 0 | FH133: 0 | FI133: 0 | FJ133: 0 | FK133: 0 | FL133: 0 | FM133: 0 | FN133: 0 | FO133: 0 | FP133: 0 | FQ133: 0 | FR133: 0 | FS133: 0 | FT133: 0 | FU133: 0 | FV133: 0 | FW133: 0 | FX133: 0 | FY133: 0 | FZ133: 0 | GA133: 0 | GB133: 0 | GC133: 0 | GD133: 0 | GE133: 0 | GF133: 0 | GG133: 0 | GH133: 0 | GI133: 0 | GJ133: 0 | GK133: 0 | GL133: 0 | GM133: 0 | GN133: 0 | GO133: 0 | GP133: 0 | GQ133: 0 | GR133: 0 | GS133: 0 | GT133: 0 | GU133: =GU131-GU132 -> 0 | GV133: 0 | GW133: 0 | GX133: 0 | GY133: 0 | GZ133: 0 | HA133: 0
C135: Funding Sources - Pro-Rata
D136: Debt Funding | F136: MED | G136: =H120 -> 0.095325484 | I136: =SUM(J136:HA136) -> 2445.199991 | J136: =J131*$G$136 -> 104.250539 | K136: =K131*$G$136 -> 99.63428945 | L136: 99.67782051 | M136: 99.7213706 | N136: 99.76493971 | O136: 99.80852786 | P136: 99.85213505 | Q136: 99.89576129 | R136: 99.93940659 | S136: 99.98307097 | T136: 100.0267544 | U136: 100.070457 | V136: 100.1141786 | W136: 100.1579193 | X136: 100.2016792 | Y136: 100.2454581 | Z136: 100.2892562 | AA136: 100.3330734 | AB136: 100.3769098 | AC136: 100.4207653 | AD136: 100.46464 | AE136: 100.5085339 | AF136: 100.5524469 | AG136: 138.9100578 | AH136: 0 | AI136: 0 | AJ136: 0 | AK136: 0 | AL136: 0 | AM136: 0 | AN136: 0 | AO136: 0 | AP136: 0 | AQ136: 0 | AR136: 0 | AS136: 0 | AT136: 0 | AU136: 0 | AV136: 0 | AW136: 0 | AX136: 0 | AY136: 0 | AZ136: 0 | BA136: 0 | BB136: 0 | BC136: 0 | BD136: 0 | BE136: 0 | BF136: 0 | BG136: 0 | BH136: 0 | BI136: 0 | BJ136: 0 | BK136: 0 | BL136: 0 | BM136: 0 | BN136: 0 | BO136: 0 | BP136: 0 | BQ136: 0 | BR136: 0 | BS136: 0 | BT136: 0 | BU136: 0 | BV136: 0 | BW136: =BW131*$G$136 -> 0 | BX136: 0 | BY136: 0 | BZ136: 0 | CA136: 0 | CB136: 0 | CC136: 0 | CD136: 0 | CE136: 0 | CF136: 0 | CG136: 0 | CH136: 0 | CI136: 0 | CJ136: 0 | CK136: 0 | CL136: 0 | CM136: 0 | CN136: 0 | CO136: 0 | CP136: 0 | CQ136: 0 | CR136: 0 | CS136: 0 | CT136: 0 | CU136: 0 | CV136: 0 | CW136: 0 | CX136: 0 | CY136: 0 | CZ136: 0 | DA136: 0 | DB136: 0 | DC136: 0 | DD136: 0 | DE136: 0 | DF136: 0 | DG136: 0 | DH136: 0 | DI136: 0 | DJ136: 0 | DK136: 0 | DL136: 0 | DM136: 0 | DN136: 0 | DO136: 0 | DP136: 0 | DQ136: 0 | DR136: 0 | DS136: 0 | DT136: 0 | DU136: 0 | DV136: 0 | DW136: 0 | DX136: 0 | DY136: 0 | DZ136: 0 | EA136: 0 | EB136: 0 | EC136: 0 | ED136: 0 | EE136: 0 | EF136: 0 | EG136: 0 | EH136: 0 | EI136: =EI131*$G$136 -> 0 | EJ136: 0 | EK136: 0 | EL136: 0 | EM136: 0 | EN136: 0 | EO136: 0 | EP136: 0 | EQ136: 0 | ER136: 0 | ES136: 0 | ET136: 0 | EU136: 0 | EV136: 0 | EW136: 0 | EX136: 0 | EY136: 0 | EZ136: 0 | FA136: 0 | FB136: 0 | FC136: 0 | FD136: 0 | FE136: 0 | FF136: 0 | FG136: 0 | FH136: 0 | FI136: 0 | FJ136: 0 | FK136: 0 | FL136: 0 | FM136: 0 | FN136: 0 | FO136: 0 | FP136: 0 | FQ136: 0 | FR136: 0 | FS136: 0 | FT136: 0 | FU136: 0 | FV136: 0 | FW136: 0 | FX136: 0 | FY136: 0 | FZ136: 0 | GA136: 0 | GB136: 0 | GC136: 0 | GD136: 0 | GE136: 0 | GF136: 0 | GG136: 0 | GH136: 0 | GI136: 0 | GJ136: 0 | GK136: 0 | GL136: 0 | GM136: 0 | GN136: 0 | GO136: 0 | GP136: 0 | GQ136: 0 | GR136: 0 | GS136: 0 | GT136: 0 | GU136: =GU131*$G$136 -> 0 | GV136: 0 | GW136: 0 | GX136: 0 | GY136: 0 | GZ136: 0 | HA136: 0
D137: Equity Funding | F137: MED | G137: =1-G136 -> 0.904674516 | J137: =J131*$G$137 -> 989.3766275 | K137: =K131*$G$137 -> 945.5666922 | L137: 945.9798183 | M137: 946.3931249 | N137: 946.806612 | O137: 947.2202799 | P137: 947.6341284 | Q137: 948.0481578 | R137: 948.4623681 | S137: 948.8767593 | T137: 949.2913316 | U137: 949.706085 | V137: 950.1210197 | W137: 950.5361356 | X137: 950.9514329 | Y137: 951.3669116 | Z137: 951.7825719 | AA137: 952.1984137 | AB137: 952.6144373 | AC137: 953.0306426 | AD137: 953.4470297 | AE137: 953.8635988 | AF137: 954.2803499 | AG137: 1318.308432 | AH137: 0 | AI137: 0 | AJ137: 0 | AK137: 0 | AL137: 0 | AM137: 0 | AN137: 0 | AO137: 0 | AP137: 0 | AQ137: 0 | AR137: 0 | AS137: 0 | AT137: 0 | AU137: 0 | AV137: 0 | AW137: 0 | AX137: 0 | AY137: 0 | AZ137: 0 | BA137: 0 | BB137: 0 | BC137: 0 | BD137: 0 | BE137: 0 | BF137: 0 | BG137: 0 | BH137: 0 | BI137: 0 | BJ137: 0 | BK137: 0 | BL137: 0 | BM137: 0 | BN137: 0 | BO137: 0 | BP137: 0 | BQ137: 0 | BR137: 0 | BS137: 0 | BT137: 0 | BU137: 0 | BV137: 0 | BW137: =BW131*$G$137 -> 0 | BX137: 0 | BY137: 0 | BZ137: 0 | CA137: 0 | CB137: 0 | CC137: 0 | CD137: 0 | CE137: 0 | CF137: 0 | CG137: 0 | CH137: 0 | CI137: 0 | CJ137: 0 | CK137: 0 | CL137: 0 | CM137: 0 | CN137: 0 | CO137: 0 | CP137: 0 | CQ137: 0 | CR137: 0 | CS137: 0 | CT137: 0 | CU137: 0 | CV137: 0 | CW137: 0 | CX137: 0 | CY137: 0 | CZ137: 0 | DA137: 0 | DB137: 0 | DC137: 0 | DD137: 0 | DE137: 0 | DF137: 0 | DG137: 0 | DH137: 0 | DI137: 0 | DJ137: 0 | DK137: 0 | DL137: 0 | DM137: 0 | DN137: 0 | DO137: 0 | DP137: 0 | DQ137: 0 | DR137: 0 | DS137: 0 | DT137: 0 | DU137: 0 | DV137: 0 | DW137: 0 | DX137: 0 | DY137: 0 | DZ137: 0 | EA137: 0 | EB137: 0 | EC137: 0 | ED137: 0 | EE137: 0 | EF137: 0 | EG137: 0 | EH137: 0 | EI137: =EI131*$G$137 -> 0 | EJ137: 0 | EK137: 0 | EL137: 0 | EM137: 0 | EN137: 0 | EO137: 0 | EP137: 0 | EQ137: 0 | ER137: 0 | ES137: 0 | ET137: 0 | EU137: 0 | EV137: 0 | EW137: 0 | EX137: 0 | EY137: 0 | EZ137: 0 | FA137: 0 | FB137: 0 | FC137: 0 | FD137: 0 | FE137: 0 | FF137: 0 | FG137: 0 | FH137: 0 | FI137: 0 | FJ137: 0 | FK137: 0 | FL137: 0 | FM137: 0 | FN137: 0 | FO137: 0 | FP137: 0 | FQ137: 0 | FR137: 0 | FS137: 0 | FT137: 0 | FU137: 0 | FV137: 0 | FW137: 0 | FX137: 0 | FY137: 0 | FZ137: 0 | GA137: 0 | GB137: 0 | GC137: 0 | GD137: 0 | GE137: 0 | GF137: 0 | GG137: 0 | GH137: 0 | GI137: 0 | GJ137: 0 | GK137: 0 | GL137: 0 | GM137: 0 | GN137: 0 | GO137: 0 | GP137: 0 | GQ137: 0 | GR137: 0 | GS137: 0 | GT137: 0 | GU137: =GU131*$G$137 -> 0 | GV137: 0 | GW137: 0 | GX137: 0 | GY137: 0 | GZ137: 0 | HA137: 0
E138: Total Funding | F138: MED | J138: =SUM(J136:J137) -> 1093.627166 | K138: =SUM(K136:K137) -> 1045.200982 | L138: 1045.657639 | M138: 1046.114495 | N138: 1046.571552 | O138: 1047.028808 | P138: 1047.486263 | Q138: 1047.943919 | R138: 1048.401775 | S138: 1048.85983 | T138: 1049.318086 | U138: 1049.776542 | V138: 1050.235198 | W138: 1050.694055 | X138: 1051.153112 | Y138: 1051.61237 | Z138: 1052.071828 | AA138: 1052.531487 | AB138: 1052.991347 | AC138: 1053.451408 | AD138: 1053.91167 | AE138: 1054.372133 | AF138: 1054.832797 | AG138: 1457.21849 | AH138: 0 | AI138: 0 | AJ138: 0 | AK138: 0 | AL138: 0 | AM138: 0 | AN138: 0 | AO138: 0 | AP138: 0 | AQ138: 0 | AR138: 0 | AS138: 0 | AT138: 0 | AU138: 0 | AV138: 0 | AW138: 0 | AX138: 0 | AY138: 0 | AZ138: 0 | BA138: 0 | BB138: 0 | BC138: 0 | BD138: 0 | BE138: 0 | BF138: 0 | BG138: 0 | BH138: 0 | BI138: 0 | BJ138: 0 | BK138: 0 | BL138: 0 | BM138: 0 | BN138: 0 | BO138: 0 | BP138: 0 | BQ138: 0 | BR138: 0 | BS138: 0 | BT138: 0 | BU138: 0 | BV138: 0 | BW138: =SUM(BW136:BW137) -> 0 | BX138: 0 | BY138: 0 | BZ138: 0 | CA138: 0 | CB138: 0 | CC138: 0 | CD138: 0 | CE138: 0 | CF138: 0 | CG138: 0 | CH138: 0 | CI138: 0 | CJ138: 0 | CK138: 0 | CL138: 0 | CM138: 0 | CN138: 0 | CO138: 0 | CP138: 0 | CQ138: 0 | CR138: 0 | CS138: 0 | CT138: 0 | CU138: 0 | CV138: 0 | CW138: 0 | CX138: 0 | CY138: 0 | CZ138: 0 | DA138: 0 | DB138: 0 | DC138: 0 | DD138: 0 | DE138: 0 | DF138: 0 | DG138: 0 | DH138: 0 | DI138: 0 | DJ138: 0 | DK138: 0 | DL138: 0 | DM138: 0 | DN138: 0 | DO138: 0 | DP138: 0 | DQ138: 0 | DR138: 0 | DS138: 0 | DT138: 0 | DU138: 0 | DV138: 0 | DW138: 0 | DX138: 0 | DY138: 0 | DZ138: 0 | EA138: 0 | EB138: 0 | EC138: 0 | ED138: 0 | EE138: 0 | EF138: 0 | EG138: 0 | EH138: 0 | EI138: =SUM(EI136:EI137) -> 0 | EJ138: 0 | EK138: 0 | EL138: 0 | EM138: 0 | EN138: 0 | EO138: 0 | EP138: 0 | EQ138: 0 | ER138: 0 | ES138: 0 | ET138: 0 | EU138: 0 | EV138: 0 | EW138: 0 | EX138: 0 | EY138: 0 | EZ138: 0 | FA138: 0 | FB138: 0 | FC138: 0 | FD138: 0 | FE138: 0 | FF138: 0 | FG138: 0 | FH138: 0 | FI138: 0 | FJ138: 0 | FK138: 0 | FL138: 0 | FM138: 0 | FN138: 0 | FO138: 0 | FP138: 0 | FQ138: 0 | FR138: 0 | FS138: 0 | FT138: 0 | FU138: 0 | FV138: 0 | FW138: 0 | FX138: 0 | FY138: 0 | FZ138: 0 | GA138: 0 | GB138: 0 | GC138: 0 | GD138: 0 | GE138: 0 | GF138: 0 | GG138: 0 | GH138: 0 | GI138: 0 | GJ138: 0 | GK138: 0 | GL138: 0 | GM138: 0 | GN138: 0 | GO138: 0 | GP138: 0 | GQ138: 0 | GR138: 0 | GS138: 0 | GT138: 0 | GU138: =SUM(GU136:GU137) -> 0 | GV138: 0 | GW138: 0 | GX138: 0 | GY138: 0 | GZ138: 0 | HA138: 0
B140: Debt Balance
C141: Repayments
D142: Total Debt Serivce From Sculpting without DSRA | F142: MED | J142: =J68 -> 0 | K142: =K68 -> 0 | L142: 0 | M142: 0 | N142: 0 | O142: 0 | P142: 0 | Q142: 0 | R142: 0 | S142: 0 | T142: 0 | U142: 0 | V142: 0 | W142: 0 | X142: 0 | Y142: 0 | Z142: 0 | AA142: 0 | AB142: 0 | AC142: 0 | AD142: 0 | AE142: 0 | AF142: 0 | AG142: 0 | AH142: 401.9248275 | AI142: 361.5624505 | AJ142: 325.2263864 | AK142: 292.5134243 | AL142: 263.0606401 | AM142: 236.5413667 | AN142: 212.6615656 | AO142: 191.1565618 | AP142: 171.7881056 | AQ142: 154.3417272 | AR142: 138.624356 | AS142: 124.4621783 | AT142: 111.6987082 | AU142: 100.1930521 | AV142: 89.81834597 | AW142: 80.46034889 | AX142: 72.01617714 | AY142: 64.3931645 | AZ142: 57.50783638 | BA142: 51.2849863 | BB142: 0 | BC142: 0 | BD142: 0 | BE142: 0 | BF142: 0 | BG142: 0 | BH142: 0 | BI142: 0 | BJ142: 0 | BK142: 0 | BL142: 0 | BM142: 0 | BN142: 0 | BO142: 0 | BP142: 0 | BQ142: 0 | BR142: 0 | BS142: 0 | BT142: 0 | BU142: 0 | BV142: 0 | BW142: =BW68 -> 0 | BX142: 0 | BY142: 0 | BZ142: 0 | CA142: 0 | CB142: 0 | CC142: 0 | CD142: 0 | CE142: 0 | CF142: 0 | CG142: 0 | CH142: 0 | CI142: 0 | CJ142: 0 | CK142: 0 | CL142: 0 | CM142: 0 | CN142: 0 | CO142: 0 | CP142: 0 | CQ142: 0 | CR142: 0 | CS142: 0 | CT142: 0 | CU142: 0 | CV142: 0 | CW142: 0 | CX142: 0 | CY142: 0 | CZ142: 0 | DA142: 0 | DB142: 0 | DC142: 0 | DD142: 0 | DE142: 0 | DF142: 0 | DG142: 0 | DH142: 0 | DI142: 0 | DJ142: 0 | DK142: 0 | DL142: 0 | DM142: 0 | DN142: 0 | DO142: 0 | DP142: 0 | DQ142: 0 | DR142: 0 | DS142: 0 | DT142: 0 | DU142: 0 | DV142: 0 | DW142: 0 | DX142: 0 | DY142: 0 | DZ142: 0 | EA142: 0 | EB142: 0 | EC142: 0 | ED142: 0 | EE142: 0 | EF142: 0 | EG142: 0 | EH142: 0 | EI142: =EI68 -> 0 | EJ142: 0 | EK142: 0 | EL142: 0 | EM142: 0 | EN142: 0 | EO142: 0 | EP142: 0 | EQ142: 0 | ER142: 0 | ES142: 0 | ET142: 0 | EU142: 0 | EV142: 0 | EW142: 0 | EX142: 0 | EY142: 0 | EZ142: 0 | FA142: 0 | FB142: 0 | FC142: 0 | FD142: 0 | FE142: 0 | FF142: 0 | FG142: 0 | FH142: 0 | FI142: 0 | FJ142: 0 | FK142: 0 | FL142: 0 | FM142: 0 | FN142: 0 | FO142: 0 | FP142: 0 | FQ142: 0 | FR142: 0 | FS142: 0 | FT142: 0 | FU142: 0 | FV142: 0 | FW142: 0 | FX142: 0 | FY142: 0 | FZ142: 0 | GA142: 0 | GB142: 0 | GC142: 0 | GD142: 0 | GE142: 0 | GF142: 0 | GG142: 0 | GH142: 0 | GI142: 0 | GJ142: 0 | GK142: 0 | GL142: 0 | GM142: 0 | GN142: 0 | GO142: 0 | GP142: 0 | GQ142: 0 | GR142: 0 | GS142: 0 | GT142: 0 | GU142: =GU68 -> 0 | GV142: 0 | GW142: 0 | GX142: 0 | GY142: 0 | GZ142: 0 | HA142: 0
D143: Repayment Including DSRA Moves | F143: MED | J143: =J92+J77 -> 0 | K143: =K92+K77 -> 0 | L143: 0 | M143: 0 | N143: 0 | O143: 0 | P143: 0 | Q143: 0 | R143: 0 | S143: 0 | T143: 0 | U143: 0 | V143: 0 | W143: 0 | X143: 0 | Y143: 0 | Z143: 0 | AA143: 0 | AB143: 0 | AC143: 0 | AD143: 0 | AE143: 0 | AF143: 0 | AG143: 0 | AH143: 258.5969502 | AI143: 233.5595922 | AJ143: 211.0740086 | AK143: 190.8878284 | AL143: 172.7740814 | AM143: 156.528668 | AN143: 141.9680823 | AO143: 128.9273632 | AP143: 117.2582516 | AQ143: 106.827532 | AR143: 97.51554084 | AS143: 89.21482499 | AT143: 81.82893472 | AU143: 75.27133858 | AV143: 69.46444748 | AW143: 64.33873737 | AX143: 59.83196061 | AY143: 55.88843726 | AZ143: 52.45841835 | BA143: 80.98499286 | BB143: 2.660982545e-13 | BC143: 2.847251324e-13 | BD143: 3.046558916e-13 | BE143: 3.25981804e-13 | BF143: 3.488005303e-13 | BG143: 3.732165674e-13 | BH143: 3.993417272e-13 | BI143: 4.272956481e-13 | BJ143: 4.572063434e-13 | BK143: 4.892107875e-13 | BL143: 5.234555426e-13 | BM143: 5.600974306e-13 | BN143: 5.993042507e-13 | BO143: 6.412555483e-13 | BP143: 6.861434366e-13 | BQ143: 7.341734772e-13 | BR143: 7.855656206e-13 | BS143: 8.405552141e-13 | BT143: 8.99394079e-13 | BU143: 9.623516646e-13 | BV143: 1.029716281e-12 | BW143: =BW92+BW77 -> 1.101796421e-12 | BX143: 1.17892217e-12 | BY143: 1.261446722e-12 | BZ143: 1.349747993e-12 | CA143: 1.444230352e-12 | CB143: 1.545326477e-12 | CC143: 1.65349933e-12 | CD143: 1.769244283e-12 | CE143: 1.893091383e-12 | CF143: 2.02560778e-12 | CG143: 2.167400325e-12 | CH143: 2.319118347e-12 | CI143: 2.481456632e-12 | CJ143: 2.655158596e-12 | CK143: 2.841019698e-12 | CL143: 3.039891076e-12 | CM143: 3.252683452e-12 | CN143: 3.480371293e-12 | CO143: 3.723997284e-12 | CP143: 3.984677094e-12 | CQ143: 4.26360449e-12 | CR143: 4.562056805e-12 | CS143: 4.881400781e-12 | CT143: 5.223098836e-12 | CU143: 5.588715754e-12 | CV143: 5.979925857e-12 | CW143: 6.398520667e-12 | CX143: 6.846417114e-12 | CY143: 7.325666311e-12 | CZ143: 7.838462953e-12 | DA143: 8.38715536e-12 | DB143: 8.974256235e-12 | DC143: 9.602454172e-12 | DD143: 1.027462596e-11 | DE143: 1.099384978e-11 | DF143: 1.176341927e-11 | DG143: 1.258685861e-11 | DH143: 1.346793872e-11 | DI143: 1.441069443e-11 | DJ143: 1.541944304e-11 | DK143: 1.649880405e-11 | DL143: 1.765372033e-11 | DM143: 1.888948076e-11 | DN143: 2.021174441e-11 | DO143: 2.162656652e-11 | DP143: 2.314042618e-11 | DQ143: 2.476025601e-11 | DR143: 2.649347393e-11 | DS143: 2.83480171e-11 | DT143: 3.03323783e-11 | DU143: 3.245564478e-11 | DV143: 3.472753992e-11 | DW143: 3.715846771e-11 | DX143: 3.975956045e-11 | DY143: 4.254272968e-11 | DZ143: 4.552072076e-11 | EA143: 4.870717121e-11 | EB143: 5.21166732e-11 | EC143: 5.576484032e-11 | ED143: 5.966837914e-11 | EE143: 6.384516568e-11 | EF143: 6.831432728e-11 | EG143: 7.309633019e-11 | EH143: 7.82130733e-11 | EI143: =EI92+EI77 -> 8.368798843e-11 | EJ143: 8.954614763e-11 | EK143: 9.581437796e-11 | EL143: 1.025213844e-10 | EM143: 1.096978813e-10 | EN143: 1.17376733e-10 | EO143: 1.255931043e-10 | EP143: 1.343846216e-10 | EQ143: 1.437915451e-10 | ER143: 1.538569533e-10 | ES143: 1.6462694e-10 | ET143: 1.761508258e-10 | EU143: 1.884813837e-10 | EV143: 2.016750805e-10 | EW143: 2.157923361e-10 | EX143: 2.308977997e-10 | EY143: 2.470606456e-10 | EZ143: 2.643548908e-10 | FA143: 2.828597332e-10 | FB143: 3.026599145e-10 | FC143: 3.238461085e-10 | FD143: 3.465153361e-10 | FE143: 3.707714097e-10 | FF143: 3.967254083e-10 | FG143: 4.244961869e-10 | FH143: 4.5421092e-10 | FI143: 4.860056844e-10 | FJ143: 5.200260823e-10 | FK143: 5.564279081e-10 | FL143: 5.953778617e-10 | FM143: 6.37054312e-10 | FN143: 6.816481138e-10 | FO143: 7.293634818e-10 | FP143: 7.804189255e-10 | FQ143: 8.350482503e-10 | FR143: 8.935016278e-10 | FS143: 9.560467418e-10 | FT143: 1.022970014e-09 | FU143: 1.094577915e-09 | FV143: 1.171198369e-09 | FW143: 1.253182254e-09 | FX143: 1.340905012e-09 | FY143: 1.434768363e-09 | FZ143: 1.535202149e-09 | GA143: 1.642666299e-09 | GB143: 1.75765294e-09 | GC143: 1.880688646e-09 | GD143: 2.012336851e-09 | GE143: 2.15320043e-09 | GF143: 2.303924461e-09 | GG143: 2.465199173e-09 | GH143: 2.637763115e-09 | GI143: 2.822406533e-09 | GJ143: 3.01997499e-09 | GK143: 3.23137324e-09 | GL143: 3.457569366e-09 | GM143: 3.699599222e-09 | GN143: 3.958571168e-09 | GO143: 4.235671149e-09 | GP143: 4.53216813e-09 | GQ143: 4.849419899e-09 | GR143: 5.188879292e-09 | GS143: 5.552100842e-09 | GT143: 5.940747901e-09 | GU143: =GU92+GU77 -> 6.356600254e-09 | GV143: 6.801562272e-09 | GW143: 7.277671631e-09 | GX143: 7.787108645e-09 | GY143: 8.33220625e-09 | GZ143: 8.915460688e-09 | HA143: 9.539542936e-09
D145: Opening Balance | F145: MED | J145: =I148 -> 0 | K145: =J148 -> 104.250539 | L145: 203.8848284 | M145: 303.5626489 | N145: 403.2840195 | O145: 503.0489592 | P145: 602.8574871 | Q145: 702.7096221 | R145: 802.6053834 | S145: 902.54479 | T145: 1002.527861 | U145: 1102.554615 | V145: 1202.625072 | W145: 1302.739251 | X145: 1402.89717 | Y145: 1503.098849 | Z145: 1603.344308 | AA145: 1703.633564 | AB145: 1803.966637 | AC145: 1904.343547 | AD145: 2004.764312 | AE145: 2105.228952 | AF145: 2205.737486 | AG145: 2306.289933 | AH145: 2445.199991 | AI145: 2186.603041 | AJ145: 1953.043449 | AK145: 1741.96944 | AL145: 1551.081612 | AM145: 1378.30753 | AN145: 1221.778862 | AO145: 1079.81078 | AP145: 950.8834166 | AQ145: 833.625165 | AR145: 726.797633 | AS145: 629.2820922 | AT145: 540.0672672 | AU145: 458.2383325 | AV145: 382.9669939 | AW145: 313.5025464 | AX145: 249.1638091 | AY145: 189.3318485 | AZ145: 133.4434112 | BA145: 80.98499286 | BB145: -4.661160347e-12 | BC145: -4.927258601e-12 | BD145: -5.211983733e-12 | BE145: -5.516639625e-12 | BF145: -5.842621429e-12 | BG145: -6.191421959e-12 | BH145: -6.564638527e-12 | BI145: -6.963980254e-12 | BJ145: -7.391275902e-12 | BK145: -7.848482246e-12 | BL145: -8.337693033e-12 | BM145: -8.861148576e-12 | BN145: -9.421246006e-12 | BO145: -1.002055026e-11 | BP145: -1.066180581e-11 | BQ145: -1.134794924e-11 | BR145: -1.208212272e-11 | BS145: -1.286768834e-11 | BT145: -1.370824355e-11 | BU145: -1.460763763e-11 | BV145: -1.55699893e-11 | BW145: =BV148 -> -1.659970558e-11 | BX145: -1.7701502e-11 | BY145: -1.888042417e-11 | BZ145: -2.014187089e-11 | CA145: -2.149161888e-11 | CB145: -2.293584924e-11 | CC145: -2.448117571e-11 | CD145: -2.613467504e-11 | CE145: -2.790391933e-11 | CF145: -2.979701071e-11 | CG145: -3.182261849e-11 | CH145: -3.399001881e-11 | CI145: -3.630913716e-11 | CJ145: -3.879059379e-11 | CK145: -4.144575239e-11 | CL145: -4.428677209e-11 | CM145: -4.732666316e-11 | CN145: -5.057934661e-11 | CO145: -5.405971791e-11 | CP145: -5.778371519e-11 | CQ145: -6.176839229e-11 | CR145: -6.603199678e-11 | CS145: -7.059405358e-11 | CT145: -7.547545436e-11 | CU145: -8.06985532e-11 | CV145: -8.628726895e-11 | CW145: -9.226719481e-11 | CX145: -9.866571548e-11 | CY145: -1.055121326e-10 | CZ145: -1.128377989e-10 | DA145: -1.206762619e-10 | DB145: -1.290634172e-10 | DC145: -1.380376734e-10 | DD145: -1.476401276e-10 | DE145: -1.579147536e-10 | DF145: -1.689086034e-10 | DG145: -1.806720226e-10 | DH145: -1.932588812e-10 | DI145: -2.0672682e-10 | DJ145: -2.211375144e-10 | DK145: -2.365569574e-10 | DL145: -2.530557615e-10 | DM145: -2.707094818e-10 | DN145: -2.895989626e-10 | DO145: -3.09810707e-10 | DP145: -3.314372735e-10 | DQ145: -3.545776997e-10 | DR145: -3.793379557e-10 | DS145: -4.058314296e-10 | DT145: -4.341794467e-10 | DU145: -4.64511825e-10 | DV145: -4.969674698e-10 | DW145: -5.316950097e-10 | DX145: -5.688534774e-10 | DY145: -6.086130379e-10 | DZ145: -6.511557675e-10 | EA145: -6.966764883e-10 | EB145: -7.453836595e-10 | EC145: -7.975003327e-10 | ED145: -8.53265173e-10 | EE145: -9.129335522e-10 | EF145: -9.767787179e-10 | EG145: -1.045093045e-09 | EH145: -1.118189375e-09 | EI145: =EH148 -> -1.196402449e-09 | EJ145: -1.280090437e-09 | EK145: -1.369636585e-09 | EL145: -1.465450963e-09 | EM145: -1.567972347e-09 | EN145: -1.677670228e-09 | EO145: -1.795046961e-09 | EP145: -1.920640066e-09 | EQ145: -2.055024687e-09 | ER145: -2.198816233e-09 | ES145: -2.352673186e-09 | ET145: -2.517300126e-09 | EU145: -2.693450952e-09 | EV145: -2.881932335e-09 | EW145: -3.083607416e-09 | EX145: -3.299399752e-09 | EY145: -3.530297552e-09 | EZ145: -3.777358197e-09 | FA145: -4.041713088e-09 | FB145: -4.324572821e-09 | FC145: -4.627232736e-09 | FD145: -4.951078844e-09 | FE145: -5.297594181e-09 | FF145: -5.66836559e-09 | FG145: -6.065090999e-09 | FH145: -6.489587186e-09 | FI145: -6.943798106e-09 | FJ145: -7.42980379e-09 | FK145: -7.949829872e-09 | FL145: -8.50625778e-09 | FM145: -9.101635642e-09 | FN145: -9.738689954e-09 | FO145: -1.042033807e-08 | FP145: -1.114970155e-08 | FQ145: -1.193012048e-08 | FR145: -1.276516873e-08 | FS145: -1.365867035e-08 | FT145: -1.461471709e-08 | FU145: -1.563768711e-08 | FV145: -1.673226502e-08 | FW145: -1.790346339e-08 | FX145: -1.915664565e-08 | FY145: -2.049755066e-08 | FZ145: -2.193231902e-08 | GA145: -2.346752117e-08 | GB145: -2.511018747e-08 | GC145: -2.686784041e-08 | GD145: -2.874852905e-08 | GE145: -3.076086591e-08 | GF145: -3.291406634e-08 | GG145: -3.52179908e-08 | GH145: -3.768318997e-08 | GI145: -4.032095308e-08 | GJ145: -4.314335962e-08 | GK145: -4.616333461e-08 | GL145: -4.939470785e-08 | GM145: -5.285227721e-08 | GN145: -5.655187644e-08 | GO145: -6.05104476e-08 | GP145: -6.474611875e-08 | GQ145: -6.927828688e-08 | GR145: -7.412770678e-08 | GS145: -7.931658607e-08 | GT145: -8.486868691e-08 | GU145: =GT148 -> -9.080943482e-08 | GV145: -9.716603507e-08 | GW145: -1.039675973e-07 | GX145: -1.11245269e-07 | GY145: -1.190323776e-07 | GZ145: -1.273645839e-07 | HA145: -1.362800446e-07
D146: Add: Draws | F146: MED | I146: =SUM(J146:HA146) -> 2445.199991 | J146: =J136 -> 104.250539 | K146: 99.63428945 | L146: 99.67782051 | M146: 99.7213706 | N146: 99.76493971 | O146: 99.80852786 | P146: 99.85213505 | Q146: 99.89576129 | R146: 99.93940659 | S146: 99.98307097 | T146: 100.0267544 | U146: 100.070457 | V146: 100.1141786 | W146: 100.1579193 | X146: 100.2016792 | Y146: 100.2454581 | Z146: 100.2892562 | AA146: 100.3330734 | AB146: 100.3769098 | AC146: 100.4207653 | AD146: 100.46464 | AE146: 100.5085339 | AF146: 100.5524469 | AG146: 138.9100578 | AH146: 0 | AI146: 0 | AJ146: 0 | AK146: 0 | AL146: 0 | AM146: 0 | AN146: 0 | AO146: 0 | AP146: =AP136 -> 0 | AQ146: 0 | AR146: 0 | AS146: 0 | AT146: 0 | AU146: 0 | AV146: 0 | AW146: 0 | AX146: 0 | AY146: 0 | AZ146: 0 | BA146: 0 | BB146: 0 | BC146: 0 | BD146: 0 | BE146: 0 | BF146: 0 | BG146: 0 | BH146: 0 | BI146: 0 | BJ146: 0 | BK146: 0 | BL146: 0 | BM146: 0 | BN146: 0 | BO146: 0 | BP146: 0 | BQ146: 0 | BR146: 0 | BS146: 0 | BT146: 0 | BU146: 0 | BV146: =BV136 -> 0 | BW146: 0 | BX146: 0 | BY146: 0 | BZ146: 0 | CA146: 0 | CB146: 0 | CC146: 0 | CD146: 0 | CE146: 0 | CF146: 0 | CG146: 0 | CH146: 0 | CI146: 0 | CJ146: 0 | CK146: 0 | CL146: 0 | CM146: 0 | CN146: 0 | CO146: 0 | CP146: 0 | CQ146: 0 | CR146: 0 | CS146: 0 | CT146: 0 | CU146: 0 | CV146: 0 | CW146: 0 | CX146: 0 | CY146: 0 | CZ146: 0 | DA146: 0 | DB146: =DB136 -> 0 | DC146: 0 | DD146: 0 | DE146: 0 | DF146: 0 | DG146: 0 | DH146: 0 | DI146: 0 | DJ146: 0 | DK146: 0 | DL146: 0 | DM146: 0 | DN146: 0 | DO146: 0 | DP146: 0 | DQ146: 0 | DR146: 0 | DS146: 0 | DT146: 0 | DU146: 0 | DV146: 0 | DW146: 0 | DX146: 0 | DY146: 0 | DZ146: 0 | EA146: 0 | EB146: 0 | EC146: 0 | ED146: 0 | EE146: 0 | EF146: 0 | EG146: 0 | EH146: =EH136 -> 0 | EI146: 0 | EJ146: 0 | EK146: 0 | EL146: 0 | EM146: 0 | EN146: 0 | EO146: 0 | EP146: 0 | EQ146: 0 | ER146: 0 | ES146: 0 | ET146: 0 | EU146: 0 | EV146: 0 | EW146: 0 | EX146: 0 | EY146: 0 | EZ146: 0 | FA146: 0 | FB146: 0 | FC146: 0 | FD146: 0 | FE146: 0 | FF146: 0 | FG146: 0 | FH146: 0 | FI146: 0 | FJ146: 0 | FK146: 0 | FL146: 0 | FM146: 0 | FN146: =FN136 -> 0 | FO146: 0 | FP146: 0 | FQ146: 0 | FR146: 0 | FS146: 0 | FT146: 0 | FU146: 0 | FV146: 0 | FW146: 0 | FX146: 0 | FY146: 0 | FZ146: 0 | GA146: 0 | GB146: 0 | GC146: 0 | GD146: 0 | GE146: 0 | GF146: 0 | GG146: 0 | GH146: 0 | GI146: 0 | GJ146: 0 | GK146: 0 | GL146: 0 | GM146: 0 | GN146: 0 | GO146: 0 | GP146: 0 | GQ146: 0 | GR146: 0 | GS146: 0 | GT146: =GT136 -> 0 | GU146: 0 | GV146: 0 | GW146: 0 | GX146: 0 | GY146: 0 | GZ146: 0 | HA146: 0
D147: Less: Repayment | F147: MED | I147: =SUM(J147:HA147) -> 2445.199991 | J147: =J143 -> 0 | K147: =K143 -> 0 | L147: 0 | M147: 0 | N147: 0 | O147: 0 | P147: 0 | Q147: 0 | R147: 0 | S147: 0 | T147: 0 | U147: 0 | V147: 0 | W147: 0 | X147: 0 | Y147: 0 | Z147: 0 | AA147: 0 | AB147: 0 | AC147: 0 | AD147: 0 | AE147: 0 | AF147: 0 | AG147: 0 | AH147: 258.5969502 | AI147: 233.5595922 | AJ147: 211.0740086 | AK147: 190.8878284 | AL147: 172.7740814 | AM147: 156.528668 | AN147: 141.9680823 | AO147: 128.9273632 | AP147: 117.2582516 | AQ147: 106.827532 | AR147: 97.51554084 | AS147: 89.21482499 | AT147: 81.82893472 | AU147: 75.27133858 | AV147: 69.46444748 | AW147: 64.33873737 | AX147: 59.83196061 | AY147: 55.88843726 | AZ147: 52.45841835 | BA147: 80.98499286 | BB147: 2.660982545e-13 | BC147: 2.847251324e-13 | BD147: 3.046558916e-13 | BE147: 3.25981804e-13 | BF147: 3.488005303e-13 | BG147: 3.732165674e-13 | BH147: 3.993417272e-13 | BI147: 4.272956481e-13 | BJ147: 4.572063434e-13 | BK147: 4.892107875e-13 | BL147: 5.234555426e-13 | BM147: 5.600974306e-13 | BN147: 5.993042507e-13 | BO147: 6.412555483e-13 | BP147: 6.861434366e-13 | BQ147: 7.341734772e-13 | BR147: 7.855656206e-13 | BS147: 8.405552141e-13 | BT147: 8.99394079e-13 | BU147: 9.623516646e-13 | BV147: 1.029716281e-12 | BW147: =BW143 -> 1.101796421e-12 | BX147: 1.17892217e-12 | BY147: 1.261446722e-12 | BZ147: 1.349747993e-12 | CA147: 1.444230352e-12 | CB147: 1.545326477e-12 | CC147: 1.65349933e-12 | CD147: 1.769244283e-12 | CE147: 1.893091383e-12 | CF147: 2.02560778e-12 | CG147: 2.167400325e-12 | CH147: 2.319118347e-12 | CI147: 2.481456632e-12 | CJ147: 2.655158596e-12 | CK147: 2.841019698e-12 | CL147: 3.039891076e-12 | CM147: 3.252683452e-12 | CN147: 3.480371293e-12 | CO147: 3.723997284e-12 | CP147: 3.984677094e-12 | CQ147: 4.26360449e-12 | CR147: 4.562056805e-12 | CS147: 4.881400781e-12 | CT147: 5.223098836e-12 | CU147: 5.588715754e-12 | CV147: 5.979925857e-12 | CW147: 6.398520667e-12 | CX147: 6.846417114e-12 | CY147: 7.325666311e-12 | CZ147: 7.838462953e-12 | DA147: 8.38715536e-12 | DB147: 8.974256235e-12 | DC147: 9.602454172e-12 | DD147: 1.027462596e-11 | DE147: 1.099384978e-11 | DF147: 1.176341927e-11 | DG147: 1.258685861e-11 | DH147: 1.346793872e-11 | DI147: 1.441069443e-11 | DJ147: 1.541944304e-11 | DK147: 1.649880405e-11 | DL147: 1.765372033e-11 | DM147: 1.888948076e-11 | DN147: 2.021174441e-11 | DO147: 2.162656652e-11 | DP147: 2.314042618e-11 | DQ147: 2.476025601e-11 | DR147: 2.649347393e-11 | DS147: 2.83480171e-11 | DT147: 3.03323783e-11 | DU147: 3.245564478e-11 | DV147: 3.472753992e-11 | DW147: 3.715846771e-11 | DX147: 3.975956045e-11 | DY147: 4.254272968e-11 | DZ147: 4.552072076e-11 | EA147: 4.870717121e-11 | EB147: 5.21166732e-11 | EC147: 5.576484032e-11 | ED147: 5.966837914e-11 | EE147: 6.384516568e-11 | EF147: 6.831432728e-11 | EG147: 7.309633019e-11 | EH147: 7.82130733e-11 | EI147: =EI143 -> 8.368798843e-11 | EJ147: 8.954614763e-11 | EK147: 9.581437796e-11 | EL147: 1.025213844e-10 | EM147: 1.096978813e-10 | EN147: 1.17376733e-10 | EO147: 1.255931043e-10 | EP147: 1.343846216e-10 | EQ147: 1.437915451e-10 | ER147: 1.538569533e-10 | ES147: 1.6462694e-10 | ET147: 1.761508258e-10 | EU147: 1.884813837e-10 | EV147: 2.016750805e-10 | EW147: 2.157923361e-10 | EX147: 2.308977997e-10 | EY147: 2.470606456e-10 | EZ147: 2.643548908e-10 | FA147: 2.828597332e-10 | FB147: 3.026599145e-10 | FC147: 3.238461085e-10 | FD147: 3.465153361e-10 | FE147: 3.707714097e-10 | FF147: 3.967254083e-10 | FG147: 4.244961869e-10 | FH147: 4.5421092e-10 | FI147: 4.860056844e-10 | FJ147: 5.200260823e-10 | FK147: 5.564279081e-10 | FL147: 5.953778617e-10 | FM147: 6.37054312e-10 | FN147: 6.816481138e-10 | FO147: 7.293634818e-10 | FP147: 7.804189255e-10 | FQ147: 8.350482503e-10 | FR147: 8.935016278e-10 | FS147: 9.560467418e-10 | FT147: 1.022970014e-09 | FU147: 1.094577915e-09 | FV147: 1.171198369e-09 | FW147: 1.253182254e-09 | FX147: 1.340905012e-09 | FY147: 1.434768363e-09 | FZ147: 1.535202149e-09 | GA147: 1.642666299e-09 | GB147: 1.75765294e-09 | GC147: 1.880688646e-09 | GD147: 2.012336851e-09 | GE147: 2.15320043e-09 | GF147: 2.303924461e-09 | GG147: 2.465199173e-09 | GH147: 2.637763115e-09 | GI147: 2.822406533e-09 | GJ147: 3.01997499e-09 | GK147: 3.23137324e-09 | GL147: 3.457569366e-09 | GM147: 3.699599222e-09 | GN147: 3.958571168e-09 | GO147: 4.235671149e-09 | GP147: 4.53216813e-09 | GQ147: 4.849419899e-09 | GR147: 5.188879292e-09 | GS147: 5.552100842e-09 | GT147: 5.940747901e-09 | GU147: =GU143 -> 6.356600254e-09 | GV147: 6.801562272e-09 | GW147: 7.277671631e-09 | GX147: 7.787108645e-09 | GY147: 8.33220625e-09 | GZ147: 8.915460688e-09 | HA147: 9.539542936e-09
D148: Closing Balance | F148: MED | J148: =J145+J146-J147 -> 104.250539 | K148: =K145+K146-K147 -> 203.8848284 | L148: 303.5626489 | M148: 403.2840195 | N148: 503.0489592 | O148: 602.8574871 | P148: 702.7096221 | Q148: 802.6053834 | R148: 902.54479 | S148: 1002.527861 | T148: 1102.554615 | U148: 1202.625072 | V148: 1302.739251 | W148: 1402.89717 | X148: 1503.098849 | Y148: 1603.344308 | Z148: 1703.633564 | AA148: 1803.966637 | AB148: 1904.343547 | AC148: 2004.764312 | AD148: 2105.228952 | AE148: 2205.737486 | AF148: 2306.289933 | AG148: 2445.199991 | AH148: 2186.603041 | AI148: 1953.043449 | AJ148: 1741.96944 | AK148: 1551.081612 | AL148: 1378.30753 | AM148: 1221.778862 | AN148: 1079.81078 | AO148: 950.8834166 | AP148: 833.625165 | AQ148: 726.797633 | AR148: 629.2820922 | AS148: 540.0672672 | AT148: 458.2383325 | AU148: 382.9669939 | AV148: 313.5025464 | AW148: 249.1638091 | AX148: 189.3318485 | AY148: 133.4434112 | AZ148: 80.98499286 | BA148: -4.661160347e-12 | BB148: -4.927258601e-12 | BC148: -5.211983733e-12 | BD148: -5.516639625e-12 | BE148: -5.842621429e-12 | BF148: -6.191421959e-12 | BG148: -6.564638527e-12 | BH148: -6.963980254e-12 | BI148: -7.391275902e-12 | BJ148: -7.848482246e-12 | BK148: -8.337693033e-12 | BL148: -8.861148576e-12 | BM148: -9.421246006e-12 | BN148: -1.002055026e-11 | BO148: -1.066180581e-11 | BP148: -1.134794924e-11 | BQ148: -1.208212272e-11 | BR148: -1.286768834e-11 | BS148: -1.370824355e-11 | BT148: -1.460763763e-11 | BU148: -1.55699893e-11 | BV148: -1.659970558e-11 | BW148: =BW145+BW146-BW147 -> -1.7701502e-11 | BX148: -1.888042417e-11 | BY148: -2.014187089e-11 | BZ148: -2.149161888e-11 | CA148: -2.293584924e-11 | CB148: -2.448117571e-11 | CC148: -2.613467504e-11 | CD148: -2.790391933e-11 | CE148: -2.979701071e-11 | CF148: -3.182261849e-11 | CG148: -3.399001881e-11 | CH148: -3.630913716e-11 | CI148: -3.879059379e-11 | CJ148: -4.144575239e-11 | CK148: -4.428677209e-11 | CL148: -4.732666316e-11 | CM148: -5.057934661e-11 | CN148: -5.405971791e-11 | CO148: -5.778371519e-11 | CP148: -6.176839229e-11 | CQ148: -6.603199678e-11 | CR148: -7.059405358e-11 | CS148: -7.547545436e-11 | CT148: -8.06985532e-11 | CU148: -8.628726895e-11 | CV148: -9.226719481e-11 | CW148: -9.866571548e-11 | CX148: -1.055121326e-10 | CY148: -1.128377989e-10 | CZ148: -1.206762619e-10 | DA148: -1.290634172e-10 | DB148: -1.380376734e-10 | DC148: -1.476401276e-10 | DD148: -1.579147536e-10 | DE148: -1.689086034e-10 | DF148: -1.806720226e-10 | DG148: -1.932588812e-10 | DH148: -2.0672682e-10 | DI148: -2.211375144e-10 | DJ148: -2.365569574e-10 | DK148: -2.530557615e-10 | DL148: -2.707094818e-10 | DM148: -2.895989626e-10 | DN148: -3.09810707e-10 | DO148: -3.314372735e-10 | DP148: -3.545776997e-10 | DQ148: -3.793379557e-10 | DR148: -4.058314296e-10 | DS148: -4.341794467e-10 | DT148: -4.64511825e-10 | DU148: -4.969674698e-10 | DV148: -5.316950097e-10 | DW148: -5.688534774e-10 | DX148: -6.086130379e-10 | DY148: -6.511557675e-10 | DZ148: -6.966764883e-10 | EA148: -7.453836595e-10 | EB148: -7.975003327e-10 | EC148: -8.53265173e-10 | ED148: -9.129335522e-10 | EE148: -9.767787179e-10 | EF148: -1.045093045e-09 | EG148: -1.118189375e-09 | EH148: -1.196402449e-09 | EI148: =EI145+EI146-EI147 -> -1.280090437e-09 | EJ148: -1.369636585e-09 | EK148: -1.465450963e-09 | EL148: -1.567972347e-09 | EM148: -1.677670228e-09 | EN148: -1.795046961e-09 | EO148: -1.920640066e-09 | EP148: -2.055024687e-09 | EQ148: -2.198816233e-09 | ER148: -2.352673186e-09 | ES148: -2.517300126e-09 | ET148: -2.693450952e-09 | EU148: -2.881932335e-09 | EV148: -3.083607416e-09 | EW148: -3.299399752e-09 | EX148: -3.530297552e-09 | EY148: -3.777358197e-09 | EZ148: -4.041713088e-09 | FA148: -4.324572821e-09 | FB148: -4.627232736e-09 | FC148: -4.951078844e-09 | FD148: -5.297594181e-09 | FE148: -5.66836559e-09 | FF148: -6.065090999e-09 | FG148: -6.489587186e-09 | FH148: -6.943798106e-09 | FI148: -7.42980379e-09 | FJ148: -7.949829872e-09 | FK148: -8.50625778e-09 | FL148: -9.101635642e-09 | FM148: -9.738689954e-09 | FN148: -1.042033807e-08 | FO148: -1.114970155e-08 | FP148: -1.193012048e-08 | FQ148: -1.276516873e-08 | FR148: -1.365867035e-08 | FS148: -1.461471709e-08 | FT148: -1.563768711e-08 | FU148: -1.673226502e-08 | FV148: -1.790346339e-08 | FW148: -1.915664565e-08 | FX148: -2.049755066e-08 | FY148: -2.193231902e-08 | FZ148: -2.346752117e-08 | GA148: -2.511018747e-08 | GB148: -2.686784041e-08 | GC148: -2.874852905e-08 | GD148: -3.076086591e-08 | GE148: -3.291406634e-08 | GF148: -3.52179908e-08 | GG148: -3.768318997e-08 | GH148: -4.032095308e-08 | GI148: -4.314335962e-08 | GJ148: -4.616333461e-08 | GK148: -4.939470785e-08 | GL148: -5.285227721e-08 | GM148: -5.655187644e-08 | GN148: -6.05104476e-08 | GO148: -6.474611875e-08 | GP148: -6.927828688e-08 | GQ148: -7.412770678e-08 | GR148: -7.931658607e-08 | GS148: -8.486868691e-08 | GT148: -9.080943482e-08 | GU148: =GU145+GU146-GU147 -> -9.716603507e-08 | GV148: -1.039675973e-07 | GW148: -1.11245269e-07 | GX148: -1.190323776e-07 | GY148: -1.273645839e-07 | GZ148: -1.362800446e-07 | HA148: -1.458195875e-07
D150: Interest Rate Annual | F150: % p.a. | G150: =G23 -> 0.07 | J150: =$G$150 -> 0.07 | K150: =$G$150 -> 0.07 | L150: 0.07 | M150: 0.07 | N150: 0.07 | O150: 0.07 | P150: 0.07 | Q150: 0.07 | R150: 0.07 | S150: 0.07 | T150: 0.07 | U150: 0.07 | V150: 0.07 | W150: 0.07 | X150: 0.07 | Y150: 0.07 | Z150: 0.07 | AA150: 0.07 | AB150: 0.07 | AC150: 0.07 | AD150: 0.07 | AE150: 0.07 | AF150: 0.07 | AG150: 0.07 | AH150: 0.07 | AI150: 0.07 | AJ150: 0.07 | AK150: 0.07 | AL150: 0.07 | AM150: 0.07 | AN150: 0.07 | AO150: 0.07 | AP150: 0.07 | AQ150: 0.07 | AR150: 0.07 | AS150: 0.07 | AT150: 0.07 | AU150: 0.07 | AV150: 0.07 | AW150: 0.07 | AX150: 0.07 | AY150: 0.07 | AZ150: 0.07 | BA150: 0.07 | BB150: 0.07 | BC150: 0.07 | BD150: 0.07 | BE150: 0.07 | BF150: 0.07 | BG150: 0.07 | BH150: 0.07 | BI150: 0.07 | BJ150: 0.07 | BK150: 0.07 | BL150: 0.07 | BM150: 0.07 | BN150: 0.07 | BO150: 0.07 | BP150: 0.07 | BQ150: 0.07 | BR150: 0.07 | BS150: 0.07 | BT150: 0.07 | BU150: 0.07 | BV150: 0.07 | BW150: =$G$150 -> 0.07 | BX150: 0.07 | BY150: 0.07 | BZ150: 0.07 | CA150: 0.07 | CB150: 0.07 | CC150: 0.07 | CD150: 0.07 | CE150: 0.07 | CF150: 0.07 | CG150: 0.07 | CH150: 0.07 | CI150: 0.07 | CJ150: 0.07 | CK150: 0.07 | CL150: 0.07 | CM150: 0.07 | CN150: 0.07 | CO150: 0.07 | CP150: 0.07 | CQ150: 0.07 | CR150: 0.07 | CS150: 0.07 | CT150: 0.07 | CU150: 0.07 | CV150: 0.07 | CW150: 0.07 | CX150: 0.07 | CY150: 0.07 | CZ150: 0.07 | DA150: 0.07 | DB150: 0.07 | DC150: 0.07 | DD150: 0.07 | DE150: 0.07 | DF150: 0.07 | DG150: 0.07 | DH150: 0.07 | DI150: 0.07 | DJ150: 0.07 | DK150: 0.07 | DL150: 0.07 | DM150: 0.07 | DN150: 0.07 | DO150: 0.07 | DP150: 0.07 | DQ150: 0.07 | DR150: 0.07 | DS150: 0.07 | DT150: 0.07 | DU150: 0.07 | DV150: 0.07 | DW150: 0.07 | DX150: 0.07 | DY150: 0.07 | DZ150: 0.07 | EA150: 0.07 | EB150: 0.07 | EC150: 0.07 | ED150: 0.07 | EE150: 0.07 | EF150: 0.07 | EG150: 0.07 | EH150: 0.07 | EI150: =$G$150 -> 0.07 | EJ150: 0.07 | EK150: 0.07 | EL150: 0.07 | EM150: 0.07 | EN150: 0.07 | EO150: 0.07 | EP150: 0.07 | EQ150: 0.07 | ER150: 0.07 | ES150: 0.07 | ET150: 0.07 | EU150: 0.07 | EV150: 0.07 | EW150: 0.07 | EX150: 0.07 | EY150: 0.07 | EZ150: 0.07 | FA150: 0.07 | FB150: 0.07 | FC150: 0.07 | FD150: 0.07 | FE150: 0.07 | FF150: 0.07 | FG150: 0.07 | FH150: 0.07 | FI150: 0.07 | FJ150: 0.07 | FK150: 0.07 | FL150: 0.07 | FM150: 0.07 | FN150: 0.07 | FO150: 0.07 | FP150: 0.07 | FQ150: 0.07 | FR150: 0.07 | FS150: 0.07 | FT150: 0.07 | FU150: 0.07 | FV150: 0.07 | FW150: 0.07 | FX150: 0.07 | FY150: 0.07 | FZ150: 0.07 | GA150: 0.07 | GB150: 0.07 | GC150: 0.07 | GD150: 0.07 | GE150: 0.07 | GF150: 0.07 | GG150: 0.07 | GH150: 0.07 | GI150: 0.07 | GJ150: 0.07 | GK150: 0.07 | GL150: 0.07 | GM150: 0.07 | GN150: 0.07 | GO150: 0.07 | GP150: 0.07 | GQ150: 0.07 | GR150: 0.07 | GS150: 0.07 | GT150: 0.07 | GU150: =$G$150 -> 0.07 | GV150: 0.07 | GW150: 0.07 | GX150: 0.07 | GY150: 0.07 | GZ150: 0.07 | HA150: 0.07
D151: Interest Rate Periodic | F151: % p.p. | J151: =(J150/12)*J6 -> 0.005833333333 | K151: =(K150/12)*K6 -> 0.005833333333 | L151: =(L150/12)*L6 -> 0.005833333333 | M151: =(M150/12)*M6 -> 0.005833333333 | N151: =(N150/12)*N6 -> 0.005833333333 | O151: =(O150/12)*O6 -> 0.005833333333 | P151: =(P150/12)*P6 -> 0.005833333333 | Q151: =(Q150/12)*Q6 -> 0.005833333333 | R151: =(R150/12)*R6 -> 0.005833333333 | S151: =(S150/12)*S6 -> 0.005833333333 | T151: =(T150/12)*T6 -> 0.005833333333 | U151: =(U150/12)*U6 -> 0.005833333333 | V151: =(V150/12)*V6 -> 0.005833333333 | W151: =(W150/12)*W6 -> 0.005833333333 | X151: =(X150/12)*X6 -> 0.005833333333 | Y151: =(Y150/12)*Y6 -> 0.005833333333 | Z151: =(Z150/12)*Z6 -> 0.005833333333 | AA151: =(AA150/12)*AA6 -> 0.005833333333 | AB151: =(AB150/12)*AB6 -> 0.005833333333 | AC151: =(AC150/12)*AC6 -> 0.005833333333 | AD151: =(AD150/12)*AD6 -> 0.005833333333 | AE151: =(AE150/12)*AE6 -> 0.005833333333 | AF151: =(AF150/12)*AF6 -> 0.005833333333 | AG151: =(AG150/12)*AG6 -> 0.005833333333 | AH151: =(AH150/12)*AH6 -> 0.07 | AI151: =(AI150/12)*AI6 -> 0.07 | AJ151: =(AJ150/12)*AJ6 -> 0.07 | AK151: =(AK150/12)*AK6 -> 0.07 | AL151: =(AL150/12)*AL6 -> 0.07 | AM151: =(AM150/12)*AM6 -> 0.07 | AN151: =(AN150/12)*AN6 -> 0.07 | AO151: =(AO150/12)*AO6 -> 0.07 | AP151: =(AP150/12)*AP6 -> 0.07 | AQ151: =(AQ150/12)*AQ6 -> 0.07 | AR151: =(AR150/12)*AR6 -> 0.07 | AS151: =(AS150/12)*AS6 -> 0.07 | AT151: =(AT150/12)*AT6 -> 0.07 | AU151: =(AU150/12)*AU6 -> 0.07 | AV151: =(AV150/12)*AV6 -> 0.07 | AW151: =(AW150/12)*AW6 -> 0.07 | AX151: =(AX150/12)*AX6 -> 0.07 | AY151: =(AY150/12)*AY6 -> 0.07 | AZ151: =(AZ150/12)*AZ6 -> 0.07 | BA151: =(BA150/12)*BA6 -> 0.07 | BB151: =(BB150/12)*BB6 -> 0.07 | BC151: =(BC150/12)*BC6 -> 0.07 | BD151: =(BD150/12)*BD6 -> 0.07 | BE151: =(BE150/12)*BE6 -> 0.07 | BF151: =(BF150/12)*BF6 -> 0.07 | BG151: =(BG150/12)*BG6 -> 0.07 | BH151: =(BH150/12)*BH6 -> 0.07 | BI151: =(BI150/12)*BI6 -> 0.07 | BJ151: =(BJ150/12)*BJ6 -> 0.07 | BK151: =(BK150/12)*BK6 -> 0.07 | BL151: =(BL150/12)*BL6 -> 0.07 | BM151: =(BM150/12)*BM6 -> 0.07 | BN151: =(BN150/12)*BN6 -> 0.07 | BO151: =(BO150/12)*BO6 -> 0.07 | BP151: =(BP150/12)*BP6 -> 0.07 | BQ151: =(BQ150/12)*BQ6 -> 0.07 | BR151: =(BR150/12)*BR6 -> 0.07 | BS151: =(BS150/12)*BS6 -> 0.07 | BT151: =(BT150/12)*BT6 -> 0.07 | BU151: =(BU150/12)*BU6 -> 0.07 | BV151: =(BV150/12)*BV6 -> 0.07 | BW151: =(BW150/12)*BW6 -> 0.07 | BX151: =(BX150/12)*BX6 -> 0.07 | BY151: =(BY150/12)*BY6 -> 0.07 | BZ151: =(BZ150/12)*BZ6 -> 0.07 | CA151: =(CA150/12)*CA6 -> 0.07 | CB151: =(CB150/12)*CB6 -> 0.07 | CC151: =(CC150/12)*CC6 -> 0.07 | CD151: =(CD150/12)*CD6 -> 0.07 | CE151: =(CE150/12)*CE6 -> 0.07 | CF151: =(CF150/12)*CF6 -> 0.07 | CG151: =(CG150/12)*CG6 -> 0.07 | CH151: =(CH150/12)*CH6 -> 0.07 | CI151: =(CI150/12)*CI6 -> 0.07 | CJ151: =(CJ150/12)*CJ6 -> 0.07 | CK151: =(CK150/12)*CK6 -> 0.07 | CL151: =(CL150/12)*CL6 -> 0.07 | CM151: =(CM150/12)*CM6 -> 0.07 | CN151: =(CN150/12)*CN6 -> 0.07 | CO151: =(CO150/12)*CO6 -> 0.07 | CP151: =(CP150/12)*CP6 -> 0.07 | CQ151: =(CQ150/12)*CQ6 -> 0.07 | CR151: =(CR150/12)*CR6 -> 0.07 | CS151: =(CS150/12)*CS6 -> 0.07 | CT151: =(CT150/12)*CT6 -> 0.07 | CU151: =(CU150/12)*CU6 -> 0.07 | CV151: =(CV150/12)*CV6 -> 0.07 | CW151: =(CW150/12)*CW6 -> 0.07 | CX151: =(CX150/12)*CX6 -> 0.07 | CY151: =(CY150/12)*CY6 -> 0.07 | CZ151: =(CZ150/12)*CZ6 -> 0.07 | DA151: =(DA150/12)*DA6 -> 0.07 | DB151: =(DB150/12)*DB6 -> 0.07 | DC151: =(DC150/12)*DC6 -> 0.07 | DD151: =(DD150/12)*DD6 -> 0.07 | DE151: =(DE150/12)*DE6 -> 0.07 | DF151: =(DF150/12)*DF6 -> 0.07 | DG151: =(DG150/12)*DG6 -> 0.07 | DH151: =(DH150/12)*DH6 -> 0.07 | DI151: =(DI150/12)*DI6 -> 0.07 | DJ151: =(DJ150/12)*DJ6 -> 0.07 | DK151: =(DK150/12)*DK6 -> 0.07 | DL151: =(DL150/12)*DL6 -> 0.07 | DM151: =(DM150/12)*DM6 -> 0.07 | DN151: =(DN150/12)*DN6 -> 0.07 | DO151: =(DO150/12)*DO6 -> 0.07 | DP151: =(DP150/12)*DP6 -> 0.07 | DQ151: =(DQ150/12)*DQ6 -> 0.07 | DR151: =(DR150/12)*DR6 -> 0.07 | DS151: =(DS150/12)*DS6 -> 0.07 | DT151: =(DT150/12)*DT6 -> 0.07 | DU151: =(DU150/12)*DU6 -> 0.07 | DV151: =(DV150/12)*DV6 -> 0.07 | DW151: =(DW150/12)*DW6 -> 0.07 | DX151: =(DX150/12)*DX6 -> 0.07 | DY151: =(DY150/12)*DY6 -> 0.07 | DZ151: =(DZ150/12)*DZ6 -> 0.07 | EA151: =(EA150/12)*EA6 -> 0.07 | EB151: =(EB150/12)*EB6 -> 0.07 | EC151: =(EC150/12)*EC6 -> 0.07 | ED151: =(ED150/12)*ED6 -> 0.07 | EE151: =(EE150/12)*EE6 -> 0.07 | EF151: =(EF150/12)*EF6 -> 0.07 | EG151: =(EG150/12)*EG6 -> 0.07 | EH151: =(EH150/12)*EH6 -> 0.07 | EI151: =(EI150/12)*EI6 -> 0.07 | EJ151: =(EJ150/12)*EJ6 -> 0.07 | EK151: =(EK150/12)*EK6 -> 0.07 | EL151: =(EL150/12)*EL6 -> 0.07 | EM151: =(EM150/12)*EM6 -> 0.07 | EN151: =(EN150/12)*EN6 -> 0.07 | EO151: =(EO150/12)*EO6 -> 0.07 | EP151: =(EP150/12)*EP6 -> 0.07 | EQ151: =(EQ150/12)*EQ6 -> 0.07 | ER151: =(ER150/12)*ER6 -> 0.07 | ES151: =(ES150/12)*ES6 -> 0.07 | ET151: =(ET150/12)*ET6 -> 0.07 | EU151: =(EU150/12)*EU6 -> 0.07 | EV151: =(EV150/12)*EV6 -> 0.07 | EW151: =(EW150/12)*EW6 -> 0.07 | EX151: =(EX150/12)*EX6 -> 0.07 | EY151: =(EY150/12)*EY6 -> 0.07 | EZ151: =(EZ150/12)*EZ6 -> 0.07 | FA151: =(FA150/12)*FA6 -> 0.07 | FB151: =(FB150/12)*FB6 -> 0.07 | FC151: =(FC150/12)*FC6 -> 0.07 | FD151: =(FD150/12)*FD6 -> 0.07 | FE151: =(FE150/12)*FE6 -> 0.07 | FF151: =(FF150/12)*FF6 -> 0.07 | FG151: =(FG150/12)*FG6 -> 0.07 | FH151: =(FH150/12)*FH6 -> 0.07 | FI151: =(FI150/12)*FI6 -> 0.07 | FJ151: =(FJ150/12)*FJ6 -> 0.07 | FK151: =(FK150/12)*FK6 -> 0.07 | FL151: =(FL150/12)*FL6 -> 0.07 | FM151: =(FM150/12)*FM6 -> 0.07 | FN151: =(FN150/12)*FN6 -> 0.07 | FO151: =(FO150/12)*FO6 -> 0.07 | FP151: =(FP150/12)*FP6 -> 0.07 | FQ151: =(FQ150/12)*FQ6 -> 0.07 | FR151: =(FR150/12)*FR6 -> 0.07 | FS151: =(FS150/12)*FS6 -> 0.07 | FT151: =(FT150/12)*FT6 -> 0.07 | FU151: =(FU150/12)*FU6 -> 0.07 | FV151: =(FV150/12)*FV6 -> 0.07 | FW151: =(FW150/12)*FW6 -> 0.07 | FX151: =(FX150/12)*FX6 -> 0.07 | FY151: =(FY150/12)*FY6 -> 0.07 | FZ151: =(FZ150/12)*FZ6 -> 0.07 | GA151: =(GA150/12)*GA6 -> 0.07 | GB151: =(GB150/12)*GB6 -> 0.07 | GC151: =(GC150/12)*GC6 -> 0.07 | GD151: =(GD150/12)*GD6 -> 0.07 | GE151: =(GE150/12)*GE6 -> 0.07 | GF151: =(GF150/12)*GF6 -> 0.07 | GG151: =(GG150/12)*GG6 -> 0.07 | GH151: =(GH150/12)*GH6 -> 0.07 | GI151: =(GI150/12)*GI6 -> 0.07 | GJ151: =(GJ150/12)*GJ6 -> 0.07 | GK151: =(GK150/12)*GK6 -> 0.07 | GL151: =(GL150/12)*GL6 -> 0.07 | GM151: =(GM150/12)*GM6 -> 0.07 | GN151: =(GN150/12)*GN6 -> 0.07 | GO151: =(GO150/12)*GO6 -> 0.07 | GP151: =(GP150/12)*GP6 -> 0.07 | GQ151: =(GQ150/12)*GQ6 -> 0.07 | GR151: =(GR150/12)*GR6 -> 0.07 | GS151: =(GS150/12)*GS6 -> 0.07 | GT151: =(GT150/12)*GT6 -> 0.07 | GU151: =(GU150/12)*GU6 -> 0.07 | GV151: =(GV150/12)*GV6 -> 0.07 | GW151: =(GW150/12)*GW6 -> 0.07 | GX151: =(GX150/12)*GX6 -> 0.07 | GY151: =(GY150/12)*GY6 -> 0.07 | GZ151: =(GZ150/12)*GZ6 -> 0.07 | HA151: =(HA150/12)*HA6 -> 0.07
D152: Interest Cost | F152: MED | J152: =J151*J145 -> 0 | K152: 0.6081281439 | L152: 1.189328166 | M152: 1.770782119 | N152: 2.352490114 | O152: 2.934452262 | P152: 3.516668675 | Q152: 4.099139462 | R152: 4.681864737 | S152: 5.264844608 | T152: 5.848079189 | U152: 6.43156859 | V152: 7.015312922 | W152: 7.599312297 | X152: 8.183566827 | Y152: 8.768076622 | Z152: 9.352841794 | AA152: 9.937862455 | AB152: 10.52313872 | AC152: 11.10867069 | AD152: 11.69445849 | AE152: 12.28050222 | AF152: 12.866802 | AG152: 13.45335794 | AH152: 171.1639994 | AI152: 153.0622129 | AJ152: 136.7130414 | AK152: 121.9378608 | AL152: 108.5757128 | AM152: 96.48152711 | AN152: 85.52452035 | AO152: 75.58675459 | AP152: =AP151*AP145 -> 66.56183917 | AQ152: 58.35376155 | AR152: 50.87583431 | AS152: 44.04974645 | AT152: 37.8047087 | AU152: 32.07668327 | AV152: 26.80768957 | AW152: 21.94517825 | AX152: 17.44146664 | AY152: 13.25322939 | AZ152: 9.341038785 | BA152: 5.6689495 | BB152: -3.262812243e-13 | BC152: -3.449081021e-13 | BD152: -3.648388613e-13 | BE152: -3.861647738e-13 | BF152: -4.089835e-13 | BG152: -4.333995372e-13 | BH152: -4.595246969e-13 | BI152: -4.874786178e-13 | BJ152: -5.173893132e-13 | BK152: -5.493937572e-13 | BL152: -5.836385123e-13 | BM152: -6.202804003e-13 | BN152: -6.594872204e-13 | BO152: -7.01438518e-13 | BP152: -7.463264064e-13 | BQ152: -7.943564469e-13 | BR152: -8.457485903e-13 | BS152: -9.007381838e-13 | BT152: -9.595770488e-13 | BU152: -1.022534634e-12 | BV152: =BV151*BV145 -> -1.089899251e-12 | BW152: -1.16197939e-12 | BX152: -1.23910514e-12 | BY152: -1.321629692e-12 | BZ152: -1.409930962e-12 | CA152: -1.504413322e-12 | CB152: -1.605509447e-12 | CC152: -1.7136823e-12 | CD152: -1.829427253e-12 | CE152: -1.953274353e-12 | CF152: -2.08579075e-12 | CG152: -2.227583294e-12 | CH152: -2.379301317e-12 | CI152: -2.541639601e-12 | CJ152: -2.715341566e-12 | CK152: -2.901202667e-12 | CL152: -3.100074046e-12 | CM152: -3.312866421e-12 | CN152: -3.540554263e-12 | CO152: -3.784180254e-12 | CP152: -4.044860063e-12 | CQ152: -4.32378746e-12 | CR152: -4.622239774e-12 | CS152: -4.941583751e-12 | CT152: -5.283281805e-12 | CU152: -5.648898724e-12 | CV152: -6.040108827e-12 | CW152: -6.458703637e-12 | CX152: -6.906600083e-12 | CY152: -7.385849281e-12 | CZ152: -7.898645923e-12 | DA152: -8.44733833e-12 | DB152: =DB151*DB145 -> -9.034439205e-12 | DC152: -9.662637141e-12 | DD152: -1.033480893e-11 | DE152: -1.105403275e-11 | DF152: -1.182360224e-11 | DG152: -1.264704158e-11 | DH152: -1.352812169e-11 | DI152: -1.44708774e-11 | DJ152: -1.547962601e-11 | DK152: -1.655898702e-11 | DL152: -1.77139033e-11 | DM152: -1.894966373e-11 | DN152: -2.027192738e-11 | DO152: -2.168674949e-11 | DP152: -2.320060914e-11 | DQ152: -2.482043898e-11 | DR152: -2.65536569e-11 | DS152: -2.840820007e-11 | DT152: -3.039256127e-11 | DU152: -3.251582775e-11 | DV152: -3.478772289e-11 | DW152: -3.721865068e-11 | DX152: -3.981974342e-11 | DY152: -4.260291265e-11 | DZ152: -4.558090373e-11 | EA152: -4.876735418e-11 | EB152: -5.217685617e-11 | EC152: -5.582502329e-11 | ED152: -5.972856211e-11 | EE152: -6.390534865e-11 | EF152: -6.837451025e-11 | EG152: -7.315651316e-11 | EH152: =EH151*EH145 -> -7.827325627e-11 | EI152: -8.37481714e-11 | EJ152: -8.96063306e-11 | EK152: -9.587456093e-11 | EL152: -1.025815674e-10 | EM152: -1.097580643e-10 | EN152: -1.17436916e-10 | EO152: -1.256532873e-10 | EP152: -1.344448046e-10 | EQ152: -1.438517281e-10 | ER152: -1.539171363e-10 | ES152: -1.64687123e-10 | ET152: -1.762110088e-10 | EU152: -1.885415666e-10 | EV152: -2.017352635e-10 | EW152: -2.158525191e-10 | EX152: -2.309579826e-10 | EY152: -2.471208286e-10 | EZ152: -2.644150738e-10 | FA152: -2.829199162e-10 | FB152: -3.027200975e-10 | FC152: -3.239062915e-10 | FD152: -3.465755191e-10 | FE152: -3.708315926e-10 | FF152: -3.967855913e-10 | FG152: -4.245563699e-10 | FH152: -4.54271103e-10 | FI152: -4.860658674e-10 | FJ152: -5.200862653e-10 | FK152: -5.564880911e-10 | FL152: -5.954380446e-10 | FM152: -6.371144949e-10 | FN152: =FN151*FN145 -> -6.817082968e-10 | FO152: -7.294236647e-10 | FP152: -7.804791085e-10 | FQ152: -8.351084333e-10 | FR152: -8.935618108e-10 | FS152: -9.561069247e-10 | FT152: -1.023030197e-09 | FU152: -1.094638098e-09 | FV152: -1.171258552e-09 | FW152: -1.253242437e-09 | FX152: -1.340965195e-09 | FY152: -1.434828546e-09 | FZ152: -1.535262332e-09 | GA152: -1.642726482e-09 | GB152: -1.757713123e-09 | GC152: -1.880748829e-09 | GD152: -2.012397034e-09 | GE152: -2.153260613e-09 | GF152: -2.303984644e-09 | GG152: -2.465259356e-09 | GH152: -2.637823298e-09 | GI152: -2.822466716e-09 | GJ152: -3.020035173e-09 | GK152: -3.231433423e-09 | GL152: -3.457629549e-09 | GM152: -3.699659405e-09 | GN152: -3.95863135e-09 | GO152: -4.235731332e-09 | GP152: -4.532228313e-09 | GQ152: -4.849480082e-09 | GR152: -5.188939475e-09 | GS152: -5.552161025e-09 | GT152: =GT151*GT145 -> -5.940808084e-09 | GU152: -6.356660437e-09 | GV152: -6.801622455e-09 | GW152: -7.277731814e-09 | GX152: -7.787168828e-09 | GY152: -8.332266433e-09 | GZ152: -8.915520871e-09 | HA152: -9.539603119e-09
D154: Interest During Construction | F154: MED | J154: =J152*J3 -> 0 | K154: =K152*K3 -> 0.6081281439 | L154: =L152*L3 -> 1.189328166 | M154: =M152*M3 -> 1.770782119 | N154: =N152*N3 -> 2.352490114 | O154: =O152*O3 -> 2.934452262 | P154: =P152*P3 -> 3.516668675 | Q154: =Q152*Q3 -> 4.099139462 | R154: =R152*R3 -> 4.681864737 | S154: =S152*S3 -> 5.264844608 | T154: =T152*T3 -> 5.848079189 | U154: =U152*U3 -> 6.43156859 | V154: =V152*V3 -> 7.015312922 | W154: =W152*W3 -> 7.599312297 | X154: =X152*X3 -> 8.183566827 | Y154: =Y152*Y3 -> 8.768076622 | Z154: =Z152*Z3 -> 9.352841794 | AA154: =AA152*AA3 -> 9.937862455 | AB154: =AB152*AB3 -> 10.52313872 | AC154: =AC152*AC3 -> 11.10867069 | AD154: =AD152*AD3 -> 11.69445849 | AE154: =AE152*AE3 -> 12.28050222 | AF154: =AF152*AF3 -> 12.866802 | AG154: =AG152*AG3 -> 13.45335794 | AH154: =AH152*AH3 -> 0 | AI154: =AI152*AI3 -> 0 | AJ154: =AJ152*AJ3 -> 0 | AK154: =AK152*AK3 -> 0 | AL154: =AL152*AL3 -> 0 | AM154: =AM152*AM3 -> 0 | AN154: =AN152*AN3 -> 0 | AO154: =AO152*AO3 -> 0 | AP154: =AP152*AP3 -> 0 | AQ154: =AQ152*AQ3 -> 0 | AR154: =AR152*AR3 -> 0 | AS154: =AS152*AS3 -> 0 | AT154: =AT152*AT3 -> 0 | AU154: =AU152*AU3 -> 0 | AV154: =AV152*AV3 -> 0 | AW154: =AW152*AW3 -> 0 | AX154: =AX152*AX3 -> 0 | AY154: =AY152*AY3 -> 0 | AZ154: =AZ152*AZ3 -> 0 | BA154: =BA152*BA3 -> 0 | BB154: =BB152*BB3 -> 0 | BC154: =BC152*BC3 -> 0 | BD154: =BD152*BD3 -> 0 | BE154: =BE152*BE3 -> 0 | BF154: =BF152*BF3 -> 0 | BG154: =BG152*BG3 -> 0 | BH154: =BH152*BH3 -> 0 | BI154: =BI152*BI3 -> 0 | BJ154: =BJ152*BJ3 -> 0 | BK154: =BK152*BK3 -> 0 | BL154: =BL152*BL3 -> 0 | BM154: =BM152*BM3 -> 0 | BN154: =BN152*BN3 -> 0 | BO154: =BO152*BO3 -> 0 | BP154: =BP152*BP3 -> 0 | BQ154: =BQ152*BQ3 -> 0 | BR154: =BR152*BR3 -> 0 | BS154: =BS152*BS3 -> 0 | BT154: =BT152*BT3 -> 0 | BU154: =BU152*BU3 -> 0 | BV154: =BV152*BV3 -> 0 | BW154: =BW152*BW3 -> 0 | BX154: =BX152*BX3 -> 0 | BY154: =BY152*BY3 -> 0 | BZ154: =BZ152*BZ3 -> 0 | CA154: =CA152*CA3 -> 0 | CB154: =CB152*CB3 -> 0 | CC154: =CC152*CC3 -> 0 | CD154: =CD152*CD3 -> 0 | CE154: =CE152*CE3 -> 0 | CF154: =CF152*CF3 -> 0 | CG154: =CG152*CG3 -> 0 | CH154: =CH152*CH3 -> 0 | CI154: =CI152*CI3 -> 0 | CJ154: =CJ152*CJ3 -> 0 | CK154: =CK152*CK3 -> 0 | CL154: =CL152*CL3 -> 0 | CM154: =CM152*CM3 -> 0 | CN154: =CN152*CN3 -> 0 | CO154: =CO152*CO3 -> 0 | CP154: =CP152*CP3 -> 0 | CQ154: =CQ152*CQ3 -> 0 | CR154: =CR152*CR3 -> 0 | CS154: =CS152*CS3 -> 0 | CT154: =CT152*CT3 -> 0 | CU154: =CU152*CU3 -> 0 | CV154: =CV152*CV3 -> 0 | CW154: =CW152*CW3 -> 0 | CX154: =CX152*CX3 -> 0 | CY154: =CY152*CY3 -> 0 | CZ154: =CZ152*CZ3 -> 0 | DA154: =DA152*DA3 -> 0 | DB154: =DB152*DB3 -> 0 | DC154: =DC152*DC3 -> 0 | DD154: =DD152*DD3 -> 0 | DE154: =DE152*DE3 -> 0 | DF154: =DF152*DF3 -> 0 | DG154: =DG152*DG3 -> 0 | DH154: =DH152*DH3 -> 0 | DI154: =DI152*DI3 -> 0 | DJ154: =DJ152*DJ3 -> 0 | DK154: =DK152*DK3 -> 0 | DL154: =DL152*DL3 -> 0 | DM154: =DM152*DM3 -> 0 | DN154: =DN152*DN3 -> 0 | DO154: =DO152*DO3 -> 0 | DP154: =DP152*DP3 -> 0 | DQ154: =DQ152*DQ3 -> 0 | DR154: =DR152*DR3 -> 0 | DS154: =DS152*DS3 -> 0 | DT154: =DT152*DT3 -> 0 | DU154: =DU152*DU3 -> 0 | DV154: =DV152*DV3 -> 0 | DW154: =DW152*DW3 -> 0 | DX154: =DX152*DX3 -> 0 | DY154: =DY152*DY3 -> 0 | DZ154: =DZ152*DZ3 -> 0 | EA154: =EA152*EA3 -> 0 | EB154: =EB152*EB3 -> 0 | EC154: =EC152*EC3 -> 0 | ED154: =ED152*ED3 -> 0 | EE154: =EE152*EE3 -> 0 | EF154: =EF152*EF3 -> 0 | EG154: =EG152*EG3 -> 0 | EH154: =EH152*EH3 -> 0 | EI154: =EI152*EI3 -> 0 | EJ154: =EJ152*EJ3 -> 0 | EK154: =EK152*EK3 -> 0 | EL154: =EL152*EL3 -> 0 | EM154: =EM152*EM3 -> 0 | EN154: =EN152*EN3 -> 0 | EO154: =EO152*EO3 -> 0 | EP154: =EP152*EP3 -> 0 | EQ154: =EQ152*EQ3 -> 0 | ER154: =ER152*ER3 -> 0 | ES154: =ES152*ES3 -> 0 | ET154: =ET152*ET3 -> 0 | EU154: =EU152*EU3 -> 0 | EV154: =EV152*EV3 -> 0 | EW154: =EW152*EW3 -> 0 | EX154: =EX152*EX3 -> 0 | EY154: =EY152*EY3 -> 0 | EZ154: =EZ152*EZ3 -> 0 | FA154: =FA152*FA3 -> 0 | FB154: =FB152*FB3 -> 0 | FC154: =FC152*FC3 -> 0 | FD154: =FD152*FD3 -> 0 | FE154: =FE152*FE3 -> 0 | FF154: =FF152*FF3 -> 0 | FG154: =FG152*FG3 -> 0 | FH154: =FH152*FH3 -> 0 | FI154: =FI152*FI3 -> 0 | FJ154: =FJ152*FJ3 -> 0 | FK154: =FK152*FK3 -> 0 | FL154: =FL152*FL3 -> 0 | FM154: =FM152*FM3 -> 0 | FN154: =FN152*FN3 -> 0 | FO154: =FO152*FO3 -> 0 | FP154: =FP152*FP3 -> 0 | FQ154: =FQ152*FQ3 -> 0 | FR154: =FR152*FR3 -> 0 | FS154: =FS152*FS3 -> 0 | FT154: =FT152*FT3 -> 0 | FU154: =FU152*FU3 -> 0 | FV154: =FV152*FV3 -> 0 | FW154: =FW152*FW3 -> 0 | FX154: =FX152*FX3 -> 0 | FY154: =FY152*FY3 -> 0 | FZ154: =FZ152*FZ3 -> 0 | GA154: =GA152*GA3 -> 0 | GB154: =GB152*GB3 -> 0 | GC154: =GC152*GC3 -> 0 | GD154: =GD152*GD3 -> 0 | GE154: =GE152*GE3 -> 0 | GF154: =GF152*GF3 -> 0 | GG154: =GG152*GG3 -> 0 | GH154: =GH152*GH3 -> 0 | GI154: =GI152*GI3 -> 0 | GJ154: =GJ152*GJ3 -> 0 | GK154: =GK152*GK3 -> 0 | GL154: =GL152*GL3 -> 0 | GM154: =GM152*GM3 -> 0 | GN154: =GN152*GN3 -> 0 | GO154: =GO152*GO3 -> 0 | GP154: =GP152*GP3 -> 0 | GQ154: =GQ152*GQ3 -> 0 | GR154: =GR152*GR3 -> 0 | GS154: =GS152*GS3 -> 0 | GT154: =GT152*GT3 -> 0 | GU154: =GU152*GU3 -> 0 | GV154: =GV152*GV3 -> 0 | GW154: =GW152*GW3 -> 0 | GX154: =GX152*GX3 -> 0 | GY154: =GY152*GY3 -> 0 | GZ154: =GZ152*GZ3 -> 0 | HA154: =HA152*HA3 -> 0
D155: Interest Expense | J155: =J152*J7 -> 0 | K155: =K152*K7 -> 0 | L155: =L152*L7 -> 0 | M155: =M152*M7 -> 0 | N155: =N152*N7 -> 0 | O155: =O152*O7 -> 0 | P155: =P152*P7 -> 0 | Q155: =Q152*Q7 -> 0 | R155: =R152*R7 -> 0 | S155: =S152*S7 -> 0 | T155: =T152*T7 -> 0 | U155: =U152*U7 -> 0 | V155: =V152*V7 -> 0 | W155: =W152*W7 -> 0 | X155: =X152*X7 -> 0 | Y155: =Y152*Y7 -> 0 | Z155: =Z152*Z7 -> 0 | AA155: =AA152*AA7 -> 0 | AB155: =AB152*AB7 -> 0 | AC155: =AC152*AC7 -> 0 | AD155: =AD152*AD7 -> 0 | AE155: =AE152*AE7 -> 0 | AF155: =AF152*AF7 -> 0 | AG155: =AG152*AG7 -> 0 | AH155: =AH152*AH7 -> 171.1639994 | AI155: =AI152*AI7 -> 153.0622129 | AJ155: =AJ152*AJ7 -> 136.7130414 | AK155: =AK152*AK7 -> 121.9378608 | AL155: =AL152*AL7 -> 108.5757128 | AM155: =AM152*AM7 -> 96.48152711 | AN155: =AN152*AN7 -> 85.52452035 | AO155: =AO152*AO7 -> 75.58675459 | AP155: =AP152*AP7 -> 66.56183917 | AQ155: =AQ152*AQ7 -> 58.35376155 | AR155: =AR152*AR7 -> 50.87583431 | AS155: =AS152*AS7 -> 44.04974645 | AT155: =AT152*AT7 -> 37.8047087 | AU155: =AU152*AU7 -> 32.07668327 | AV155: =AV152*AV7 -> 26.80768957 | AW155: =AW152*AW7 -> 21.94517825 | AX155: =AX152*AX7 -> 17.44146664 | AY155: =AY152*AY7 -> 13.25322939 | AZ155: =AZ152*AZ7 -> 9.341038785 | BA155: =BA152*BA7 -> 5.6689495 | BB155: =BB152*BB7 -> 0 | BC155: =BC152*BC7 -> 0 | BD155: =BD152*BD7 -> 0 | BE155: =BE152*BE7 -> 0 | BF155: =BF152*BF7 -> 0 | BG155: =BG152*BG7 -> 0 | BH155: =BH152*BH7 -> 0 | BI155: =BI152*BI7 -> 0 | BJ155: =BJ152*BJ7 -> 0 | BK155: =BK152*BK7 -> 0 | BL155: =BL152*BL7 -> 0 | BM155: =BM152*BM7 -> 0 | BN155: =BN152*BN7 -> 0 | BO155: =BO152*BO7 -> 0 | BP155: =BP152*BP7 -> 0 | BQ155: =BQ152*BQ7 -> 0 | BR155: =BR152*BR7 -> 0 | BS155: =BS152*BS7 -> 0 | BT155: =BT152*BT7 -> 0 | BU155: =BU152*BU7 -> 0 | BV155: =BV152*BV7 -> 0 | BW155: =BW152*BW7 -> 0 | BX155: =BX152*BX7 -> 0 | BY155: =BY152*BY7 -> 0 | BZ155: =BZ152*BZ7 -> 0 | CA155: =CA152*CA7 -> 0 | CB155: =CB152*CB7 -> 0 | CC155: =CC152*CC7 -> 0 | CD155: =CD152*CD7 -> 0 | CE155: =CE152*CE7 -> 0 | CF155: =CF152*CF7 -> 0 | CG155: =CG152*CG7 -> 0 | CH155: =CH152*CH7 -> 0 | CI155: =CI152*CI7 -> 0 | CJ155: =CJ152*CJ7 -> 0 | CK155: =CK152*CK7 -> 0 | CL155: =CL152*CL7 -> 0 | CM155: =CM152*CM7 -> 0 | CN155: =CN152*CN7 -> 0 | CO155: =CO152*CO7 -> 0 | CP155: =CP152*CP7 -> 0 | CQ155: =CQ152*CQ7 -> 0 | CR155: =CR152*CR7 -> 0 | CS155: =CS152*CS7 -> 0 | CT155: =CT152*CT7 -> 0 | CU155: =CU152*CU7 -> 0 | CV155: =CV152*CV7 -> 0 | CW155: =CW152*CW7 -> 0 | CX155: =CX152*CX7 -> 0 | CY155: =CY152*CY7 -> 0 | CZ155: =CZ152*CZ7 -> 0 | DA155: =DA152*DA7 -> 0 | DB155: =DB152*DB7 -> 0 | DC155: =DC152*DC7 -> 0 | DD155: =DD152*DD7 -> 0 | DE155: =DE152*DE7 -> 0 | DF155: =DF152*DF7 -> 0 | DG155: =DG152*DG7 -> 0 | DH155: =DH152*DH7 -> 0 | DI155: =DI152*DI7 -> 0 | DJ155: =DJ152*DJ7 -> 0 | DK155: =DK152*DK7 -> 0 | DL155: =DL152*DL7 -> 0 | DM155: =DM152*DM7 -> 0 | DN155: =DN152*DN7 -> 0 | DO155: =DO152*DO7 -> 0 | DP155: =DP152*DP7 -> 0 | DQ155: =DQ152*DQ7 -> 0 | DR155: =DR152*DR7 -> 0 | DS155: =DS152*DS7 -> 0 | DT155: =DT152*DT7 -> 0 | DU155: =DU152*DU7 -> 0 | DV155: =DV152*DV7 -> 0 | DW155: =DW152*DW7 -> 0 | DX155: =DX152*DX7 -> 0 | DY155: =DY152*DY7 -> 0 | DZ155: =DZ152*DZ7 -> 0 | EA155: =EA152*EA7 -> 0 | EB155: =EB152*EB7 -> 0 | EC155: =EC152*EC7 -> 0 | ED155: =ED152*ED7 -> 0 | EE155: =EE152*EE7 -> 0 | EF155: =EF152*EF7 -> 0 | EG155: =EG152*EG7 -> 0 | EH155: =EH152*EH7 -> 0 | EI155: =EI152*EI7 -> 0 | EJ155: =EJ152*EJ7 -> 0 | EK155: =EK152*EK7 -> 0 | EL155: =EL152*EL7 -> 0 | EM155: =EM152*EM7 -> 0 | EN155: =EN152*EN7 -> 0 | EO155: =EO152*EO7 -> 0 | EP155: =EP152*EP7 -> 0 | EQ155: =EQ152*EQ7 -> 0 | ER155: =ER152*ER7 -> 0 | ES155: =ES152*ES7 -> 0 | ET155: =ET152*ET7 -> 0 | EU155: =EU152*EU7 -> 0 | EV155: =EV152*EV7 -> 0 | EW155: =EW152*EW7 -> 0 | EX155: =EX152*EX7 -> 0 | EY155: =EY152*EY7 -> 0 | EZ155: =EZ152*EZ7 -> 0 | FA155: =FA152*FA7 -> 0 | FB155: =FB152*FB7 -> 0 | FC155: =FC152*FC7 -> 0 | FD155: =FD152*FD7 -> 0 | FE155: =FE152*FE7 -> 0 | FF155: =FF152*FF7 -> 0 | FG155: =FG152*FG7 -> 0 | FH155: =FH152*FH7 -> 0 | FI155: =FI152*FI7 -> 0 | FJ155: =FJ152*FJ7 -> 0 | FK155: =FK152*FK7 -> 0 | FL155: =FL152*FL7 -> 0 | FM155: =FM152*FM7 -> 0 | FN155: =FN152*FN7 -> 0 | FO155: =FO152*FO7 -> 0 | FP155: =FP152*FP7 -> 0 | FQ155: =FQ152*FQ7 -> 0 | FR155: =FR152*FR7 -> 0 | FS155: =FS152*FS7 -> 0 | FT155: =FT152*FT7 -> 0 | FU155: =FU152*FU7 -> 0 | FV155: =FV152*FV7 -> 0 | FW155: =FW152*FW7 -> 0 | FX155: =FX152*FX7 -> 0 | FY155: =FY152*FY7 -> 0 | FZ155: =FZ152*FZ7 -> 0 | GA155: =GA152*GA7 -> 0 | GB155: =GB152*GB7 -> 0 | GC155: =GC152*GC7 -> 0 | GD155: =GD152*GD7 -> 0 | GE155: =GE152*GE7 -> 0 | GF155: =GF152*GF7 -> 0 | GG155: =GG152*GG7 -> 0 | GH155: =GH152*GH7 -> 0 | GI155: =GI152*GI7 -> 0 | GJ155: =GJ152*GJ7 -> 0 | GK155: =GK152*GK7 -> 0 | GL155: =GL152*GL7 -> 0 | GM155: =GM152*GM7 -> 0 | GN155: =GN152*GN7 -> 0 | GO155: =GO152*GO7 -> 0 | GP155: =GP152*GP7 -> 0 | GQ155: =GQ152*GQ7 -> 0 | GR155: =GR152*GR7 -> 0 | GS155: =GS152*GS7 -> 0 | GT155: =GT152*GT7 -> 0 | GU155: =GU152*GU7 -> 0 | GV155: =GV152*GV7 -> 0 | GW155: =GW152*GW7 -> 0 | GX155: =GX152*GX7 -> 0 | GY155: =GY152*GY7 -> 0 | GZ155: =GZ152*GZ7 -> 0 | HA155: =HA152*HA7 -> 0
D156: Financial Close | F156: Flag | J156: =J2=1 -> TRUE | K156: =K2=1 -> FALSE | L156: =L2=1 -> FALSE | M156: =M2=1 -> FALSE | N156: =N2=1 -> FALSE | O156: =O2=1 -> FALSE | P156: =P2=1 -> FALSE | Q156: =Q2=1 -> FALSE | R156: =R2=1 -> FALSE | S156: =S2=1 -> FALSE | T156: =T2=1 -> FALSE | U156: =U2=1 -> FALSE | V156: =V2=1 -> FALSE | W156: =W2=1 -> FALSE | X156: =X2=1 -> FALSE | Y156: =Y2=1 -> FALSE | Z156: =Z2=1 -> FALSE | AA156: =AA2=1 -> FALSE | AB156: =AB2=1 -> FALSE | AC156: =AC2=1 -> FALSE | AD156: =AD2=1 -> FALSE | AE156: =AE2=1 -> FALSE | AF156: =AF2=1 -> FALSE | AG156: =AG2=1 -> FALSE | AH156: =AH2=1 -> FALSE | AI156: =AI2=1 -> FALSE | AJ156: =AJ2=1 -> FALSE | AK156: =AK2=1 -> FALSE | AL156: =AL2=1 -> FALSE | AM156: =AM2=1 -> FALSE | AN156: =AN2=1 -> FALSE | AO156: =AO2=1 -> FALSE | AP156: =AP2=1 -> FALSE | AQ156: =AQ2=1 -> FALSE | AR156: =AR2=1 -> FALSE | AS156: =AS2=1 -> FALSE | AT156: =AT2=1 -> FALSE | AU156: =AU2=1 -> FALSE | AV156: =AV2=1 -> FALSE | AW156: =AW2=1 -> FALSE | AX156: =AX2=1 -> FALSE | AY156: =AY2=1 -> FALSE | AZ156: =AZ2=1 -> FALSE | BA156: =BA2=1 -> FALSE | BB156: =BB2=1 -> FALSE | BC156: =BC2=1 -> FALSE | BD156: =BD2=1 -> FALSE | BE156: =BE2=1 -> FALSE | BF156: =BF2=1 -> FALSE | BG156: =BG2=1 -> FALSE | BH156: =BH2=1 -> FALSE | BI156: =BI2=1 -> FALSE | BJ156: =BJ2=1 -> FALSE | BK156: =BK2=1 -> FALSE | BL156: =BL2=1 -> FALSE | BM156: =BM2=1 -> FALSE | BN156: =BN2=1 -> FALSE | BO156: =BO2=1 -> FALSE | BP156: =BP2=1 -> FALSE | BQ156: =BQ2=1 -> FALSE | BR156: =BR2=1 -> FALSE | BS156: =BS2=1 -> FALSE | BT156: =BT2=1 -> FALSE | BU156: =BU2=1 -> FALSE | BV156: =BV2=1 -> FALSE | BW156: =BW2=1 -> FALSE | BX156: =BX2=1 -> FALSE | BY156: =BY2=1 -> FALSE | BZ156: =BZ2=1 -> FALSE | CA156: =CA2=1 -> FALSE | CB156: =CB2=1 -> FALSE | CC156: =CC2=1 -> FALSE | CD156: =CD2=1 -> FALSE | CE156: =CE2=1 -> FALSE | CF156: =CF2=1 -> FALSE | CG156: =CG2=1 -> FALSE | CH156: =CH2=1 -> FALSE | CI156: =CI2=1 -> FALSE | CJ156: =CJ2=1 -> FALSE | CK156: =CK2=1 -> FALSE | CL156: =CL2=1 -> FALSE | CM156: =CM2=1 -> FALSE | CN156: =CN2=1 -> FALSE | CO156: =CO2=1 -> FALSE | CP156: =CP2=1 -> FALSE | CQ156: =CQ2=1 -> FALSE | CR156: =CR2=1 -> FALSE | CS156: =CS2=1 -> FALSE | CT156: =CT2=1 -> FALSE | CU156: =CU2=1 -> FALSE | CV156: =CV2=1 -> FALSE | CW156: =CW2=1 -> FALSE | CX156: =CX2=1 -> FALSE | CY156: =CY2=1 -> FALSE | CZ156: =CZ2=1 -> FALSE | DA156: =DA2=1 -> FALSE | DB156: =DB2=1 -> FALSE | DC156: =DC2=1 -> FALSE | DD156: =DD2=1 -> FALSE | DE156: =DE2=1 -> FALSE | DF156: =DF2=1 -> FALSE | DG156: =DG2=1 -> FALSE | DH156: =DH2=1 -> FALSE | DI156: =DI2=1 -> FALSE | DJ156: =DJ2=1 -> FALSE | DK156: =DK2=1 -> FALSE | DL156: =DL2=1 -> FALSE | DM156: =DM2=1 -> FALSE | DN156: =DN2=1 -> FALSE | DO156: =DO2=1 -> FALSE | DP156: =DP2=1 -> FALSE | DQ156: =DQ2=1 -> FALSE | DR156: =DR2=1 -> FALSE | DS156: =DS2=1 -> FALSE | DT156: =DT2=1 -> FALSE | DU156: =DU2=1 -> FALSE | DV156: =DV2=1 -> FALSE | DW156: =DW2=1 -> FALSE | DX156: =DX2=1 -> FALSE | DY156: =DY2=1 -> FALSE | DZ156: =DZ2=1 -> FALSE | EA156: =EA2=1 -> FALSE | EB156: =EB2=1 -> FALSE | EC156: =EC2=1 -> FALSE | ED156: =ED2=1 -> FALSE | EE156: =EE2=1 -> FALSE | EF156: =EF2=1 -> FALSE | EG156: =EG2=1 -> FALSE | EH156: =EH2=1 -> FALSE | EI156: =EI2=1 -> FALSE | EJ156: =EJ2=1 -> FALSE | EK156: =EK2=1 -> FALSE | EL156: =EL2=1 -> FALSE | EM156: =EM2=1 -> FALSE | EN156: =EN2=1 -> FALSE | EO156: =EO2=1 -> FALSE | EP156: =EP2=1 -> FALSE | EQ156: =EQ2=1 -> FALSE | ER156: =ER2=1 -> FALSE | ES156: =ES2=1 -> FALSE | ET156: =ET2=1 -> FALSE | EU156: =EU2=1 -> FALSE | EV156: =EV2=1 -> FALSE | EW156: =EW2=1 -> FALSE | EX156: =EX2=1 -> FALSE | EY156: =EY2=1 -> FALSE | EZ156: =EZ2=1 -> FALSE | FA156: =FA2=1 -> FALSE | FB156: =FB2=1 -> FALSE | FC156: =FC2=1 -> FALSE | FD156: =FD2=1 -> FALSE | FE156: =FE2=1 -> FALSE | FF156: =FF2=1 -> FALSE | FG156: =FG2=1 -> FALSE | FH156: =FH2=1 -> FALSE | FI156: =FI2=1 -> FALSE | FJ156: =FJ2=1 -> FALSE | FK156: =FK2=1 -> FALSE | FL156: =FL2=1 -> FALSE | FM156: =FM2=1 -> FALSE | FN156: =FN2=1 -> FALSE | FO156: =FO2=1 -> FALSE | FP156: =FP2=1 -> FALSE | FQ156: =FQ2=1 -> FALSE | FR156: =FR2=1 -> FALSE | FS156: =FS2=1 -> FALSE | FT156: =FT2=1 -> FALSE | FU156: =FU2=1 -> FALSE | FV156: =FV2=1 -> FALSE | FW156: =FW2=1 -> FALSE | FX156: =FX2=1 -> FALSE | FY156: =FY2=1 -> FALSE | FZ156: =FZ2=1 -> FALSE | GA156: =GA2=1 -> FALSE | GB156: =GB2=1 -> FALSE | GC156: =GC2=1 -> FALSE | GD156: =GD2=1 -> FALSE | GE156: =GE2=1 -> FALSE | GF156: =GF2=1 -> FALSE | GG156: =GG2=1 -> FALSE | GH156: =GH2=1 -> FALSE | GI156: =GI2=1 -> FALSE | GJ156: =GJ2=1 -> FALSE | GK156: =GK2=1 -> FALSE | GL156: =GL2=1 -> FALSE | GM156: =GM2=1 -> FALSE | GN156: =GN2=1 -> FALSE | GO156: =GO2=1 -> FALSE | GP156: =GP2=1 -> FALSE | GQ156: =GQ2=1 -> FALSE | GR156: =GR2=1 -> FALSE | GS156: =GS2=1 -> FALSE | GT156: =GT2=1 -> FALSE | GU156: =GU2=1 -> FALSE | GV156: =GV2=1 -> FALSE | GW156: =GW2=1 -> FALSE | GX156: =GX2=1 -> FALSE | GY156: =GY2=1 -> FALSE | GZ156: =GZ2=1 -> FALSE | HA156: =HA2=1 -> FALSE
D157: Total Debt Commitment | F157: MED | G157: =G120 -> 2445.199991 | J157: =$G$157 -> 2445.199991 | K157: =$G$157 -> 2445.199991 | L157: 2445.199991 | M157: 2445.199991 | N157: 2445.199991 | O157: 2445.199991 | P157: 2445.199991 | Q157: 2445.199991 | R157: 2445.199991 | S157: 2445.199991 | T157: 2445.199991 | U157: 2445.199991 | V157: 2445.199991 | W157: 2445.199991 | X157: 2445.199991 | Y157: 2445.199991 | Z157: 2445.199991 | AA157: 2445.199991 | AB157: 2445.199991 | AC157: 2445.199991 | AD157: 2445.199991 | AE157: 2445.199991 | AF157: 2445.199991 | AG157: 2445.199991 | AH157: 2445.199991 | AI157: 2445.199991 | AJ157: 2445.199991 | AK157: 2445.199991 | AL157: 2445.199991 | AM157: 2445.199991 | AN157: 2445.199991 | AO157: 2445.199991 | AP157: 2445.199991 | AQ157: 2445.199991 | AR157: 2445.199991 | AS157: 2445.199991 | AT157: 2445.199991 | AU157: 2445.199991 | AV157: 2445.199991 | AW157: 2445.199991 | AX157: 2445.199991 | AY157: 2445.199991 | AZ157: 2445.199991 | BA157: 2445.199991 | BB157: 2445.199991 | BC157: 2445.199991 | BD157: 2445.199991 | BE157: 2445.199991 | BF157: 2445.199991 | BG157: 2445.199991 | BH157: 2445.199991 | BI157: 2445.199991 | BJ157: 2445.199991 | BK157: 2445.199991 | BL157: 2445.199991 | BM157: 2445.199991 | BN157: 2445.199991 | BO157: 2445.199991 | BP157: 2445.199991 | BQ157: 2445.199991 | BR157: 2445.199991 | BS157: 2445.199991 | BT157: 2445.199991 | BU157: 2445.199991 | BV157: 2445.199991 | BW157: =$G$157 -> 2445.199991 | BX157: 2445.199991 | BY157: 2445.199991 | BZ157: 2445.199991 | CA157: 2445.199991 | CB157: 2445.199991 | CC157: 2445.199991 | CD157: 2445.199991 | CE157: 2445.199991 | CF157: 2445.199991 | CG157: 2445.199991 | CH157: 2445.199991 | CI157: 2445.199991 | CJ157: 2445.199991 | CK157: 2445.199991 | CL157: 2445.199991 | CM157: 2445.199991 | CN157: 2445.199991 | CO157: 2445.199991 | CP157: 2445.199991 | CQ157: 2445.199991 | CR157: 2445.199991 | CS157: 2445.199991 | CT157: 2445.199991 | CU157: 2445.199991 | CV157: 2445.199991 | CW157: 2445.199991 | CX157: 2445.199991 | CY157: 2445.199991 | CZ157: 2445.199991 | DA157: 2445.199991 | DB157: 2445.199991 | DC157: 2445.199991 | DD157: 2445.199991 | DE157: 2445.199991 | DF157: 2445.199991 | DG157: 2445.199991 | DH157: 2445.199991 | DI157: 2445.199991 | DJ157: 2445.199991 | DK157: 2445.199991 | DL157: 2445.199991 | DM157: 2445.199991 | DN157: 2445.199991 | DO157: 2445.199991 | DP157: 2445.199991 | DQ157: 2445.199991 | DR157: 2445.199991 | DS157: 2445.199991 | DT157: 2445.199991 | DU157: 2445.199991 | DV157: 2445.199991 | DW157: 2445.199991 | DX157: 2445.199991 | DY157: 2445.199991 | DZ157: 2445.199991 | EA157: 2445.199991 | EB157: 2445.199991 | EC157: 2445.199991 | ED157: 2445.199991 | EE157: 2445.199991 | EF157: 2445.199991 | EG157: 2445.199991 | EH157: 2445.199991 | EI157: =$G$157 -> 2445.199991 | EJ157: 2445.199991 | EK157: 2445.199991 | EL157: 2445.199991 | EM157: 2445.199991 | EN157: 2445.199991 | EO157: 2445.199991 | EP157: 2445.199991 | EQ157: 2445.199991 | ER157: 2445.199991 | ES157: 2445.199991 | ET157: 2445.199991 | EU157: 2445.199991 | EV157: 2445.199991 | EW157: 2445.199991 | EX157: 2445.199991 | EY157: 2445.199991 | EZ157: 2445.199991 | FA157: 2445.199991 | FB157: 2445.199991 | FC157: 2445.199991 | FD157: 2445.199991 | FE157: 2445.199991 | FF157: 2445.199991 | FG157: 2445.199991 | FH157: 2445.199991 | FI157: 2445.199991 | FJ157: 2445.199991 | FK157: 2445.199991 | FL157: 2445.199991 | FM157: 2445.199991 | FN157: 2445.199991 | FO157: 2445.199991 | FP157: 2445.199991 | FQ157: 2445.199991 | FR157: 2445.199991 | FS157: 2445.199991 | FT157: 2445.199991 | FU157: 2445.199991 | FV157: 2445.199991 | FW157: 2445.199991 | FX157: 2445.199991 | FY157: 2445.199991 | FZ157: 2445.199991 | GA157: 2445.199991 | GB157: 2445.199991 | GC157: 2445.199991 | GD157: 2445.199991 | GE157: 2445.199991 | GF157: 2445.199991 | GG157: 2445.199991 | GH157: 2445.199991 | GI157: 2445.199991 | GJ157: 2445.199991 | GK157: 2445.199991 | GL157: 2445.199991 | GM157: 2445.199991 | GN157: 2445.199991 | GO157: 2445.199991 | GP157: 2445.199991 | GQ157: 2445.199991 | GR157: 2445.199991 | GS157: 2445.199991 | GT157: 2445.199991 | GU157: =$G$157 -> 2445.199991 | GV157: 2445.199991 | GW157: 2445.199991 | GX157: 2445.199991 | GY157: 2445.199991 | GZ157: 2445.199991 | HA157: 2445.199991
D158: Up-front Fee | F158: MED | G158: =G24 -> 0.02 | J158: =$G$158*J156*J157 -> 48.90399982 | K158: =$G$158*K156*K157 -> 0 | L158: 0 | M158: 0 | N158: 0 | O158: 0 | P158: 0 | Q158: 0 | R158: 0 | S158: 0 | T158: 0 | U158: 0 | V158: 0 | W158: 0 | X158: 0 | Y158: 0 | Z158: 0 | AA158: 0 | AB158: 0 | AC158: 0 | AD158: 0 | AE158: 0 | AF158: 0 | AG158: 0 | AH158: 0 | AI158: 0 | AJ158: 0 | AK158: 0 | AL158: 0 | AM158: 0 | AN158: 0 | AO158: 0 | AP158: 0 | AQ158: 0 | AR158: 0 | AS158: 0 | AT158: 0 | AU158: 0 | AV158: 0 | AW158: 0 | AX158: 0 | AY158: 0 | AZ158: 0 | BA158: 0 | BB158: 0 | BC158: 0 | BD158: 0 | BE158: 0 | BF158: 0 | BG158: 0 | BH158: 0 | BI158: 0 | BJ158: 0 | BK158: 0 | BL158: 0 | BM158: 0 | BN158: 0 | BO158: 0 | BP158: 0 | BQ158: 0 | BR158: 0 | BS158: 0 | BT158: 0 | BU158: 0 | BV158: 0 | BW158: =$G$158*BW156*BW157 -> 0 | BX158: 0 | BY158: 0 | BZ158: 0 | CA158: 0 | CB158: 0 | CC158: 0 | CD158: 0 | CE158: 0 | CF158: 0 | CG158: 0 | CH158: 0 | CI158: 0 | CJ158: 0 | CK158: 0 | CL158: 0 | CM158: 0 | CN158: 0 | CO158: 0 | CP158: 0 | CQ158: 0 | CR158: 0 | CS158: 0 | CT158: 0 | CU158: 0 | CV158: 0 | CW158: 0 | CX158: 0 | CY158: 0 | CZ158: 0 | DA158: 0 | DB158: 0 | DC158: 0 | DD158: 0 | DE158: 0 | DF158: 0 | DG158: 0 | DH158: 0 | DI158: 0 | DJ158: 0 | DK158: 0 | DL158: 0 | DM158: 0 | DN158: 0 | DO158: 0 | DP158: 0 | DQ158: 0 | DR158: 0 | DS158: 0 | DT158: 0 | DU158: 0 | DV158: 0 | DW158: 0 | DX158: 0 | DY158: 0 | DZ158: 0 | EA158: 0 | EB158: 0 | EC158: 0 | ED158: 0 | EE158: 0 | EF158: 0 | EG158: 0 | EH158: 0 | EI158: =$G$158*EI156*EI157 -> 0 | EJ158: 0 | EK158: 0 | EL158: 0 | EM158: 0 | EN158: 0 | EO158: 0 | EP158: 0 | EQ158: 0 | ER158: 0 | ES158: 0 | ET158: 0 | EU158: 0 | EV158: 0 | EW158: 0 | EX158: 0 | EY158: 0 | EZ158: 0 | FA158: 0 | FB158: 0 | FC158: 0 | FD158: 0 | FE158: 0 | FF158: 0 | FG158: 0 | FH158: 0 | FI158: 0 | FJ158: 0 | FK158: 0 | FL158: 0 | FM158: 0 | FN158: 0 | FO158: 0 | FP158: 0 | FQ158: 0 | FR158: 0 | FS158: 0 | FT158: 0 | FU158: 0 | FV158: 0 | FW158: 0 | FX158: 0 | FY158: 0 | FZ158: 0 | GA158: 0 | GB158: 0 | GC158: 0 | GD158: 0 | GE158: 0 | GF158: 0 | GG158: 0 | GH158: 0 | GI158: 0 | GJ158: 0 | GK158: 0 | GL158: 0 | GM158: 0 | GN158: 0 | GO158: 0 | GP158: 0 | GQ158: 0 | GR158: 0 | GS158: 0 | GT158: 0 | GU158: =$G$158*GU156*GU157 -> 0 | GV158: 0 | GW158: 0 | GX158: 0 | GY158: 0 | GZ158: 0 | HA158: 0
D160: Undrawn Balance | F160: MED | J160: =J157-J145 -> 2445.199991 | K160: 2340.949452 | L160: 2241.315163 | M160: 2141.637342 | N160: 2041.915971 | O160: 1942.151032 | P160: 1842.342504 | Q160: 1742.490369 | R160: 1642.594607 | S160: 1542.655201 | T160: 1442.67213 | U160: 1342.645376 | V160: 1242.574919 | W160: 1142.46074 | X160: 1042.302821 | Y160: 942.1011415 | Z160: 841.8556834 | AA160: 741.5664272 | AB160: 641.2333537 | AC160: 540.8564439 | AD160: 440.4356786 | AE160: 339.9710386 | AF160: 239.4625047 | AG160: 138.9100578 | AH160: 0 | AI160: 258.5969502 | AJ160: 492.1565423 | AK160: 703.2305509 | AL160: 894.1183793 | AM160: 1066.892461 | AN160: 1223.421129 | AO160: 1365.389211 | AP160: =AP157-AP145 -> 1494.316574 | AQ160: 1611.574826 | AR160: 1718.402358 | AS160: 1815.917899 | AT160: 1905.132724 | AU160: 1986.961658 | AV160: 2062.232997 | AW160: 2131.697444 | AX160: 2196.036182 | AY160: 2255.868142 | AZ160: 2311.75658 | BA160: 2364.214998 | BB160: 2445.199991 | BC160: 2445.199991 | BD160: 2445.199991 | BE160: 2445.199991 | BF160: 2445.199991 | BG160: 2445.199991 | BH160: 2445.199991 | BI160: 2445.199991 | BJ160: 2445.199991 | BK160: 2445.199991 | BL160: 2445.199991 | BM160: 2445.199991 | BN160: 2445.199991 | BO160: 2445.199991 | BP160: 2445.199991 | BQ160: 2445.199991 | BR160: 2445.199991 | BS160: 2445.199991 | BT160: 2445.199991 | BU160: 2445.199991 | BV160: =BV157-BV145 -> 2445.199991 | BW160: 2445.199991 | BX160: 2445.199991 | BY160: 2445.199991 | BZ160: 2445.199991 | CA160: 2445.199991 | CB160: 2445.199991 | CC160: 2445.199991 | CD160: 2445.199991 | CE160: 2445.199991 | CF160: 2445.199991 | CG160: 2445.199991 | CH160: 2445.199991 | CI160: 2445.199991 | CJ160: 2445.199991 | CK160: 2445.199991 | CL160: 2445.199991 | CM160: 2445.199991 | CN160: 2445.199991 | CO160: 2445.199991 | CP160: 2445.199991 | CQ160: 2445.199991 | CR160: 2445.199991 | CS160: 2445.199991 | CT160: 2445.199991 | CU160: 2445.199991 | CV160: 2445.199991 | CW160: 2445.199991 | CX160: 2445.199991 | CY160: 2445.199991 | CZ160: 2445.199991 | DA160: 2445.199991 | DB160: =DB157-DB145 -> 2445.199991 | DC160: 2445.199991 | DD160: 2445.199991 | DE160: 2445.199991 | DF160: 2445.199991 | DG160: 2445.199991 | DH160: 2445.199991 | DI160: 2445.199991 | DJ160: 2445.199991 | DK160: 2445.199991 | DL160: 2445.199991 | DM160: 2445.199991 | DN160: 2445.199991 | DO160: 2445.199991 | DP160: 2445.199991 | DQ160: 2445.199991 | DR160: 2445.199991 | DS160: 2445.199991 | DT160: 2445.199991 | DU160: 2445.199991 | DV160: 2445.199991 | DW160: 2445.199991 | DX160: 2445.199991 | DY160: 2445.199991 | DZ160: 2445.199991 | EA160: 2445.199991 | EB160: 2445.199991 | EC160: 2445.199991 | ED160: 2445.199991 | EE160: 2445.199991 | EF160: 2445.199991 | EG160: 2445.199991 | EH160: =EH157-EH145 -> 2445.199991 | EI160: 2445.199991 | EJ160: 2445.199991 | EK160: 2445.199991 | EL160: 2445.199991 | EM160: 2445.199991 | EN160: 2445.199991 | EO160: 2445.199991 | EP160: 2445.199991 | EQ160: 2445.199991 | ER160: 2445.199991 | ES160: 2445.199991 | ET160: 2445.199991 | EU160: 2445.199991 | EV160: 2445.199991 | EW160: 2445.199991 | EX160: 2445.199991 | EY160: 2445.199991 | EZ160: 2445.199991 | FA160: 2445.199991 | FB160: 2445.199991 | FC160: 2445.199991 | FD160: 2445.199991 | FE160: 2445.199991 | FF160: 2445.199991 | FG160: 2445.199991 | FH160: 2445.199991 | FI160: 2445.199991 | FJ160: 2445.199991 | FK160: 2445.199991 | FL160: 2445.199991 | FM160: 2445.199991 | FN160: =FN157-FN145 -> 2445.199991 | FO160: 2445.199991 | FP160: 2445.199991 | FQ160: 2445.199991 | FR160: 2445.199991 | FS160: 2445.199991 | FT160: 2445.199991 | FU160: 2445.199991 | FV160: 2445.199991 | FW160: 2445.199991 | FX160: 2445.199991 | FY160: 2445.199991 | FZ160: 2445.199991 | GA160: 2445.199991 | GB160: 2445.199991 | GC160: 2445.199991 | GD160: 2445.199991 | GE160: 2445.199991 | GF160: 2445.199991 | GG160: 2445.199991 | GH160: 2445.199991 | GI160: 2445.199991 | GJ160: 2445.199991 | GK160: 2445.199991 | GL160: 2445.199991 | GM160: 2445.199991 | GN160: 2445.199991 | GO160: 2445.199991 | GP160: 2445.199991 | GQ160: 2445.199991 | GR160: 2445.199991 | GS160: 2445.199991 | GT160: =GT157-GT145 -> 2445.199991 | GU160: 2445.199991 | GV160: 2445.199991 | GW160: 2445.199991 | GX160: 2445.199991 | GY160: 2445.199991 | GZ160: 2445.199991 | HA160: 2445.199991
D161: Periodic Commitment Fee % | F161: % p.a. | G161: =G25 -> 0.015 | J161: =($G$161/12)*J6 -> 0.00125 | K161: =($G$161/12)*K6 -> 0.00125 | L161: =($G$161/12)*L6 -> 0.00125 | M161: =($G$161/12)*M6 -> 0.00125 | N161: =($G$161/12)*N6 -> 0.00125 | O161: =($G$161/12)*O6 -> 0.00125 | P161: =($G$161/12)*P6 -> 0.00125 | Q161: =($G$161/12)*Q6 -> 0.00125 | R161: =($G$161/12)*R6 -> 0.00125 | S161: =($G$161/12)*S6 -> 0.00125 | T161: =($G$161/12)*T6 -> 0.00125 | U161: =($G$161/12)*U6 -> 0.00125 | V161: =($G$161/12)*V6 -> 0.00125 | W161: =($G$161/12)*W6 -> 0.00125 | X161: =($G$161/12)*X6 -> 0.00125 | Y161: =($G$161/12)*Y6 -> 0.00125 | Z161: =($G$161/12)*Z6 -> 0.00125 | AA161: =($G$161/12)*AA6 -> 0.00125 | AB161: =($G$161/12)*AB6 -> 0.00125 | AC161: =($G$161/12)*AC6 -> 0.00125 | AD161: =($G$161/12)*AD6 -> 0.00125 | AE161: =($G$161/12)*AE6 -> 0.00125 | AF161: =($G$161/12)*AF6 -> 0.00125 | AG161: =($G$161/12)*AG6 -> 0.00125 | AH161: =($G$161/12)*AH6 -> 0.015 | AI161: =($G$161/12)*AI6 -> 0.015 | AJ161: =($G$161/12)*AJ6 -> 0.015 | AK161: =($G$161/12)*AK6 -> 0.015 | AL161: =($G$161/12)*AL6 -> 0.015 | AM161: =($G$161/12)*AM6 -> 0.015 | AN161: =($G$161/12)*AN6 -> 0.015 | AO161: =($G$161/12)*AO6 -> 0.015 | AP161: =($G$161/12)*AP6 -> 0.015 | AQ161: =($G$161/12)*AQ6 -> 0.015 | AR161: =($G$161/12)*AR6 -> 0.015 | AS161: =($G$161/12)*AS6 -> 0.015 | AT161: =($G$161/12)*AT6 -> 0.015 | AU161: =($G$161/12)*AU6 -> 0.015 | AV161: =($G$161/12)*AV6 -> 0.015 | AW161: =($G$161/12)*AW6 -> 0.015 | AX161: =($G$161/12)*AX6 -> 0.015 | AY161: =($G$161/12)*AY6 -> 0.015 | AZ161: =($G$161/12)*AZ6 -> 0.015 | BA161: =($G$161/12)*BA6 -> 0.015 | BB161: =($G$161/12)*BB6 -> 0.015 | BC161: =($G$161/12)*BC6 -> 0.015 | BD161: =($G$161/12)*BD6 -> 0.015 | BE161: =($G$161/12)*BE6 -> 0.015 | BF161: =($G$161/12)*BF6 -> 0.015 | BG161: =($G$161/12)*BG6 -> 0.015 | BH161: =($G$161/12)*BH6 -> 0.015 | BI161: =($G$161/12)*BI6 -> 0.015 | BJ161: =($G$161/12)*BJ6 -> 0.015 | BK161: =($G$161/12)*BK6 -> 0.015 | BL161: =($G$161/12)*BL6 -> 0.015 | BM161: =($G$161/12)*BM6 -> 0.015 | BN161: =($G$161/12)*BN6 -> 0.015 | BO161: =($G$161/12)*BO6 -> 0.015 | BP161: =($G$161/12)*BP6 -> 0.015 | BQ161: =($G$161/12)*BQ6 -> 0.015 | BR161: =($G$161/12)*BR6 -> 0.015 | BS161: =($G$161/12)*BS6 -> 0.015 | BT161: =($G$161/12)*BT6 -> 0.015 | BU161: =($G$161/12)*BU6 -> 0.015 | BV161: =($G$161/12)*BV6 -> 0.015 | BW161: =($G$161/12)*BW6 -> 0.015 | BX161: =($G$161/12)*BX6 -> 0.015 | BY161: =($G$161/12)*BY6 -> 0.015 | BZ161: =($G$161/12)*BZ6 -> 0.015 | CA161: =($G$161/12)*CA6 -> 0.015 | CB161: =($G$161/12)*CB6 -> 0.015 | CC161: =($G$161/12)*CC6 -> 0.015 | CD161: =($G$161/12)*CD6 -> 0.015 | CE161: =($G$161/12)*CE6 -> 0.015 | CF161: =($G$161/12)*CF6 -> 0.015 | CG161: =($G$161/12)*CG6 -> 0.015 | CH161: =($G$161/12)*CH6 -> 0.015 | CI161: =($G$161/12)*CI6 -> 0.015 | CJ161: =($G$161/12)*CJ6 -> 0.015 | CK161: =($G$161/12)*CK6 -> 0.015 | CL161: =($G$161/12)*CL6 -> 0.015 | CM161: =($G$161/12)*CM6 -> 0.015 | CN161: =($G$161/12)*CN6 -> 0.015 | CO161: =($G$161/12)*CO6 -> 0.015 | CP161: =($G$161/12)*CP6 -> 0.015 | CQ161: =($G$161/12)*CQ6 -> 0.015 | CR161: =($G$161/12)*CR6 -> 0.015 | CS161: =($G$161/12)*CS6 -> 0.015 | CT161: =($G$161/12)*CT6 -> 0.015 | CU161: =($G$161/12)*CU6 -> 0.015 | CV161: =($G$161/12)*CV6 -> 0.015 | CW161: =($G$161/12)*CW6 -> 0.015 | CX161: =($G$161/12)*CX6 -> 0.015 | CY161: =($G$161/12)*CY6 -> 0.015 | CZ161: =($G$161/12)*CZ6 -> 0.015 | DA161: =($G$161/12)*DA6 -> 0.015 | DB161: =($G$161/12)*DB6 -> 0.015 | DC161: =($G$161/12)*DC6 -> 0.015 | DD161: =($G$161/12)*DD6 -> 0.015 | DE161: =($G$161/12)*DE6 -> 0.015 | DF161: =($G$161/12)*DF6 -> 0.015 | DG161: =($G$161/12)*DG6 -> 0.015 | DH161: =($G$161/12)*DH6 -> 0.015 | DI161: =($G$161/12)*DI6 -> 0.015 | DJ161: =($G$161/12)*DJ6 -> 0.015 | DK161: =($G$161/12)*DK6 -> 0.015 | DL161: =($G$161/12)*DL6 -> 0.015 | DM161: =($G$161/12)*DM6 -> 0.015 | DN161: =($G$161/12)*DN6 -> 0.015 | DO161: =($G$161/12)*DO6 -> 0.015 | DP161: =($G$161/12)*DP6 -> 0.015 | DQ161: =($G$161/12)*DQ6 -> 0.015 | DR161: =($G$161/12)*DR6 -> 0.015 | DS161: =($G$161/12)*DS6 -> 0.015 | DT161: =($G$161/12)*DT6 -> 0.015 | DU161: =($G$161/12)*DU6 -> 0.015 | DV161: =($G$161/12)*DV6 -> 0.015 | DW161: =($G$161/12)*DW6 -> 0.015 | DX161: =($G$161/12)*DX6 -> 0.015 | DY161: =($G$161/12)*DY6 -> 0.015 | DZ161: =($G$161/12)*DZ6 -> 0.015 | EA161: =($G$161/12)*EA6 -> 0.015 | EB161: =($G$161/12)*EB6 -> 0.015 | EC161: =($G$161/12)*EC6 -> 0.015 | ED161: =($G$161/12)*ED6 -> 0.015 | EE161: =($G$161/12)*EE6 -> 0.015 | EF161: =($G$161/12)*EF6 -> 0.015 | EG161: =($G$161/12)*EG6 -> 0.015 | EH161: =($G$161/12)*EH6 -> 0.015 | EI161: =($G$161/12)*EI6 -> 0.015 | EJ161: =($G$161/12)*EJ6 -> 0.015 | EK161: =($G$161/12)*EK6 -> 0.015 | EL161: =($G$161/12)*EL6 -> 0.015 | EM161: =($G$161/12)*EM6 -> 0.015 | EN161: =($G$161/12)*EN6 -> 0.015 | EO161: =($G$161/12)*EO6 -> 0.015 | EP161: =($G$161/12)*EP6 -> 0.015 | EQ161: =($G$161/12)*EQ6 -> 0.015 | ER161: =($G$161/12)*ER6 -> 0.015 | ES161: =($G$161/12)*ES6 -> 0.015 | ET161: =($G$161/12)*ET6 -> 0.015 | EU161: =($G$161/12)*EU6 -> 0.015 | EV161: =($G$161/12)*EV6 -> 0.015 | EW161: =($G$161/12)*EW6 -> 0.015 | EX161: =($G$161/12)*EX6 -> 0.015 | EY161: =($G$161/12)*EY6 -> 0.015 | EZ161: =($G$161/12)*EZ6 -> 0.015 | FA161: =($G$161/12)*FA6 -> 0.015 | FB161: =($G$161/12)*FB6 -> 0.015 | FC161: =($G$161/12)*FC6 -> 0.015 | FD161: =($G$161/12)*FD6 -> 0.015 | FE161: =($G$161/12)*FE6 -> 0.015 | FF161: =($G$161/12)*FF6 -> 0.015 | FG161: =($G$161/12)*FG6 -> 0.015 | FH161: =($G$161/12)*FH6 -> 0.015 | FI161: =($G$161/12)*FI6 -> 0.015 | FJ161: =($G$161/12)*FJ6 -> 0.015 | FK161: =($G$161/12)*FK6 -> 0.015 | FL161: =($G$161/12)*FL6 -> 0.015 | FM161: =($G$161/12)*FM6 -> 0.015 | FN161: =($G$161/12)*FN6 -> 0.015 | FO161: =($G$161/12)*FO6 -> 0.015 | FP161: =($G$161/12)*FP6 -> 0.015 | FQ161: =($G$161/12)*FQ6 -> 0.015 | FR161: =($G$161/12)*FR6 -> 0.015 | FS161: =($G$161/12)*FS6 -> 0.015 | FT161: =($G$161/12)*FT6 -> 0.015 | FU161: =($G$161/12)*FU6 -> 0.015 | FV161: =($G$161/12)*FV6 -> 0.015 | FW161: =($G$161/12)*FW6 -> 0.015 | FX161: =($G$161/12)*FX6 -> 0.015 | FY161: =($G$161/12)*FY6 -> 0.015 | FZ161: =($G$161/12)*FZ6 -> 0.015 | GA161: =($G$161/12)*GA6 -> 0.015 | GB161: =($G$161/12)*GB6 -> 0.015 | GC161: =($G$161/12)*GC6 -> 0.015 | GD161: =($G$161/12)*GD6 -> 0.015 | GE161: =($G$161/12)*GE6 -> 0.015 | GF161: =($G$161/12)*GF6 -> 0.015 | GG161: =($G$161/12)*GG6 -> 0.015 | GH161: =($G$161/12)*GH6 -> 0.015 | GI161: =($G$161/12)*GI6 -> 0.015 | GJ161: =($G$161/12)*GJ6 -> 0.015 | GK161: =($G$161/12)*GK6 -> 0.015 | GL161: =($G$161/12)*GL6 -> 0.015 | GM161: =($G$161/12)*GM6 -> 0.015 | GN161: =($G$161/12)*GN6 -> 0.015 | GO161: =($G$161/12)*GO6 -> 0.015 | GP161: =($G$161/12)*GP6 -> 0.015 | GQ161: =($G$161/12)*GQ6 -> 0.015 | GR161: =($G$161/12)*GR6 -> 0.015 | GS161: =($G$161/12)*GS6 -> 0.015 | GT161: =($G$161/12)*GT6 -> 0.015 | GU161: =($G$161/12)*GU6 -> 0.015 | GV161: =($G$161/12)*GV6 -> 0.015 | GW161: =($G$161/12)*GW6 -> 0.015 | GX161: =($G$161/12)*GX6 -> 0.015 | GY161: =($G$161/12)*GY6 -> 0.015 | GZ161: =($G$161/12)*GZ6 -> 0.015 | HA161: =($G$161/12)*HA6 -> 0.015
D162: Periodic Commitment Fee | F162: % p.p. | J162: =J160*J161*J3 -> 3.056499989 | K162: =K160*K161*K3 -> 2.926186815 | L162: =L160*L161*L3 -> 2.801643953 | M162: =M160*M161*M3 -> 2.677046677 | N162: =N160*N161*N3 -> 2.552394964 | O162: =O160*O161*O3 -> 2.42768879 | P162: =P160*P161*P3 -> 2.30292813 | Q162: =Q160*Q161*Q3 -> 2.178112961 | R162: =R160*R161*R3 -> 2.053243259 | S162: =S160*S161*S3 -> 1.928319001 | T162: =T160*T161*T3 -> 1.803340162 | U162: =U160*U161*U3 -> 1.678306719 | V162: =V160*V161*V3 -> 1.553218648 | W162: =W160*W161*W3 -> 1.428075925 | X162: =X160*X161*X3 -> 1.302878526 | Y162: =Y160*Y161*Y3 -> 1.177626427 | Z162: =Z160*Z161*Z3 -> 1.052319604 | AA162: =AA160*AA161*AA3 -> 0.9269580339 | AB162: =AB160*AB161*AB3 -> 0.8015416922 | AC162: =AC160*AC161*AC3 -> 0.6760705549 | AD162: =AD160*AD161*AD3 -> 0.5505445982 | AE162: =AE160*AE161*AE3 -> 0.4249637982 | AF162: =AF160*AF161*AF3 -> 0.2993281309 | AG162: =AG160*AG161*AG3 -> 0.1736375723 | AH162: =AH160*AH161*AH3 -> 0 | AI162: =AI160*AI161*AI3 -> 0 | AJ162: =AJ160*AJ161*AJ3 -> 0 | AK162: =AK160*AK161*AK3 -> 0 | AL162: =AL160*AL161*AL3 -> 0 | AM162: =AM160*AM161*AM3 -> 0 | AN162: =AN160*AN161*AN3 -> 0 | AO162: =AO160*AO161*AO3 -> 0 | AP162: =AP160*AP161*AP3 -> 0 | AQ162: =AQ160*AQ161*AQ3 -> 0 | AR162: =AR160*AR161*AR3 -> 0 | AS162: =AS160*AS161*AS3 -> 0 | AT162: =AT160*AT161*AT3 -> 0 | AU162: =AU160*AU161*AU3 -> 0 | AV162: =AV160*AV161*AV3 -> 0 | AW162: =AW160*AW161*AW3 -> 0 | AX162: =AX160*AX161*AX3 -> 0 | AY162: =AY160*AY161*AY3 -> 0 | AZ162: =AZ160*AZ161*AZ3 -> 0 | BA162: =BA160*BA161*BA3 -> 0 | BB162: =BB160*BB161*BB3 -> 0 | BC162: =BC160*BC161*BC3 -> 0 | BD162: =BD160*BD161*BD3 -> 0 | BE162: =BE160*BE161*BE3 -> 0 | BF162: =BF160*BF161*BF3 -> 0 | BG162: =BG160*BG161*BG3 -> 0 | BH162: =BH160*BH161*BH3 -> 0 | BI162: =BI160*BI161*BI3 -> 0 | BJ162: =BJ160*BJ161*BJ3 -> 0 | BK162: =BK160*BK161*BK3 -> 0 | BL162: =BL160*BL161*BL3 -> 0 | BM162: =BM160*BM161*BM3 -> 0 | BN162: =BN160*BN161*BN3 -> 0 | BO162: =BO160*BO161*BO3 -> 0 | BP162: =BP160*BP161*BP3 -> 0 | BQ162: =BQ160*BQ161*BQ3 -> 0 | BR162: =BR160*BR161*BR3 -> 0 | BS162: =BS160*BS161*BS3 -> 0 | BT162: =BT160*BT161*BT3 -> 0 | BU162: =BU160*BU161*BU3 -> 0 | BV162: =BV160*BV161*BV3 -> 0 | BW162: =BW160*BW161*BW3 -> 0 | BX162: =BX160*BX161*BX3 -> 0 | BY162: =BY160*BY161*BY3 -> 0 | BZ162: =BZ160*BZ161*BZ3 -> 0 | CA162: =CA160*CA161*CA3 -> 0 | CB162: =CB160*CB161*CB3 -> 0 | CC162: =CC160*CC161*CC3 -> 0 | CD162: =CD160*CD161*CD3 -> 0 | CE162: =CE160*CE161*CE3 -> 0 | CF162: =CF160*CF161*CF3 -> 0 | CG162: =CG160*CG161*CG3 -> 0 | CH162: =CH160*CH161*CH3 -> 0 | CI162: =CI160*CI161*CI3 -> 0 | CJ162: =CJ160*CJ161*CJ3 -> 0 | CK162: =CK160*CK161*CK3 -> 0 | CL162: =CL160*CL161*CL3 -> 0 | CM162: =CM160*CM161*CM3 -> 0 | CN162: =CN160*CN161*CN3 -> 0 | CO162: =CO160*CO161*CO3 -> 0 | CP162: =CP160*CP161*CP3 -> 0 | CQ162: =CQ160*CQ161*CQ3 -> 0 | CR162: =CR160*CR161*CR3 -> 0 | CS162: =CS160*CS161*CS3 -> 0 | CT162: =CT160*CT161*CT3 -> 0 | CU162: =CU160*CU161*CU3 -> 0 | CV162: =CV160*CV161*CV3 -> 0 | CW162: =CW160*CW161*CW3 -> 0 | CX162: =CX160*CX161*CX3 -> 0 | CY162: =CY160*CY161*CY3 -> 0 | CZ162: =CZ160*CZ161*CZ3 -> 0 | DA162: =DA160*DA161*DA3 -> 0 | DB162: =DB160*DB161*DB3 -> 0 | DC162: =DC160*DC161*DC3 -> 0 | DD162: =DD160*DD161*DD3 -> 0 | DE162: =DE160*DE161*DE3 -> 0 | DF162: =DF160*DF161*DF3 -> 0 | DG162: =DG160*DG161*DG3 -> 0 | DH162: =DH160*DH161*DH3 -> 0 | DI162: =DI160*DI161*DI3 -> 0 | DJ162: =DJ160*DJ161*DJ3 -> 0 | DK162: =DK160*DK161*DK3 -> 0 | DL162: =DL160*DL161*DL3 -> 0 | DM162: =DM160*DM161*DM3 -> 0 | DN162: =DN160*DN161*DN3 -> 0 | DO162: =DO160*DO161*DO3 -> 0 | DP162: =DP160*DP161*DP3 -> 0 | DQ162: =DQ160*DQ161*DQ3 -> 0 | DR162: =DR160*DR161*DR3 -> 0 | DS162: =DS160*DS161*DS3 -> 0 | DT162: =DT160*DT161*DT3 -> 0 | DU162: =DU160*DU161*DU3 -> 0 | DV162: =DV160*DV161*DV3 -> 0 | DW162: =DW160*DW161*DW3 -> 0 | DX162: =DX160*DX161*DX3 -> 0 | DY162: =DY160*DY161*DY3 -> 0 | DZ162: =DZ160*DZ161*DZ3 -> 0 | EA162: =EA160*EA161*EA3 -> 0 | EB162: =EB160*EB161*EB3 -> 0 | EC162: =EC160*EC161*EC3 -> 0 | ED162: =ED160*ED161*ED3 -> 0 | EE162: =EE160*EE161*EE3 -> 0 | EF162: =EF160*EF161*EF3 -> 0 | EG162: =EG160*EG161*EG3 -> 0 | EH162: =EH160*EH161*EH3 -> 0 | EI162: =EI160*EI161*EI3 -> 0 | EJ162: =EJ160*EJ161*EJ3 -> 0 | EK162: =EK160*EK161*EK3 -> 0 | EL162: =EL160*EL161*EL3 -> 0 | EM162: =EM160*EM161*EM3 -> 0 | EN162: =EN160*EN161*EN3 -> 0 | EO162: =EO160*EO161*EO3 -> 0 | EP162: =EP160*EP161*EP3 -> 0 | EQ162: =EQ160*EQ161*EQ3 -> 0 | ER162: =ER160*ER161*ER3 -> 0 | ES162: =ES160*ES161*ES3 -> 0 | ET162: =ET160*ET161*ET3 -> 0 | EU162: =EU160*EU161*EU3 -> 0 | EV162: =EV160*EV161*EV3 -> 0 | EW162: =EW160*EW161*EW3 -> 0 | EX162: =EX160*EX161*EX3 -> 0 | EY162: =EY160*EY161*EY3 -> 0 | EZ162: =EZ160*EZ161*EZ3 -> 0 | FA162: =FA160*FA161*FA3 -> 0 | FB162: =FB160*FB161*FB3 -> 0 | FC162: =FC160*FC161*FC3 -> 0 | FD162: =FD160*FD161*FD3 -> 0 | FE162: =FE160*FE161*FE3 -> 0 | FF162: =FF160*FF161*FF3 -> 0 | FG162: =FG160*FG161*FG3 -> 0 | FH162: =FH160*FH161*FH3 -> 0 | FI162: =FI160*FI161*FI3 -> 0 | FJ162: =FJ160*FJ161*FJ3 -> 0 | FK162: =FK160*FK161*FK3 -> 0 | FL162: =FL160*FL161*FL3 -> 0 | FM162: =FM160*FM161*FM3 -> 0 | FN162: =FN160*FN161*FN3 -> 0 | FO162: =FO160*FO161*FO3 -> 0 | FP162: =FP160*FP161*FP3 -> 0 | FQ162: =FQ160*FQ161*FQ3 -> 0 | FR162: =FR160*FR161*FR3 -> 0 | FS162: =FS160*FS161*FS3 -> 0 | FT162: =FT160*FT161*FT3 -> 0 | FU162: =FU160*FU161*FU3 -> 0 | FV162: =FV160*FV161*FV3 -> 0 | FW162: =FW160*FW161*FW3 -> 0 | FX162: =FX160*FX161*FX3 -> 0 | FY162: =FY160*FY161*FY3 -> 0 | FZ162: =FZ160*FZ161*FZ3 -> 0 | GA162: =GA160*GA161*GA3 -> 0 | GB162: =GB160*GB161*GB3 -> 0 | GC162: =GC160*GC161*GC3 -> 0 | GD162: =GD160*GD161*GD3 -> 0 | GE162: =GE160*GE161*GE3 -> 0 | GF162: =GF160*GF161*GF3 -> 0 | GG162: =GG160*GG161*GG3 -> 0 | GH162: =GH160*GH161*GH3 -> 0 | GI162: =GI160*GI161*GI3 -> 0 | GJ162: =GJ160*GJ161*GJ3 -> 0 | GK162: =GK160*GK161*GK3 -> 0 | GL162: =GL160*GL161*GL3 -> 0 | GM162: =GM160*GM161*GM3 -> 0 | GN162: =GN160*GN161*GN3 -> 0 | GO162: =GO160*GO161*GO3 -> 0 | GP162: =GP160*GP161*GP3 -> 0 | GQ162: =GQ160*GQ161*GQ3 -> 0 | GR162: =GR160*GR161*GR3 -> 0 | GS162: =GS160*GS161*GS3 -> 0 | GT162: =GT160*GT161*GT3 -> 0 | GU162: =GU160*GU161*GU3 -> 0 | GV162: =GV160*GV161*GV3 -> 0 | GW162: =GW160*GW161*GW3 -> 0 | GX162: =GX160*GX161*GX3 -> 0 | GY162: =GY160*GY161*GY3 -> 0 | GZ162: =GZ160*GZ161*GZ3 -> 0 | HA162: =HA160*HA161*HA3 -> 0
D164: Total Debt Service with DSRA | F164: MED | I164: Comp DS | J164: =J147+J155 -> 0 | K164: 0 | L164: 0 | M164: 0 | N164: 0 | O164: 0 | P164: 0 | Q164: 0 | R164: 0 | S164: 0 | T164: 0 | U164: 0 | V164: 0 | W164: 0 | X164: 0 | Y164: 0 | Z164: 0 | AA164: 0 | AB164: 0 | AC164: 0 | AD164: 0 | AE164: 0 | AF164: 0 | AG164: 0 | AH164: 429.7609495 | AI164: 386.621805 | AJ164: 347.78705 | AK164: 312.8256892 | AL164: 281.3497942 | AM164: 253.0101951 | AN164: 227.4926026 | AO164: 204.5141178 | AP164: =AP147+AP155 -> 183.8200908 | AQ164: 165.1812935 | AR164: 148.3913752 | AS164: 133.2645714 | AT164: 119.6336434 | AU164: 107.3480219 | AV164: 96.27213705 | AW164: 86.28391562 | AX164: 77.27342724 | AY164: 69.14166665 | AZ164: 61.79945713 | BA164: 86.65394236 | BB164: 2.660982545e-13 | BC164: 2.847251324e-13 | BD164: 3.046558916e-13 | BE164: 3.25981804e-13 | BF164: 3.488005303e-13 | BG164: 3.732165674e-13 | BH164: 3.993417272e-13 | BI164: 4.272956481e-13 | BJ164: 4.572063434e-13 | BK164: 4.892107875e-13 | BL164: 5.234555426e-13 | BM164: 5.600974306e-13 | BN164: 5.993042507e-13 | BO164: 6.412555483e-13 | BP164: 6.861434366e-13 | BQ164: 7.341734772e-13 | BR164: 7.855656206e-13 | BS164: 8.405552141e-13 | BT164: 8.99394079e-13 | BU164: 9.623516646e-13 | BV164: =BV147+BV155 -> 1.029716281e-12 | BW164: 1.101796421e-12 | BX164: 1.17892217e-12 | BY164: 1.261446722e-12 | BZ164: 1.349747993e-12 | CA164: 1.444230352e-12 | CB164: 1.545326477e-12 | CC164: 1.65349933e-12 | CD164: 1.769244283e-12 | CE164: 1.893091383e-12 | CF164: 2.02560778e-12 | CG164: 2.167400325e-12 | CH164: 2.319118347e-12 | CI164: 2.481456632e-12 | CJ164: 2.655158596e-12 | CK164: 2.841019698e-12 | CL164: 3.039891076e-12 | CM164: 3.252683452e-12 | CN164: 3.480371293e-12 | CO164: 3.723997284e-12 | CP164: 3.984677094e-12 | CQ164: 4.26360449e-12 | CR164: 4.562056805e-12 | CS164: 4.881400781e-12 | CT164: 5.223098836e-12 | CU164: 5.588715754e-12 | CV164: 5.979925857e-12 | CW164: 6.398520667e-12 | CX164: 6.846417114e-12 | CY164: 7.325666311e-12 | CZ164: 7.838462953e-12 | DA164: 8.38715536e-12 | DB164: =DB147+DB155 -> 8.974256235e-12 | DC164: 9.602454172e-12 | DD164: 1.027462596e-11 | DE164: 1.099384978e-11 | DF164: 1.176341927e-11 | DG164: 1.258685861e-11 | DH164: 1.346793872e-11 | DI164: 1.441069443e-11 | DJ164: 1.541944304e-11 | DK164: 1.649880405e-11 | DL164: 1.765372033e-11 | DM164: 1.888948076e-11 | DN164: 2.021174441e-11 | DO164: 2.162656652e-11 | DP164: 2.314042618e-11 | DQ164: 2.476025601e-11 | DR164: 2.649347393e-11 | DS164: 2.83480171e-11 | DT164: 3.03323783e-11 | DU164: 3.245564478e-11 | DV164: 3.472753992e-11 | DW164: 3.715846771e-11 | DX164: 3.975956045e-11 | DY164: 4.254272968e-11 | DZ164: 4.552072076e-11 | EA164: 4.870717121e-11 | EB164: 5.21166732e-11 | EC164: 5.576484032e-11 | ED164: 5.966837914e-11 | EE164: 6.384516568e-11 | EF164: 6.831432728e-11 | EG164: 7.309633019e-11 | EH164: =EH147+EH155 -> 7.82130733e-11 | EI164: 8.368798843e-11 | EJ164: 8.954614763e-11 | EK164: 9.581437796e-11 | EL164: 1.025213844e-10 | EM164: 1.096978813e-10 | EN164: 1.17376733e-10 | EO164: 1.255931043e-10 | EP164: 1.343846216e-10 | EQ164: 1.437915451e-10 | ER164: 1.538569533e-10 | ES164: 1.6462694e-10 | ET164: 1.761508258e-10 | EU164: 1.884813837e-10 | EV164: 2.016750805e-10 | EW164: 2.157923361e-10 | EX164: 2.308977997e-10 | EY164: 2.470606456e-10 | EZ164: 2.643548908e-10 | FA164: 2.828597332e-10 | FB164: 3.026599145e-10 | FC164: 3.238461085e-10 | FD164: 3.465153361e-10 | FE164: 3.707714097e-10 | FF164: 3.967254083e-10 | FG164: 4.244961869e-10 | FH164: 4.5421092e-10 | FI164: 4.860056844e-10 | FJ164: 5.200260823e-10 | FK164: 5.564279081e-10 | FL164: 5.953778617e-10 | FM164: 6.37054312e-10 | FN164: =FN147+FN155 -> 6.816481138e-10 | FO164: 7.293634818e-10 | FP164: 7.804189255e-10 | FQ164: 8.350482503e-10 | FR164: 8.935016278e-10 | FS164: 9.560467418e-10 | FT164: 1.022970014e-09 | FU164: 1.094577915e-09 | FV164: 1.171198369e-09 | FW164: 1.253182254e-09 | FX164: 1.340905012e-09 | FY164: 1.434768363e-09 | FZ164: 1.535202149e-09 | GA164: 1.642666299e-09 | GB164: 1.75765294e-09 | GC164: 1.880688646e-09 | GD164: 2.012336851e-09 | GE164: 2.15320043e-09 | GF164: 2.303924461e-09 | GG164: 2.465199173e-09 | GH164: 2.637763115e-09 | GI164: 2.822406533e-09 | GJ164: 3.01997499e-09 | GK164: 3.23137324e-09 | GL164: 3.457569366e-09 | GM164: 3.699599222e-09 | GN164: 3.958571168e-09 | GO164: 4.235671149e-09 | GP164: 4.53216813e-09 | GQ164: 4.849419899e-09 | GR164: 5.188879292e-09 | GS164: 5.552100842e-09 | GT164: =GT147+GT155 -> 5.940747901e-09 | GU164: 6.356600254e-09 | GV164: 6.801562272e-09 | GW164: 7.277671631e-09 | GX164: 7.787108645e-09 | GY164: 8.33220625e-09 | GZ164: 8.915460688e-09 | HA164: 9.539542936e-09
D165: Fixed Total Debt Service | F165: MED | I165: Fixed DS | J165: 0 | K165: 0 | L165: 0 | M165: 0 | N165: 0 | O165: 0 | P165: 0 | Q165: 0 | R165: 0 | S165: 0 | T165: 0 | U165: 0 | V165: 0 | W165: 0 | X165: 0 | Y165: 0 | Z165: 0 | AA165: 0 | AB165: 0 | AC165: 0 | AD165: 0 | AE165: 0 | AF165: 0 | AG165: 0 | AH165: 429.7609495 | AI165: 386.621805 | AJ165: 347.78705 | AK165: 312.8256892 | AL165: 281.3497942 | AM165: 253.0101951 | AN165: 227.4926026 | AO165: 204.5141178 | AP165: 183.8200908 | AQ165: 165.1812935 | AR165: 148.3913752 | AS165: 133.2645714 | AT165: 119.6336434 | AU165: 107.3480219 | AV165: 96.27213705 | AW165: 86.28391562 | AX165: 77.27342724 | AY165: 69.14166665 | AZ165: 61.79945713 | BA165: 86.65394236 | BB165: 2.660982545e-13 | BC165: 2.847251324e-13 | BD165: 3.046558916e-13 | BE165: 3.25981804e-13 | BF165: 3.488005303e-13 | BG165: 3.732165674e-13 | BH165: 3.993417272e-13 | BI165: 4.272956481e-13 | BJ165: 4.572063434e-13 | BK165: 4.892107875e-13 | BL165: 5.234555426e-13 | BM165: 5.600974306e-13 | BN165: 5.993042507e-13 | BO165: 6.412555483e-13 | BP165: 6.861434366e-13 | BQ165: 7.341734772e-13 | BR165: 7.855656206e-13 | BS165: 8.405552141e-13 | BT165: 8.99394079e-13 | BU165: 9.623516646e-13 | BV165: 1.029716281e-12 | BW165: 1.101796421e-12 | BX165: 1.17892217e-12 | BY165: 1.261446722e-12 | BZ165: 1.349747993e-12 | CA165: 1.444230352e-12 | CB165: 1.545326477e-12 | CC165: 1.65349933e-12 | CD165: 1.769244283e-12 | CE165: 1.893091383e-12 | CF165: 2.02560778e-12 | CG165: 2.167400325e-12 | CH165: 2.319118347e-12 | CI165: 2.481456632e-12 | CJ165: 2.655158596e-12 | CK165: 2.841019698e-12 | CL165: 3.039891076e-12 | CM165: 3.252683452e-12 | CN165: 3.480371293e-12 | CO165: 3.723997284e-12 | CP165: 3.984677094e-12 | CQ165: 4.26360449e-12 | CR165: 4.562056805e-12 | CS165: 4.881400781e-12 | CT165: 5.223098836e-12 | CU165: 5.588715754e-12 | CV165: 5.979925857e-12 | CW165: 6.398520667e-12 | CX165: 6.846417114e-12 | CY165: 7.325666311e-12 | CZ165: 7.838462953e-12 | DA165: 8.38715536e-12 | DB165: 8.974256235e-12 | DC165: 9.602454172e-12 | DD165: 1.027462596e-11 | DE165: 1.099384978e-11 | DF165: 1.176341927e-11 | DG165: 1.258685861e-11 | DH165: 1.346793872e-11 | DI165: 1.441069443e-11 | DJ165: 1.541944304e-11 | DK165: 1.649880405e-11 | DL165: 1.765372033e-11 | DM165: 1.888948076e-11 | DN165: 2.021174441e-11 | DO165: 2.162656652e-11 | DP165: 2.314042618e-11 | DQ165: 2.476025601e-11 | DR165: 2.649347393e-11 | DS165: 2.83480171e-11 | DT165: 3.03323783e-11 | DU165: 3.245564478e-11 | DV165: 3.472753992e-11 | DW165: 3.715846771e-11 | DX165: 3.975956045e-11 | DY165: 4.254272968e-11 | DZ165: 4.552072076e-11 | EA165: 4.870717121e-11 | EB165: 5.21166732e-11 | EC165: 5.576484032e-11 | ED165: 5.966837914e-11 | EE165: 6.384516568e-11 | EF165: 6.831432728e-11 | EG165: 7.309633019e-11 | EH165: 7.82130733e-11 | EI165: 8.368798843e-11 | EJ165: 8.954614763e-11 | EK165: 9.581437796e-11 | EL165: 1.025213844e-10 | EM165: 1.096978813e-10 | EN165: 1.17376733e-10 | EO165: 1.255931043e-10 | EP165: 1.343846216e-10 | EQ165: 1.437915451e-10 | ER165: 1.538569533e-10 | ES165: 1.6462694e-10 | ET165: 1.761508258e-10 | EU165: 1.884813837e-10 | EV165: 2.016750805e-10 | EW165: 2.157923361e-10 | EX165: 2.308977997e-10 | EY165: 2.470606456e-10 | EZ165: 2.643548908e-10 | FA165: 2.828597332e-10 | FB165: 3.026599145e-10 | FC165: 3.238461085e-10 | FD165: 3.465153361e-10 | FE165: 3.707714097e-10 | FF165: 3.967254083e-10 | FG165: 4.244961869e-10 | FH165: 4.5421092e-10 | FI165: 4.860056844e-10 | FJ165: 5.200260823e-10 | FK165: 5.564279081e-10 | FL165: 5.953778617e-10 | FM165: 6.37054312e-10 | FN165: 6.816481138e-10 | FO165: 7.293634818e-10 | FP165: 7.804189255e-10 | FQ165: 8.350482503e-10 | FR165: 8.935016278e-10 | FS165: 9.560467418e-10 | FT165: 1.022970014e-09 | FU165: 1.094577915e-09 | FV165: 1.171198369e-09 | FW165: 1.253182254e-09 | FX165: 1.340905012e-09 | FY165: 1.434768363e-09 | FZ165: 1.535202149e-09 | GA165: 1.642666299e-09 | GB165: 1.75765294e-09 | GC165: 1.880688646e-09 | GD165: 2.012336851e-09 | GE165: 2.15320043e-09 | GF165: 2.303924461e-09 | GG165: 2.465199173e-09 | GH165: 2.637763115e-09 | GI165: 2.822406533e-09 | GJ165: 3.01997499e-09 | GK165: 3.23137324e-09 | GL165: 3.457569366e-09 | GM165: 3.699599222e-09 | GN165: 3.958571168e-09 | GO165: 4.235671149e-09 | GP165: 4.53216813e-09 | GQ165: 4.849419899e-09 | GR165: 5.188879292e-09 | GS165: 5.552100842e-09 | GT165: 5.940747901e-09 | GU165: 6.356600254e-09 | GV165: 6.801562272e-09 | GW165: 7.277671631e-09 | GX165: 7.787108645e-09 | GY165: 8.33220625e-09 | GZ165: 8.915460688e-09 | HA165: 9.539542936e-09
